Workbook

Sheet Planilha Orçamentária
A1: Ministério da Integração e do Desenvolvimento Regional
A2: Companhia de desenvolvimento dos Vales do São Francisco e do Parnaíba
A4: PLANILHA ORÇAMENTÁRIA - ORÇAMENTO NÃO DESONERADO
A5: OBRA: | B5: =UPPER("SERVIÇOS DE MANUTENÇÃO E OBRAS CIVIS NA BARRAGEM DESERTO") -> SERVIÇOS DE MANUTENÇÃO E OBRAS CIVIS NA BARRAGEM DESERTO | F5: BDI (serv.): | H5: ='BDI serv'!D22 -> 0.2378 | I5: Bancos
A6: LOCAL: | B6: BARRAGEM DESERTO, PETROLINA/PE | F6: BDI (forn.): | H6: ='BDI forn'!E6 -> 0.136 | I6: 03/2024 - SINAPI/PE | K6: =G15*1.2378 -> 4822.295508 | N6: =2091*405 -> 846855
A7: DATA BASE: | B7: 2024-05-01 | E7: Encargos sociais Horistas: | H7: ='Encargos Sociais'!E47 -> 1.1398 | I7: 01/2024 - SICRO/PE
A8: PRAZO (DIAS): | B8: 120 | E8: Encargos sociais - Mensalista: | H8: ='Encargos Sociais'!F47 -> 0.7
A9: ITEM | B9: REFERÊNCIA | D9: DESCRIÇÃO | E9: UNID. | F9: QUANT. | G9: CUSTO UNITÁRIO | H9: PREÇO UNITÁRIO | I9: PREÇO TOTAL | L9: TIPO de BDI | M9: CLASSIF
B10: FONTE | C10: CÓDIGO
A11: 1 | D11: ADMINISTRAÇÃO DA OBRA | I11: =SUM(I12:I12) -> 143091.3634 | M11: ss | N11: COMENTÁRIOS
A12: 1.1 | B12: PRÓPRIA | C12: CPU.01 | D12: Administração Local | E12: mês | F12: 4 | G12: =SUMIFS(CPU!$H:$H,CPU!$B:$B,'Planilha Orçamentária'!$A12,CPU!$I:$I,"ss")+SUMIFS(CPU!$H:$H,CPU!$B:$B,'Planilha Orçamentária'!$A12,CPU!$I:$I,"mdo")+SUMIF('Comp SINAPI PE 12-2023 Onerado'!G:G,'Planilha Orçamentária'!C12,'Comp SINAPI PE 12-2023 Onerado'!K:K)+SUMIF('Ins SINAPI PE 12-2023 Onerado'!A:A,'Planilha Orçamentária'!C12,'Ins SINAPI PE 12-2023 Onerado'!E:E) -> 28900.34 | H12: =IF(L12="SERV",G12*(1+$H$5),G12*(1+$H$6)) -> 35772.84085 | I12: =IF(L12="SERV",G12*F12*(1+$H$5),G12*F12*(1+$H$6)) -> 143091.3634 | J12: =H12*F12 -> 143091.3634 | K12: =J12-I12 -> 0 | L12: serv | M12: s
J13: 0 | K13: =J13-I13 -> 0 | M13: 154854.1908
A14: 2 | D14: SERVIÇOS PRELIMINARES | I14: =SUM(I15:I17) -> 7447.90449 | J14: 0 | K14: 0 | M14: ss | N14: 32808.27175
A15: 2.1 | B15: PRÓPRIA | C15: CPU.02 | D15: Mobilização e desmobilização de instalação do canteiro | E15: =VLOOKUP(A15,CPU!B11:H323,4,0) -> un | F15: ='Memorial de cálculo'!H17 -> 1 | G15: =CPU!H21 -> 3895.86 | H15: =IF(L15="SERV",G15*(1+$H$5),G15*(1+$H$6)) -> 4822.295508 | I15: =IF(L15="SERV",G15*F15*(1+$H$5),G15*F15*(1+$H$6)) -> 4822.295508 | J15: =H15*F15 -> 4822.295508 | K15: 0 | L15: serv | M15: s
A16: 2.2 | B16: PRÓPRIA | C16: CPU.03 | D16: Canteiro de obras | E16: =VLOOKUP(A16,CPU!B13:H325,4,0) -> un | F16: ='Memorial de cálculo'!H17 -> 1 | G16: =VLOOKUP(A16,CPU!B11:H323,7,0) -> 780.09 | H16: =IF(L16="SERV",G16*(1+$H$5),G16*(1+$H$6)) -> 965.595402 | I16: =IF(L16="SERV",G16*F16*(1+$H$5),G16*F16*(1+$H$6)) -> 965.595402 | J16: 965.595402 | K16: 0 | L16: serv | M16: s
A17: 2.3 | B17: PRÓPRIA | C17: CPU.04 | D17: PLACA DE OBRA EM CHAPA DE ACO GALVANIZADO | E17: m² | F17: 2 | G17: =SUMIFS(CPU!$H:$H,CPU!$B:$B,'Planilha Orçamentária'!$A17,CPU!$I:$I,"ss")+SUMIFS(CPU!$H:$H,CPU!$B:$B,'Planilha Orçamentária'!$A17,CPU!$I:$I,"mdo")+SUMIF('Comp SINAPI PE 12-2023 Onerado'!G:G,'Planilha Orçamentária'!C17,'Comp SINAPI PE 12-2023 Onerado'!K:K)+SUMIF('Ins SINAPI PE 12-2023 Onerado'!A:A,'Planilha Orçamentária'!C17,'Ins SINAPI PE 12-2023 Onerado'!E:E) -> 670.55 | H17: =IF(L17="SERV",G17*(1+$H$5),G17*(1+$H$6)) -> 830.00679 | I17: =IF(L17="SERV",G17*F17*(1+$H$5),G17*F17*(1+$H$6)) -> 1660.01358 | J17: 1660.01358 | K17: 0 | L17: serv | M17: s
J18: 0 | K18: 0
A19: 3 | D19: CORTE DA VEGETAÇÃO E REMOÇÃO DAS RAIZES | I19: =SUM(I20:I22) -> 112874.6478 | J19: 0 | K19: 0 | M19: ss
A20: 3.1 | B20: PRÓPRIA | C20: CPU.05 | D20: Limpeza Manual De Vegetação Em Terreno Com Enxada | E20: =VLOOKUP(A20,CPU!B18:H330,4,0) -> m² | F20: ='Memorial de cálculo'!H68 -> 9300 | G20: =VLOOKUP(A20,CPU!B16:H328,7,0) -> 8.7601 | H20: =IF(L20="SERV",G20*(1+$H$5),G20*(1+$H$6)) -> 10.84325178 | I20: =IF(L20="SERV",G20*F20*(1+$H$5),G20*F20*(1+$H$6)) -> 100842.2416 | J20: 100842.2416 | K20: 0 | L20: serv | M20: s
A21: 3.2 | B21: PRÓPRIA | C21: CPU.06 | D21: Corte raso de árvores | E21: =VLOOKUP(A21,CPU!B19:H331,4,0) -> m² | F21: ='Memorial de cálculo'!H87 -> 20 | G21: =VLOOKUP(A21,CPU!B17:H329,7,0) -> 264.93 | H21: =IF(L21="SERV",G21*(1+$H$5),G21*(1+$H$6)) -> 327.930354 | I21: =IF(L21="SERV",G21*F21*(1+$H$5),G21*F21*(1+$H$6)) -> 6558.60708 | J21: 6558.60708 | K21: 0 | L21: serv | M21: s
A22: 3.3 | B22: PRÓPRIA | C22: CPU.07 | D22: Remoção de raízes | E22: =VLOOKUP(A22,CPU!B20:H332,4,0) -> m² | F22: ='Memorial de cálculo'!H99 -> 20 | G22: =VLOOKUP(A22,CPU!B18:H330,7,0) -> 221.11 | H22: =IF(L22="SERV",G22*(1+$H$5),G22*(1+$H$6)) -> 273.689958 | I22: =IF(L22="SERV",G22*F22*(1+$H$5),G22*F22*(1+$H$6)) -> 5473.79916 | J22: 5473.79916 | K22: 0 | L22: serv | M22: s
J23: 0 | K23: 0
A24: 4 | D24: APLICAÇÃO DE CONCRETO | I24: =I25 -> 175.474489 | J24: 0 | K24: 0 | M24: ss
A25: 4.1. | B25: PRÓPRIA | C25: CPU.08 | D25: Aplicação de concreto - slump 22 - fck maior que 10 c/ fornecimento | E25: =VLOOKUP(A25,CPU!B24:H336,4,0) -> m³ | F25: ='Memorial de cálculo'!H111 -> 0.16 | G25: =VLOOKUP(A25,CPU!B22:H334,7,0) -> 886.02 | H25: =IF(L25="SERV",G25*(1+$H$5),G25*(1+$H$6)) -> 1096.715556 | I25: =IF(L25="SERV",G25*F25*(1+$H$5),G25*F25*(1+$H$6)) -> 175.474489 | J25: 175.474489 | K25: 0 | L25: serv | M25: s | N25: Considerou-se 4 buracos resultado da extração das árvores na crista com dimensão de 0,3x0,3x0,4 m.
J26: 0 | K26: 0
A27: 5 | D27: REGULARIZAÇÃO E MANUTENÇÃO DA CRISTA | I27: =SUM(I28:I30) -> 65435.76351 | J27: 0 | K27: 0 | M27: ss
A28: 5.1 | B28: PRÓPRIA | C28: CPU.09 | D28: Remoção das guias de concreto | E28: =VLOOKUP(A28,CPU!B28:H340,4,0) -> m | F28: ='Memorial de cálculo'!H129 -> 405 | G28: =VLOOKUP(A28,CPU!B25:H337,7,0) -> 32.79 | H28: =IF(L28="SERV",G28*(1+$H$5),G28*(1+$H$6)) -> 40.587462 | I28: =IF(L28="SERV",G28*F28*(1+$H$5),G28*F28*(1+$H$6)) -> 16437.92211 | J28: 16437.92211 | K28: 0 | L28: serv | M28: s | N28: Considerou-se o reaproveitamento das guias de concreto no encontro com o talude de jusante
A29: 5.2 | B29: PRÓPRIA | C29: CPU.10 | D29: Regularização e compactação da crista | E29: =VLOOKUP(A29,CPU!B29:H341,4,0) -> m² | F29: ='Memorial de cálculo'!H140 -> 1377 | G29: =VLOOKUP(A29,CPU!B26:H338,7,0) -> 1.63 | H29: =IF(L29="SERV",G29*(1+$H$5),G29*(1+$H$6)) -> 2.017614 | I29: =IF(L29="SERV",G29*F29*(1+$H$5),G29*F29*(1+$H$6)) -> 2778.254478 | J29: 2778.254478 | K29: 0 | L29: serv | M29: s
A30: 5.3 | B30: PRÓPRIA | C30: CPU.11 | D30: Revestimento com brita graduada simples | E30: =VLOOKUP(A30,CPU!B30:H342,4,0) -> m³ | F30: ='Memorial de cálculo'!H150 -> 137.7 | G30: =VLOOKUP(A30,CPU!B27:H339,7,0) -> 271.17 | H30: =IF(L30="SERV",G30*(1+$H$5),G30*(1+$H$6)) -> 335.654226 | I30: =IF(L30="SERV",G30*F30*(1+$H$5),G30*F30*(1+$H$6)) -> 46219.58692 | J30: 46219.58692 | K30: 0 | L30: serv | M30: s
J31: 0 | K31: 0
A32: 6 | D32: =UPPER("Recomposição de erosão do talude de jusante") -> RECOMPOSIÇÃO DE EROSÃO DO TALUDE DE JUSANTE | I32: =I33 -> 68715.13946 | J32: 0 | K32: 0 | M32: ss
A33: 6.1 | B33: PROPRIA | C33: CPU.12 | D33: Solo melhorado com 3% de cimento | E33: m³ | F33: ='Memorial de cálculo'!H168 -> 86.75 | G33: =SUMIFS(CPU!$H:$H,CPU!$B:$B,'Planilha Orçamentária'!$A33,CPU!$I:$I,"ss")+SUMIFS(CPU!$H:$H,CPU!$B:$B,'Planilha Orçamentária'!$A33,CPU!$I:$I,"mdo")+SUMIF('Comp SINAPI PE 12-2023 Onerado'!G:G,'Planilha Orçamentária'!C33,'Comp SINAPI PE 12-2023 Onerado'!K:K)+SUMIF('Ins SINAPI PE 12-2023 Onerado'!A:A,'Planilha Orçamentária'!C33,'Ins SINAPI PE 12-2023 Onerado'!E:E) -> 639.93 | H33: =IF(L33="SERV",G33*(1+$H$5),G33*(1+$H$6)) -> 792.105354 | I33: =IF(L33="SERV",G33*F33*(1+$H$5),G33*F33*(1+$H$6)) -> 68715.13946 | J33: 68715.13946 | K33: 0 | L33: serv | M33: s | N33: Considerou-se 0,1 m de camada superficial e a metade da área do talude, levando mais em conta o encontro do talude com o coroamento
J34: 0 | K34: 0
A35: 7 | D35: =UPPER("Drenagem superficial do talude jusante") -> DRENAGEM SUPERFICIAL DO TALUDE JUSANTE | I35: =SUM(I36:I37) -> 2344.88832 | J35: 0 | K35: 0 | M35: ss
A36: 7.1 | B36: PROPRIA | C36: CPU.13 | D36: Manutenção da Canaleta para descida d'água | E36: m | F36: ='Memorial de cálculo'!H181 -> 100 | G36: =VLOOKUP(A36,CPU!B35:H347,7,0) -> 9.77 | H36: =IF(L36="SERV",G36*(1+$H$5),G36*(1+$H$6)) -> 12.093306 | I36: =IF(L36="SERV",G36*F36*(1+$H$5),G36*F36*(1+$H$6)) -> 1209.3306 | J36: 1209.3306 | K36: 0 | L36: serv | M36: s
A37: 7.2 | B37: PROPRIA | C37: CPU.14 | D37: Entrada para descida d'água | E37: um | F37: ='Memorial de cálculo'!H193 -> 4 | G37: =SUMIFS(CPU!$H:$H,CPU!$B:$B,'Planilha Orçamentária'!$A37,CPU!$I:$I,"ss")+SUMIFS(CPU!$H:$H,CPU!$B:$B,'Planilha Orçamentária'!$A37,CPU!$I:$I,"mdo")+SUMIF('Comp SINAPI PE 12-2023 Onerado'!G:G,'Planilha Orçamentária'!C37,'Comp SINAPI PE 12-2023 Onerado'!K:K)+SUMIF('Ins SINAPI PE 12-2023 Onerado'!A:A,'Planilha Orçamentária'!C37,'Ins SINAPI PE 12-2023 Onerado'!E:E) -> 229.35 | H37: =IF(L37="SERV",G37*(1+$H$5),G37*(1+$H$6)) -> 283.88943 | I37: =IF(L37="SERV",G37*F37*(1+$H$5),G37*F37*(1+$H$6)) -> 1135.55772 | J37: 1135.55772 | K37: 0 | L37: serv | M37: s
J38: 0 | K38: 0
A39: 8 | D39: =UPPER("Proteção superficial do talude de jusante") -> PROTEÇÃO SUPERFICIAL DO TALUDE DE JUSANTE | I39: =I40 -> 62996.27197 | J39: 0 | K39: 0
A40: 8.1 | B40: PROPRIA | C40: CPU.15 | D40: Proteção vegetal | E40: =VLOOKUP(A40,CPU!B42:H354,4,0) -> m² | F40: ='Memorial de cálculo'!H210 -> 1735 | G40: =SUMIFS(CPU!$H:$H,CPU!$B:$B,'Planilha Orçamentária'!$A40,CPU!$I:$I,"ss")+SUMIFS(CPU!$H:$H,CPU!$B:$B,'Planilha Orçamentária'!$A40,CPU!$I:$I,"mdo")+SUMIF('Comp SINAPI PE 12-2023 Onerado'!G:G,'Planilha Orçamentária'!C40,'Comp SINAPI PE 12-2023 Onerado'!K:K)+SUMIF('Ins SINAPI PE 12-2023 Onerado'!A:A,'Planilha Orçamentária'!C40,'Ins SINAPI PE 12-2023 Onerado'!E:E) -> 29.333568 | H40: =IF(L40="SERV",G40*(1+$H$5),G40*(1+$H$6)) -> 36.30909047 | I40: =IF(L40="SERV",G40*F40*(1+$H$5),G40*F40*(1+$H$6)) -> 62996.27197 | J40: 62996.27197 | K40: 0 | L40: serv | M40: s
J41: 0 | K41: 0
A42: 9 | D42: MANUTENÇÃO DO MURO LATERAL ESQUERDO E PROTEÇÃO DA BACIA AMORTECEDORA | I42: =I43 -> 48622.51692 | J42: 0 | K42: 0 | M42: ss
A43: 9.1 | B43: PROPRIA | C43: CPU.16 | D43: Proteção da bacia e muro lateral | E43: =VLOOKUP(A43,CPU!B46:H358,4,0) -> m³ | F43: ='Memorial de cálculo'!H232 -> 36 | G43: =SUMIFS(CPU!$H:$H,CPU!$B:$B,'Planilha Orçamentária'!$A43,CPU!$I:$I,"ss")+SUMIFS(CPU!$H:$H,CPU!$B:$B,'Planilha Orçamentária'!$A43,CPU!$I:$I,"mdo")+SUMIF('Comp SINAPI PE 12-2023 Onerado'!G:G,'Planilha Orçamentária'!C43,'Comp SINAPI PE 12-2023 Onerado'!K:K)+SUMIF('Ins SINAPI PE 12-2023 Onerado'!A:A,'Planilha Orçamentária'!C43,'Ins SINAPI PE 12-2023 Onerado'!E:E) -> 1091.15 | H43: =IF(L43="SERV",G43*(1+$H$5),G43*(1+$H$6)) -> 1350.62547 | I43: =IF(L43="SERV",G43*F43*(1+$H$5),G43*F43*(1+$H$6)) -> 48622.51692 | J43: 48622.51692 | K43: 0 | L43: serv | M43: s | N43: considerando construção de 50 m de muro de 0,5x2
J44: 0 | K44: 0
A45: 10 | D45: MANUTENÇÃO DO VERTEDOURO E MURO LATERAL DIREITO | I45: =SUM(I46:I47) -> 12526.90734 | J45: 0 | K45: 0
A46: 10.1 | B46: PROPRIA | C46: CPU.17 | D46: Limpeza do vertedouro | E46: =VLOOKUP(A46,CPU!B50:H362,4,0) -> m² | F46: ='Memorial de cálculo'!H249 -> 100 | G46: =SUMIFS(CPU!$H:$H,CPU!$B:$B,'Planilha Orçamentária'!$A46,CPU!$I:$I,"ss")+SUMIFS(CPU!$H:$H,CPU!$B:$B,'Planilha Orçamentária'!$A46,CPU!$I:$I,"mdo")+SUMIF('Comp SINAPI PE 12-2023 Onerado'!G:G,'Planilha Orçamentária'!C46,'Comp SINAPI PE 12-2023 Onerado'!K:K)+SUMIF('Ins SINAPI PE 12-2023 Onerado'!A:A,'Planilha Orçamentária'!C46,'Ins SINAPI PE 12-2023 Onerado'!E:E) -> 10.81 | H46: =IF(L46="SERV",G46*(1+$H$5),G46*(1+$H$6)) -> 13.380618 | I46: =IF(L46="SERV",G46*F46*(1+$H$5),G46*F46*(1+$H$6)) -> 1338.0618 | J46: 1338.0618 | K46: 0 | L46: serv | M46: s
A47: 10.2 | B47: PROPRIA | C47: CPU.18 | D47: Manutenção do muro Lateral Direito | E47: m² | F47: 10 | G47: =SUMIFS(CPU!$H:$H,CPU!$B:$B,'Planilha Orçamentária'!$A47,CPU!$I:$I,"ss")+SUMIFS(CPU!$H:$H,CPU!$B:$B,'Planilha Orçamentária'!$A47,CPU!$I:$I,"mdo")+SUMIF('Comp SINAPI PE 12-2023 Onerado'!G:G,'Planilha Orçamentária'!C47,'Comp SINAPI PE 12-2023 Onerado'!K:K)+SUMIF('Ins SINAPI PE 12-2023 Onerado'!A:A,'Planilha Orçamentária'!C47,'Ins SINAPI PE 12-2023 Onerado'!E:E) -> 903.93 | H47: =IF(L47="SERV",G47*(1+$H$5),G47*(1+$H$6)) -> 1118.884554 | I47: =IF(L47="SERV",G47*F47*(1+$H$5),G47*F47*(1+$H$6)) -> 11188.84554 | J47: 11188.84554 | K47: 0 | L47: serv | M47: s
J48: 0 | K48: 0
A49: 11 | D49: =UPPER("Proteção do canal devido a processos erosivos ") -> PROTEÇÃO DO CANAL DEVIDO A PROCESSOS EROSIVOS | I49: =SUM(I50) -> 19533.1029 | J49: 0 | K49: 0 | M49: ss
A50: 11.1 | B50: PROPRIA | C50: CPU.19 | D50: Enrocamento c/ pedra de mão c/ fornecimento e assentamento | E50: m³ | F50: =250*0.1 -> 25 | G50: =SUMIFS(CPU!$H:$H,CPU!$B:$B,'Planilha Orçamentária'!$A50,CPU!$I:$I,"ss")+SUMIFS(CPU!$H:$H,CPU!$B:$B,'Planilha Orçamentária'!$A50,CPU!$I:$I,"mdo")+SUMIF('Comp SINAPI PE 12-2023 Onerado'!G:G,'Planilha Orçamentária'!C50,'Comp SINAPI PE 12-2023 Onerado'!K:K)+SUMIF('Ins SINAPI PE 12-2023 Onerado'!A:A,'Planilha Orçamentária'!C50,'Ins SINAPI PE 12-2023 Onerado'!E:E) -> 631.22 | H50: =IF(L50="SERV",G50*(1+$H$5),G50*(1+$H$6)) -> 781.324116 | I50: =IF(L50="SERV",G50*F50*(1+$H$5),G50*F50*(1+$H$6)) -> 19533.1029 | J50: 19533.1029 | K50: 0 | L50: serv | M50: s | N50: Considerou-se uma área de 250 m² do canal de restituição para proteção contra erosão regressiva
J51: 0 | K51: 0
A52: 12 | D52: SERVIÇOS COMPLEMENTARES | I52: =SUM(I53:I56) -> 95484.80797 | J52: 0 | K52: 0 | M52: ss
A53: 12.1 | B53: PRÓPRIA | C53: CPU.20 | D53: Instalação de placas de aviso | E53: m² | F53: ='Memorial de cálculo'!H284 -> 4 | G53: =SUMIFS(CPU!$H:$H,CPU!$B:$B,'Planilha Orçamentária'!$A53,CPU!$I:$I,"ss")+SUMIFS(CPU!$H:$H,CPU!$B:$B,'Planilha Orçamentária'!$A53,CPU!$I:$I,"mdo")+SUMIF('Comp SINAPI PE 12-2023 Onerado'!G:G,'Planilha Orçamentária'!C53,'Comp SINAPI PE 12-2023 Onerado'!K:K)+SUMIF('Ins SINAPI PE 12-2023 Onerado'!A:A,'Planilha Orçamentária'!C53,'Ins SINAPI PE 12-2023 Onerado'!E:E) -> 710.06 | H53: =IF(L53="SERV",G53*(1+$H$5),G53*(1+$H$6)) -> 878.912268 | I53: =IF(L53="SERV",G53*F53*(1+$H$5),G53*F53*(1+$H$6)) -> 3515.649072 | J53: 3515.649072 | K53: 0 | L53: serv | M53: s | N53: 4 placas de 1 m²
A54: 12.2 | B54: PRÓPRIA | C54: CPU.21 | D54: Instalação de mourões para medida de cota d’água | E54: un | F54: ='Memorial de cálculo'!H300 -> 10 | G54: =SUMIFS(CPU!$H:$H,CPU!$B:$B,'Planilha Orçamentária'!$A54,CPU!$I:$I,"ss")+SUMIFS(CPU!$H:$H,CPU!$B:$B,'Planilha Orçamentária'!$A54,CPU!$I:$I,"mdo")+SUMIF('Comp SINAPI PE 12-2023 Onerado'!G:G,'Planilha Orçamentária'!C54,'Comp SINAPI PE 12-2023 Onerado'!K:K)+SUMIF('Ins SINAPI PE 12-2023 Onerado'!A:A,'Planilha Orçamentária'!C54,'Ins SINAPI PE 12-2023 Onerado'!E:E) -> 425.05 | H54: =IF(L54="SERV",G54*(1+$H$5),G54*(1+$H$6)) -> 526.12689 | I54: =IF(L54="SERV",G54*F54*(1+$H$5),G54*F54*(1+$H$6)) -> 5261.2689 | J54: 5261.2689 | K54: 0 | L54: serv | M54: s
A55: 12.3 | B55: PRÓPRIA | C55: CPU.22 | D55: Cercas de proteção | E55: m | F55: ='Memorial de cálculo'!H316 -> 500 | G55: =VLOOKUP(A55,CPU!B60:H372,7,0) -> 113.18 | H55: =IF(L55="SERV",G55*(1+$H$5),G55*(1+$H$6)) -> 140.094204 | I55: =IF(L54="SERV",G55*F55*(1+$H$5),G55*F55*(1+$H$6)) -> 70047.102 | J55: 70047.102 | K55: 0 | L55: serv | M55: s | N55: Peso do mourao https://crepan.com.br/mourao-de-concreto/
A56: 12.4 | B56: PRÓPRIA | C56: CPU.23 | D56: Limpeza das margens do reservatório | E56: m² | F56: ='Memorial de cálculo'!H332 -> 1000 | G56: =VLOOKUP(A56,CPU!B62:H374,7,0) -> 13.46 | H56: =IF(L56="SERV",G56*(1+$H$5),G56*(1+$H$6)) -> 16.660788 | I56: =IF(L55="SERV",G56*F56*(1+$H$5),G56*F56*(1+$H$6)) -> 16660.788 | J56: 16660.788 | K56: 0 | L56: serv | M56: s | N56: Considerou-se 1000m²
J57: 0 | K57: 0
A58: 13 | D58: MANUTENÇÃO DOS EQUIPAMENTOS HIDROMECÂNICOS | I58: =SUM(I59:I60) -> 4435.507764 | J58: 0 | K58: 0
A59: 13.1 | B59: PRÓPRIA | C59: CPU.24 | D59: Manutenção tubo de descarga e registro | E59: m² | F59: ='Memorial de cálculo'!H346 -> 15 | G59: =VLOOKUP(A59,CPU!B63:H375,7,0) -> 129.95 | H59: =IF(L59="SERV",G59*(1+$H$5),G59*(1+$H$6)) -> 160.85211 | I59: =IF(L59="SERV",G59*F59*(1+$H$5),G59*F59*(1+$H$6)) -> 2412.78165 | J59: 2412.78165 | K59: 0 | L59: serv | M59: s | N59: Considerou-se 15 m²
A60: 13.2 | B60: PRÓPRIA | C60: CPU.25 | D60: Grade de proteção da tomada de água | E60: m² | F60: ='Memorial de cálculo'!H376 -> 1 | G60: =VLOOKUP(A60,CPU!B64:H376,7,0) -> 1634.13 | H60: =IF(L60="SERV",G60*(1+$H$5),G60*(1+$H$6)) -> 2022.726114 | I60: =IF(L60="SERV",G60*F60*(1+$H$5),G60*F60*(1+$H$6)) -> 2022.726114 | J60: 2022.726114 | K60: 0 | L60: serv
J61: =SUM(J12:J60) -> 643684.2963 | K61: 643684.2963
D62: TOTAL Sem BDI: | I62: =SUMPRODUCT(F11:F61,G11:G61) -> 520022.8602
D63: BDI: | I63: =I62*H5 -> 123661.4362
D64: TOTAL COM BDI: | I64: =SUM(I62:I63) -> 643684.2963 | L64: =I58+I52+I49+I45+I42+I39+I35+I32+I27+I24+I14+I11 -> 530809.6485

Sheet Planilha Orçamentária Desoner (hidden)
A1: Ministério da Integração e do Desenvolvimento Regional
A2: Companhia de desenvolvimento dos Vales do São Francisco e do Parnaíba
A4: PLANILHA ORÇAMENTÁRIA - ORÇAMENTO DESONERADO
A5: OBRA: | B5: =UPPER("SERVIÇOS DE MANUTENÇÃO E OBRAS CIVIS NA ESTRUTURA DA BARRAGEM E EQUIPAMENTO HIDROMECÂNICO") -> SERVIÇOS DE MANUTENÇÃO E OBRAS CIVIS NA ESTRUTURA DA BARRAGEM E EQUIPAMENTO HIDROMECÂNICO | G5: BDI (serv.): | H5: ='BDI serv Desonerado'!D22 -> 0.3351 | I5: Bancos
A6: LOCAL: | B6: BARRAGEM POÇO DO MAGRO, GUANAMBI/BA | G6: BDI (forn.): | H6: ='BDI forn Desonerado'!D22 -> 0.212 | I6: 05/2023 - SINAPI/BA
A7: DATA BASE: | B7: 2023-05-01 | E7: Encargos sociais Horistas: | H7: ='Encargos Sociais'!C47 -> 0.8435 | I7: 01/2023 - SICRO/BA
A8: PRAZO: | B8: 120 DIAS | E8: Encargos sociais - Mensalista: | H8: ='Encargos Sociais'!D47 -> 0.4641 | I8: 04/2023 - ORSE
A9: ITEM | B9: REFERÊNCIA | D9: DESCRIÇÃO | E9: UNID. | F9: QUANT. | G9: CUSTO UNITÁRIO | H9: PREÇO UNITÁRIO | I9: PREÇO TOTAL | J9: TIPO de BDI | K9: CLASSIF
B10: FONTE | C10: CÓDIGO
A11: 1 | D11: ADMINISTRAÇÃO LOCAL | I11: =SUM(I12:I12) -> 41837.86849 | K11: ss
A12: 1.1 | B12: PRÓPRIA | C12: CPU.01 | D12: ADMINISTRAÇÃO LOCAL | E12: MÊS | F12: ='Planilha Orçamentária'!F12 -> 4 | G12: =SUMIFS('CPU DES'!$H:$H,'CPU DES'!$B:$B,'Planilha Orçamentária Desoner'!$A12,'CPU DES'!$I:$I,"ss")+SUMIFS('CPU DES'!$H:$H,'CPU DES'!$B:$B,'Planilha Orçamentária Desoner'!$A12,'CPU DES'!$I:$I,"mdo")+SUMIF('Comp SINAPI BA 05-2023 Desoner'!G:G,'Planilha Orçamentária Desoner'!C12,'Comp SINAPI BA 05-2023 Desoner'!K:K)+SUMIF('Ins SINAPI BA 05-2023 Desoner'!A:A,'Planilha Orçamentária Desoner'!C12,'Ins SINAPI BA 05-2023 Desoner'!E:E) -> 7834.22 | H12: =IF(J12="SERV",G12*(1+$H$5),G12*(1+$H$6)) -> 10459.46712 | I12: =IF(J12="SERV",G12*F12*(1+$H$5),G12*F12*(1+$H$6)) -> 41837.86849 | J12: serv | K12: s
A14: 2 | D14: SERVIÇOS PRELIMINARES | I14: =SUM(I15,I21) ->  | K14: ss
A15: 2.1 | D15: Canteiro de obras | I15: =SUM(I16:I20) ->  | K15: s
A16: 2.1.1 | B16: SINAPI | C16: 98525 | D16: =PROPER(IF(K16="i",VLOOKUP(C16,'Ins SINAPI BA 05-2023 Desoner'!$A$8:$E$5189,2,0),VLOOKUP(C16,'Comp SINAPI BA 05-2023 Desoner'!$G$7:$K$7500,2,0))) -> Limpeza Mecanizada De Camada Vegetal, Vegetação E Pequenas Árvores (Diâmetro De Tronco Menor Que 0,20 M), Com Trator De Esteiras.Af_05/2018 | E16: =LOWER(IF(K16="i",VLOOKUP(C16,'Ins SINAPI BA 05-2023 Desoner'!$A$8:$E$5189,3,0),VLOOKUP(C16,'Comp SINAPI BA 05-2023 Desoner'!$G$7:$K$7500,3,0))) -> m2 | F16: ='Planilha Orçamentária'!F16 -> 1 | G16: =SUMIFS('CPU DES'!$H:$H,'CPU DES'!$B:$B,'Planilha Orçamentária Desoner'!$A16,'CPU DES'!$I:$I,"ss")+SUMIFS('CPU DES'!$H:$H,'CPU DES'!$B:$B,'Planilha Orçamentária Desoner'!$A16,'CPU DES'!$I:$I,"mdo")+SUMIF('Comp SINAPI BA 05-2023 Desoner'!G:G,'Planilha Orçamentária Desoner'!C16,'Comp SINAPI BA 05-2023 Desoner'!K:K)+SUMIF('Ins SINAPI BA 05-2023 Desoner'!A:A,'Planilha Orçamentária Desoner'!C16,'Ins SINAPI BA 05-2023 Desoner'!E:E) -> 0.37 | H16: =IF(J16="SERV",G16*(1+$H$5),G16*(1+$H$6)) -> 0.493987 | I16: =IF(J16="SERV",G16*F16*(1+$H$5),G16*F16*(1+$H$6)) -> 0.493987 | J16: serv | K16: s
A17: 2.1.2 | B17: SINAPI | C17: 94975 | D17: =PROPER(IF(K17="i",VLOOKUP(C17,'Ins SINAPI BA 05-2023 Desoner'!$A$8:$E$5189,2,0),VLOOKUP(C17,'Comp SINAPI BA 05-2023 Desoner'!$G$7:$K$7500,2,0))) -> Concreto Fck = 15Mpa, Traço 1:3,4:3,5 (Em Massa Seca De Cimento/ Areia Média/ Brita 1) - Preparo Manual. Af_05/2021 | E17: =LOWER(IF(K17="i",VLOOKUP(C17,'Ins SINAPI BA 05-2023 Desoner'!$A$8:$E$5189,3,0),VLOOKUP(C17,'Comp SINAPI BA 05-2023 Desoner'!$G$7:$K$7500,3,0))) -> m3 | F17: ='Planilha Orçamentária'!#REF! ->  | G17: =SUMIFS('CPU DES'!$H:$H,'CPU DES'!$B:$B,'Planilha Orçamentária Desoner'!$A17,'CPU DES'!$I:$I,"ss")+SUMIFS('CPU DES'!$H:$H,'CPU DES'!$B:$B,'Planilha Orçamentária Desoner'!$A17,'CPU DES'!$I:$I,"mdo")+SUMIF('Comp SINAPI BA 05-2023 Desoner'!G:G,'Planilha Orçamentária Desoner'!C17,'Comp SINAPI BA 05-2023 Desoner'!K:K)+SUMIF('Ins SINAPI BA 05-2023 Desoner'!A:A,'Planilha Orçamentária Desoner'!C17,'Ins SINAPI BA 05-2023 Desoner'!E:E) -> 510.11 | H17: =IF(J17="SERV",G17*(1+$H$5),G17*(1+$H$6)) -> 681.047861 | I17: =IF(J17="SERV",G17*F17*(1+$H$5),G17*F17*(1+$H$6)) ->  | J17: serv | K17: s
A18: 2.1.3 | B18: SINAPI | C18: 93210 | D18: =PROPER(IF(K18="i",VLOOKUP(C18,'Ins SINAPI BA 05-2023 Desoner'!$A$8:$E$5189,2,0),VLOOKUP(C18,'Comp SINAPI BA 05-2023 Desoner'!$G$7:$K$7500,2,0))) -> Execução De Refeitório Em Canteiro De Obra Em Chapa De Madeira Compensada, Não Incluso Mobiliário E Equipamentos. Af_02/2016 | E18: =LOWER(IF(K18="i",VLOOKUP(C18,'Ins SINAPI BA 05-2023 Desoner'!$A$8:$E$5189,3,0),VLOOKUP(C18,'Comp SINAPI BA 05-2023 Desoner'!$G$7:$K$7500,3,0))) -> m2 | F18: ='Planilha Orçamentária'!#REF! ->  | G18: =SUMIFS('CPU DES'!$H:$H,'CPU DES'!$B:$B,'Planilha Orçamentária Desoner'!$A18,'CPU DES'!$I:$I,"ss")+SUMIFS('CPU DES'!$H:$H,'CPU DES'!$B:$B,'Planilha Orçamentária Desoner'!$A18,'CPU DES'!$I:$I,"mdo")+SUMIF('Comp SINAPI BA 05-2023 Desoner'!G:G,'Planilha Orçamentária Desoner'!C18,'Comp SINAPI BA 05-2023 Desoner'!K:K)+SUMIF('Ins SINAPI BA 05-2023 Desoner'!A:A,'Planilha Orçamentária Desoner'!C18,'Ins SINAPI BA 05-2023 Desoner'!E:E) -> 602.5 | H18: =IF(J18="SERV",G18*(1+$H$5),G18*(1+$H$6)) -> 804.39775 | I18: =IF(J18="SERV",G18*F18*(1+$H$5),G18*F18*(1+$H$6)) ->  | J18: serv | K18: s
A19: 2.1.4 | B19: SINAPI | C19: 93212 | D19: =PROPER(IF(K19="i",VLOOKUP(C19,'Ins SINAPI BA 05-2023 Desoner'!$A$8:$E$5189,2,0),VLOOKUP(C19,'Comp SINAPI BA 05-2023 Desoner'!$G$7:$K$7500,2,0))) -> Execução De Sanitário E Vestiário Em Canteiro De Obra Em Chapa De Madeira Compensada, Não Incluso Mobiliário. Af_02/2016 | E19: =LOWER(IF(K19="i",VLOOKUP(C19,'Ins SINAPI BA 05-2023 Desoner'!$A$8:$E$5189,3,0),VLOOKUP(C19,'Comp SINAPI BA 05-2023 Desoner'!$G$7:$K$7500,3,0))) -> m2 | F19: ='Planilha Orçamentária'!#REF! ->  | G19: =SUMIFS('CPU DES'!$H:$H,'CPU DES'!$B:$B,'Planilha Orçamentária Desoner'!$A19,'CPU DES'!$I:$I,"ss")+SUMIFS('CPU DES'!$H:$H,'CPU DES'!$B:$B,'Planilha Orçamentária Desoner'!$A19,'CPU DES'!$I:$I,"mdo")+SUMIF('Comp SINAPI BA 05-2023 Desoner'!G:G,'Planilha Orçamentária Desoner'!C19,'Comp SINAPI BA 05-2023 Desoner'!K:K)+SUMIF('Ins SINAPI BA 05-2023 Desoner'!A:A,'Planilha Orçamentária Desoner'!C19,'Ins SINAPI BA 05-2023 Desoner'!E:E) -> 1003.35 | H19: =IF(J19="SERV",G19*(1+$H$5),G19*(1+$H$6)) -> 1339.572585 | I19: =IF(J19="SERV",G19*F19*(1+$H$5),G19*F19*(1+$H$6)) ->  | J19: serv | K19: s
A20: 2.1.5 | B20: SINAPI | C20: 93583 | D20: =PROPER(IF(K20="i",VLOOKUP(C20,'Ins SINAPI BA 05-2023 Desoner'!$A$8:$E$5189,2,0),VLOOKUP(C20,'Comp SINAPI BA 05-2023 Desoner'!$G$7:$K$7500,2,0))) -> Execução De Central De Fôrmas, Produção De Argamassa Ou Concreto Em Canteiro De Obra, Não Incluso Mobiliário E Equipamentos. Af_04/2016 | E20: =LOWER(IF(K20="i",VLOOKUP(C20,'Ins SINAPI BA 05-2023 Desoner'!$A$8:$E$5189,3,0),VLOOKUP(C20,'Comp SINAPI BA 05-2023 Desoner'!$G$7:$K$7500,3,0))) -> m2 | F20: ='Planilha Orçamentária'!#REF! ->  | G20: =SUMIFS('CPU DES'!$H:$H,'CPU DES'!$B:$B,'Planilha Orçamentária Desoner'!$A20,'CPU DES'!$I:$I,"ss")+SUMIFS('CPU DES'!$H:$H,'CPU DES'!$B:$B,'Planilha Orçamentária Desoner'!$A20,'CPU DES'!$I:$I,"mdo")+SUMIF('Comp SINAPI BA 05-2023 Desoner'!G:G,'Planilha Orçamentária Desoner'!C20,'Comp SINAPI BA 05-2023 Desoner'!K:K)+SUMIF('Ins SINAPI BA 05-2023 Desoner'!A:A,'Planilha Orçamentária Desoner'!C20,'Ins SINAPI BA 05-2023 Desoner'!E:E) -> 463.26 | H20: =IF(J20="SERV",G20*(1+$H$5),G20*(1+$H$6)) -> 618.498426 | I20: =IF(J20="SERV",G20*F20*(1+$H$5),G20*F20*(1+$H$6)) ->  | J20: serv | K20: s
A21: 2.2 | D21: Sinalização | I21: =SUM(I22:I22) -> 1175.15502 | K21: s
A22: 2.2.1 | B22: PRÓPRIA | C22: CPU.02 | D22: PLACA DE OBRA EM CHAPA DE ACO GALVANIZADO | E22: m² | F22: ='Planilha Orçamentária'!F17 -> 2 | G22: =SUMIFS('CPU DES'!$H:$H,'CPU DES'!$B:$B,'Planilha Orçamentária Desoner'!$A22,'CPU DES'!$I:$I,"ss")+SUMIFS('CPU DES'!$H:$H,'CPU DES'!$B:$B,'Planilha Orçamentária Desoner'!$A22,'CPU DES'!$I:$I,"mdo")+SUMIF('Comp SINAPI BA 05-2023 Desoner'!G:G,'Planilha Orçamentária Desoner'!C22,'Comp SINAPI BA 05-2023 Desoner'!K:K)+SUMIF('Ins SINAPI BA 05-2023 Desoner'!A:A,'Planilha Orçamentária Desoner'!C22,'Ins SINAPI BA 05-2023 Desoner'!E:E) -> 440.1 | H22: =IF(J22="SERV",G22*(1+$H$5),G22*(1+$H$6)) -> 587.57751 | I22: =IF(J22="SERV",G22*F22*(1+$H$5),G22*F22*(1+$H$6)) -> 1175.15502 | J22: serv | K22: i
A24: 3 | D24: LIMPEZA DA REGIÃO A JUSANTE | I24: =SUM(I25) ->  | K24: ss
A25: 3.1 | D25: Remoção da vegetação a jusante | I25: =SUM(I26:I29) ->  | K25: s
A26: 3.1.1 | B26: SINAPI | C26: 98525 | D26: =PROPER(IF(K26="i",VLOOKUP(C26,'Ins SINAPI BA 05-2023 Desoner'!$A$8:$E$5189,2,0),VLOOKUP(C26,'Comp SINAPI BA 05-2023 Desoner'!$G$7:$K$7500,2,0))) -> Limpeza Mecanizada De Camada Vegetal, Vegetação E Pequenas Árvores (Diâmetro De Tronco Menor Que 0,20 M), Com Trator De Esteiras.Af_05/2018 | E26: =LOWER(IF(K26="i",VLOOKUP(C26,'Ins SINAPI BA 05-2023 Desoner'!$A$8:$E$5189,3,0),VLOOKUP(C26,'Comp SINAPI BA 05-2023 Desoner'!$G$7:$K$7500,3,0))) -> m2 | F26: ='Planilha Orçamentária'!F20 -> 9300 | G26: =SUMIFS('CPU DES'!$H:$H,'CPU DES'!$B:$B,'Planilha Orçamentária Desoner'!$A26,'CPU DES'!$I:$I,"ss")+SUMIFS('CPU DES'!$H:$H,'CPU DES'!$B:$B,'Planilha Orçamentária Desoner'!$A26,'CPU DES'!$I:$I,"mdo")+SUMIF('Comp SINAPI BA 05-2023 Desoner'!G:G,'Planilha Orçamentária Desoner'!C26,'Comp SINAPI BA 05-2023 Desoner'!K:K)+SUMIF('Ins SINAPI BA 05-2023 Desoner'!A:A,'Planilha Orçamentária Desoner'!C26,'Ins SINAPI BA 05-2023 Desoner'!E:E) -> 0.37 | H26: =IF(J26="SERV",G26*(1+$H$5),G26*(1+$H$6)) -> 0.493987 | I26: =IF(J26="SERV",G26*F26*(1+$H$5),G26*F26*(1+$H$6)) -> 4594.0791 | J26: serv | K26: s
A27: 3.1.2 | B27: EMBASA | C27: 02.04.04 | D27: CORTE DE ARVORE COM DESTOCAMENTO MANUAL,C/DIAMETRO ENTRE 15 E 30cm | E27: UN | F27: ='Planilha Orçamentária'!F21 -> 20 | G27: 60.7 | H27: =IF(J27="SERV",G27*(1+$H$5),G27*(1+$H$6)) -> 81.04057 | I27: =IF(J27="SERV",G27*F27*(1+$H$5),G27*F27*(1+$H$6)) -> 1620.8114 | J27: serv | K27: s
A28: 3.1.3 | B28: EMBASA | C28: 15.92.02 | D28: LIMPEZA E DESOBSTRUCAO DE REDES DE ESGOTO / DRENAGEM | E28: H | F28: ='Planilha Orçamentária'!F22 -> 20 | G28: 160.18 | H28: =IF(J28="SERV",G28*(1+$H$5),G28*(1+$H$6)) -> 213.856318 | I28: =IF(J28="SERV",G28*F28*(1+$H$5),G28*F28*(1+$H$6)) -> 4277.12636 | J28: serv | K28: s
A29: 3.1.4 | B29: SINAPI | C29: 97912 | D29: =PROPER(IF(K29="i",VLOOKUP(C29,'Ins SINAPI BA 05-2023 Desoner'!$A$8:$E$5189,2,0),VLOOKUP(C29,'Comp SINAPI BA 05-2023 Desoner'!$G$7:$K$7500,2,0))) -> Transporte Com Caminhão Basculante De 6 M³, Em Via Urbana Em Leito Natural (Unidade: M3Xkm). Af_07/2020 | E29: =LOWER(IF(K29="i",VLOOKUP(C29,'Ins SINAPI BA 05-2023 Desoner'!$A$8:$E$5189,3,0),VLOOKUP(C29,'Comp SINAPI BA 05-2023 Desoner'!$G$7:$K$7500,3,0))) -> m3xkm | F29: ='Planilha Orçamentária'!#REF! ->  | G29: =SUMIFS('CPU DES'!$H:$H,'CPU DES'!$B:$B,'Planilha Orçamentária Desoner'!$A29,'CPU DES'!$I:$I,"ss")+SUMIFS('CPU DES'!$H:$H,'CPU DES'!$B:$B,'Planilha Orçamentária Desoner'!$A29,'CPU DES'!$I:$I,"mdo")+SUMIF('Comp SINAPI BA 05-2023 Desoner'!G:G,'Planilha Orçamentária Desoner'!C29,'Comp SINAPI BA 05-2023 Desoner'!K:K)+SUMIF('Ins SINAPI BA 05-2023 Desoner'!A:A,'Planilha Orçamentária Desoner'!C29,'Ins SINAPI BA 05-2023 Desoner'!E:E) -> 3.41 | H29: =IF(J29="SERV",G29*(1+$H$5),G29*(1+$H$6)) -> 4.552691 | I29: =IF(J29="SERV",G29*F29*(1+$H$5),G29*F29*(1+$H$6)) ->  | J29: serv | K29: s
A31: 4 | D31: OPERAÇÃO SUBAQUÁTICA | I31: =SUM(I32,I35) ->  | K31: ss
A32: 4.1 | D32: Inspeção e Laudo da região subaquática | I32: =SUM(I33:I34) -> 
A33: 4.1.1 | B33: PRÓPRIA | C33: CPU.03 | D33: Mobilização da Equipe, Camara Hiperbarica e todos os equipamentos de mergulho envolvidos na operação | E33: un | F33: ='Planilha Orçamentária'!#REF! ->  | G33: =SUMIFS(CPU!$H:$H,CPU!$B:$B,'Planilha Orçamentária'!#REF!,CPU!$I:$I,"ss")+SUMIFS(CPU!$H:$H,CPU!$B:$B,'Planilha Orçamentária'!#REF!,CPU!$I:$I,"mdo")+SUMIF('Comp SINAPI PE 12-2023 Onerado'!G:G,'Planilha Orçamentária'!#REF!,'Comp SINAPI PE 12-2023 Onerado'!K:K)+SUMIF('Ins SINAPI PE 12-2023 Onerado'!A:A,'Planilha Orçamentária'!#REF!,'Ins SINAPI PE 12-2023 Onerado'!E:E) -> 0 | H33: =IF(J33="SERV",G33*(1+$H$5),G33*(1+$H$6)) -> 0 | I33: =IF(J33="SERV",G33*F33*(1+$H$5),G33*F33*(1+$H$6)) ->  | J33: serv | K33: s
A34: 4.1.2 | B34: SICRO | C34: 4816024 | D34: Operação de mergulho dependente em profundidade de até 30 m - inclusive descompressão | E34: h | F34: ='Planilha Orçamentária'!#REF! ->  | G34: 255.2 | H34: =IF(K34="SERV",G34*(1+$H$5),G34*(1+$H$6)) -> 309.3024 | I34: =IF(J34="SERV",G34*F34*(1+$H$5),G34*F34*(1+$H$6)) ->  | J34: serv | K34: s
A35: 4.2 | D35: Vedação/Abertura da tomada d'água | I35: =SUM(I36:I37) -> 
A36: 4.2.1 | B36: PRÓPRIA | C36: CPU.04 | D36: Vedação da entrada da tomada d’água com chapas metálicas | E36: un | F36: ='Planilha Orçamentária'!#REF! ->  | G36: =SUMIFS(CPU!$H:$H,CPU!$B:$B,'Planilha Orçamentária'!#REF!,CPU!$I:$I,"ss")+SUMIFS(CPU!$H:$H,CPU!$B:$B,'Planilha Orçamentária'!#REF!,CPU!$I:$I,"mdo")+SUMIF('Comp SINAPI PE 12-2023 Onerado'!G:G,'Planilha Orçamentária'!#REF!,'Comp SINAPI PE 12-2023 Onerado'!K:K)+SUMIF('Ins SINAPI PE 12-2023 Onerado'!A:A,'Planilha Orçamentária'!#REF!,'Ins SINAPI PE 12-2023 Onerado'!E:E) -> 0 | H36: =IF(J36="SERV",G36*(1+$H$5),G36*(1+$H$6)) -> 0 | I36: =IF(J36="SERV",G36*F36*(1+$H$5),G36*F36*(1+$H$6)) ->  | J36: serv | K36: s
A37: 4.2.2 | B37: PRÓPRIA | C37: CPU.05 | D37: Remoção da vedação da entrada da tomada d’água com chapas metálicas | E37: un | F37: ='Planilha Orçamentária'!#REF! ->  | G37: =SUMIFS(CPU!$H:$H,CPU!$B:$B,'Planilha Orçamentária'!#REF!,CPU!$I:$I,"ss")+SUMIFS(CPU!$H:$H,CPU!$B:$B,'Planilha Orçamentária'!#REF!,CPU!$I:$I,"mdo")+SUMIF('Comp SINAPI PE 12-2023 Onerado'!G:G,'Planilha Orçamentária'!#REF!,'Comp SINAPI PE 12-2023 Onerado'!K:K)+SUMIF('Ins SINAPI PE 12-2023 Onerado'!A:A,'Planilha Orçamentária'!#REF!,'Ins SINAPI PE 12-2023 Onerado'!E:E) -> 0 | H37: =IF(J37="SERV",G37*(1+$H$5),G37*(1+$H$6)) -> 0 | I37: =IF(J37="SERV",G37*F37*(1+$H$5),G37*F37*(1+$H$6)) ->  | J37: serv | K37: s
A39: 5 | D39: MANUTENÇÃO NOS DISPOSITIVOS DE CONTROLE | I39: =SUM(I40,I47) -> 
A40: 5.1 | D40: Manutenção das válvulas | I40: =SUM(I41:I46) -> 
A41: 5.1.1 | B41: SINAPI | C41: 98524 | D41: =PROPER(IF(K41="i",VLOOKUP(C41,'Ins SINAPI BA 05-2023 Desoner'!$A$8:$E$5189,2,0),VLOOKUP(C41,'Comp SINAPI BA 05-2023 Desoner'!$G$7:$K$7500,2,0))) -> Limpeza Manual De Vegetação Em Terreno Com Enxada.Af_05/2018 | E41: =LOWER(IF(K41="i",VLOOKUP(C41,'Ins SINAPI BA 05-2023 Desoner'!$A$8:$E$5189,3,0),VLOOKUP(C41,'Comp SINAPI BA 05-2023 Desoner'!$G$7:$K$7500,3,0))) -> m2 | F41: ='Planilha Orçamentária'!#REF! ->  | G41: =SUMIFS('CPU DES'!$H:$H,'CPU DES'!$B:$B,'Planilha Orçamentária Desoner'!$A41,'CPU DES'!$I:$I,"ss")+SUMIFS('CPU DES'!$H:$H,'CPU DES'!$B:$B,'Planilha Orçamentária Desoner'!$A41,'CPU DES'!$I:$I,"mdo")+SUMIF('Comp SINAPI BA 05-2023 Desoner'!G:G,'Planilha Orçamentária Desoner'!C41,'Comp SINAPI BA 05-2023 Desoner'!K:K)+SUMIF('Ins SINAPI BA 05-2023 Desoner'!A:A,'Planilha Orçamentária Desoner'!C41,'Ins SINAPI BA 05-2023 Desoner'!E:E) -> 2.9 | H41: =IF(J41="SERV",G41*(1+$H$5),G41*(1+$H$6)) -> 3.87179 | I41: =IF(J41="SERV",G41*F41*(1+$H$5),G41*F41*(1+$H$6)) ->  | J41: serv | K41: s
A42: 5.1.2 | B42: EMBASA | C42: 12.99.10 | D42: DESMONT. DE PECAS, CONEXOES, VALVULAS, APARELHOS E ACESSORIOS DE FERRO FUNDIDO DUCTIL OU ACO CARBONO, JUNTA TRAVADA, EXTERNA MECANICA OU FLANGEADA C/ DIAMETROS DE 700 A 1200 MM | E42: kg | F42: ='Planilha Orçamentária'!#REF! ->  | G42: 1.21 | H42: 1.615471 | J42: serv | K42: s
A43: 5.1.3 | B43: EMBASA | C43: 62.01.53 | D43: MANUTENCAO EM VALVULAS (VRP, NIVEL E ANTI-GOLPE), VENTOSAS E REGISTROS ACIMA DE 16" ATÉ 24" POLEGADAS | E43: un | F43: ='Planilha Orçamentária'!#REF! ->  | G43: 581.86 | H43: 776.841286 | J43: serv | K43: s
A44: 5.1.4 | B44: EMBASA | C44: M012309000/M012309045 | D44: PARAFUSOS C/ PORCA P/ VALVULA BORBOLETA C/ FLANGE PN 10 - AWWA / PBFW10 DN 700 48,900 kg | E44: PC | F44: ='Planilha Orçamentária'!#REF! ->  | G44: 5.36 | H44: 7.156136 | J44: serv | K44: s
A45: 5.1.5 | B45: EMBASA | C45: 15.07.46 | D45: (REVISADA) - PINTURA EPOXI EM SURPEFICIE METALICA, INCL. LIXAMENTO E FUNDO EPOXI ANTICORROSIVO, DUAS DEMAOS | E45: m² | F45: ='Planilha Orçamentária'!#REF! ->  | G45: 75.54 | H45: 100.853454 | J45: serv | K45: s
A46: 5.1.6 | B46: EMBASA | C46: 12.02.07 | D46: MONT. DE PECAS, CONEXOES, VALVULAS, APARELHOS E ACESSORIOS DE FERRO FUNDIDO DUCTIL OU ACO CARBONO, JUNTA TRAVADA, EXTERNA MECANICA OU FLANGEADA C/ DIAMETROSDE 700 A 1200 mm. | E46: kg | F46: ='Planilha Orçamentária'!#REF! ->  | G46: 1.21 | H46: 1.615471 | J46: serv | K46: s
A47: 5.2 | D47: Instalação de dispositivo de drenagem na caixa de válvulas | I47: =SUM(I48:I50) -> 
A48: 5.2.1 | B48: SINAPI | C48: 97627 | D48: =PROPER(IF(K48="i",VLOOKUP(C48,'Ins SINAPI BA 05-2023 Desoner'!$A$8:$E$5189,2,0),VLOOKUP(C48,'Comp SINAPI BA 05-2023 Desoner'!$G$7:$K$7500,2,0))) -> Demolição De Pilares E Vigas Em Concreto Armado, De Forma Mecanizada Com Martelete, Sem Reaproveitamento. Af_12/2017 | E48: =LOWER(IF(K48="i",VLOOKUP(C48,'Ins SINAPI BA 05-2023 Desoner'!$A$8:$E$5189,3,0),VLOOKUP(C48,'Comp SINAPI BA 05-2023 Desoner'!$G$7:$K$7500,3,0))) -> m3 | F48: ='Planilha Orçamentária'!#REF! ->  | G48: =SUMIFS('CPU DES'!$H:$H,'CPU DES'!$B:$B,'Planilha Orçamentária Desoner'!$A48,'CPU DES'!$I:$I,"ss")+SUMIFS('CPU DES'!$H:$H,'CPU DES'!$B:$B,'Planilha Orçamentária Desoner'!$A48,'CPU DES'!$I:$I,"mdo")+SUMIF('Comp SINAPI BA 05-2023 Desoner'!G:G,'Planilha Orçamentária Desoner'!C48,'Comp SINAPI BA 05-2023 Desoner'!K:K)+SUMIF('Ins SINAPI BA 05-2023 Desoner'!A:A,'Planilha Orçamentária Desoner'!C48,'Ins SINAPI BA 05-2023 Desoner'!E:E) -> 311.2 | H48: =IF(J48="SERV",G48*(1+$H$5),G48*(1+$H$6)) -> 415.48312 | I48: =IF(J48="SERV",G48*F48*(1+$H$5),G48*F48*(1+$H$6)) ->  | J48: serv | K48: s
A49: 5.2.2 | B49: SINAPI | C49: 89714 | D49: =PROPER(IF(K49="i",VLOOKUP(C49,'Ins SINAPI BA 05-2023 Desoner'!$A$8:$E$5189,2,0),VLOOKUP(C49,'Comp SINAPI BA 05-2023 Desoner'!$G$7:$K$7500,2,0))) -> Tubo Pvc, Serie Normal, Esgoto Predial, Dn 100 Mm, Fornecido E Instalado Em Ramal De Descarga Ou Ramal De Esgoto Sanitário. Af_08/2022 | E49: =LOWER(IF(K49="i",VLOOKUP(C49,'Ins SINAPI BA 05-2023 Desoner'!$A$8:$E$5189,3,0),VLOOKUP(C49,'Comp SINAPI BA 05-2023 Desoner'!$G$7:$K$7500,3,0))) -> m | F49: ='Planilha Orçamentária'!#REF! ->  | G49: =SUMIFS('CPU DES'!$H:$H,'CPU DES'!$B:$B,'Planilha Orçamentária Desoner'!$A49,'CPU DES'!$I:$I,"ss")+SUMIFS('CPU DES'!$H:$H,'CPU DES'!$B:$B,'Planilha Orçamentária Desoner'!$A49,'CPU DES'!$I:$I,"mdo")+SUMIF('Comp SINAPI BA 05-2023 Desoner'!G:G,'Planilha Orçamentária Desoner'!C49,'Comp SINAPI BA 05-2023 Desoner'!K:K)+SUMIF('Ins SINAPI BA 05-2023 Desoner'!A:A,'Planilha Orçamentária Desoner'!C49,'Ins SINAPI BA 05-2023 Desoner'!E:E) -> 36.26 | H49: =IF(J49="SERV",G49*(1+$H$5),G49*(1+$H$6)) -> 48.410726 | I49: =IF(J49="SERV",G49*F49*(1+$H$5),G49*F49*(1+$H$6)) ->  | J49: serv | K49: s
A50: 5.2.3 | B50: SINAPI | C50: 103682 | D50: =PROPER(IF(K50="i",VLOOKUP(C50,'Ins SINAPI BA 05-2023 Desoner'!$A$8:$E$5189,2,0),VLOOKUP(C50,'Comp SINAPI BA 05-2023 Desoner'!$G$7:$K$7500,2,0))) -> Concretagem De Vigas E Lajes, Fck=25 Mpa, Para Qualquer Tipo De Laje Com Baldes Em Edificação Térrea - Lançamento, Adensamento E Acabamento. Af_02/2022 | E50: =LOWER(IF(K50="i",VLOOKUP(C50,'Ins SINAPI BA 05-2023 Desoner'!$A$8:$E$5189,3,0),VLOOKUP(C50,'Comp SINAPI BA 05-2023 Desoner'!$G$7:$K$7500,3,0))) -> m3 | F50: ='Planilha Orçamentária'!#REF! ->  | G50: =SUMIFS('CPU DES'!$H:$H,'CPU DES'!$B:$B,'Planilha Orçamentária Desoner'!$A50,'CPU DES'!$I:$I,"ss")+SUMIFS('CPU DES'!$H:$H,'CPU DES'!$B:$B,'Planilha Orçamentária Desoner'!$A50,'CPU DES'!$I:$I,"mdo")+SUMIF('Comp SINAPI BA 05-2023 Desoner'!G:G,'Planilha Orçamentária Desoner'!C50,'Comp SINAPI BA 05-2023 Desoner'!K:K)+SUMIF('Ins SINAPI BA 05-2023 Desoner'!A:A,'Planilha Orçamentária Desoner'!C50,'Ins SINAPI BA 05-2023 Desoner'!E:E) -> 962.12 | H50: =IF(J50="SERV",G50*(1+$H$5),G50*(1+$H$6)) -> 1284.526412 | I50: =IF(J50="SERV",G50*F50*(1+$H$5),G50*F50*(1+$H$6)) ->  | J50: serv | K50: s
A52: 6 | D52: RECUPERAÇÃO | I52: =SUM(I53,I63,I69) ->  | K52: ss
A53: 6.1 | D53: Paramento a jusante | I53: =SUM(I54:I62) -> 
A54: 6.1.1 | B54: SINAPI | C54: 41805 | D54: =PROPER(IF(K54="i",VLOOKUP(C54,'Ins SINAPI BA 05-2023 Desoner'!$A$8:$E$5189,2,0),VLOOKUP(C54,'Comp SINAPI BA 05-2023 Desoner'!$G$7:$K$7500,2,0))) -> Locacao De Andaime Suspenso Ou Balancim Manual, Capacidade De Carga Total De Aproximadamente 250 Kg/M2, Plataforma De 1,50 M X 0,80 M (C X L), Cabo De 45 M | E54: =LOWER(IF(K54="i",VLOOKUP(C54,'Ins SINAPI BA 05-2023 Desoner'!$A$8:$E$5189,3,0),VLOOKUP(C54,'Comp SINAPI BA 05-2023 Desoner'!$G$7:$K$7500,3,0))) -> mes | F54: ='Planilha Orçamentária'!#REF! ->  | G54: =SUMIFS('CPU DES'!$H:$H,'CPU DES'!$B:$B,'Planilha Orçamentária Desoner'!$A54,'CPU DES'!$I:$I,"ss")+SUMIFS('CPU DES'!$H:$H,'CPU DES'!$B:$B,'Planilha Orçamentária Desoner'!$A54,'CPU DES'!$I:$I,"mdo")+SUMIF('Comp SINAPI BA 05-2023 Desoner'!G:G,'Planilha Orçamentária Desoner'!C54,'Comp SINAPI BA 05-2023 Desoner'!K:K)+SUMIF('Ins SINAPI BA 05-2023 Desoner'!A:A,'Planilha Orçamentária Desoner'!C54,'Ins SINAPI BA 05-2023 Desoner'!E:E) -> 425 | H54: =IF(J54="SERV",G54*(1+$H$5),G54*(1+$H$6)) -> 567.4175 | I54: =IF(J54="SERV",G54*F54*(1+$H$5),G54*F54*(1+$H$6)) ->  | J54: serv | K54: i
A55: 6.1.2 | B55: SICRO | C55: 3806402 | D55: Limpeza em superfície de concreto com jateamento d'água sob pressão | E55: m2 | F55: ='Planilha Orçamentária'!#REF! ->  | G55: 2.3 | H55: =IF(J55="SERV",G55*(1+$H$5),G55*(1+$H$6)) -> 3.07073 | I55: =IF(J55="SERV",G55*F55*(1+$H$5),G55*F55*(1+$H$6)) ->  | J55: serv | K55: s
A56: 6.1.3 | B56: SICRO | C56: 3806413 | D56: Apicoamento mecanizado de concreto | E56: m2 | F56: =F55 ->  | G56: 20.4 | H56: =IF(J56="SERV",G56*(1+$H$5),G56*(1+$H$6)) -> 27.23604 | J56: serv | K56: s
A57: 6.1.4 | B57: SICRO | C57: 4915645 | D57: Injeção de adesivo estrutural à base de resina epóxi de baixa viscosidade para tratamento de fissuras em estruturas de concreto - fornecimento e aplicação mecanizada | E57: kg | F57: ='Planilha Orçamentária'!#REF! ->  | G57: 272.61 | H57: 363.961611 | J57: serv | K57: s
A58: 6.1.5 | B58: SINAPI | C58: 92264 | D58: =PROPER(IF(K58="i",VLOOKUP(C58,'Ins SINAPI BA 05-2023 Desoner'!$A$8:$E$5189,2,0),VLOOKUP(C58,'Comp SINAPI BA 05-2023 Desoner'!$G$7:$K$7500,2,0))) -> Fabricação De Fôrma Para Pilares E Estruturas Similares, Em Chapa De Madeira Compensada Plastificada, E = 18 Mm. Af_09/2020 | E58: =LOWER(IF(K58="i",VLOOKUP(C58,'Ins SINAPI BA 05-2023 Desoner'!$A$8:$E$5189,3,0),VLOOKUP(C58,'Comp SINAPI BA 05-2023 Desoner'!$G$7:$K$7500,3,0))) -> m2 | F58: ='Planilha Orçamentária'!#REF! ->  | G58: =SUMIFS('CPU DES'!$H:$H,'CPU DES'!$B:$B,'Planilha Orçamentária Desoner'!$A58,'CPU DES'!$I:$I,"ss")+SUMIFS('CPU DES'!$H:$H,'CPU DES'!$B:$B,'Planilha Orçamentária Desoner'!$A58,'CPU DES'!$I:$I,"mdo")+SUMIF('Comp SINAPI BA 05-2023 Desoner'!G:G,'Planilha Orçamentária Desoner'!C58,'Comp SINAPI BA 05-2023 Desoner'!K:K)+SUMIF('Ins SINAPI BA 05-2023 Desoner'!A:A,'Planilha Orçamentária Desoner'!C58,'Ins SINAPI BA 05-2023 Desoner'!E:E) -> 204.44 | H58: 272.947844 | J58: serv | K58: s
A59: 6.1.6 | B59: PRÓPRIA | C59: CPU.06 | D59: ARGAMASSA TRACO 1:3 (CIMENTO E AREIA), PREPARO MANUAL, INCLUSO ADITIVO IMPERMEABILIZANTE | E59: m3 | F59: ='Planilha Orçamentária'!#REF! ->  | G59: =SUMIFS(CPU!$H:$H,CPU!$B:$B,'Planilha Orçamentária'!#REF!,CPU!$I:$I,"ss")+SUMIFS(CPU!$H:$H,CPU!$B:$B,'Planilha Orçamentária'!#REF!,CPU!$I:$I,"mdo")+SUMIF('Comp SINAPI PE 12-2023 Onerado'!G:G,'Planilha Orçamentária'!#REF!,'Comp SINAPI PE 12-2023 Onerado'!K:K)+SUMIF('Ins SINAPI PE 12-2023 Onerado'!A:A,'Planilha Orçamentária'!#REF!,'Ins SINAPI PE 12-2023 Onerado'!E:E) -> 0 | H59: 0 | J59: serv | K59: s
A60: 6.1.7 | B60: SINAPI | C60: 97912 | D60: =PROPER(IF(K60="i",VLOOKUP(C60,'Ins SINAPI BA 05-2023 Desoner'!$A$8:$E$5189,2,0),VLOOKUP(C60,'Comp SINAPI BA 05-2023 Desoner'!$G$7:$K$7500,2,0))) -> Transporte Com Caminhão Basculante De 6 M³, Em Via Urbana Em Leito Natural (Unidade: M3Xkm). Af_07/2020 | E60: =LOWER(IF(K60="i",VLOOKUP(C60,'Ins SINAPI BA 05-2023 Desoner'!$A$8:$E$5189,3,0),VLOOKUP(C60,'Comp SINAPI BA 05-2023 Desoner'!$G$7:$K$7500,3,0))) -> m3xkm | F60: ='Planilha Orçamentária'!#REF! ->  | G60: =SUMIFS('CPU DES'!$H:$H,'CPU DES'!$B:$B,'Planilha Orçamentária Desoner'!$A60,'CPU DES'!$I:$I,"ss")+SUMIFS('CPU DES'!$H:$H,'CPU DES'!$B:$B,'Planilha Orçamentária Desoner'!$A60,'CPU DES'!$I:$I,"mdo")+SUMIF('Comp SINAPI BA 05-2023 Desoner'!G:G,'Planilha Orçamentária Desoner'!C60,'Comp SINAPI BA 05-2023 Desoner'!K:K)+SUMIF('Ins SINAPI BA 05-2023 Desoner'!A:A,'Planilha Orçamentária Desoner'!C60,'Ins SINAPI BA 05-2023 Desoner'!E:E) -> 3.41 | H60: =IF(J60="SERV",G60*(1+$H$5),G60*(1+$H$6)) -> 4.552691 | I60: =IF(J60="SERV",G60*F60*(1+$H$5),G60*F60*(1+$H$6)) ->  | J60: serv | K60: s
A61: 6.1.8 | B61: PRÓPRIA | C61: CPU.07 | D61: CURA QUÍMICA | E61: m2 | F61: ='Planilha Orçamentária'!#REF! ->  | G61: =SUMIFS(CPU!$H:$H,CPU!$B:$B,'Planilha Orçamentária'!#REF!,CPU!$I:$I,"ss")+SUMIFS(CPU!$H:$H,CPU!$B:$B,'Planilha Orçamentária'!#REF!,CPU!$I:$I,"mdo")+SUMIF('Comp SINAPI PE 12-2023 Onerado'!G:G,'Planilha Orçamentária'!#REF!,'Comp SINAPI PE 12-2023 Onerado'!K:K)+SUMIF('Ins SINAPI PE 12-2023 Onerado'!A:A,'Planilha Orçamentária'!#REF!,'Ins SINAPI PE 12-2023 Onerado'!E:E) -> 0 | H61: 0 | J61: serv | K61: s
A62: 6.1.9 | B62: SICRO | C62: 3808043 | D62: Pintura manual com nata de cimento - 3 demãos | E62: m2 | F62: ='Planilha Orçamentária'!#REF! ->  | G62: 3.79 | H62: 5.060029 | J62: serv | K62: s
A63: 6.2 | D63: Crista | I63: =SUM(I64:I68) -> 
A64: 6.2.1 | B64: SICRO | C64: 3806402 | D64: Limpeza em superfície de concreto com jateamento d'água sob pressão | E64: m2 | F64: ='Planilha Orçamentária'!#REF! ->  | G64: 2.3 | H64: =IF(J64="SERV",G64*(1+$H$5),G64*(1+$H$6)) -> 3.07073 | I64: =IF(J64="SERV",G64*F64*(1+$H$5),G64*F64*(1+$H$6)) ->  | J64: serv | K64: s
A65: 6.2.2 | B65: SICRO | C65: 4915645 | D65: Injeção de adesivo estrutural à base de resina epóxi de baixa viscosidade para tratamento de fissuras em estruturas de concreto - fornecimento e aplicação mecanizada | E65: kg | F65: ='Planilha Orçamentária'!#REF! ->  | G65: 272.61 | H65: =IF(J65="SERV",G65*(1+$H$5),G65*(1+$H$6)) -> 363.961611 | I65: =IF(J65="SERV",G65*F65*(1+$H$5),G65*F65*(1+$H$6)) ->  | J65: serv | K65: s
A66: 6.2.3 | B66: PRÓPRIA | C66: CPU.06 | D66: ARGAMASSA TRACO 1:3 (CIMENTO E AREIA), PREPARO MANUAL, INCLUSO ADITIVO IMPERMEABILIZANTE | E66: m3 | F66: ='Planilha Orçamentária'!#REF! ->  | G66: =G59 -> 0 | H66: =IF(J66="SERV",G66*(1+$H$5),G66*(1+$H$6)) -> 0 | I66: =IF(J66="SERV",G66*F66*(1+$H$5),G66*F66*(1+$H$6)) ->  | J66: serv | K66: s
A67: 6.2.4 | B67: SINAPI | C67: 97912 | D67: =PROPER(IF(K67="i",VLOOKUP(C67,'Ins SINAPI BA 05-2023 Desoner'!$A$8:$E$5189,2,0),VLOOKUP(C67,'Comp SINAPI BA 05-2023 Desoner'!$G$7:$K$7500,2,0))) -> Transporte Com Caminhão Basculante De 6 M³, Em Via Urbana Em Leito Natural (Unidade: M3Xkm). Af_07/2020 | E67: =LOWER(IF(K67="i",VLOOKUP(C67,'Ins SINAPI PE 12-2023 Onerado'!$A$8:$E$5189,3,0),VLOOKUP(C67,'Comp SINAPI PE 12-2023 Onerado'!$G$7:$K$7500,3,0))) -> m3xkm | F67: ='Planilha Orçamentária'!#REF! ->  | G67: =SUMIFS('CPU DES'!$H:$H,'CPU DES'!$B:$B,'Planilha Orçamentária Desoner'!$A67,'CPU DES'!$I:$I,"ss")+SUMIFS('CPU DES'!$H:$H,'CPU DES'!$B:$B,'Planilha Orçamentária Desoner'!$A67,'CPU DES'!$I:$I,"mdo")+SUMIF('Comp SINAPI BA 05-2023 Desoner'!G:G,'Planilha Orçamentária Desoner'!C67,'Comp SINAPI BA 05-2023 Desoner'!K:K)+SUMIF('Ins SINAPI BA 05-2023 Desoner'!A:A,'Planilha Orçamentária Desoner'!C67,'Ins SINAPI BA 05-2023 Desoner'!E:E) -> 3.41 | H67: =IF(J67="SERV",G67*(1+$H$5),G67*(1+$H$6)) -> 4.552691 | I67: =IF(J67="SERV",G67*F67*(1+$H$5),G67*F67*(1+$H$6)) ->  | J67: serv | K67: s
A68: 6.2.5 | B68: PRÓPRIA | C68: CPU.07 | D68: CURA QUÍMICA | E68: m2 | F68: ='Planilha Orçamentária'!#REF! ->  | G68: =G61 -> 0 | H68: =IF(J68="SERV",G68*(1+$H$5),G68*(1+$H$6)) -> 0 | I68: =IF(J68="SERV",G68*F68*(1+$H$5),G68*F68*(1+$H$6)) ->  | J68: serv | K68: s
A69: 6.3 | D69: Vertedouro | I69: =SUM(I70:I72) -> 
A70: 6.3.1 | B70: SICRO | C70: 3806402 | D70: Limpeza em superfície de concreto com jateamento d'água sob pressão | E70: m2 | F70: ='Planilha Orçamentária'!#REF! ->  | G70: 2.3 | H70: =IF(J70="SERV",G70*(1+$H$5),G70*(1+$H$6)) -> 3.07073 | I70: =IF(J70="SERV",G70*F70*(1+$H$5),G70*F70*(1+$H$6)) ->  | J70: serv | K70: s
A71: 6.3.2 | B71: SICRO | C71: 4915645 | D71: Injeção de adesivo estrutural à base de resina epóxi de baixa viscosidade para tratamento de fissuras em estruturas de concreto - fornecimento e aplicação mecanizada | E71: kg | F71: ='Planilha Orçamentária'!#REF! ->  | G71: 272.61 | H71: =IF(J71="SERV",G71*(1+$H$5),G71*(1+$H$6)) -> 363.961611 | I71: =IF(J71="SERV",G71*F71*(1+$H$5),G71*F71*(1+$H$6)) ->  | J71: serv | K71: s
A72: 6.3.3 | B72: SICRO | C72: 4915694 | D72: Limpeza, serragem e enchimento de fissuras niveladas com abertura entre 0,4 mm e 1,0 mm e profundidade de 25 mm em estruturas de concreto com selante elástico a frio (BASEADO SICRO 4915694) | E72: m | F72: ='Planilha Orçamentária'!#REF! ->  | G72: 27 | H72: =IF(J72="SERV",G72*(1+$H$5),G72*(1+$H$6)) -> 36.0477 | I72: =IF(J72="SERV",G72*F72*(1+$H$5),G72*F72*(1+$H$6)) ->  | J72: serv | K72: s
A74: 7 | D74: DIQUE | I74: =SUM(I75,I82) -> 
A75: 7.1 | D75: Investigação do maciço | I75: =SUM(I76:I81) -> 
A76: 7.1.1 | B76: EMBASA | C76: 32.02.01 | D76: SONDAGEM A PERCUSSÃO | E76: m | F76: ='Planilha Orçamentária'!#REF! ->  | G76: 101.49 | H76: =IF(J76="SERV",G76*(1+$H$5),G76*(1+$H$6)) -> 135.499299 | I76: =IF(J76="SERV",G76*F76*(1+$H$5),G76*F76*(1+$H$6)) ->  | J76: serv | K76: s
A77: 7.1.2 | B77: EMBASA | C77: 34.01.43 | D77: ENSAIO DE PERMEABILIDADE COM CARGA CONSTANTE | E77: un | F77: ='Planilha Orçamentária'!#REF! ->  | G77: 501.25 | H77: 669.218875 | J77: serv | K77: s
A78: 7.1.3 | B78: EMBASA | C78: 34.02.04 | D78: "ANALISE GRANULOMETRICA POR PENEIRAMENTO E SEDIMENTACAO EM "TOP SOIL" | E78: un | F78: ='Planilha Orçamentária'!#REF! ->  | G78: 223.64 | H78: 298.581764 | J78: serv | K78: s
A79: 7.1.4 | B79: EMBASA | C79: 34.01.16 | D79: MASSA ESPECIFICA REAL DOS GRAOS | E79: un | F79: ='Planilha Orçamentária'!#REF! ->  | G79: 65.78 | H79: 87.822878 | J79: serv | K79: s
A80: 7.1.5 | B80: EMBASA | C80: 34.01.07 | D80: DETERMINACAO DE LIMITE DE LIQUIDEZ (NBR - 06459) | E80: un | F80: ='Planilha Orçamentária'!#REF! ->  | G80: 86.09 | H80: 114.938759 | J80: serv | K80: s
A81: 7.1.6 | B81: EMBASA | C81: 34.01.10 | D81: DETERMINACAO DE LIMITE DE PLASTICIDADE (NBR - 07180) | E81: un | F81: ='Planilha Orçamentária'!#REF! ->  | G81: 77.48 | H81: 103.443548 | J81: serv | K81: s
A82: 7.2 | D82: Recuperação do maciço | I82: =SUM(I83:I85) -> 
A83: 7.2.1 | B83: SINAPI | C83: 93358 | D83: =PROPER(IF(K83="i",VLOOKUP(C83,'Ins SINAPI BA 05-2023 Desoner'!$A$8:$E$5189,2,0),VLOOKUP(C83,'Comp SINAPI BA 05-2023 Desoner'!$G$7:$K$7500,2,0))) -> Escavação Manual De Vala Com Profundidade Menor Ou Igual A 1,30 M. Af_02/2021 | E83: =LOWER(IF(K83="i",VLOOKUP(C83,'Ins SINAPI BA 05-2023 Desoner'!$A$8:$E$5189,3,0),VLOOKUP(C83,'Comp SINAPI BA 05-2023 Desoner'!$G$7:$K$7500,3,0))) -> m3 | F83: ='Planilha Orçamentária'!#REF! ->  | G83: =SUMIFS('CPU DES'!$H:$H,'CPU DES'!$B:$B,'Planilha Orçamentária Desoner'!$A83,'CPU DES'!$I:$I,"ss")+SUMIFS('CPU DES'!$H:$H,'CPU DES'!$B:$B,'Planilha Orçamentária Desoner'!$A83,'CPU DES'!$I:$I,"mdo")+SUMIF('Comp SINAPI BA 05-2023 Desoner'!G:G,'Planilha Orçamentária Desoner'!C83,'Comp SINAPI BA 05-2023 Desoner'!K:K)+SUMIF('Ins SINAPI BA 05-2023 Desoner'!A:A,'Planilha Orçamentária Desoner'!C83,'Ins SINAPI BA 05-2023 Desoner'!E:E) -> 77.73 | H83: =IF(J83="SERV",G83*(1+$H$5),G83*(1+$H$6)) -> 103.777323 | I83: =IF(J83="SERV",G83*F83*(1+$H$5),G83*F83*(1+$H$6)) ->  | J83: serv | K83: s
A84: 7.2.2 | B84: SINAPI | C84: 99814 | D84: =PROPER(IF(K84="i",VLOOKUP(C84,'Ins SINAPI BA 05-2023 Desoner'!$A$8:$E$5189,2,0),VLOOKUP(C84,'Comp SINAPI BA 05-2023 Desoner'!$G$7:$K$7500,2,0))) -> Limpeza De Superfície Com Jato De Alta Pressão. Af_04/2019 | E84: =LOWER(IF(K84="i",VLOOKUP(C84,'Ins SINAPI BA 05-2023 Desoner'!$A$8:$E$5189,3,0),VLOOKUP(C84,'Comp SINAPI BA 05-2023 Desoner'!$G$7:$K$7500,3,0))) -> m2 | F84: ='Planilha Orçamentária'!#REF! ->  | G84: =SUMIFS('CPU DES'!$H:$H,'CPU DES'!$B:$B,'Planilha Orçamentária Desoner'!$A84,'CPU DES'!$I:$I,"ss")+SUMIFS('CPU DES'!$H:$H,'CPU DES'!$B:$B,'Planilha Orçamentária Desoner'!$A84,'CPU DES'!$I:$I,"mdo")+SUMIF('Comp SINAPI BA 05-2023 Desoner'!G:G,'Planilha Orçamentária Desoner'!C84,'Comp SINAPI BA 05-2023 Desoner'!K:K)+SUMIF('Ins SINAPI BA 05-2023 Desoner'!A:A,'Planilha Orçamentária Desoner'!C84,'Ins SINAPI BA 05-2023 Desoner'!E:E) -> 1.77 | H84: =IF(J84="SERV",G84*(1+$H$5),G84*(1+$H$6)) -> 2.363127 | I84: =IF(J84="SERV",G84*F84*(1+$H$5),G84*F84*(1+$H$6)) ->  | J84: serv | K84: s
A85: 7.2.3 | B85: SICRO | C85: 3816196 | D85: Injeção de nata de cimento | E85: m3 | F85: ='Planilha Orçamentária'!#REF! ->  | G85: 1205.45 | H85: =IF(J85="SERV",G85*(1+$H$5),G85*(1+$H$6)) -> 1609.396295 | I85: =IF(J85="SERV",G85*F85*(1+$H$5),G85*F85*(1+$H$6)) ->  | J85: serv | K85: s
A87: 8 | D87: SERVIÇOS AUXILIARES | I87: =SUM(I88) -> 
A88: 8.1 | D88: Análise da qualidade da água | I88: =SUM(I89:I91) -> 
A89: 8.1.1 | B89: SEDOP | C89: PT0009 | D89: Analise fisico-quimica da agua | E89: un | F89: ='Planilha Orçamentária'!#REF! ->  | G89: 236.71 | H89: =IF(J89="SERV",G89*(1+$H$5),G89*(1+$H$6)) -> 316.031521 | I89: =IF(J89="SERV",G89*F89*(1+$H$5),G89*F89*(1+$H$6)) ->  | J89: serv | K89: s
A90: 8.1.2 | B90: SEDOP | C90: PT0010 | D90: Analise bacteriologica | E90: un | F90: ='Planilha Orçamentária'!#REF! ->  | G90: 210.75 | H90: =IF(J90="SERV",G90*(1+$H$5),G90*(1+$H$6)) -> 281.372325 | I90: =IF(J90="SERV",G90*F90*(1+$H$5),G90*F90*(1+$H$6)) ->  | J90: serv | K90: s
A91: 8.1.3 | B91: SEDOP | C91: PT0019 | D91: Relatório de analises e testes | E91: un | F91: ='Planilha Orçamentária'!#REF! ->  | G91: 1511.88 | H91: =IF(J91="SERV",G91*(1+$H$5),G91*(1+$H$6)) -> 2018.510988 | I91: =IF(J91="SERV",G91*F91*(1+$H$5),G91*F91*(1+$H$6)) ->  | J91: serv | K91: s
D93: TOTAL Sem BDI: | I93: =SUMPRODUCT(F11:F92,G11:G92) -> 
D94: BDI: | I94: =I93*H5 -> 
D95: TOTAL COM BDI: | I95: =SUM(I93:I94) -> 

Sheet CPU
B1: Ministério da Integração e do Desenvolvimento Regional
B2: Companhia de Desenvolvimento dos Vales do São Francisco e do Parnaíba
B4: COMPOSIÇÕES DE PREÇOS UNITÁRIOS - ORÇAMENTO NÃO DESONERADO
B5: OBRA: | C5: =UPPER("SERVIÇOS DE MANUTENÇÃO E OBRAS CIVIS NA BARRAGEM DESERTO") -> SERVIÇOS DE MANUTENÇÃO E OBRAS CIVIS NA BARRAGEM DESERTO | F5: BDI (serv.): | G5: ='BDI serv'!D22 -> 0.2378
B6: LOCAL: | C6: ='Planilha Orçamentária'!B6 -> BARRAGEM DESERTO, PETROLINA/PE | F6: BDI (forn.): | G6: ='BDI forn'!E6 -> 0.136
B7: DATA BASE: | C7: ='Planilha Orçamentária'!B7 -> 2024-05-01
B8: PRAZO: | C8: ='Planilha Orçamentária'!B8 -> 120
B10: REFERÊNCIA | C10: CÓDIGO | D10: DESCRIÇÃO | E10: UNIDADE | F10: ÍNDICE | G10: CUSTO UNITÁRIO | H10: PREÇO TOTAL
B11: ='Planilha Orçamentária'!A12 -> 1.1 | C11: =VLOOKUP($B11,'Planilha Orçamentária'!$A$11:$I$484,3,) -> CPU.01 | D11: =VLOOKUP($B11,'Planilha Orçamentária'!$A$11:$I$484,4,) -> Administração Local | E11: mes | H11: =SUM(H15,H14,H13,H12) -> 28900.34 | I11: S | J11: COMENTÁRIOS
B12: =B11 -> 1.1 | D12: MATERIAL | H12: 0 | I12: ss
B13: =B11 -> 1.1 | D13: EQUIPAMENTOS | H13: 0 | I13: ss
B14: =B11 -> 1.1 | D14: SERVIÇOS | H14: 0 | I14: ss
B15: =B11 -> 1.1 | D15: MÃO DE OBRA | H15: =SUM(H16:H18) -> 28900.34 | I15: mdo
B16: SINAPI | C16: 90778 | D16: =PROPER(IF(K16="i",VLOOKUP(C16,'Ins SINAPI PE 12-2023 Onerado'!$A$8:$E$5189,2,0),VLOOKUP(C16,'Comp SINAPI PE 12-2023 Onerado'!$G$7:$K$7500,2,0))) -> Engenheiro Civil De Obra Pleno Com Encargos Complementares | E16: =LOWER(IF(K16="i",VLOOKUP(C16,'Ins SINAPI PE 12-2023 Onerado'!$A$8:$E$5189,3,0),VLOOKUP(C16,'Comp SINAPI PE 12-2023 Onerado'!$G$7:$K$7500,3,0))) -> h | F16: ='Memorial de cálculo'!H11 -> 30 | G16: =IF(I16="i",VLOOKUP(C16,'Ins SINAPI PE 12-2023 Onerado'!$A$8:$E$5189,5,0),VLOOKUP(C16,'Comp SINAPI PE 12-2023 Onerado'!$G$7:$K$7500,5,0)) -> 126.7 | H16: =ROUND(F16*G16,2) -> 3801 | I16: ca
B17: SINAPI | C17: 93572 | D17: =PROPER(IF(K17="i",VLOOKUP(C17,'Ins SINAPI PE 12-2023 Onerado'!$A$8:$E$5189,2,0),VLOOKUP(C17,'Comp SINAPI PE 12-2023 Onerado'!$G$7:$K$7500,2,0))) -> Encarregado Geral De Obras Com Encargos Complementares | E17: =LOWER(IF(K17="i",VLOOKUP(C17,'Ins SINAPI PE 12-2023 Onerado'!$A$8:$E$5189,3,0),VLOOKUP(C17,'Comp SINAPI PE 12-2023 Onerado'!$G$7:$K$7500,3,0))) -> mes | F17: ='Memorial de cálculo'!H12 -> 0.8 | G17: =IF(I17="i",VLOOKUP(C17,'Ins SINAPI PE 12-2023 Onerado'!$A$8:$E$5189,5,0),VLOOKUP(C17,'Comp SINAPI PE 12-2023 Onerado'!$G$7:$K$7500,5,0)) -> 6840.17 | H17: =ROUND(F17*G17,2) -> 5472.14 | I17: ca
B18: SINAPI/nov-2023 | C18: 88326 | D18: Vigia Noturno Com Encargos Complementares | E18: h | F18: ='Memorial de cálculo'!H13 -> 720 | G18: 27.26 | H18: =ROUND(F18*G18,2) -> 19627.2 | I18: ca | J18: considerando 4 vigias intercalando em dupla na jornada de 12/36
B21: ='Planilha Orçamentária'!A15 -> 2.1 | C21: =VLOOKUP($B21,'Planilha Orçamentária'!$A$11:$I$484,3,) -> CPU.02 | D21: =VLOOKUP($B21,'Planilha Orçamentária'!$A$11:$I$484,4,) -> Mobilização e desmobilização de instalação do canteiro | E21: un | H21: =SUM(H22,H23,H28,H29) -> 3895.86 | I21: S
B22: =B21 -> 2.1 | D22: MATERIAL | H22: 0 | I22: ss
B23: =B21 -> 2.1 | D23: EQUIPAMENTOS | H23: =SUM(H24:H27) -> 3565.78 | I23: ss
B24: SICRO | C24: E9134 | D24: Miniônibus com capacidade para 30 passageiros - 111 Kw | E24: chp | F24: ='Memorial de cálculo'!H18 -> 2 | G24: 221.2038 | H24: =ROUND(F24*G24,2) -> 442.41
B25: SICRO | C25: E9134 | D25: Miniônibus com capacidade para 30 passageiros - 111 Kw | E25: chi | F25: ='Memorial de cálculo'!H19 -> 14 | G25: 74.2404 | H25: =ROUND(F25*G25,2) -> 1039.37
B26: SINAPI | C26: 100946 | D26: =IF(I26="i",VLOOKUP(C26,'Ins SINAPI PE 12-2023 Onerado'!$A$8:$E$5189,2,0),VLOOKUP(C26,'Comp SINAPI PE 12-2023 Onerado'!$G$7:$K$7500,2,0)) -> TRANSPORTE COM CAMINHÃO CARROCERIA 9T, EM VIA URBANA EM REVESTIMENTO PRIMÁRIO (UNIDADE: TXKM). AF_07/2020 | E26: =IF(I26="i",VLOOKUP(C26,'Ins SINAPI PE 12-2023 Onerado'!$A$8:$E$5189,3,0),VLOOKUP(C26,'Comp SINAPI PE 12-2023 Onerado'!$G$7:$K$7500,3,0)) -> TXKM | F26: ='Memorial de cálculo'!H20 -> 640 | G26: =IF(I26="i",VLOOKUP(C26,'Ins SINAPI PE 12-2023 Onerado'!$A$8:$E$5189,5,0),VLOOKUP(C26,'Comp SINAPI PE 12-2023 Onerado'!$G$7:$K$7500,5,0)) -> 2.42 | H26: =ROUND(F26*G26,2) -> 1548.8 | I26: ca | J26: considerando 5 toneladas de carga
B27: SINAPI | C27: 100947 | D27: =IF(I27="i",VLOOKUP(C27,'Ins SINAPI PE 12-2023 Onerado'!$A$8:$E$5189,2,0),VLOOKUP(C27,'Comp SINAPI PE 12-2023 Onerado'!$G$7:$K$7500,2,0)) -> TRANSPORTE COM CAMINHÃO CARROCERIA 9T, EM VIA URBANA PAVIMENTADA, DMT ATÉ 30KM (UNIDADE: TXKM). AF_07/2020 | E27: =IF(I27="i",VLOOKUP(C27,'Ins SINAPI PE 12-2023 Onerado'!$A$8:$E$5189,3,0),VLOOKUP(C27,'Comp SINAPI PE 12-2023 Onerado'!$G$7:$K$7500,3,0)) -> TXKM | F27: ='Memorial de cálculo'!H21 -> 240 | G27: =IF(I27="i",VLOOKUP(C27,'Ins SINAPI PE 12-2023 Onerado'!$A$8:$E$5189,5,0),VLOOKUP(C27,'Comp SINAPI PE 12-2023 Onerado'!$G$7:$K$7500,5,0)) -> 2.23 | H27: =ROUND(F27*G27,2) -> 535.2 | I27: ca
B28: =B21 -> 2.1 | D28: SERVIÇOS | I28: ss
B29: =B21 -> 2.1 | D29: MÃO DE OBRA | H29: =H30 -> 330.08 | I29: ss
B30: SINAPI | C30: 88284 | D30: =PROPER(IF(K30="i",VLOOKUP(C30,'Ins SINAPI PE 12-2023 Onerado'!$A$8:$E$5189,2,0),VLOOKUP(C30,'Comp SINAPI PE 12-2023 Onerado'!$G$7:$K$7500,2,0))) -> Motorista De Veículo Leve Com Encargos Complementares | E30: =LOWER(IF(K30="i",VLOOKUP(C30,'Ins SINAPI PE 12-2023 Onerado'!$A$8:$E$5189,3,0),VLOOKUP(C30,'Comp SINAPI PE 12-2023 Onerado'!$G$7:$K$7500,3,0))) -> h | F30: ='Memorial de cálculo'!H22 -> 16 | G30: =IF(I30="i",VLOOKUP(C30,'Ins SINAPI PE 12-2023 Onerado'!$A$8:$E$5189,5,0),VLOOKUP(C30,'Comp SINAPI PE 12-2023 Onerado'!$G$7:$K$7500,5,0)) -> 20.63 | H30: =ROUND(F30*G30,2) -> 330.08 | I30: ca
B32: ='Planilha Orçamentária'!A16 -> 2.2 | C32: =VLOOKUP($B32,'Planilha Orçamentária'!$A$11:$I$484,3,) -> CPU.03 | D32: =VLOOKUP($B32,'Planilha Orçamentária'!$A$11:$I$484,4,) -> Canteiro de obras | E32: un | H32: =SUM(H33,H34,H35,H44) -> 780.09 | I32: S
B33: =B32 -> 2.2 | D33: MATERIAL | H33: 0 | I33: ss
B34: =B32 -> 2.2 | D34: EQUIPAMENTOS | I34: ss
B35: =B28 -> 2.1 | D35: SERVIÇOS | H35: =SUM(H36:H43) -> 780.09 | I35: ss
A36: 2.2.1 | B36: SINAPI | C36: 98524 | D36: =PROPER(IF(K36="i",VLOOKUP(C36,'Ins SINAPI PE 12-2023 Onerado'!$A$8:$E$5189,2,0),VLOOKUP(C36,'Comp SINAPI PE 12-2023 Onerado'!$G$7:$K$7500,2,0))) -> Limpeza Manual De Vegetação Em Terreno Com Enxada. Af_03/2024 | E36: =LOWER(IF(K36="i",VLOOKUP(C36,'Ins SINAPI PE 12-2023 Onerado'!$A$8:$E$5189,3,0),VLOOKUP(C36,'Comp SINAPI PE 12-2023 Onerado'!$G$7:$K$7500,3,0))) -> m2 | F36: 1 | G36: =IF(I36="i",VLOOKUP(C36,'Ins SINAPI PE 12-2023 Onerado'!$A$8:$E$5189,5,0),VLOOKUP(C36,'Comp SINAPI PE 12-2023 Onerado'!$G$7:$K$7500,5,0)) -> 4.32 | H36: =ROUND(F36*G36,2) -> 4.32 | I36: ca
A37: 2.2.2 | B37: SINAPI | C37: 94975 | D37: =PROPER(IF(K37="i",VLOOKUP(C37,'Ins SINAPI PE 12-2023 Onerado'!$A$8:$E$5189,2,0),VLOOKUP(C37,'Comp SINAPI PE 12-2023 Onerado'!$G$7:$K$7500,2,0))) -> Concreto Fck = 15Mpa, Traço 1:3,4:3,5 (Em Massa Seca De Cimento/ Areia Média/ Brita 1) - Preparo Manual. Af_05/2021 | E37: =LOWER(IF(K37="i",VLOOKUP(C37,'Ins SINAPI PE 12-2023 Onerado'!$A$8:$E$5189,3,0),VLOOKUP(C37,'Comp SINAPI PE 12-2023 Onerado'!$G$7:$K$7500,3,0))) -> m3 | F37: ='Memorial de cálculo'!H31/'Memorial de cálculo'!H24 -> 0.05 | G37: =IF(I37="i",VLOOKUP(C37,'Ins SINAPI PE 12-2023 Onerado'!$A$8:$E$5189,5,0),VLOOKUP(C37,'Comp SINAPI PE 12-2023 Onerado'!$G$7:$K$7500,5,0)) -> 479.76 | H37: 23.99 | I37: ca
A38: 2.2.3 | B38: SINAPI - 12/2023 | C38: 93210 | D38: Execução De Refeitório Em Canteiro De Obra Em Chapa De Madeira Compensada, Não Incluso Mobiliário E Equipamentos. Af_02/2016 | E38: m² | F38: ='Memorial de cálculo'!H37/'Memorial de cálculo'!H24 -> 0.2631578947 | G38: 632.64 | H38: 166.48 | I38: ca
A39: 2.2.4 | B39: SINAPI - 12/2023 | C39: 93212 | D39: Execução De Sanitário E Vestiário Em Canteiro De Obra Em Chapa De Madeira Compensada, Não Incluso Mobiliário. Af_02/2016 | E39: m² | F39: ='Memorial de cálculo'!H43/'Memorial de cálculo'!H24 -> 0.3157894737 | G39: 1038.41 | H39: 327.92 | I39: ca
A40: 2.2.5 | B40: SINAPI - 12/2023 | C40: 93583 | D40: Execução De Central De Fôrmas, Produção De Argamassa Ou Concreto Em Canteiro De Obra, Não Incluso Mobiliário E Equipamentos. Af_04/2016 | E40: m² | F40: ='Memorial de cálculo'!H46/'Memorial de cálculo'!H24 -> 0.4210526316 | G40: 514.11 | H40: 216.47 | I40: ca
A41: 2.2.6 | B41: COTAÇÃO | C41: CT.01 | D41: Hospedagem | E41: un | F41: ='Memorial de cálculo'!H48/'Memorial de cálculo'!H24 -> 0.09343595395 | G41: =Cotações!O11 -> 90 | H41: 8.41 | I41: ss
A42: 2.2.7 | B42: SICRO | C42: E9134 | D42: Miniônibus com capacidade para 30 passageiros - 111 Kw | E42: chp | F42: ='Memorial de cálculo'!H50/'Memorial de cálculo'!H24 -> 0.0643945125 | G42: 221.2038 | H42: 14.24 | I42: ss
A43: 2.2.8 | B43: SICRO | C43: E9134 | D43: Miniônibus com capacidade para 30 passageiros - 111 Kw | E43: chi | F43: ='Memorial de cálculo'!H52/'Memorial de cálculo'!H24 -> 0.2459404875 | G43: 74.2404 | H43: 18.26 | I43: ss
B44: =B36 -> SINAPI | D44: MÃO DE OBRA | I44: ss
I45: x
B46: ='Planilha Orçamentária'!A17 -> 2.3 | C46: =VLOOKUP($B46,'Planilha Orçamentária'!$A$11:$I$484,3,) -> CPU.04 | D46: =VLOOKUP($B46,'Planilha Orçamentária'!$A$11:$I$484,4,) -> PLACA DE OBRA EM CHAPA DE ACO GALVANIZADO | E46: =VLOOKUP($B46,'Planilha Orçamentária'!$A$11:$I$61,5) -> m² | H46: =SUM(H47,H58,H53,H54) -> 670.55 | I46: S
B47: =B46 -> 2.3 | D47: MATERIAL | H47: =SUM(H48:H52) -> 330.86 | I47: SS
B48: SINAPI | C48: 4417 | D48: =IF(I48="i",VLOOKUP(C48,'Ins SINAPI PE 12-2023 Onerado'!$A$8:$E$5189,2,0),VLOOKUP(C48,'Comp SINAPI PE 12-2023 Onerado'!$G$7:$K$6879,2,0)) -> SARRAFO NAO APARELHADO *2,5 X 7* CM, EM MACARANDUBA/MASSARANDUBA, ANGELIM, PEROBA-ROSA OU EQUIVALENTE DA REGIAO - BRUTA | E48: =IF(I48="i",VLOOKUP(C48,'Ins SINAPI PE 12-2023 Onerado'!$A$8:$E$5189,3,0),VLOOKUP(C48,'Comp SINAPI PE 12-2023 Onerado'!$G$7:$K$7500,3,0)) -> M | F48: 2 | G48: =IF(I48="i",VLOOKUP(C48,'Ins SINAPI PE 12-2023 Onerado'!$A$8:$E$5189,5,0),VLOOKUP(C48,'Comp SINAPI PE 12-2023 Onerado'!$G$7:$K$7500,5,0)) -> 8,02 | H48: =ROUND(F48*G48,2) -> 16.04 | I48: I
B49: SINAPI | C49: 4430 | D49: =IF(I49="i",VLOOKUP(C49,'Ins SINAPI PE 12-2023 Onerado'!$A$8:$E$5189,2,0),VLOOKUP(C49,'Comp SINAPI PE 12-2023 Onerado'!$G$7:$K$6879,2,0)) -> CAIBRO NAO APARELHADO *5 X 6* CM, EM MACARANDUBA/MASSARANDUBA, ANGELIM OU EQUIVALENTE DA REGIAO - BRUTA | E49: =IF(I49="i",VLOOKUP(C49,'Ins SINAPI PE 12-2023 Onerado'!$A$8:$E$5189,3,0),VLOOKUP(C49,'Comp SINAPI PE 12-2023 Onerado'!$G$7:$K$7500,3,0)) -> M | F49: 4 | G49: =IF(I49="i",VLOOKUP(C49,'Ins SINAPI PE 12-2023 Onerado'!$A$8:$E$5189,5,0),VLOOKUP(C49,'Comp SINAPI PE 12-2023 Onerado'!$G$7:$K$7500,5,0)) -> 14,75 | H49: =ROUND(F49*G49,2) -> 59 | I49: I
B50: SINAPI | C50: 4813 | D50: =IF(I50="i",VLOOKUP(C50,'Ins SINAPI PE 12-2023 Onerado'!$A$8:$E$5189,2,0),VLOOKUP(C50,'Comp SINAPI PE 12-2023 Onerado'!$G$7:$K$6879,2,0)) -> PLACA DE OBRA (PARA CONSTRUCAO CIVIL) EM CHAPA GALVANIZADA *N. 22*, ADESIVADA, DE *2,4 X 1,2* M (SEM POSTES PARA FIXACAO) | E50: =IF(I50="i",VLOOKUP(C50,'Ins SINAPI PE 12-2023 Onerado'!$A$8:$E$5189,3,0),VLOOKUP(C50,'Comp SINAPI PE 12-2023 Onerado'!$G$7:$K$7500,3,0)) -> M2 | F50: 1 | G50: =IF(I50="i",VLOOKUP(C50,'Ins SINAPI PE 12-2023 Onerado'!$A$8:$E$5189,5,0),VLOOKUP(C50,'Comp SINAPI PE 12-2023 Onerado'!$G$7:$K$7500,5,0)) -> 250,00 | H50: =ROUND(F50*G50,2) -> 250 | I50: I
B51: SINAPI | C51: 5075 | D51: =IF(I51="i",VLOOKUP(C51,'Ins SINAPI PE 12-2023 Onerado'!$A$8:$E$5189,2,0),VLOOKUP(C51,'Comp SINAPI PE 12-2023 Onerado'!$G$7:$K$6879,2,0)) -> PREGO DE ACO POLIDO COM CABECA 18 X 30 (2 3/4 X 10) | E51: =IF(I51="i",VLOOKUP(C51,'Ins SINAPI PE 12-2023 Onerado'!$A$8:$E$5189,3,0),VLOOKUP(C51,'Comp SINAPI PE 12-2023 Onerado'!$G$7:$K$7500,3,0)) -> KG | F51: 0.11 | G51: =IF(I51="i",VLOOKUP(C51,'Ins SINAPI PE 12-2023 Onerado'!$A$8:$E$5189,5,0),VLOOKUP(C51,'Comp SINAPI PE 12-2023 Onerado'!$G$7:$K$7500,5,0)) -> 16,73 | H51: =ROUND(F51*G51,2) -> 1.84 | I51: I
B52: SINAPI | C52: 94962 | D52: =IF(I52="i",VLOOKUP(C52,'Ins SINAPI PE 12-2023 Onerado'!$A$8:$E$5189,2,0),VLOOKUP(C52,'Comp SINAPI PE 12-2023 Onerado'!$G$7:$K$6879,2,0)) -> CONCRETO MAGRO PARA LASTRO, TRAÇO 1:4,5:4,5 (EM MASSA SECA DE CIMENTO/ AREIA MÉDIA/ BRITA 1) - PREPARO MECÂNICO COM BETONEIRA 400 L. AF_05/2021 | E52: =IF(I52="i",VLOOKUP(C52,'Ins SINAPI PE 12-2023 Onerado'!$A$8:$E$5189,3,0),VLOOKUP(C52,'Comp SINAPI PE 12-2023 Onerado'!$G$7:$K$7500,3,0)) -> M3 | F52: 0.01 | G52: =IF(I52="i",VLOOKUP(C52,'Ins SINAPI PE 12-2023 Onerado'!$A$8:$E$5189,5,0),VLOOKUP(C52,'Comp SINAPI PE 12-2023 Onerado'!$G$7:$K$7500,5,0)) -> 398.48 | H52: =ROUND(F52*G52,2) -> 3.98 | I52: ca
B53: =B46 -> 2.3 | D53: EQUIPAMENTOS | H53: 0 | I53: SS
B54: =B46 -> 2.3 | D54: SERVIÇOS | H54: =SUM(H55:H57) -> 274.03 | I54: SS
A55: 2.3.6 | B55: COTAÇÃO | C55: CT.01 | D55: Hospedagem | E55: um | F55: ='Memorial de cálculo'!H60/'Memorial de cálculo'!H55 -> 0.375 | G55: =Cotações!$O$11 -> 90 | H55: =ROUND(F55*G55,2) -> 33.75 | I55: ss
A56: 2.3.7 | B56: SICRO | C56: E9134 | D56: Miniônibus com capacidade para 30 passageiros - 111 Kw | E56: chp | F56: ='Memorial de cálculo'!H62/'Memorial de cálculo'!H55 -> 0.415 | G56: 221.2038 | H56: =ROUND(F56*G56,2) -> 91.8 | I56: ss
A57: 2.3.8 | B57: SICRO | C57: E9134 | D57: Miniônibus com capacidade para 30 passageiros - 111 Kw | E57: chi | F57: ='Memorial de cálculo'!H55 -> 2 | G57: 74.2404 | H57: =ROUND(F57*G57,2) -> 148.48 | I57: ss
B58: =B46 -> 2.3 | D58: MÃO DE OBRA | H58: =SUM(H59:H60) -> 65.66 | I58: ss
B59: SINAPI | C59: 88262 | D59: =IF(I59="i",VLOOKUP(C59,'Ins SINAPI PE 12-2023 Onerado'!$A$8:$E$5189,2,0),VLOOKUP(C59,'Comp SINAPI PE 12-2023 Onerado'!$G$7:$K$7500,2,0)) -> CARPINTEIRO DE FORMAS COM ENCARGOS COMPLEMENTARES | E59: =IF(I59="i",VLOOKUP(C59,'Ins SINAPI PE 12-2023 Onerado'!$A$8:$E$5189,3,0),VLOOKUP(C59,'Comp SINAPI PE 12-2023 Onerado'!$G$7:$K$7500,3,0)) -> H | F59: 1 | G59: =IF(I59="i",VLOOKUP(C59,'Ins SINAPI PE 12-2023 Onerado'!$A$8:$E$5189,5,0),VLOOKUP(C59,'Comp SINAPI PE 12-2023 Onerado'!$G$7:$K$7500,5,0)) -> 25.1 | H59: =ROUND(F59*G59,2) -> 25.1 | I59: ca
B60: SINAPI | C60: 88316 | D60: =IF(I60="i",VLOOKUP(C60,'Ins SINAPI PE 12-2023 Onerado'!$A$8:$E$5189,2,0),VLOOKUP(C60,'Comp SINAPI PE 12-2023 Onerado'!$G$7:$K$7500,2,0)) -> SERVENTE COM ENCARGOS COMPLEMENTARES | E60: =IF(I60="i",VLOOKUP(C60,'Ins SINAPI PE 12-2023 Onerado'!$A$8:$E$5189,3,0),VLOOKUP(C60,'Comp SINAPI PE 12-2023 Onerado'!$G$7:$K$7500,3,0)) -> H | F60: 2 | G60: =IF(I60="i",VLOOKUP(C60,'Ins SINAPI PE 12-2023 Onerado'!$A$8:$E$5189,5,0),VLOOKUP(C60,'Comp SINAPI PE 12-2023 Onerado'!$G$7:$K$7500,5,0)) -> 20.28 | H60: =ROUND(F60*G60,2) -> 40.56 | I60: ca
B62: ='Planilha Orçamentária'!A20 -> 3.1 | C62: =VLOOKUP($B62,'Planilha Orçamentária'!$A$11:$I$484,3,) -> CPU.05 | D62: =VLOOKUP($B62,'Planilha Orçamentária'!$A$11:$I$484,4,) -> Limpeza Manual De Vegetação Em Terreno Com Enxada | E62: m² | H62: =SUM(H63,H72,H64,H65) -> 8.7601 | I62: S
B63: =B62 -> 3.1 | D63: MATERIAL | I63: SS
B64: =B57 -> SICRO | D64: EQUIPAMENTOS | H64: 0 | I64: SS
B65: =B57 -> SICRO | D65: SERVIÇOS | H65: =SUM(H66:H71) -> 8.7601 | I65: SS
A66: 3.1.1 | B66: SINAPI | C66: 98524 | D66: =PROPER(IF(K66="i",VLOOKUP(C66,'Ins SINAPI PE 12-2023 Onerado'!$A$8:$E$5189,2,0),VLOOKUP(C66,'Comp SINAPI PE 12-2023 Onerado'!$G$7:$K$7500,2,0))) -> Limpeza Manual De Vegetação Em Terreno Com Enxada. Af_03/2024 | E66: =LOWER(IF(K66="i",VLOOKUP(C66,'Ins SINAPI PE 12-2023 Onerado'!$A$8:$E$5189,3,0),VLOOKUP(C66,'Comp SINAPI PE 12-2023 Onerado'!$G$7:$K$7500,3,0))) -> m2 | F66: 1 | G66: =IF(I66="i",VLOOKUP(C66,'Ins SINAPI PE 12-2023 Onerado'!$A$8:$E$5189,5,0),VLOOKUP(C66,'Comp SINAPI PE 12-2023 Onerado'!$G$7:$K$7500,5,0)) -> 4.32 | H66: =ROUND(F66*G66,2) -> 4.32 | I66: ca
A67: 3.1.4 | B67: SINAPI | C67: 97913 | D67: =PROPER(IF(K67="i",VLOOKUP(C67,'Ins SINAPI PE 12-2023 Onerado'!$A$8:$E$5189,2,0),VLOOKUP(C67,'Comp SINAPI PE 12-2023 Onerado'!$G$7:$K$7500,2,0))) -> Transporte Com Caminhão Basculante De 6 M³, Em Via Urbana Em Revestimento Primário (Unidade: M3Xkm). Af_07/2020 | E67: =LOWER(IF(K67="i",VLOOKUP(C67,'Ins SINAPI PE 12-2023 Onerado'!$A$8:$E$5189,3,0),VLOOKUP(C67,'Comp SINAPI PE 12-2023 Onerado'!$G$7:$K$7500,3,0))) -> m3xkm | F67: ='Memorial de cálculo'!H74/'Memorial de cálculo'!H68 -> 0.29 | G67: =IF(I67="i",VLOOKUP(C67,'Ins SINAPI PE 12-2023 Onerado'!$A$8:$E$5189,5,0),VLOOKUP(C67,'Comp SINAPI PE 12-2023 Onerado'!$G$7:$K$7500,5,0)) -> 3.23 | H67: =ROUND(F67*G67,2) -> 0.94 | I67: ca
A68: 3.1.4 | B68: SINAPI | C68: 97914 | D68: =PROPER(IF(K68="i",VLOOKUP(C68,'Ins SINAPI PE 12-2023 Onerado'!$A$8:$E$5189,2,0),VLOOKUP(C68,'Comp SINAPI PE 12-2023 Onerado'!$G$7:$K$7500,2,0))) -> Transporte Com Caminhão Basculante De 6 M³, Em Via Urbana Pavimentada, Dmt Até 30 Km (Unidade: M3Xkm). Af_07/2020 | E68: =LOWER(IF(K68="i",VLOOKUP(C68,'Ins SINAPI PE 12-2023 Onerado'!$A$8:$E$5189,3,0),VLOOKUP(C68,'Comp SINAPI PE 12-2023 Onerado'!$G$7:$K$7500,3,0))) -> m3xkm | F68: ='Memorial de cálculo'!H77/'Memorial de cálculo'!H68 -> 1.720430108e-05 | G68: =IF(I68="i",VLOOKUP(C68,'Ins SINAPI PE 12-2023 Onerado'!$A$8:$E$5189,5,0),VLOOKUP(C68,'Comp SINAPI PE 12-2023 Onerado'!$G$7:$K$7500,5,0)) -> 2.95 | H68: =ROUND(F68*G68,4) -> 0.0001 | I68: ca
A69: 3.1.5 | B69: COTAÇÃO | C69: CT.01 | D69: Hospedagem | E69: um | F69: ='Memorial de cálculo'!H80/'Memorial de cálculo'!H68 -> 0.01795 | G69: =Cotações!$O$11 -> 90 | H69: =ROUND(F69*G69,2) -> 1.62 | I69: ss
A70: 3.1.6 | B70: SICRO | C70: E9134 | D70: Miniônibus com capacidade para 30 passageiros - 111 Kw | E70: chp | F70: ='Memorial de cálculo'!H82/'Memorial de cálculo'!H68 -> 0.003724625 | G70: 221.2038 | H70: =ROUND(F70*G70,2) -> 0.82 | I70: ss
A71: 3.1.7 | B71: SICRO | C71: E9134 | D71: Miniônibus com capacidade para 30 passageiros - 111 Kw | E71: chi | F71: ='Memorial de cálculo'!H84/'Memorial de cálculo'!H68 -> 0.014225375 | G71: 74.2404 | H71: =ROUND(F71*G71,2) -> 1.06 | I71: ss
B72: =B60 -> SINAPI | D72: MÃO DE OBRA | I72: ss
B74: ='Planilha Orçamentária'!A21 -> 3.2 | C74: =VLOOKUP($B74,'Planilha Orçamentária'!$A$11:$I$484,3,) -> CPU.06 | D74: =VLOOKUP($B74,'Planilha Orçamentária'!$A$11:$I$484,4,) -> Corte raso de árvores | E74: m² | H74: =SUM(H82+H77+H76+H75) -> 264.93 | I74: S
B75: =B74 -> 3.2 | D75: MATERIAL | I75: SS
B76: =B69 -> COTAÇÃO | D76: EQUIPAMENTOS | H76: 0 | I76: SS
B77: =B69 -> COTAÇÃO | D77: SERVIÇOS | H77: =SUM(H78:H81) -> 264.93 | I77: SS
A78: 3.2.1 | B78: SINAPI | C78: 98529 | D78: =PROPER(IF(K81="i",VLOOKUP(C78,'Ins SINAPI PE 12-2023 Onerado'!$A$8:$E$5189,2,0),VLOOKUP(C78,'Comp SINAPI PE 12-2023 Onerado'!$G$7:$K$7500,2,0))) -> Corte Raso E Recorte De Árvore Com Diâmetro De Tronco Maior Ou Igual A 0,20 M E Menor Que 0,40 M. Af_03/2024 | E78: =LOWER(IF(K81="i",VLOOKUP(C78,'Ins SINAPI PE 12-2023 Onerado'!$A$8:$E$5189,3,0),VLOOKUP(C78,'Comp SINAPI PE 12-2023 Onerado'!$G$7:$K$7500,3,0))) -> un | F78: ='Memorial de cálculo'!H88/'Memorial de cálculo'!H87 -> 1 | G78: =IF(I78="i",VLOOKUP(C78,'Ins SINAPI PE 12-2023 Onerado'!$A$8:$E$5189,5,0),VLOOKUP(C78,'Comp SINAPI PE 12-2023 Onerado'!$G$7:$K$7500,5,0)) -> 68.42 | H78: =ROUND(F78*G78,2) -> 68.42 | I78: ca
A79: 3.2.2 | B79: COTAÇÃO | C79: CT.01 | D79: Hospedagem | E79: um | F79: ='Memorial de cálculo'!H92/'Memorial de cálculo'!H87 -> 0.3861 | G79: =Cotações!$O$11 -> 90 | H79: =ROUND(F79*G79,2) -> 34.75 | I79: ss
A80: 3.2.3 | B80: SICRO | C80: E9134 | D80: Miniônibus com capacidade para 30 passageiros - 111 Kw | E80: chp | F80: ='Memorial de cálculo'!H94/'Memorial de cálculo'!H87 -> 0.320463 | G80: 221.2038 | H80: =ROUND(F80*G80,2) -> 70.89 | I80: ss
A81: 3.2.4 | B81: SICRO | C81: E9134 | D81: Miniônibus com capacidade para 30 passageiros - 111 Kw | E81: chi | F81: ='Memorial de cálculo'!H96/'Memorial de cálculo'!H87 -> 1.223937 | G81: 74.2404 | H81: =ROUND(F81*G81,2) -> 90.87 | I81: ss
B82: =B70 -> SICRO | D82: MÃO DE OBRA | I82: ss
B84: ='Planilha Orçamentária'!A22 -> 3.3 | C84: =VLOOKUP($B84,'Planilha Orçamentária'!$A$11:$I$484,3,) -> CPU.07 | D84: =VLOOKUP($B84,'Planilha Orçamentária'!$A$11:$I$484,4,) -> Remoção de raízes | E84: m² | H84: =SUM(H92+H87+H86+H85) -> 221.11 | I84: S
B85: =B84 -> 3.3 | D85: MATERIAL | I85: SS
B86: =B79 -> COTAÇÃO | D86: EQUIPAMENTOS | H86: 0 | I86: SS
B87: =B79 -> COTAÇÃO | D87: SERVIÇOS | H87: =SUM(H88:H91) -> 221.11 | I87: SS
A88: 3.3.1 | B88: SINAPI | C88: 98526 | D88: =PROPER(IF(K97="i",VLOOKUP(C88,'Ins SINAPI PE 12-2023 Onerado'!$A$8:$E$5189,2,0),VLOOKUP(C88,'Comp SINAPI PE 12-2023 Onerado'!$G$7:$K$7500,2,0))) -> Remoção De Raízes Remanescentes De Tronco De Árvore Com Diâmetro Maior Ou Igual A 0,20 M E Menor Que 0,40 M. Af_03/2024 | E88: =LOWER(IF(K97="i",VLOOKUP(C88,'Ins SINAPI PE 12-2023 Onerado'!$A$8:$E$5189,3,0),VLOOKUP(C88,'Comp SINAPI PE 12-2023 Onerado'!$G$7:$K$7500,3,0))) -> un | F88: ='Memorial de cálculo'!H99/'Memorial de cálculo'!H99 -> 1 | G88: =IF(I88="i",VLOOKUP(C88,'Ins SINAPI PE 12-2023 Onerado'!$A$8:$E$5189,5,0),VLOOKUP(C88,'Comp SINAPI PE 12-2023 Onerado'!$G$7:$K$7500,5,0)) -> 134.84 | H88: =ROUND(F88*G88,2) -> 134.84 | I88: ca
A89: 3.3.2 | B89: COTAÇÃO | C89: CT.01 | D89: Hospedagem | E89: um | F89: ='Memorial de cálculo'!H104/'Memorial de cálculo'!H99 -> 0.1695 | G89: =Cotações!$O$11 -> 90 | H89: =ROUND(F89*G89,2) -> 15.26 | I89: ss
A90: 3.3.3 | B90: SICRO | C90: E9134 | D90: Miniônibus com capacidade para 30 passageiros - 111 Kw | E90: chp | F90: ='Memorial de cálculo'!H106/'Memorial de cálculo'!H99 -> 0.140685 | G90: 221.2038 | H90: =ROUND(F90*G90,2) -> 31.12 | I90: ss
A91: 3.3.4 | B91: SICRO | C91: E9134 | D91: Miniônibus com capacidade para 30 passageiros - 111 Kw | E91: chi | F91: ='Memorial de cálculo'!H108/'Memorial de cálculo'!H99 -> 0.537315 | G91: 74.2404 | H91: =ROUND(F91*G91,2) -> 39.89 | I91: ss
B92: =B80 -> SICRO | D92: MÃO DE OBRA | H92: 0 | I92: ss
B94: ='Planilha Orçamentária'!A25 -> 4.1. | C94: =VLOOKUP($B94,'Planilha Orçamentária'!$A$11:$I$484,3,) -> CPU.08 | D94: =VLOOKUP($B94,'Planilha Orçamentária'!$A$11:$I$484,4,) -> Aplicação de concreto - slump 22 - fck maior que 10 c/ fornecimento | E94: m³ | H94: =SUM(H104+H97+H96+H95) -> 886.02 | I94: S
B95: =B94 -> 4.1. | D95: MATERIAL | H95: 0 | I95: SS
B96: =B89 -> COTAÇÃO | D96: EQUIPAMENTOS | H96: 0 | I96: SS
B97: =B89 -> COTAÇÃO | D97: SERVIÇOS | H97: =SUM(H98:H103) -> 886.02 | I97: SS
A98: 4.1.1 | B98: SINAPI | C98: 103684 | D98: =PROPER(IF(K98="i",VLOOKUP(C98,'Ins SINAPI PE 12-2023 Onerado'!$A$8:$E$5189,2,0),VLOOKUP(C98,'Comp SINAPI PE 12-2023 Onerado'!$G$7:$K$7500,2,0))) -> Concretagem De Reservatórios, Fck=25 Mpa, Com Uso De Bomba - Lançamento, Adensamento E Acabamento. Af_02/2022_Ps | E98: =LOWER(IF(K98="i",VLOOKUP(C98,'Ins SINAPI PE 12-2023 Onerado'!$A$8:$E$5189,3,0),VLOOKUP(C98,'Comp SINAPI PE 12-2023 Onerado'!$G$7:$K$7500,3,0))) -> m3 | F98: 1 | G98: =IF(I98="i",VLOOKUP(C98,'Ins SINAPI PE 12-2023 Onerado'!$A$8:$E$5189,5,0),VLOOKUP(C98,'Comp SINAPI PE 12-2023 Onerado'!$G$7:$K$7500,5,0)) -> 608.03 | H98: =ROUND(F98*G98,2) -> 608.03 | I98: ca
A99: 4.1.2 | B99: SINAPI | C99: 93595 | D99: =PROPER(IF(K99="i",VLOOKUP(C99,'Ins SINAPI PE 12-2023 Onerado'!$A$8:$E$5189,2,0),VLOOKUP(C99,'Comp SINAPI PE 12-2023 Onerado'!$G$7:$K$7500,2,0))) -> Transporte Com Caminhão Basculante De 10 M³, Em Via Urbana Em Revestimento Primário (Unidade: Txkm). Af_07/2020 | E99: =LOWER(IF(K99="i",VLOOKUP(C99,'Ins SINAPI PE 12-2023 Onerado'!$A$8:$E$5189,3,0),VLOOKUP(C99,'Comp SINAPI PE 12-2023 Onerado'!$G$7:$K$7500,3,0))) -> txkm | F99: ='Memorial de cálculo'!H117/'Memorial de cálculo'!H111 -> 55.2 | G99: =IF(I99="i",VLOOKUP(C99,'Ins SINAPI PE 12-2023 Onerado'!$A$8:$E$5189,5,0),VLOOKUP(C99,'Comp SINAPI PE 12-2023 Onerado'!$G$7:$K$7500,5,0)) -> 1.81 | H99: 99.91 | I99: ca
A100: 4.1.3 | B100: SINAPI | C100: 93596 | D100: =PROPER(IF(K100="i",VLOOKUP(C100,'Ins SINAPI PE 12-2023 Onerado'!$A$8:$E$5189,2,0),VLOOKUP(C100,'Comp SINAPI PE 12-2023 Onerado'!$G$7:$K$7500,2,0))) -> Transporte Com Caminhão Basculante De 10 M³, Em Via Urbana Pavimentada, Adicional Para Dmt Excedente A 30 Km (Unidade: Txkm). Af_07/2020 | E100: =LOWER(IF(K100="i",VLOOKUP(C100,'Ins SINAPI PE 12-2023 Onerado'!$A$8:$E$5189,3,0),VLOOKUP(C100,'Comp SINAPI PE 12-2023 Onerado'!$G$7:$K$7500,3,0))) -> txkm | F100: ='Memorial de cálculo'!H119/'Memorial de cálculo'!H111 -> 36.8 | G100: =IF(I100="i",VLOOKUP(C100,'Ins SINAPI PE 12-2023 Onerado'!$A$8:$E$5189,5,0),VLOOKUP(C100,'Comp SINAPI PE 12-2023 Onerado'!$G$7:$K$7500,5,0)) -> 0.65 | H100: 23.92 | I100: ca
A101: 4.1.4 | B101: COTAÇÃO | C101: CT.01 | D101: Hospedagem | E101: um | F101: ='Memorial de cálculo'!H121/'Memorial de cálculo'!H111 -> 0.30125 | G101: =Cotações!$O$11 -> 90 | H101: 27.11 | I101: ss
A102: 4.1.5 | B102: SICRO | C102: E9134 | D102: Miniônibus com capacidade para 30 passageiros - 111 Kw | E102: chp | F102: ='Memorial de cálculo'!H123/'Memorial de cálculo'!H111 -> 0.2516975 | G102: 221.2038 | H102: 55.68 | I102: ss
A103: 4.1.6 | B103: SICRO | C103: E9134 | D103: Miniônibus com capacidade para 30 passageiros - 111 Kw | E103: chi | F103: ='Memorial de cálculo'!H125/'Memorial de cálculo'!H111 -> 0.9613025 | G103: 74.2404 | H103: 71.37 | I103: ss
B104: =B92 -> SICRO | D104: MÃO DE OBRA | H104: 0 | I104: ss
B106: ='Planilha Orçamentária'!A28 -> 5.1 | C106: =VLOOKUP($B106,'Planilha Orçamentária'!$A$11:$I$484,3,) -> CPU.09 | D106: =VLOOKUP($B106,'Planilha Orçamentária'!$A$11:$I$484,4,) -> Remoção das guias de concreto | E106: m | H106: =SUM(H109+H108+H107+H114) -> 32.79 | I106: S
B107: =B106 -> 5.1 | D107: MATERIAL | H107: 0 | I107: SS
B108: =B101 -> COTAÇÃO | D108: EQUIPAMENTOS | H108: 0 | I108: SS
B109: =B101 -> COTAÇÃO | D109: SERVIÇOS | H109: =SUM(H110:H113) -> 32.79 | I109: SS
A110: 5.1.1 | B110: SINAPI | C110: 104797 | D110: =PROPER(IF(K110="i",VLOOKUP(C110,'Ins SINAPI PE 12-2023 Onerado'!$A$8:$E$5189,2,0),VLOOKUP(C110,'Comp SINAPI PE 12-2023 Onerado'!$G$7:$K$7500,2,0))) -> Remoçao De Guias Pré-Fabricadas De Concreto, De Forma Mecanizada, Com Reaproveitamento. Af_09/2023 | E110: =LOWER(IF(K110="i",VLOOKUP(C110,'Ins SINAPI PE 12-2023 Onerado'!$A$8:$E$5189,3,0),VLOOKUP(C110,'Comp SINAPI PE 12-2023 Onerado'!$G$7:$K$7500,3,0))) -> m | F110: 1 | G110: =IF(I110="i",VLOOKUP(C110,'Ins SINAPI PE 12-2023 Onerado'!$A$8:$E$5189,5,0),VLOOKUP(C110,'Comp SINAPI PE 12-2023 Onerado'!$G$7:$K$7500,5,0)) -> 17.71 | H110: =ROUND(F110*G110,2) -> 17.71 | I110: ca
A111: 5.1.2 | B111: COTAÇÃO | C111: CT.01 | D111: Hospedagem | E111: um | F111: ='Memorial de cálculo'!H134/'Memorial de cálculo'!H129 -> 0.03955 | G111: =Cotações!$O$11 -> 90 | H111: =ROUND(F111*G111,2) -> 3.56 | I111: ss
A112: 5.1.3 | B112: SICRO | C112: E9134 | D112: Miniônibus com capacidade para 30 passageiros - 111 Kw | E112: chp | F112: ='Memorial de cálculo'!H136/'Memorial de cálculo'!H129 -> 0.022814625 | G112: 221.2038 | H112: =ROUND(F112*G112,2) -> 5.05 | I112: ss
A113: 5.1.4 | B113: SICRO | C113: E9134 | D113: Miniônibus com capacidade para 30 passageiros - 111 Kw | E113: chi | F113: ='Memorial de cálculo'!H138/'Memorial de cálculo'!H129 -> 0.087135375 | G113: 74.2404 | H113: =ROUND(F113*G113,2) -> 6.47 | I113: ss
B114: =B103 -> SICRO | D114: MÃO DE OBRA | H114: 0 | I114: ss
B116: ='Planilha Orçamentária'!A29 -> 5.2 | C116: =VLOOKUP($B116,'Planilha Orçamentária'!$A$11:$I$484,3,) -> CPU.10 | D116: =VLOOKUP($B116,'Planilha Orçamentária'!$A$11:$I$484,4,) -> Regularização e compactação da crista | E116: m² | H116: =SUM(H119+H118+H117+H124) -> 1.63 | I116: S
B117: =B116 -> 5.2 | D117: MATERIAL | H117: 0 | I117: SS
B118: =B111 -> COTAÇÃO | D118: EQUIPAMENTOS | H118: 0 | I118: SS
B119: =B111 -> COTAÇÃO | D119: SERVIÇOS | H119: =SUM(H120:H123) -> 1.63 | I119: SS
A120: 5.2.1 | B120: SINAPI | C120: 100577 | D120: =PROPER(IF(K120="i",VLOOKUP(C120,'Ins SINAPI PE 12-2023 Onerado'!$A$8:$E$5189,2,0),VLOOKUP(C120,'Comp SINAPI PE 12-2023 Onerado'!$G$7:$K$7500,2,0))) -> Regularização E Compactação De Subleito De Solo Predominantemente Arenoso. Af_11/2019 | E120: =LOWER(IF(K120="i",VLOOKUP(C120,'Ins SINAPI PE 12-2023 Onerado'!$A$8:$E$5189,3,0),VLOOKUP(C120,'Comp SINAPI PE 12-2023 Onerado'!$G$7:$K$7500,3,0))) -> m2 | F120: 1 | G120: =IF(I120="i",VLOOKUP(C120,'Ins SINAPI PE 12-2023 Onerado'!$A$8:$E$5189,5,0),VLOOKUP(C120,'Comp SINAPI PE 12-2023 Onerado'!$G$7:$K$7500,5,0)) -> 1.28 | H120: =ROUND(F120*G120,2) -> 1.28 | I120: ca
A121: 5.2.2 | B121: COTAÇÃO | C121: CT.01 | D121: Hospedagem | E121: um | F121: ='Memorial de cálculo'!H144/'Memorial de cálculo'!H140 -> 0.000375 | G121: =Cotações!$O$11 -> 90 | H121: =ROUND(F121*G121,2) -> 0.03 | I121: ss
A122: 5.2.3 | B122: SICRO | C122: E9134 | D122: Miniônibus com capacidade para 30 passageiros - 111 Kw | E122: chp | F122: ='Memorial de cálculo'!H146/'Memorial de cálculo'!H140 -> 0.0006225 | G122: 221.2038 | H122: =ROUND(F122*G122,2) -> 0.14 | I122: ss
A123: 5.2.4 | B123: SICRO | C123: E9134 | D123: Miniônibus com capacidade para 30 passageiros - 111 Kw | E123: chi | F123: ='Memorial de cálculo'!H148/'Memorial de cálculo'!H140 -> 0.0023775 | G123: 74.2404 | H123: =ROUND(F123*G123,2) -> 0.18 | I123: ss
B124: =B113 -> SICRO | D124: MÃO DE OBRA | H124: 0 | I124: ss
B126: ='Planilha Orçamentária'!A30 -> 5.3 | C126: =VLOOKUP($B126,'Planilha Orçamentária'!$A$11:$I$484,3,) -> CPU.11 | D126: =VLOOKUP($B126,'Planilha Orçamentária'!$A$11:$I$484,4,) -> Revestimento com brita graduada simples | E126: m³ | H126: =SUM(H129+H128+H127+H137) -> 271.17 | I126: S
B127: =B126 -> 5.3 | D127: MATERIAL | H127: 0 | I127: SS
B128: =B121 -> COTAÇÃO | D128: EQUIPAMENTOS | H128: 0 | I128: SS
B129: =B121 -> COTAÇÃO | D129: SERVIÇOS | H129: =SUM(H130:H136) -> 271.17 | I129: SS
A130: 5.3.1 | B130: SINAPI | C130: 96396 | D130: =PROPER(IF(K130="i",VLOOKUP(C130,'Ins SINAPI PE 12-2023 Onerado'!$A$8:$E$5189,2,0),VLOOKUP(C130,'Comp SINAPI PE 12-2023 Onerado'!$G$7:$K$7500,2,0))) -> Execução E Compactação De Base E Ou Sub Base Para Pavimentação De Brita Graduada Simples - Exclusive Carga E Transporte. Af_11/2019 | E130: =LOWER(IF(K130="i",VLOOKUP(C130,'Ins SINAPI PE 12-2023 Onerado'!$A$8:$E$5189,3,0),VLOOKUP(C130,'Comp SINAPI PE 12-2023 Onerado'!$G$7:$K$7500,3,0))) -> m3 | F130: 1 | G130: =IF(I130="i",VLOOKUP(C130,'Ins SINAPI PE 12-2023 Onerado'!$A$8:$E$5189,5,0),VLOOKUP(C130,'Comp SINAPI PE 12-2023 Onerado'!$G$7:$K$7500,5,0)) -> 180.14 | H130: =ROUND(F130*G130,2) -> 180.14 | I130: ca
A131: 5.3.2 | B131: SINAPI | C131: 100976 | D131: =PROPER(IF(K131="i",VLOOKUP(C131,'Ins SINAPI PE 12-2023 Onerado'!$A$8:$E$5189,2,0),VLOOKUP(C131,'Comp SINAPI PE 12-2023 Onerado'!$G$7:$K$7500,2,0))) -> Carga, Manobra E Descarga De Solos E Materiais Granulares Em Caminhão Basculante 18 M³ - Carga Com Pá Carregadeira (Caçamba De 1,7 A 2,8 M³ / 128 Hp) E Descarga Livre (Unidade: M3). Af_07/2020 | E131: =LOWER(IF(K131="i",VLOOKUP(C131,'Ins SINAPI PE 12-2023 Onerado'!$A$8:$E$5189,3,0),VLOOKUP(C131,'Comp SINAPI PE 12-2023 Onerado'!$G$7:$K$7500,3,0))) -> m3 | F131: 1 | G131: =IF(I131="i",VLOOKUP(C131,'Ins SINAPI PE 12-2023 Onerado'!$A$8:$E$5189,5,0),VLOOKUP(C131,'Comp SINAPI PE 12-2023 Onerado'!$G$7:$K$7500,5,0)) -> 8.28 | H131: 8.28 | I131: ss
A132: 5.3.3 | B132: SINAPI | C132: 95426 | D132: =PROPER(IF(K132="i",VLOOKUP(C132,'Ins SINAPI PE 12-2023 Onerado'!$A$8:$E$5189,2,0),VLOOKUP(C132,'Comp SINAPI PE 12-2023 Onerado'!$G$7:$K$7500,2,0))) -> Transporte Com Caminhão Basculante De 18 M³, Em Via Urbana Em Revestimento Primário (Unidade: M3Xkm). Af_07/2020 | E132: =LOWER(IF(K132="i",VLOOKUP(C132,'Ins SINAPI PE 12-2023 Onerado'!$A$8:$E$5189,3,0),VLOOKUP(C132,'Comp SINAPI PE 12-2023 Onerado'!$G$7:$K$7500,3,0))) -> m3xkm | F132: ='Memorial de cálculo'!H156/'Memorial de cálculo'!H150 -> 24 | G132: =IF(I132="i",VLOOKUP(C132,'Ins SINAPI PE 12-2023 Onerado'!$A$8:$E$5189,5,0),VLOOKUP(C132,'Comp SINAPI PE 12-2023 Onerado'!$G$7:$K$7500,5,0)) -> 1.94 | H132: 46.56 | I132: ss
A133: 5.3.4 | B133: SINAPI | C133: 95425 | D133: =PROPER(IF(K133="i",VLOOKUP(C133,'Ins SINAPI PE 12-2023 Onerado'!$A$8:$E$5189,2,0),VLOOKUP(C133,'Comp SINAPI PE 12-2023 Onerado'!$G$7:$K$7500,2,0))) -> Transporte Com Caminhão Basculante De 18 M³, Em Via Urbana Em Leito Natural (Unidade: M3Xkm). Af_07/2020 | E133: =LOWER(IF(K133="i",VLOOKUP(C133,'Ins SINAPI PE 12-2023 Onerado'!$A$8:$E$5189,3,0),VLOOKUP(C133,'Comp SINAPI PE 12-2023 Onerado'!$G$7:$K$7500,3,0))) -> m3xkm | F133: ='Memorial de cálculo'!H158/'Memorial de cálculo'!H150 -> 16 | G133: =IF(I133="i",VLOOKUP(C133,'Ins SINAPI PE 12-2023 Onerado'!$A$8:$E$5189,5,0),VLOOKUP(C133,'Comp SINAPI PE 12-2023 Onerado'!$G$7:$K$7500,5,0)) -> 2.24 | H133: 35.84 | I133: ss
A134: 5.3.5 | B134: COTAÇÃO | C134: CT.01 | D134: Hospedagem | E134: um | F134: ='Memorial de cálculo'!H160/'Memorial de cálculo'!H150 -> 0.000375 | G134: =Cotações!$O$11 -> 90 | H134: 0.03 | I134: ss
A135: 5.3.6 | B135: SICRO | C135: E9134 | D135: Miniônibus com capacidade para 30 passageiros - 111 Kw | E135: chp | F135: ='Memorial de cálculo'!H162/'Memorial de cálculo'!H150 -> 0.0006225 | G135: 221.2038 | H135: 0.14 | I135: ss
A136: 5.3.7 | B136: SICRO | C136: E9134 | D136: Miniônibus com capacidade para 30 passageiros - 111 Kw | E136: chi | F136: ='Memorial de cálculo'!H164/'Memorial de cálculo'!H150 -> 0.0023775 | G136: 74.2404 | H136: 0.18 | I136: ss
B137: =B123 -> SICRO | D137: MÃO DE OBRA | H137: 0 | I137: ss
B139: ='Planilha Orçamentária'!A33 -> 6.1 | C139: =VLOOKUP($B139,'Planilha Orçamentária'!$A$11:$I$484,3,) -> CPU.12 | D139: Solo Melhorado com cimento | E139: m³ | H139: =SUM(H140,H142,H145,H152) -> 639.93 | I139: S
B140: =B139 -> 6.1 | D140: MATERIAL | H140: =SUM(H141:H141) -> 43.32 | I140: ss
B141: SINAPI | C141: 1379 | D141: =IF(I141="i",VLOOKUP(C141,'Ins SINAPI PE 12-2023 Onerado'!$A$8:$E$5189,2,0),VLOOKUP(C141,'Comp SINAPI PE 12-2023 Onerado'!$G$7:$K$7500,2,0)) -> CIMENTO PORTLAND COMPOSTO CP II-32 | E141: =IF(I141="i",VLOOKUP(C141,'Ins SINAPI PE 12-2023 Onerado'!$A$8:$E$5189,3,0),VLOOKUP(C141,'Comp SINAPI PE 12-2023 Onerado'!$G$7:$K$7500,3,0)) -> KG | F141: 61.89 | G141: =IF(I141="i",VLOOKUP(C141,'Ins SINAPI PE 12-2023 Onerado'!$A$8:$E$5189,5,0),VLOOKUP(C141,'Comp SINAPI PE 12-2023 Onerado'!$G$7:$K$7500,5,0)) -> 0,70 | H141: =ROUND(F141*G141,2) -> 43.32 | I141: i | J141: índices com base na composição 87286 da SINAPI e 4011287 SICRO3
B142: =B139 -> 6.1 | D142: EQUIPAMENTOS | H142: =SUM(H143:H144) -> 4.11 | I142: ss
B143: SINAPI | C143: 88830 | D143: =IF(I143="i",VLOOKUP(C143,'Ins SINAPI PE 12-2023 Onerado'!$A$8:$E$5189,2,0),VLOOKUP(C143,'Comp SINAPI PE 12-2023 Onerado'!$G$7:$K$7500,2,0)) -> BETONEIRA CAPACIDADE NOMINAL DE 400 L, CAPACIDADE DE MISTURA 280 L, MOTOR ELÉTRICO TRIFÁSICO POTÊNCIA DE 2 CV, SEM CARREGADOR - CHP DIURNO. AF_05/2023 | E143: =IF(I143="i",VLOOKUP(C143,'Ins SINAPI PE 12-2023 Onerado'!$A$8:$E$5189,3,0),VLOOKUP(C143,'Comp SINAPI PE 12-2023 Onerado'!$G$7:$K$7500,3,0)) -> CHP | F143: 1.2 | G143: =IF(I143="i",VLOOKUP(C143,'Ins SINAPI PE 12-2023 Onerado'!$A$8:$E$5189,5,0),VLOOKUP(C143,'Comp SINAPI PE 12-2023 Onerado'!$G$7:$K$7500,5,0)) -> 2.04 | H143: =ROUND(F143*G143,2) -> 2.45 | I143: ca
B144: SINAPI | C144: 88831 | D144: =IF(I144="i",VLOOKUP(C144,'Ins SINAPI PE 12-2023 Onerado'!$A$8:$E$5189,2,0),VLOOKUP(C144,'Comp SINAPI PE 12-2023 Onerado'!$G$7:$K$7500,2,0)) -> BETONEIRA CAPACIDADE NOMINAL DE 400 L, CAPACIDADE DE MISTURA 280 L, MOTOR ELÉTRICO TRIFÁSICO POTÊNCIA DE 2 CV, SEM CARREGADOR - CHI DIURNO. AF_05/2023 | E144: =IF(I144="i",VLOOKUP(C144,'Ins SINAPI PE 12-2023 Onerado'!$A$8:$E$5189,3,0),VLOOKUP(C144,'Comp SINAPI PE 12-2023 Onerado'!$G$7:$K$7500,3,0)) -> CHI | F144: 3.96 | G144: =IF(I144="i",VLOOKUP(C144,'Ins SINAPI PE 12-2023 Onerado'!$A$8:$E$5189,5,0),VLOOKUP(C144,'Comp SINAPI PE 12-2023 Onerado'!$G$7:$K$7500,5,0)) -> 0.42 | H144: =ROUND(F144*G144,2) -> 1.66 | I144: ca
B145: =B139 -> 6.1 | D145: SERVIÇOS | H145: =SUM(H146:H151) -> 447.97 | I145: ss
B146: SINAPI | C146: 100946 | D146: =IF(I146="i",VLOOKUP(C146,'Ins SINAPI PE 12-2023 Onerado'!$A$8:$E$5189,2,0),VLOOKUP(C146,'Comp SINAPI PE 12-2023 Onerado'!$G$7:$K$7500,2,0)) -> TRANSPORTE COM CAMINHÃO CARROCERIA 9T, EM VIA URBANA EM REVESTIMENTO PRIMÁRIO (UNIDADE: TXKM). AF_07/2020 | E146: =IF(I146="i",VLOOKUP(C146,'Ins SINAPI PE 12-2023 Onerado'!$A$8:$E$5189,3,0),VLOOKUP(C146,'Comp SINAPI PE 12-2023 Onerado'!$G$7:$K$7500,3,0)) -> TXKM | F146: 20 | G146: =IF(I146="i",VLOOKUP(C146,'Ins SINAPI PE 12-2023 Onerado'!$A$8:$E$5189,5,0),VLOOKUP(C146,'Comp SINAPI PE 12-2023 Onerado'!$G$7:$K$7500,5,0)) -> 2.42 | H146: =ROUND(F146*G146,2) -> 48.4 | I146: ca
B147: SINAPI | C147: 100947 | D147: =IF(I147="i",VLOOKUP(C147,'Ins SINAPI PE 12-2023 Onerado'!$A$8:$E$5189,2,0),VLOOKUP(C147,'Comp SINAPI PE 12-2023 Onerado'!$G$7:$K$7500,2,0)) -> TRANSPORTE COM CAMINHÃO CARROCERIA 9T, EM VIA URBANA PAVIMENTADA, DMT ATÉ 30KM (UNIDADE: TXKM). AF_07/2020 | E147: =IF(I147="i",VLOOKUP(C147,'Ins SINAPI PE 12-2023 Onerado'!$A$8:$E$5189,3,0),VLOOKUP(C147,'Comp SINAPI PE 12-2023 Onerado'!$G$7:$K$7500,3,0)) -> TXKM | F147: 20 | G147: =IF(I147="i",VLOOKUP(C147,'Ins SINAPI PE 12-2023 Onerado'!$A$8:$E$5189,5,0),VLOOKUP(C147,'Comp SINAPI PE 12-2023 Onerado'!$G$7:$K$7500,5,0)) -> 2.23 | H147: 44.6 | I147: ca
B148: SINAPI | C148: 94304 | D148: =IF(I148="i",VLOOKUP(C148,'Ins SINAPI PE 12-2023 Onerado'!$A$8:$E$5189,2,0),VLOOKUP(C148,'Comp SINAPI PE 12-2023 Onerado'!$G$7:$K$7500,2,0)) -> ATERRO MECANIZADO DE VALA COM ESCAVADEIRA HIDRÁULICA (CAPACIDADE DA CAÇAMBA: 0,8 M³ / POTÊNCIA: 111 HP), LARGURA ATÉ 2,5 M, PROFUNDIDADE ATÉ 1,5 M, COM SOLO ARGILO-ARENOSO. AF_08/2023 | E148: =IF(I148="i",VLOOKUP(C148,'Ins SINAPI PE 12-2023 Onerado'!$A$8:$E$5189,3,0),VLOOKUP(C148,'Comp SINAPI PE 12-2023 Onerado'!$G$7:$K$7500,3,0)) -> M3 | F148: 1.56 | G148: =IF(I148="i",VLOOKUP(C148,'Ins SINAPI PE 12-2023 Onerado'!$A$8:$E$5189,5,0),VLOOKUP(C148,'Comp SINAPI PE 12-2023 Onerado'!$G$7:$K$7500,5,0)) -> 74.85 | H148: 116.77 | I148: ca
A149: 6.1.7 | B149: COTAÇÃO | C149: CT.01 | D149: Hospedagem | E149: um | F149: ='Memorial de cálculo'!H172/'Memorial de cálculo'!H168 -> 0.645 | G149: =Cotações!$O$11 -> 90 | H149: 58.05 | I149: ss
A150: 6.1.8 | B150: SICRO | C150: E9134 | D150: Miniônibus com capacidade para 30 passageiros - 111 Kw | E150: chp | F150: ='Memorial de cálculo'!H174/'Memorial de cálculo'!H168 -> 0.3569 | G150: 221.2038 | H150: 78.95 | I150: ss
A151: 6.1.9 | B151: SICRO | C151: E9134 | D151: Miniônibus com capacidade para 30 passageiros - 111 Kw | E151: chi | F151: ='Memorial de cálculo'!H176/'Memorial de cálculo'!H168 -> 1.3631 | G151: 74.2404 | H151: 101.2 | I151: ss
B152: =B139 -> 6.1 | D152: MÃO DE OBRA | H152: =H153 -> 144.53 | I152: ss
B153: SINAPI | C153: 88377 | D153: =IF(I153="i",VLOOKUP(C153,'Ins SINAPI PE 12-2023 Onerado'!$A$8:$E$5189,2,0),VLOOKUP(C153,'Comp SINAPI PE 12-2023 Onerado'!$G$7:$K$7500,2,0)) -> OPERADOR DE BETONEIRA ESTACIONÁRIA/MISTURADOR COM ENCARGOS COMPLEMENTARES | E153: =IF(I153="i",VLOOKUP(C153,'Ins SINAPI PE 12-2023 Onerado'!$A$8:$E$5189,3,0),VLOOKUP(C153,'Comp SINAPI PE 12-2023 Onerado'!$G$7:$K$7500,3,0)) -> H | F153: 5.16 | G153: =IF(I153="i",VLOOKUP(C153,'Ins SINAPI PE 12-2023 Onerado'!$A$8:$E$5189,5,0),VLOOKUP(C153,'Comp SINAPI PE 12-2023 Onerado'!$G$7:$K$7500,5,0)) -> 28.01 | H153: =ROUND(F153*G153,2) -> 144.53 | I153: ca
B155: ='Planilha Orçamentária'!A36 -> 7.1 | C155: =VLOOKUP($B155,'Planilha Orçamentária'!$A$11:$I$484,3,) -> CPU.13 | D155: =VLOOKUP($B155,'Planilha Orçamentária'!$A$11:$I$484,4,) -> Manutenção da Canaleta para descida d'água | E155: un | H155: =H156+H157+H158+H163 -> 9.77
B156: =B155 -> 7.1 | D156: MATERIAL
B157: =B155 -> 7.1 | D157: EQUIPAMENTOS
B158: =B155 -> 7.1 | D158: SERVIÇOS | H158: =SUM(H159:H162) -> 9.77
A159: 7.1.1 | B159: SICRO | C159: 4915711 | D159: Limpeza de descida d'água | E159: m | F159: 1 | G159: 1.44 | H159: =ROUND(F159*G159,2) -> 1.44
A160: 7.1.2 | B160: COTAÇÃO | C160: CT.01 | D160: Hospedagem | E160: um | F160: ='Memorial de cálculo'!H186/'Memorial de cálculo'!H181 -> 0.008975 | G160: =Cotações!$O$11 -> 90 | H160: =ROUND(F160*G160,2) -> 0.81 | I160: ss
A161: 7.1.3 | B161: SICRO | C161: E9134 | D161: Miniônibus com capacidade para 30 passageiros - 111 Kw | E161: chp | F161: ='Memorial de cálculo'!H188/'Memorial de cálculo'!H181 -> 0.0148985 | G161: 221.2038 | H161: =ROUND(F161*G161,2) -> 3.3 | I161: ss
A162: 7.1.4 | B162: SICRO | C162: E9134 | D162: Miniônibus com capacidade para 30 passageiros - 111 Kw | E162: chi | F162: ='Memorial de cálculo'!H190/'Memorial de cálculo'!H181 -> 0.0569015 | G162: 74.2404 | H162: =ROUND(F162*G162,2) -> 4.22 | I162: ss
B163: =B151 -> SICRO | D163: MÃO DE OBRA | H163: 0 | I163: ss
B166: ='Planilha Orçamentária'!A37 -> 7.2 | C166: =VLOOKUP($B166,'Planilha Orçamentária'!$A$11:$I$484,3,) -> CPU.14 | D166: =VLOOKUP($B166,'Planilha Orçamentária'!$A$11:$I$484,4,) -> Entrada para descida d'água | E166: un | H166: =H167+H168+H169+H175 -> 229.35 | I166: s
B167: =B166 -> 7.2 | D167: MATERIAL | I167: ss
B168: =B166 -> 7.2 | D168: EQUIPAMENTOS | I168: ss
B169: =B166 -> 7.2 | D169: SERVIÇOS | H169: =SUM(H170:H174) -> 229.35 | I169: ss
A170: 7.2.1 | B170: SINAPI | C170: 94964 | D170: =PROPER(IF(K170="i",VLOOKUP(C170,'Ins SINAPI PE 12-2023 Onerado'!$A$8:$E$5189,2,0),VLOOKUP(C170,'Comp SINAPI PE 12-2023 Onerado'!$G$7:$K$7500,2,0))) -> Concreto Fck = 20Mpa, Traço 1:2,7:3 (Em Massa Seca De Cimento/ Areia Média/ Brita 1) - Preparo Mecânico Com Betoneira 400 L. Af_05/2021 | E170: =IF(I170="i",VLOOKUP(C170,'Ins SINAPI PE 12-2023 Onerado'!$A$8:$E$5189,3,0),VLOOKUP(C170,'Comp SINAPI PE 12-2023 Onerado'!$G$7:$K$7500,3,0)) -> M3 | F170: 0.11 | G170: =IF(I170="i",VLOOKUP(C170,'Ins SINAPI PE 12-2023 Onerado'!$A$8:$E$5189,5,0),VLOOKUP(C170,'Comp SINAPI PE 12-2023 Onerado'!$G$7:$K$7500,5,0)) -> 476.05 | H170: =ROUND(F170*G170,2) -> 52.37 | I170: ca | J170: índices baseados em SICRO 2003385 Entrada para descida d'água - EDA 01 - areia e brita comerciais
A171: 7.2.2 | B171: SINAPI | C171: 92268 | D171: =PROPER(IF(K171="i",VLOOKUP(C171,'Ins SINAPI PE 12-2023 Onerado'!$A$8:$E$5189,2,0),VLOOKUP(C171,'Comp SINAPI PE 12-2023 Onerado'!$G$7:$K$7500,2,0))) -> Fabricação De Fôrma Para Lajes, Em Chapa De Madeira Compensada Plastificada, E = 18 Mm. Af_09/2020 | E171: =IF(I171="i",VLOOKUP(C171,'Ins SINAPI PE 12-2023 Onerado'!$A$8:$E$5189,3,0),VLOOKUP(C171,'Comp SINAPI PE 12-2023 Onerado'!$G$7:$K$7500,3,0)) -> M2 | F171: 0.1 | G171: =IF(I171="i",VLOOKUP(C171,'Ins SINAPI PE 12-2023 Onerado'!$A$8:$E$5189,5,0),VLOOKUP(C171,'Comp SINAPI PE 12-2023 Onerado'!$G$7:$K$7500,5,0)) -> 88.55 | H171: =ROUND(F171*G171,2) -> 8.86 | I171: ca
A172: 7.2.3 | B172: COTAÇÃO | C172: CT.01 | D172: Hospedagem | E172: um | F172: ='Memorial de cálculo'!H203/'Memorial de cálculo'!H198 -> 0.000625 | G172: =Cotações!$O$11 -> 90 | H172: =ROUND(F172*G172,2) -> 0.06 | I172: ss
A173: 7.2.4 | B173: SICRO | C173: E9134 | D173: Miniônibus com capacidade para 30 passageiros - 111 Kw | E173: chp | F173: ='Memorial de cálculo'!H205/'Memorial de cálculo'!H198 -> 0.3329545 | G173: 221.2038 | H173: =ROUND(F173*G173,2) -> 73.65 | I173: ss
A174: 7.2.5 | B174: SICRO | C174: E9134 | D174: Miniônibus com capacidade para 30 passageiros - 111 Kw | E174: chi | F174: ='Memorial de cálculo'!H207/'Memorial de cálculo'!H198 -> 1.2716455 | G174: 74.2404 | H174: =ROUND(F174*G174,2) -> 94.41 | I174: ss
B175: =B166 -> 7.2 | D175: MÃO DE OBRA | H175: 0 | I175: mdo
B177: ='Planilha Orçamentária'!A40 -> 8.1 | C177: =VLOOKUP($B177,'Planilha Orçamentária'!$A$11:$I$484,3,) -> CPU.15 | D177: =VLOOKUP($B177,'Planilha Orçamentária'!$A$11:$I$484,4,) -> Proteção vegetal | E177: m² | H177: =H178+H179+H180+H188 -> 29.333568 | I177: s
B178: =B177 -> 8.1 | D178: MATERIAL | H178: 0 | I178: ss
B179: =B177 -> 8.1 | D179: EQUIPAMENTOS | H179: 0 | I179: ss
B180: =B177 -> 8.1 | D180: SERVIÇOS | H180: =SUM(H181:H187) -> 29.333568 | I180: ss
A181: 8.1.1 | B181: SINAPI | C181: 98520 | D181: =PROPER(IF(K181="i",VLOOKUP(C181,'Ins SINAPI PE 12-2023 Onerado'!$A$8:$E$5189,2,0),VLOOKUP(C181,'Comp SINAPI PE 12-2023 Onerado'!$G$7:$K$7500,2,0))) -> Aplicação De Adubo Em Solo. Af_05/2018 | E181: =LOWER(IF(K181="i",VLOOKUP(C181,'Ins SINAPI PE 12-2023 Onerado'!$A$8:$E$5189,3,0),VLOOKUP(C181,'Comp SINAPI PE 12-2023 Onerado'!$G$7:$K$7500,3,0))) -> m2 | F181: 1 | G181: =IF(I181="i",VLOOKUP(C181,'Ins SINAPI PE 12-2023 Onerado'!$A$8:$E$5189,5,0),VLOOKUP(C181,'Comp SINAPI PE 12-2023 Onerado'!$G$7:$K$7500,5,0)) -> 4.51 | H181: =ROUND(F181*G181,2) -> 4.51 | I181: ca
A182: 8.1.2 | B182: SINAPI | C182: 98504 | D182: =PROPER(IF(K182="i",VLOOKUP(C182,'Ins SINAPI PE 12-2023 Onerado'!$A$8:$E$5189,2,0),VLOOKUP(C182,'Comp SINAPI PE 12-2023 Onerado'!$G$7:$K$7500,2,0))) -> Plantio De Grama Batatais Em Placas. Af_05/2018 | E182: =LOWER(IF(K182="i",VLOOKUP(C182,'Ins SINAPI PE 12-2023 Onerado'!$A$8:$E$5189,3,0),VLOOKUP(C182,'Comp SINAPI PE 12-2023 Onerado'!$G$7:$K$7500,3,0))) -> m2 | F182: 1 | G182: =IF(I182="i",VLOOKUP(C182,'Ins SINAPI PE 12-2023 Onerado'!$A$8:$E$5189,5,0),VLOOKUP(C182,'Comp SINAPI PE 12-2023 Onerado'!$G$7:$K$7500,5,0)) -> 20.06 | H182: =ROUND(F182*G182,2) -> 20.06 | I182: ca
A183: 8.1.3 | B183: SINAPI | C183: 100946 | D183: =PROPER(IF(K183="i",VLOOKUP(C183,'Ins SINAPI PE 12-2023 Onerado'!$A$8:$E$5189,2,0),VLOOKUP(C183,'Comp SINAPI PE 12-2023 Onerado'!$G$7:$K$7500,2,0))) -> Transporte Com Caminhão Carroceria 9T, Em Via Urbana Em Revestimento Primário (Unidade: Txkm). Af_07/2020 | E183: =LOWER(IF(K183="i",VLOOKUP(C183,'Ins SINAPI PE 12-2023 Onerado'!$A$8:$E$5189,3,0),VLOOKUP(C183,'Comp SINAPI PE 12-2023 Onerado'!$G$7:$K$7500,3,0))) -> txkm | F183: ='Memorial de cálculo'!H220/'Memorial de cálculo'!H210 -> 0.0024 | G183: =IF(I183="i",VLOOKUP(C183,'Ins SINAPI PE 12-2023 Onerado'!$A$8:$E$5189,5,0),VLOOKUP(C183,'Comp SINAPI PE 12-2023 Onerado'!$G$7:$K$7500,5,0)) -> 2.42 | H183: =ROUND(F183*G183,2) -> 0.01 | I183: ca
A184: 8.1.4 | B184: SINAPI | C184: 100947 | D184: =PROPER(IF(K184="i",VLOOKUP(C184,'Ins SINAPI PE 12-2023 Onerado'!$A$8:$E$5189,2,0),VLOOKUP(C184,'Comp SINAPI PE 12-2023 Onerado'!$G$7:$K$7500,2,0))) -> Transporte Com Caminhão Carroceria 9T, Em Via Urbana Pavimentada, Dmt Até 30Km (Unidade: Txkm). Af_07/2020 | E184: =LOWER(IF(K184="i",VLOOKUP(C184,'Ins SINAPI PE 12-2023 Onerado'!$A$8:$E$5189,3,0),VLOOKUP(C184,'Comp SINAPI PE 12-2023 Onerado'!$G$7:$K$7500,3,0))) -> txkm | F184: ='Memorial de cálculo'!H222/'Memorial de cálculo'!H210 -> 0.0016 | G184: =IF(I184="i",VLOOKUP(C184,'Ins SINAPI PE 12-2023 Onerado'!$A$8:$E$5189,5,0),VLOOKUP(C184,'Comp SINAPI PE 12-2023 Onerado'!$G$7:$K$7500,5,0)) -> 2.23 | H184: =F184*G184 -> 0.003568 | I184: ca
A185: 8.1.5 | B185: COTAÇÃO | C185: CT.01 | D185: Hospedagem | E185: um | F185: ='Memorial de cálculo'!H224/'Memorial de cálculo'!H210 -> 0.0343 | G185: =Cotações!$O$11 -> 90 | H185: =ROUND(F185*G185,2) -> 3.09 | I185: ss
A186: 8.1.6 | B186: SICRO | C186: E9134 | D186: Miniônibus com capacidade para 30 passageiros - 111 Kw | E186: chp | F186: ='Memorial de cálculo'!H226/'Memorial de cálculo'!H210 -> 0.0032785 | G186: 221.2038 | H186: =ROUND(F186*G186,2) -> 0.73 | I186: ss
A187: 8.1.7 | B187: SICRO | C187: E9134 | D187: Miniônibus com capacidade para 30 passageiros - 111 Kw | E187: chi | F187: ='Memorial de cálculo'!H228/'Memorial de cálculo'!H210 -> 0.0125215 | G187: 74.2404 | H187: =ROUND(F187*G187,2) -> 0.93 | I187: ss
B188: =B179 -> 8.1 | D188: MÃO DE OBRA | H188: 0 | I188: mdo
B190: ='Planilha Orçamentária'!A43 -> 9.1 | C190: =VLOOKUP($B190,'Planilha Orçamentária'!$A$11:$I$484,3,) -> CPU.16 | D190: =VLOOKUP($B190,'Planilha Orçamentária'!$A$11:$I$484,4,) -> Proteção da bacia e muro lateral | E190: m³ | H190: =H191+H192+H193+H200 -> 1091.15 | I190: s
B191: =B190 -> 9.1 | D191: MATERIAL | H191: 0 | I191: ss
B192: =B190 -> 9.1 | D192: EQUIPAMENTOS | H192: 0 | I192: ss
B193: =B190 -> 9.1 | D193: SERVIÇOS | H193: =SUM(H194:H199) -> 1091.15 | I193: ss
A194: 9.1.1 | B194: SINAPI | C194: 103800 | D194: =PROPER(IF(K194="i",VLOOKUP(C194,'Ins SINAPI PE 12-2023 Onerado'!$A$8:$E$5189,2,0),VLOOKUP(C194,'Comp SINAPI PE 12-2023 Onerado'!$G$7:$K$7500,2,0))) -> Pedra Argamassada Com Cimento E Areia 1:3, 40% De Argamassa Em Volume - Areia E Pedra De Mão Comerciais - Fornecimento E Assentamento. Af_08/2022 | E194: =LOWER(IF(K194="i",VLOOKUP(C194,'Ins SINAPI PE 12-2023 Onerado'!$A$8:$E$5189,3,0),VLOOKUP(C194,'Comp SINAPI PE 12-2023 Onerado'!$G$7:$K$7500,3,0))) -> m3 | F194: 1 | G194: =IF(I194="i",VLOOKUP(C194,'Ins SINAPI PE 12-2023 Onerado'!$A$8:$E$5189,5,0),VLOOKUP(C194,'Comp SINAPI PE 12-2023 Onerado'!$G$7:$K$7500,5,0)) -> 490.78 | H194: =ROUND(F194*G194,2) -> 490.78 | I194: ca
A195: 9.1.2 | B195: SINAPI | C195: 100946 | D195: =PROPER(IF(K195="i",VLOOKUP(C195,'Ins SINAPI PE 12-2023 Onerado'!$A$8:$E$5189,2,0),VLOOKUP(C195,'Comp SINAPI PE 12-2023 Onerado'!$G$7:$K$7500,2,0))) -> Transporte Com Caminhão Carroceria 9T, Em Via Urbana Em Revestimento Primário (Unidade: Txkm). Af_07/2020 | E195: =LOWER(IF(K193="i",VLOOKUP(C195,'Ins SINAPI PE 12-2023 Onerado'!$A$8:$E$5189,3,0),VLOOKUP(C195,'Comp SINAPI PE 12-2023 Onerado'!$G$7:$K$7500,3,0))) -> txkm | F195: ='Memorial de cálculo'!H237/'Memorial de cálculo'!H232 -> 55.2 | G195: =IF(I195="i",VLOOKUP(C195,'Ins SINAPI PE 12-2023 Onerado'!$A$8:$E$5189,5,0),VLOOKUP(C195,'Comp SINAPI PE 12-2023 Onerado'!$G$7:$K$7500,5,0)) -> 2.42 | H195: 133.58 | I195: ca
A196: 9.1.3 | B196: SINAPI | C196: 100947 | D196: =PROPER(IF(K196="i",VLOOKUP(C196,'Ins SINAPI PE 12-2023 Onerado'!$A$8:$E$5189,2,0),VLOOKUP(C196,'Comp SINAPI PE 12-2023 Onerado'!$G$7:$K$7500,2,0))) -> Transporte Com Caminhão Carroceria 9T, Em Via Urbana Pavimentada, Dmt Até 30Km (Unidade: Txkm). Af_07/2020 | E196: =LOWER(IF(K194="i",VLOOKUP(C196,'Ins SINAPI PE 12-2023 Onerado'!$A$8:$E$5189,3,0),VLOOKUP(C196,'Comp SINAPI PE 12-2023 Onerado'!$G$7:$K$7500,3,0))) -> txkm | F196: ='Memorial de cálculo'!H239/'Memorial de cálculo'!H232 -> 36.8 | G196: =IF(I196="i",VLOOKUP(C196,'Ins SINAPI PE 12-2023 Onerado'!$A$8:$E$5189,5,0),VLOOKUP(C196,'Comp SINAPI PE 12-2023 Onerado'!$G$7:$K$7500,5,0)) -> 2.23 | H196: 82.06 | I196: ca
A197: 9.1.4 | B197: COTAÇÃO | C197: CT.01 | D197: Hospedagem | E197: um | F197: ='Memorial de cálculo'!H241/'Memorial de cálculo'!H232 -> 0.6647375 | G197: =Cotações!$O$11 -> 90 | H197: 59.83 | I197: ss
A198: 9.1.5 | B198: SICRO | C198: E9134 | D198: Miniônibus com capacidade para 30 passageiros - 111 Kw | E198: chp | F198: ='Memorial de cálculo'!H243/'Memorial de cálculo'!H232 -> 0.64368575 | G198: 221.2038 | H198: 142.39 | I198: ss
A199: 9.1.6 | B199: SICRO | C199: E9134 | D199: Miniônibus com capacidade para 30 passageiros - 111 Kw | E199: chi | F199: ='Memorial de cálculo'!H245/'Memorial de cálculo'!H232 -> 2.45841425 | G199: 74.2404 | H199: 182.51 | I199: ss
B200: =B191 -> 9.1 | D200: MÃO DE OBRA | H200: 0 | I200: mdo
B202: ='Planilha Orçamentária'!A46 -> 10.1 | C202: =VLOOKUP($B202,'Planilha Orçamentária'!$A$11:$I$484,3,) -> CPU.17 | D202: =VLOOKUP($B202,'Planilha Orçamentária'!$A$11:$I$484,4,) -> Limpeza do vertedouro | E202: m² | H202: =H203+H204+H205+H210 -> 10.81 | I202: s
B203: =B202 -> 10.1 | D203: MATERIAL | H203: 0 | I203: ss
B204: =B202 -> 10.1 | D204: EQUIPAMENTOS | H204: 0 | I204: ss
B205: =B202 -> 10.1 | D205: SERVIÇOS | H205: =SUM(H206:H209) -> 10.81 | I205: ss
A206: 10.1.1 | B206: SICRO | C206: 3806402 | D206: Limpeza em superfície de concreto com jateamento d'água sob pressão | E206: m² | F206: 1 | G206: 2.48 | H206: =ROUND(F206*G206,2) -> 2.48 | I206: ss
A207: 10.1.2 | B207: COTAÇÃO | C207: CT.01 | D207: Hospedagem | E207: um | F207: ='Memorial de cálculo'!H253/'Memorial de cálculo'!H249 -> 0.008975 | G207: =Cotações!$O$11 -> 90 | H207: =ROUND(F207*G207,2) -> 0.81 | I207: ss
A208: 10.1.3 | B208: SICRO | C208: E9134 | D208: Miniônibus com capacidade para 30 passageiros - 111 Kw | E208: chp | F208: ='Memorial de cálculo'!H255/'Memorial de cálculo'!H249 -> 0.0148985 | G208: 221.2038 | H208: =ROUND(F208*G208,2) -> 3.3 | I208: ss
A209: 10.1.4 | B209: SICRO | C209: E9134 | D209: Miniônibus com capacidade para 30 passageiros - 111 Kw | E209: chi | F209: ='Memorial de cálculo'!H257/'Memorial de cálculo'!H249 -> 0.0569015 | G209: 74.2404 | H209: =ROUND(F209*G209,2) -> 4.22 | I209: ss
B210: =B201 -> 0 | D210: MÃO DE OBRA | H210: 0 | I210: mdo
B212: ='Planilha Orçamentária'!A47 -> 10.2 | C212: =VLOOKUP($B212,'Planilha Orçamentária'!$A$11:$I$484,3,) -> CPU.18 | D212: =VLOOKUP($B212,'Planilha Orçamentária'!$A$11:$I$484,4,) -> Manutenção do muro Lateral Direito | E212: Litros | H212: =H213+H214+H215+H220 -> 903.93 | I212: s
B213: =B212 -> 10.2 | D213: MATERIAL | H213: 0 | I213: ss
B214: =B212 -> 10.2 | D214: EQUIPAMENTOS | H214: 0 | I214: ss
B215: =B212 -> 10.2 | D215: SERVIÇOS | H215: =SUM(H216:H219) -> 903.93 | I215: ss
A216: 10.2.1 | B216: SICRO | C216: 4915645 | D216: Injeção de adesivo estrutural à base de resina epóxi de baixa viscosidade para tratamento de fissuras em estruturas de concreto - fornecimento e aplicação mecanizada | E216: kg | F216: 4 | G216: 223.9 | H216: =ROUND(F216*G216,2) -> 895.6 | I216: ss
A217: 10.2.2 | B217: COTAÇÃO | C217: CT.01 | D217: Hospedagem | E217: um | F217: ='Memorial de cálculo'!H263 -> 0.008975 | G217: =Cotações!$O$11 -> 90 | H217: =ROUND(F217*G217,2) -> 0.81 | I217: ss
A218: 10.2.3 | B218: SICRO | C218: E9134 | D218: Miniônibus com capacidade para 30 passageiros - 111 Kw | E218: chp | F218: ='Memorial de cálculo'!H265 -> 0.0148985 | G218: 221.2038 | H218: =ROUND(F218*G218,2) -> 3.3 | I218: ss
A219: 10.2.4 | B219: SICRO | C219: E9134 | D219: Miniônibus com capacidade para 30 passageiros - 111 Kw | E219: chi | F219: ='Memorial de cálculo'!H267 -> 0.0569015 | G219: 74.2404 | H219: =ROUND(F219*G219,2) -> 4.22 | I219: ss
B220: =B211 -> 0 | D220: MÃO DE OBRA | H220: 0 | I220: mdo
... 91 more rows

Sheet CPU DES (hidden)
B1: Ministério da Integração e do Desenvolvimento Regional
B2: Companhia de Desenvolvimento dos Vales do São Francisco e do Parnaíba
B4: COMPOSIÇÕES DE PREÇOS UNITÁRIOS - ORÇAMENTO DESONERADO
B5: OBRA: | C5: SERVIÇOS DE MANUTENÇÃO E OBRAS CIVIS NA ESTRUTURA DA BARRAGEM E EQUIPAMENTO HIDROMECÂNICO | F5: BDI (serv.): | G5: ='BDI serv Desonerado'!D22 -> 0.3351
B6: LOCAL: | C6: BARRAGEM POÇO DO MAGRO, GUANAMBI/BA | F6: BDI (forn.): | G6: ='BDI forn Desonerado'!D22 -> 0.212
B7: DATA BASE: | C7: 2023-05-01
B8: PRAZO: | C8: 120 DIAS
B10: REFERÊNCIA | C10: CÓDIGO | D10: DESCRIÇÃO | E10: UNIDADE | F10: ÍNDICE | G10: CUSTO UNITÁRIO | H10: PREÇO TOTAL
B11: ='Planilha Orçamentária Desoner'!A12 -> 1.1 | C11: =VLOOKUP($B11,'Planilha Orçamentária Desoner'!$A$11:$I$504,3,) -> CPU.01 | D11: =VLOOKUP($B11,'Planilha Orçamentária Desoner'!$A$11:$I$504,4,) -> ADMINISTRAÇÃO LOCAL | E11: un | H11: =SUM(H15,H14,H13,H12) -> 7834.22 | I11: S
B12: =B11 -> 1.1 | D12: MATERIAL | I12: ss
B13: =B11 -> 1.1 | D13: EQUIPAMENTOS | H13: 0 | I13: ss
B14: =B11 -> 1.1 | D14: SERVIÇOS | I14: ss
B15: =B11 -> 1.1 | D15: MÃO DE OBRA | H15: =SUM(H16:H17) -> 7834.22 | I15: mdo
B16: SINAPI | C16: 90778 | D16: =PROPER(IF(I16="i",VLOOKUP(C16,'Ins SINAPI BA 05-2023 Desoner'!$A$8:$E$5189,2,0),VLOOKUP(C16,'Comp SINAPI BA 05-2023 Desoner'!$G$7:$K$7500,2,0))) -> Engenheiro Civil De Obra Pleno Com Encargos Complementares | E16: =LOWER(IF(I16="i",VLOOKUP(C16,'Ins SINAPI BA 05-2023 Desoner'!$A$8:$E$5189,3,0),VLOOKUP(C16,'Comp SINAPI BA 05-2023 Desoner'!$G$7:$K$7500,3,0))) -> h | F16: =CPU!F16 -> 30 | G16: =IF(I16="i",VLOOKUP(C16,'Ins SINAPI BA 05-2023 Desoner'!$A$8:$E$5189,5,0),VLOOKUP(C16,'Comp SINAPI BA 05-2023 Desoner'!$G$7:$K$7500,5,0)) -> 111.26 | H16: =ROUND(F16*G16,2) -> 3337.8 | I16: ca
B17: SINAPI | C17: 93572 | D17: =PROPER(IF(I17="i",VLOOKUP(C17,'Ins SINAPI BA 05-2023 Desoner'!$A$8:$E$5189,2,0),VLOOKUP(C17,'Comp SINAPI BA 05-2023 Desoner'!$G$7:$K$7500,2,0))) -> Encarregado Geral De Obras Com Encargos Complementares | E17: =LOWER(IF(I17="i",VLOOKUP(C17,'Ins SINAPI BA 05-2023 Desoner'!$A$8:$E$5189,3,0),VLOOKUP(C17,'Comp SINAPI BA 05-2023 Desoner'!$G$7:$K$7500,3,0))) -> mes | F17: =CPU!F17 -> 0.8 | G17: =IF(I17="i",VLOOKUP(C17,'Ins SINAPI BA 05-2023 Desoner'!$A$8:$E$5189,5,0),VLOOKUP(C17,'Comp SINAPI BA 05-2023 Desoner'!$G$7:$K$7500,5,0)) -> 5620.52 | H17: =ROUND(F17*G17,2) -> 4496.42 | I17: ca
I18: x
B19: ='Planilha Orçamentária Desoner'!A22 -> 2.2.1 | C19: =VLOOKUP($B19,'Planilha Orçamentária Desoner'!$A$11:$I$504,3,) -> CPU.02 | D19: =VLOOKUP($B19,'Planilha Orçamentária Desoner'!$A$11:$I$504,4,) -> PLACA DE OBRA EM CHAPA DE ACO GALVANIZADO | E19: m² | H19: =SUM(H20,H28,H26,H27) -> 440.1 | I19: S
B20: =B19 -> 2.2.1 | D20: MATERIAL | H20: =SUM(H21:H25) -> 373.64 | I20: SS
B21: SINAPI | C21: 4417 | D21: =PROPER(IF(I21="i",VLOOKUP(C21,'Ins SINAPI BA 05-2023 Desoner'!$A$8:$E$5189,2,0),VLOOKUP(C21,'Comp SINAPI BA 05-2023 Desoner'!$G$7:$K$7500,2,0))) -> Sarrafo Nao Aparelhado *2,5 X 7* Cm, Em Macaranduba, Angelim Ou Equivalente Da Regiao - Bruta | E21: =LOWER(IF(I21="i",VLOOKUP(C21,'Ins SINAPI BA 05-2023 Desoner'!$A$8:$E$5189,3,0),VLOOKUP(C21,'Comp SINAPI BA 05-2023 Desoner'!$G$7:$K$7500,3,0))) -> m | F21: =CPU!F48 -> 2 | G21: =IF(I21="i",VLOOKUP(C21,'Ins SINAPI BA 05-2023 Desoner'!$A$8:$E$5189,5,0),VLOOKUP(C21,'Comp SINAPI BA 05-2023 Desoner'!$G$7:$K$7500,5,0)) -> 7.18 | H21: =ROUND(F21*G21,2) -> 14.36 | I21: i
B22: SINAPI | C22: 4430 | D22: =PROPER(IF(I22="i",VLOOKUP(C22,'Ins SINAPI BA 05-2023 Desoner'!$A$8:$E$5189,2,0),VLOOKUP(C22,'Comp SINAPI BA 05-2023 Desoner'!$G$7:$K$7500,2,0))) -> Caibro Nao Aparelhado *5 X 6* Cm, Em Macaranduba, Angelim Ou Equivalente Da Regiao - Bruta | E22: =LOWER(IF(I22="i",VLOOKUP(C22,'Ins SINAPI BA 05-2023 Desoner'!$A$8:$E$5189,3,0),VLOOKUP(C22,'Comp SINAPI BA 05-2023 Desoner'!$G$7:$K$7500,3,0))) -> m | F22: =CPU!F49 -> 4 | G22: =IF(I22="i",VLOOKUP(C22,'Ins SINAPI BA 05-2023 Desoner'!$A$8:$E$5189,5,0),VLOOKUP(C22,'Comp SINAPI BA 05-2023 Desoner'!$G$7:$K$7500,5,0)) -> 13.2 | H22: =ROUND(F22*G22,2) -> 52.8 | I22: I
B23: SINAPI | C23: 4813 | D23: =PROPER(IF(I23="i",VLOOKUP(C23,'Ins SINAPI BA 05-2023 Desoner'!$A$8:$E$5189,2,0),VLOOKUP(C23,'Comp SINAPI BA 05-2023 Desoner'!$G$7:$K$7500,2,0))) -> Placa De Obra (Para Construcao Civil) Em Chapa Galvanizada *N. 22*, Adesivada, De *2,4 X 1,2* M (Sem Postes Para Fixacao) | E23: =LOWER(IF(I23="i",VLOOKUP(C23,'Ins SINAPI BA 05-2023 Desoner'!$A$8:$E$5189,3,0),VLOOKUP(C23,'Comp SINAPI BA 05-2023 Desoner'!$G$7:$K$7500,3,0))) -> m2 | F23: =CPU!F50 -> 1 | G23: =IF(I23="i",VLOOKUP(C23,'Ins SINAPI BA 05-2023 Desoner'!$A$8:$E$5189,5,0),VLOOKUP(C23,'Comp SINAPI BA 05-2023 Desoner'!$G$7:$K$7500,5,0)) -> 300 | H23: =ROUND(F23*G23,2) -> 300 | I23: I
B24: SINAPI | C24: 5075 | D24: =PROPER(IF(I24="i",VLOOKUP(C24,'Ins SINAPI BA 05-2023 Desoner'!$A$8:$E$5189,2,0),VLOOKUP(C24,'Comp SINAPI BA 05-2023 Desoner'!$G$7:$K$7500,2,0))) -> Prego De Aco Polido Com Cabeca 18 X 30 (2 3/4 X 10) | E24: =LOWER(IF(I24="i",VLOOKUP(C24,'Ins SINAPI BA 05-2023 Desoner'!$A$8:$E$5189,3,0),VLOOKUP(C24,'Comp SINAPI BA 05-2023 Desoner'!$G$7:$K$7500,3,0))) -> kg | F24: =CPU!F51 -> 0.11 | G24: =IF(I24="i",VLOOKUP(C24,'Ins SINAPI BA 05-2023 Desoner'!$A$8:$E$5189,5,0),VLOOKUP(C24,'Comp SINAPI BA 05-2023 Desoner'!$G$7:$K$7500,5,0)) -> 20.6 | H24: =ROUND(F24*G24,2) -> 2.27 | I24: I
B25: SINAPI | C25: 94962 | D25: =PROPER(IF(I25="i",VLOOKUP(C25,'Ins SINAPI BA 05-2023 Desoner'!$A$8:$E$5189,2,0),VLOOKUP(C25,'Comp SINAPI BA 05-2023 Desoner'!$G$7:$K$7500,2,0))) -> Concreto Magro Para Lastro, Traço 1:4,5:4,5 (Em Massa Seca De Cimento/ Areia Média/ Brita 1) - Preparo Mecânico Com Betoneira 400 L. Af_05/2021 | E25: =LOWER(IF(I25="i",VLOOKUP(C25,'Ins SINAPI BA 05-2023 Desoner'!$A$8:$E$5189,3,0),VLOOKUP(C25,'Comp SINAPI BA 05-2023 Desoner'!$G$7:$K$7500,3,0))) -> m3 | F25: =CPU!F52 -> 0.01 | G25: =IF(I25="i",VLOOKUP(C25,'Ins SINAPI BA 05-2023 Desoner'!$A$8:$E$5189,5,0),VLOOKUP(C25,'Comp SINAPI BA 05-2023 Desoner'!$G$7:$K$7500,5,0)) -> 421.32 | H25: =ROUND(F25*G25,2) -> 4.21 | I25: ca
B26: =B19 -> 2.2.1 | D26: EQUIPAMENTOS | H26: 0 | I26: SS
B27: =B19 -> 2.2.1 | D27: SERVIÇOS | H27: 0 | I27: SS
B28: =B19 -> 2.2.1 | D28: MÃO DE OBRA | H28: =SUM(H29:H30) -> 66.46 | I28: ss
B29: SINAPI | C29: 88262 | D29: =PROPER(IF(I29="i",VLOOKUP(C29,'Ins SINAPI BA 05-2023 Desoner'!$A$8:$E$5189,2,0),VLOOKUP(C29,'Comp SINAPI BA 05-2023 Desoner'!$G$7:$K$7500,2,0))) -> Carpinteiro De Formas Com Encargos Complementares | E29: =LOWER(IF(I29="i",VLOOKUP(C29,'Ins SINAPI BA 05-2023 Desoner'!$A$8:$E$5189,3,0),VLOOKUP(C29,'Comp SINAPI BA 05-2023 Desoner'!$G$7:$K$7500,3,0))) -> h | F29: =CPU!F59 -> 1 | G29: =IF(I29="i",VLOOKUP(C29,'Ins SINAPI BA 05-2023 Desoner'!$A$8:$E$5189,5,0),VLOOKUP(C29,'Comp SINAPI BA 05-2023 Desoner'!$G$7:$K$7500,5,0)) -> 27.16 | H29: =ROUND(F29*G29,2) -> 27.16 | I29: ca
B30: SINAPI | C30: 88316 | D30: =PROPER(IF(I30="i",VLOOKUP(C30,'Ins SINAPI BA 05-2023 Desoner'!$A$8:$E$5189,2,0),VLOOKUP(C30,'Comp SINAPI BA 05-2023 Desoner'!$G$7:$K$7500,2,0))) -> Servente Com Encargos Complementares | E30: =LOWER(IF(I30="i",VLOOKUP(C30,'Ins SINAPI BA 05-2023 Desoner'!$A$8:$E$5189,3,0),VLOOKUP(C30,'Comp SINAPI BA 05-2023 Desoner'!$G$7:$K$7500,3,0))) -> h | F30: =CPU!F60 -> 2 | G30: =IF(I30="i",VLOOKUP(C30,'Ins SINAPI BA 05-2023 Desoner'!$A$8:$E$5189,5,0),VLOOKUP(C30,'Comp SINAPI BA 05-2023 Desoner'!$G$7:$K$7500,5,0)) -> 19.65 | H30: =ROUND(F30*G30,2) -> 39.3 | I30: ca
B32: ='Planilha Orçamentária Desoner'!A33 -> 4.1.1 | C32: =VLOOKUP($B32,'Planilha Orçamentária Desoner'!$A$11:$I$504,3,) -> CPU.03 | D32: =VLOOKUP($B32,'Planilha Orçamentária Desoner'!$A$11:$I$504,4,) -> Mobilização da Equipe, Camara Hiperbarica e todos os equipamentos de mergulho envolvidos na operação | E32: un | F32: 1 | H32: =SUM(H33,H35,H37) ->  | I32: S
B33: =B32 -> 4.1.1 | D33: MATERIAL | H33: 0 | I33: ss
B34: =B32 -> 4.1.1 | D34: EQUIPAMENTOS | H34: 0 | I34: ss
B35: =B32 -> 4.1.1 | D35: SERVIÇOS | H35: =H36 ->  | I35: ss
B36: COTAÇÃO | C36: 2023-05-01 | D36: Mobilização e desmobilização da Equipe, Camara Hiperbarica e todos os equipamentos de mergulho envolvidos na operação | E36: un | F36: =CPU!#REF! ->  | G36: =2*(21000+22000+19400)/3 -> 41600 | H36: =ROUND(F36*G36,2) ->  | I36: ca
B37: =B32 -> 4.1.1 | D37: MÃO DE OBRA | H37: 0 | I37: ss
I38: x
B39: ='Planilha Orçamentária Desoner'!A36 -> 4.2.1 | C39: =VLOOKUP($B39,'Planilha Orçamentária Desoner'!$A$11:$I$504,3,) -> CPU.04 | D39: =VLOOKUP($B39,'Planilha Orçamentária Desoner'!$A$11:$I$504,4,) -> Vedação da entrada da tomada d’água com chapas metálicas | E39: un | F39: 1 | H39: =SUM(H40,H51,H53,H56) ->  | I39: S
B40: =B39 -> 4.2.1 | D40: MATERIAL | H40: =SUM(H41:H50) ->  | I40: ss
B41: CODEVASF | C41: DP | D41: DIÁRIA | E41: dia | F41: =CPU!F224 -> 1.2 | G41: 305.1 | H41: =ROUND(F41*G41,2) -> 366.12
B42: SICRO | C42: E9043 | D42: Embarcação de alumínio com comprimento de 6 m e motor de popa - 18,60 kW | E42: h | F42: =CPU!#REF! ->  | G42: 66.1577 | H42: =ROUND(F42*G42,2) -> 
B43: SICRO | C43: 2408149 | D43: Estrutura em chapa de aço ASTM A36 corte, solda e montagem - fornecimento e instalação | E43: kg | F43: =CPU!#REF! ->  | G43: 14.84 | H43: =ROUND(F43*G43,2) -> 
B44: SICRO | C44: E9243 | D44: Câmara hiperbárica com filtro, serpentina e reservatório de ar para mergulho raso - D= 1,80 m e H = 2,22 m. | E44: h | F44: =CPU!#REF! ->  | G44: 58.3517 | H44: =ROUND(F44*G44,2) -> 
B45: SICRO | C45: E9245 | D45: Estação transmissora de superfície para comunicação com fio | E45: h | F45: =CPU!#REF! ->  | G45: 0.7428
B46: SICRO | C46: E9242 | D46: Estação transmissora de superfície para televisionamento | E46: h | F46: =CPU!#REF! ->  | G46: 1.3333
B47: SICRO | C47: E9066 | D47: Grupo gerador - 14 kVA | E47: h | F47: =CPU!#REF! ->  | G47: 19.3801
B48: SICRO | C48: E9246 | D48: Painel de controle de ar com manômetros e pneufatômetros | E48: h | F48: =CPU!#REF! ->  | G48: 1.4255
B49: SICRO | C49: E9248 | D49: Sistema de ar comprimido para mergulho até 30 m com pressão de trabalho de 1,4 MPa - 7,46 kW | E49: h | F49: =CPU!#REF! ->  | G49: 15.0543
B50: SICRO | C50: E9058 | D50: Plataforma flutuante de 12 x 24 x 1,8 m com capacidade de 150 t | E50: h | F50: =CPU!#REF! ->  | G50: 40.3012 | H50: =ROUND(F50*G50,2) -> 
B51: =B39 -> 4.2.1 | D51: EQUIPAMENTOS | H51: =SUM(H52) ->  | I51: ss
B52: CODEVASF | D52: CAMINHONETE | E52: mes | F52: =CPU!#REF! ->  | G52: 5885.33 | H52: =ROUND(F52*G52,2) ->  | I52: I
B53: =B39 -> 4.2.1 | D53: SERVIÇOS | H53: =SUM(H54:H55) -> 333.77 | I53: ss
B54: SICRO | C54: 3807863 | D54: Chumbador para concreto D = 12,5 mm tipo tecbolt - fornecimento e instalação | E54: un | F54: =CPU!F227 -> 25 | G54: 13.2 | H54: =ROUND(F54*G54,2) -> 330
B55: SICRO | C55: 4915639 | D55: Limpeza em superfície de concreto com escova de aço | E55: m² | F55: =CPU!F228 -> 1 | G55: 3.77 | H55: =ROUND(F55*G55,2) -> 3.77
B56: =B39 -> 4.2.1 | D56: MÃO DE OBRA | H56: =SUM(H57:H59) ->  | I56: ss
B57: SICRO | C57: P9926 | D57: Mergulhador raso auxiliar de superfície | E57: h | F57: =CPU!F233 -> 0.5 | G57: 28.2203 | H57: =ROUND(F57*G57,2) -> 14.11
B58: EMBASA | C58: B010000113 | D58: MERGULHADOR PROFISSIONAL | E58: h | F58: =CPU!F234 -> 5 | G58: 76.19 | H58: =ROUND(F58*G58,2) -> 380.95
B59: SICRO | C59: P9922 | D59: Mergulhador raso dependente de emergência | E59: h | F59: =CPU!#REF! ->  | G59: 31.5522 | H59: =ROUND(F59*G59,2) -> 
B61: ='Planilha Orçamentária Desoner'!A37 -> 4.2.2 | C61: =VLOOKUP($B61,'Planilha Orçamentária Desoner'!$A$11:$I$504,3,) -> CPU.05 | D61: =VLOOKUP($B61,'Planilha Orçamentária Desoner'!$A$11:$I$504,4,) -> Remoção da vedação da entrada da tomada d’água com chapas metálicas | E61: un | F61: 1 | H61: =SUM(H62,H72,H74,H75) ->  | I61: S
B62: =B61 -> 4.2.2 | D62: MATERIAL | H62: =SUM(H63:H71) ->  | I62: ss
B63: CODEVASF | C63: DP | D63: DIÁRIA | E63: dia | F63: =CPU!#REF! ->  | G63: 305.1 | H63: =ROUND(F63*G63,2) -> 
B64: SICRO | C64: E9043 | D64: Embarcação de alumínio com comprimento de 6 m e motor de popa - 18,60 kW | E64: h | F64: =CPU!F141 -> 61.89 | G64: 66.1577 | H64: =ROUND(F64*G64,2) -> 4094.5
B65: SICRO | C65: E9243 | D65: Câmara hiperbárica com filtro, serpentina e reservatório de ar para mergulho raso - D= 1,80 m e H = 2,22 m. | E65: h | F65: =CPU!#REF! ->  | G65: 58.3517 | H65: =ROUND(F65*G65,2) -> 
B66: SICRO | C66: E9245 | D66: Estação transmissora de superfície para comunicação com fio | E66: h | F66: =CPU!#REF! ->  | G66: 0.7428
B67: SICRO | C67: E9242 | D67: Estação transmissora de superfície para televisionamento | E67: h | F67: =CPU!#REF! ->  | G67: 1.3333
B68: SICRO | C68: E9066 | D68: Grupo gerador - 14 kVA | E68: h | F68: =CPU!#REF! ->  | G68: 19.3801
B69: SICRO | C69: E9246 | D69: Painel de controle de ar com manômetros e pneufatômetros | E69: h | F69: =CPU!#REF! ->  | G69: 1.4255
B70: SICRO | C70: E9248 | D70: Sistema de ar comprimido para mergulho até 30 m com pressão de trabalho de 1,4 MPa - 7,46 kW | E70: h | F70: =CPU!#REF! ->  | G70: 15.0543
B71: SICRO | C71: E9058 | D71: Plataforma flutuante de 12 x 24 x 1,8 m com capacidade de 150 t | E71: h | F71: =CPU!#REF! ->  | G71: 40.3012 | H71: =ROUND(F71*G71,2) -> 
B72: =B61 -> 4.2.2 | D72: EQUIPAMENTOS | H72: =SUM(H73) -> 7062.4 | I72: ss
B73: CODEVASF | D73: CAMINHONETE | E73: mes | F73: =CPU!F143 -> 1.2 | G73: 5885.33 | H73: =ROUND(F73*G73,2) -> 7062.4 | I73: I
B74: =B61 -> 4.2.2 | D74: SERVIÇOS | H74: 0 | I74: ss
B75: =B61 -> 4.2.2 | D75: MÃO DE OBRA | H75: =SUM(H76:H78) ->  | I75: ss
B76: SICRO | C76: P9926 | D76: Mergulhador raso auxiliar de superfície | E76: h | F76: =CPU!#REF! ->  | G76: 28.2203 | H76: =ROUND(F76*G76,2) -> 
B77: EMBASA | C77: B010000113 | D77: MERGULHADOR PROFISSIONAL | E77: h | F77: =CPU!#REF! ->  | G77: 76.19 | H77: =ROUND(F77*G77,2) -> 
B78: SICRO | C78: P9922 | D78: Mergulhador raso dependente de emergência | E78: h | F78: =CPU!#REF! ->  | G78: 31.5522 | H78: =ROUND(F78*G78,2) -> 
B80: ='Planilha Orçamentária Desoner'!A59 -> 6.1.6 | C80: =VLOOKUP($B80,'Planilha Orçamentária Desoner'!$A$11:$I$504,3,) -> CPU.06 | D80: =VLOOKUP($B80,'Planilha Orçamentária Desoner'!$A$11:$I$504,4,) -> ARGAMASSA TRACO 1:3 (CIMENTO E AREIA), PREPARO MANUAL, INCLUSO ADITIVO IMPERMEABILIZANTE | E80: m3 | H80: =H81+H84+H86+H87 ->  | I80: s
B81: =B80 -> 6.1.6 | D81: MATERIAL | H81: =SUM(H82:H83) ->  | I81: ss
B82: SINAPI | C82: 88629 | D82: =PROPER(IF(I82="i",VLOOKUP(C82,'Ins SINAPI BA 05-2023 Desoner'!$A$8:$E$5189,2,0),VLOOKUP(C82,'Comp SINAPI BA 05-2023 Desoner'!$G$7:$K$7500,2,0))) -> Argamassa Traço 1:3 (Em Volume De Cimento E Areia Média Úmida), Preparo Manual. Af_08/2019 | E82: =LOWER(IF(I82="i",VLOOKUP(C82,'Ins SINAPI BA 05-2023 Desoner'!$A$8:$E$5189,3,0),VLOOKUP(C82,'Comp SINAPI BA 05-2023 Desoner'!$G$7:$K$7500,3,0))) -> m3 | F82: =CPU!#REF! ->  | G82: =IF(I82="i",VLOOKUP(C82,'Ins SINAPI BA 05-2023 Desoner'!$A$8:$E$5189,5,0),VLOOKUP(C82,'Comp SINAPI BA 05-2023 Desoner'!$G$7:$K$7500,5,0)) -> 693.49 | H82: =ROUND(F82*G82,2) ->  | I82: ca
B83: SINAPI | C83: 123 | D83: =PROPER(IF(I83="i",VLOOKUP(C83,'Ins SINAPI BA 05-2023 Desoner'!$A$8:$E$5189,2,0),VLOOKUP(C83,'Comp SINAPI BA 05-2023 Desoner'!$G$7:$K$7500,2,0))) -> Aditivo Impermeabilizante De Pega Normal Para Argamassas E Concretos Sem Armacao, Liquido E Isento De Cloretos | E83: =LOWER(IF(I83="i",VLOOKUP(C83,'Ins SINAPI BA 05-2023 Desoner'!$A$8:$E$5189,3,0),VLOOKUP(C83,'Comp SINAPI BA 05-2023 Desoner'!$G$7:$K$7500,3,0))) -> l | F83: =CPU!#REF! ->  | G83: =IF(I83="i",VLOOKUP(C83,'Ins SINAPI BA 05-2023 Desoner'!$A$8:$E$5189,5,0),VLOOKUP(C83,'Comp SINAPI BA 05-2023 Desoner'!$G$7:$K$7500,5,0)) -> 6.85 | H83: =ROUND(F83*G83,2) ->  | I83: i
B84: =B80 -> 6.1.6 | D84: EQUIPAMENTOS | H84: =H85 ->  | I84: ss
B85: SICRO | C85: E9121 | D85: Plataforma elevatória articulada elétrica com alcance de 6 m com capacidade de 500 kg - 1,5 kW | E85: h | F85: =CPU!#REF! ->  | G85: 36.3564 | H85: =ROUND(F85*G85,2) ->  | I85: ca
B86: =B80 -> 6.1.6 | D86: SERVIÇOS | H86: 0 | I86: ss
B87: =B80 -> 6.1.6 | D87: MÃO DE OBRA | H87: 0 | I87: mdo
B89: ='Planilha Orçamentária Desoner'!A61 -> 6.1.8 | C89: =VLOOKUP($B89,'Planilha Orçamentária Desoner'!$A$11:$I$504,3,) -> CPU.07 | D89: =VLOOKUP($B89,'Planilha Orçamentária Desoner'!$A$11:$I$504,4,) -> CURA QUÍMICA | E89: m2 | H89: =H90+H92+H94+H95 ->  | I89: s
B90: =B89 -> 6.1.8 | D90: MATERIAL | H90: =SUM(H91) ->  | I90: ss
B91: SICRO | C91: M2152 | D91: Aditivo de cura para concreto | E91: kg | F91: =CPU!#REF! ->  | G91: 7.7205 | H91: =ROUND(F91*G91,2) ->  | I91: ca
B92: =B89 -> 6.1.8 | D92: EQUIPAMENTOS | H92: =SUM(H93) ->  | I92: ss
B93: SICRO | C93: E9589 | D93: Máquina texturizadora e aplicadora de cura química em pavimento de concreto - 44,80 kW | E93: H | F93: =CPU!#REF! ->  | G93: 206.4583 | H93: =ROUND(F93*G93,2) ->  | I93: ca
B94: =B89 -> 6.1.8 | D94: SERVIÇOS | H94: 0 | I94: ss
B95: =B89 -> 6.1.8 | D95: MÃO DE OBRA | H95: =SUM(H96) ->  | I95: mdo
B96: SINAPI | C96: 88316 | D96: =PROPER(IF(I96="i",VLOOKUP(C96,'Ins SINAPI BA 05-2023 Desoner'!$A$8:$E$5189,2,0),VLOOKUP(C96,'Comp SINAPI BA 05-2023 Desoner'!$G$7:$K$7500,2,0))) -> Servente Com Encargos Complementares | E96: =LOWER(IF(I96="i",VLOOKUP(C96,'Ins SINAPI BA 05-2023 Desoner'!$A$8:$E$5189,3,0),VLOOKUP(C96,'Comp SINAPI BA 05-2023 Desoner'!$G$7:$K$7500,3,0))) -> h | F96: =CPU!#REF! ->  | G96: =IF(I96="i",VLOOKUP(C96,'Ins SINAPI BA 05-2023 Desoner'!$A$8:$E$5189,5,0),VLOOKUP(C96,'Comp SINAPI BA 05-2023 Desoner'!$G$7:$K$7500,5,0)) -> 19.65 | H96: =ROUND(F96*G96,2) ->  | I96: ca

Sheet Equipe de Mergulho (hidden)
B2: Definições de acordo com a TABELA REFERÊNCIA | H2: TABELA REFERÊNCIA
B3: 20 | C3: m | D3: Profundidade
B4: 48 | C4: min | D4: Tempo de mergulho
B5: =B4/60 -> 0.8 | C5: h
B6: 8 | C6: un | D6: Qd de mergulhadores
B8: EQUIPE ADOTADA DE ACORDO COM A NR 15 - ATIVIDADES E OPERAÇÕES INSALUBRES (POR DIA)
B9: H | C9: QTD
B10: =$B$5 -> 0.8 | C10: 1 | D10: Mergulhador Profissional
B11: =$B$5 -> 0.8 | C11: 1 | D11: Mergulhador Profissional
B12: 0.8 | C12: 1 | D12: Mergulhador Profissional
B13: 0.8 | C13: 1 | D13: Mergulhador Profissional
B14: 0.8 | C14: 1 | D14: Mergulhador Profissional
B15: 0.8 | C15: 1 | D15: Mergulhador Profissional
B16: 0.8 | C16: 1 | D16: Mergulhador Profissional
B17: 0.8 | C17: 1 | D17: Mergulhador Profissional
B18: =B5*B6 -> 6.4 | C18: 1 | D18: Mergulhador raso auxiliar de superfície
B19: =B5*B6 -> 6.4 | C19: 1 | D19: Mergulhador raso auxiliar de superfície
B20: =B5*B6 -> 6.4 | C20: 1 | D20: Mergulhador raso dependente de emergência
B21: =MAX(B10:B20) -> 6.4 | C21: =SUM(C10:C20) -> 11 | D21: TOTAL
B23: Identificação | D23: Serviço | E23: Duração (dias) | F23: Total (h)
B24: =CPU!B222 -> 11.1 | C24: =CPU!C222 -> CPU.19 | D24: =CPU!D222 -> Enrocamento c/ pedra de mão c/ fornecimento e assentamento | E24: 2 | F24: =$B$21*E24 -> 12.8
B25: =CPU!B139 -> 6.1 | C25: =CPU!C139 -> CPU.12 | D25: =CPU!D139 -> Solo Melhorado com cimento | E25: 2 | F25: =$B$21*E25 -> 12.8
D27: De acordo com a duração do serviço será atualizada a quantidade de diárias
D28: Duração | E28: 2
D29: Diária | E29: =E28-1 -> 1

Sheet Cronograma
A1: Ministério da Integração e do Desenvolvimento Regional
A2: Companhia de Desenvolvimento dos Vales do São Francisco e do Parnaíba
A4: CRONOGRAMA FÍSICO-FINANCEIRO ONERADO
A5: OBRA: | B5: =CPU!C5 -> SERVIÇOS DE MANUTENÇÃO E OBRAS CIVIS NA BARRAGEM DESERTO | E5: BDI (serv.): | F5: ='BDI serv'!D22 -> 0.2378
A6: LOCAL: | B6: =CPU!C6 -> BARRAGEM DESERTO, PETROLINA/PE | E6: BDI (forn.): | F6: ='BDI forn'!E6 -> 0.136
A7: DATA BASE: | B7: =CPU!C7 -> 2024-05-01
A8: PRAZO: | B8: =CPU!C8 -> 120
A9: ITEM | B9: DESCRIÇÃO | C9: TOTAL POR ETAPA | D9: MESES | G9: TOTAL
D10: 1 | E10: 2 | F10: 3
A11: 1 | B11: =VLOOKUP(A11,'Planilha Orçamentária'!$A$11:$D$61,4) -> ADMINISTRAÇÃO DA OBRA | C11: =SUMIF('Planilha Orçamentária'!$A$11:$A$61,A11,'Planilha Orçamentária'!$I$11:$I$61) -> 143091.3634 | D11: =$C11*D12 -> 55504.81065 | E11: =$C11*E12 -> 41009.5647 | F11: =$C11*F12 -> 46576.98805 | G11: =SUM(D11:F11) -> 143091.3634 | H11: R$
C12: =C11/C11 -> 1 | D12: =D39 -> 0.3878976993 | E12: =D40-D39+E39 -> 0.2865970645 | F12: =1-SUM(D12:E12) -> 0.3255052363 | G12: 1 | H12: %
A13: 2 | B13: =VLOOKUP(A13,'Planilha Orçamentária'!$A$11:$D$61,4) -> SERVIÇOS PRELIMINARES | C13: =SUMIF('Planilha Orçamentária'!$A$11:$A$61,A13,'Planilha Orçamentária'!$I$11:$I$61) -> 7447.90449 | D13: =$C13*D14 -> 2482.632347 | E13: =$C13*E14 -> 2482.634582 | F13: =$C13*F14 -> 2482.632347 | G13: 7447.899276 | H13: R$
C14: =C13/C13 -> 1 | D14: 0.333333 | E14: 0.3333333 | F14: 0.333333 | G14: 0.9999993 | H14: %
A15: 3 | B15: =VLOOKUP(A15,'Planilha Orçamentária'!$A$11:$D$61,4) -> CORTE DA VEGETAÇÃO E REMOÇÃO DAS RAIZES | C15: =SUMIF('Planilha Orçamentária'!$A$11:$A$61,A15,'Planilha Orçamentária'!$I$11:$I$61) -> 112874.6478 | D15: =$C15*D16 -> 112874.6478 | G15: 112874.6478 | H15: R$ | O15: =100/3 -> 33.33333333
C16: =C15/C15 -> 1 | D16: 1 | G16: 1 | H16: %
A17: 4 | B17: =VLOOKUP(A17,'Planilha Orçamentária'!$A$11:$D$61,4) -> APLICAÇÃO DE CONCRETO | C17: =SUMIF('Planilha Orçamentária'!$A$11:$A$61,A17,'Planilha Orçamentária'!$I$11:$I$61) -> 175.474489 | D17: =$C17*D18 -> 175.474489 | G17: 175.474489 | H17: R$
C18: =C17/C17 -> 1 | D18: 1 | G18: 1 | H18: %
A19: 5 | B19: =VLOOKUP(A19,'Planilha Orçamentária'!$A$11:$D$61,4) -> REGULARIZAÇÃO E MANUTENÇÃO DA CRISTA | C19: =SUMIF('Planilha Orçamentária'!$A$11:$A$61,A19,'Planilha Orçamentária'!$I$11:$I$61) -> 65435.76351 | D19: =$C19*D20 -> 65435.76351 | G19: 65435.76351 | H19: R$
C20: =C19/C19 -> 1 | D20: 1 | G20: 1 | H20: %
A21: 6 | B21: =VLOOKUP(A21,'Planilha Orçamentária'!$A$11:$D$61,4) -> RECOMPOSIÇÃO DE EROSÃO DO TALUDE DE JUSANTE | C21: =SUMIF('Planilha Orçamentária'!$A$11:$A$61,A21,'Planilha Orçamentária'!$I$11:$I$61) -> 68715.13946 | D21: =$C21*D22 -> 68715.13946 | G21: 68715.13946 | H21: R$
C22: =C21/C21 -> 1 | D22: 1 | G22: 1 | H22: %
A23: 7 | B23: =VLOOKUP(A23,'Planilha Orçamentária'!$A$11:$D$61,4) -> DRENAGEM SUPERFICIAL DO TALUDE JUSANTE | C23: =SUMIF('Planilha Orçamentária'!$A$11:$A$61,A23,'Planilha Orçamentária'!$I$11:$I$61) -> 2344.88832 | E23: =$C23*E24 -> 2344.88832 | G23: =SUM(E23:F23) -> 2344.88832 | H23: R$
C24: =C23/C23 -> 1 | E24: 1 | G24: =SUM(E24:F24) -> 1 | H24: %
A25: 8 | B25: =VLOOKUP(A25,'Planilha Orçamentária'!$A$11:$D$61,4) -> PROTEÇÃO SUPERFICIAL DO TALUDE DE JUSANTE | C25: =SUMIF('Planilha Orçamentária'!$A$11:$A$61,A25,'Planilha Orçamentária'!$I$11:$I$61) -> 62996.27197 | E25: =$C25*E26 -> 62996.27197 | G25: =SUM(D25:F25) -> 62996.27197 | H25: R$
C26: =C25/C25 -> 1 | E26: 1 | G26: 1 | H26: %
A27: 9 | B27: =VLOOKUP(A27,'Planilha Orçamentária'!$A$11:$D$61,4) -> MANUTENÇÃO DO MURO LATERAL ESQUERDO E PROTEÇÃO DA BACIA AMORTECEDORA | C27: =SUMIF('Planilha Orçamentária'!$A$11:$A$61,A27,'Planilha Orçamentária'!$I$11:$I$61) -> 48622.51692 | E27: =$C27*E28 -> 48622.51692 | G27: 48622.51692 | H27: R$
C28: =C27/C27 -> 1 | E28: 1 | G28: 1 | H28: %
A29: 10 | B29: =VLOOKUP(A29,'Planilha Orçamentária'!$A$11:$D$61,4) -> MANUTENÇÃO DO VERTEDOURO E MURO LATERAL DIREITO | C29: =SUMIF('Planilha Orçamentária'!$A$11:$A$61,A29,'Planilha Orçamentária'!$I$11:$I$61) -> 12526.90734 | E29: =$C29*E30 -> 12526.90734 | G29: 12526.90734 | H29: R$
C30: =C29/C29 -> 1 | E30: 1 | G30: 1 | H30: %
A31: 11 | B31: =VLOOKUP(A31,'Planilha Orçamentária'!$A$11:$D$61,4) -> PROTEÇÃO DO CANAL DEVIDO A PROCESSOS EROSIVOS | C31: =SUMIF('Planilha Orçamentária'!$A$11:$A$61,A31,'Planilha Orçamentária'!$I$11:$I$61) -> 19533.1029 | F31: =$C31*F32 -> 19533.1029 | G31: 19533.1029 | H31: R$
C32: =C31/C31 -> 1 | F32: 1 | G32: 1 | H32: %
A33: 12 | B33: =VLOOKUP(A33,'Planilha Orçamentária'!$A$11:$D$61,4) -> SERVIÇOS COMPLEMENTARES | C33: =SUMIF('Planilha Orçamentária'!$A$11:$A$61,A33,'Planilha Orçamentária'!$I$11:$I$61) -> 95484.80797 | F33: =$C33*F34 -> 95484.80797 | G33: 95484.80797 | H33: R$
C34: =C33/C33 -> 1 | F34: 1 | G34: 1 | H34: %
A35: 13 | B35: =VLOOKUP(A35,'Planilha Orçamentária'!$A$11:$D$61,4) -> MANUTENÇÃO DOS EQUIPAMENTOS HIDROMECÂNICOS | C35: =SUMIF('Planilha Orçamentária'!$A$11:$A$61,A35,'Planilha Orçamentária'!$I$11:$I$61) -> 4435.507764 | F35: =$C35*F36 -> 4435.507764 | G35: 4435.507764 | H35: R$
C36: =C35/C35 -> 1 | F36: 1 | G36: 1 | H36: %
B37: VALOR TOTAL: | C37: =SUMIF($H$11:$H$36,"R$",C$11:C$36) -> 643684.2963 | D37: =SUMIF($H$11:$H$36,"R$",D$11:D$36) -> 305188.4682 | E37: =SUMIF($H$11:$H$36,"R$",E$11:E$36) -> 169982.7838 | F37: =SUMIF($H$11:$H$36,"R$",F$11:F$36) -> 168513.039 | G37: =SUMIF($H$11:$H$36,"R$",G$11:G$36) -> 643684.2911
B38: VALOR ACUMULADO: | D38: =D37 -> 305188.4682 | E38: =E37+D38 -> 475171.2521 | F38: =F37+E38 -> 643684.2911 | G38: =G37 -> 643684.2911
B39: FÍSICO PARCIAL: | D39: =SUMIF($H$13:$H$36,"R$",D$13:D$36)/$C$37 -> 0.3878976993 | E39: =SUMIF($H$13:$H$36,"R$",E$13:E$36)/$C$37 -> 0.2003671984 | F39: =SUMIF($H$13:$H$36,"R$",F$13:F$36)/$C$37 -> 0.1894345593 | G39: =G37/$C$37 -> 0.9999999919
B40: AVANÇO FÍSICO: | D40: =D37/$C$37 -> 0.4741275653 | E40: =E37/$C$37 -> 0.2640778792 | F40: =F37/$C$37 -> 0.2617945474

Sheet Cronograma Desoner (hidden)
A1: Ministério da Integração e do Desenvolvimento Regional
A2: Companhia de Desenvolvimento dos Vales do São Francisco e do Parnaíba
A4: CRONOGRAMA FÍSICO-FINANCEIRO DESONERADO
A5: OBRA: | B5: =UPPER("SERVIÇOS DE MANUTENÇÃO E OBRAS CIVIS NA ESTRUTURA DA BARRAGEM E EQUIPAMENTO HIDROMECÂNICO") -> SERVIÇOS DE MANUTENÇÃO E OBRAS CIVIS NA ESTRUTURA DA BARRAGEM E EQUIPAMENTO HIDROMECÂNICO | F5: BDI (serv.): | G5: ='BDI serv Desonerado'!D22 -> 0.3351
A6: LOCAL: | B6: BARRAGEM POÇO DO MAGRO, GUANAMBI/BA | F6: BDI (forn.): | G6: ='BDI forn Desonerado'!D22 -> 0.212
A7: DATA BASE: | B7: 2023-05-01
A8: PRAZO: | B8: 120 DIAS
A9: ITEM | B9: DESCRIÇÃO | C9: TOTAL POR ETAPA | D9: MESES | H9: TOTAL
D10: 1 | E10: 2 | F10: 3 | G10: 4
A11: 1 | B11: =VLOOKUP(A11,'Planilha Orçamentária Desoner'!$A$11:$D$92,4) -> ADMINISTRAÇÃO LOCAL | C11: =SUMIF('Planilha Orçamentária Desoner'!$A$11:$A$92,A11,'Planilha Orçamentária Desoner'!$I$11:$I$92) -> 41837.86849 | D11: =$C11*D12 ->  | E11: =$C11*E12 ->  | F11: =$C11*F12 ->  | G11: =$C11*G12 ->  | H11: =SUM(D11:G11) ->  | I11: R$
C12: =C11/C11 -> 1 | D12: =D37 ->  | E12: =D38-D37+E37 ->  | F12: =E38-E37+F37 ->  | G12: =1-SUM(D12:F12) ->  | I12: %
A13: 2 | B13: =VLOOKUP(A13,'Planilha Orçamentária Desoner'!$A$11:$D$92,4) -> SERVIÇOS PRELIMINARES | C13: =SUMIF('Planilha Orçamentária Desoner'!$A$11:$A$92,A13,'Planilha Orçamentária Desoner'!$I$11:$I$92) ->  | D13: =$C13*D14 ->  | I13: R$
C14: =C13/C13 ->  | D14: 1 | H14: 1 | I14: %
A15: 3 | B15: =VLOOKUP(A15,'Planilha Orçamentária Desoner'!$A$11:$D$92,4) -> LIMPEZA DA REGIÃO A JUSANTE | C15: =SUMIF('Planilha Orçamentária Desoner'!$A$11:$A$92,A15,'Planilha Orçamentária Desoner'!$I$11:$I$92) ->  | D15: =$C15*D16 ->  | I15: R$
C16: =C15/C15 ->  | D16: 1 | H16: 1 | I16: %
A17: 4.1 | B17: =VLOOKUP(A17,'Planilha Orçamentária Desoner'!$A$11:$D$92,4) -> Inspeção e Laudo da região subaquática | C17: =SUMIF('Planilha Orçamentária Desoner'!$A$11:$A$92,A17,'Planilha Orçamentária Desoner'!$I$11:$I$92) ->  | D17: =$C17*D18 ->  | I17: R$
C18: =C17/C17 ->  | D18: 1 | H18: 1 | I18: %
A19: 4.2 | B19: =VLOOKUP(A19,'Planilha Orçamentária Desoner'!$A$11:$D$92,4) -> Vedação/Abertura da tomada d'água | C19: =SUMIF('Planilha Orçamentária Desoner'!$A$11:$A$92,A19,'Planilha Orçamentária Desoner'!$I$11:$I$92) ->  | D19: =$C19*D20 ->  | E19: =$C19*E20 ->  | I19: R$
C20: =C19/C19 ->  | D20: 0.5 | E20: 0.5 | H20: 1 | I20: %
A21: 5 | B21: =VLOOKUP(A21,'Planilha Orçamentária Desoner'!$A$11:$D$92,4) -> MANUTENÇÃO NOS DISPOSITIVOS DE CONTROLE | C21: =SUMIF('Planilha Orçamentária Desoner'!$A$11:$A$92,A21,'Planilha Orçamentária Desoner'!$I$11:$I$92) ->  | E21: =$C21*E22 ->  | H21: =SUM(E21:G21) ->  | I21: R$
C22: =C21/C21 ->  | E22: 1 | H22: =SUM(E22:G22) -> 1 | I22: %
A23: 6.1 | B23: =VLOOKUP(A23,'Planilha Orçamentária Desoner'!$A$11:$D$92,4) -> Paramento a jusante | C23: =SUMIF('Planilha Orçamentária Desoner'!$A$11:$A$92,A23,'Planilha Orçamentária Desoner'!$I$11:$I$92) ->  | E23: =$C23*E24 ->  | F23: =$C23*F24 ->  | H23: =SUM(E23:G23) ->  | I23: R$
C24: =C23/C23 ->  | E24: 0.5 | F24: 0.5 | H24: 1 | I24: %
A25: 6.2 | B25: =VLOOKUP(A25,'Planilha Orçamentária Desoner'!$A$11:$D$92,4) -> Crista | C25: =SUMIF('Planilha Orçamentária Desoner'!$A$11:$A$92,A25,'Planilha Orçamentária Desoner'!$I$11:$I$92) ->  | F25: =$C25*F26 ->  | I25: R$
C26: =C25/C25 ->  | F26: 1 | H26: 1 | I26: %
A27: 6.3 | B27: =VLOOKUP(A27,'Planilha Orçamentária Desoner'!$A$11:$D$92,4) -> Vertedouro | C27: =SUMIF('Planilha Orçamentária Desoner'!$A$11:$A$92,A27,'Planilha Orçamentária Desoner'!$I$11:$I$92) ->  | F27: =$C27*F28 ->  | I27: R$
C28: =C27/C27 ->  | F28: 1 | H28: 1 | I28: %
A29: 7.1 | B29: =VLOOKUP(A29,'Planilha Orçamentária Desoner'!$A$11:$D$92,4) -> Investigação do maciço | C29: =SUMIF('Planilha Orçamentária Desoner'!$A$11:$A$92,A29,'Planilha Orçamentária Desoner'!$I$11:$I$92) ->  | F29: =$C29*F30 ->  | I29: R$
C30: =C29/C29 ->  | F30: 1 | H30: 1 | I30: %
A31: 7.2 | B31: =VLOOKUP(A31,'Planilha Orçamentária Desoner'!$A$11:$D$92,4) -> Recuperação do maciço | C31: =SUMIF('Planilha Orçamentária Desoner'!$A$11:$A$92,A31,'Planilha Orçamentária Desoner'!$I$11:$I$92) ->  | F31: =$C31*F32 ->  | I31: R$
C32: =C31/C31 ->  | F32: 1 | H32: 1 | I32: %
A33: 8 | B33: =VLOOKUP(A33,'Planilha Orçamentária Desoner'!$A$11:$D$92,4) -> SERVIÇOS AUXILIARES | C33: =SUMIF('Planilha Orçamentária Desoner'!$A$11:$A$92,A33,'Planilha Orçamentária Desoner'!$I$11:$I$92) ->  | G33: =$C33*G34 ->  | I33: R$
C34: =C33/C33 ->  | G34: 1 | H34: 1 | I34: %
B35: VALOR TOTAL: | C35: =SUMIF($I$11:$I$34,"R$",C$11:C$34) -> 
B36: VALOR ACUMULADO: | D36: =D35 ->  | E36: =E35+D36 ->  | F36: =F35+E36 ->  | G36: =G35+F36 ->  | H36: =H35 -> 
B37: FÍSICO PARCIAL: | D37: =SUMIF($I$13:$I$34,"R$",D$13:D$34)/$C$35 ->  | E37: =SUMIF($I$13:$I$34,"R$",E$13:E$34)/$C$35 ->  | F37: =SUMIF($I$13:$I$34,"R$",F$13:F$34)/$C$35 ->  | G37: =SUMIF($I$13:$I$34,"R$",G$13:G$34)/$C$35 ->  | H37: =H35/$C$35 -> 
B38: AVANÇO FÍSICO: | D38: =D35/$C$35 ->  | E38: =E35/$C$35 ->  | F38: =F35/$C$35 ->  | G38: =G35/$C$35 -> 

Sheet Cotações
A1: Ministério do Desenvolvimento Regional
A2: Companhia de Desenvolvimento dos Vales do São Francisco e do Parnaíba
A3: ='Planilha Orçamentária'!A3:I3 -> 0
A4: COTAÇÕES
A5: OBRA: | B5: ='Planilha Orçamentária'!B5:D5 -> SERVIÇOS DE MANUTENÇÃO E OBRAS CIVIS NA BARRAGEM DESERTO | K5: BDI (serv.): | L5: ='BDI serv'!D22 -> 0.2378
A6: LOCAL: | B6: ='Planilha Orçamentária'!B6 -> BARRAGEM DESERTO, PETROLINA/PE | K6: BDI (forn.): | L6: ='BDI forn'!E6 -> 0.136
A7: DATA BASE: | B7: ='Planilha Orçamentária'!B7:C7 -> 2024-05-01
A8: PRAZO: | B8: ='Planilha Orçamentária'!B8:C8 -> 120
A9: ITEM | B9: EMPRESA | G9: ORÇADO POR | H9: DESCRIÇÃO / OBSERVAÇÃO | I9: UNID | J9: QUANT | K9: LINK OU LOCAL DO ARQUIVO | L9: VALOR
B10: DATA | C10: EMPRESA / CNPJ | D10: RESPONSÁVEL | E10: ENDEREÇO | F10: CONTATO | L10: MAT | M10: MDO | N10: TRANSPORTE | O10: TOTAL
A11: =CPU!#REF! ->  | B11: =CPU!#REF! ->  | O11: =AVERAGE(O12:O13) -> 90
A12: 1 | B12: 2024-01-22 | G12: Murilo - RHA | H12: Diária hotel | I12: un | J12: 1 | L12: 100 | O12: =SUM(L12:N12) -> 100
A13: 2 | B13: 2024-01-22 | G13: Murilo - RHA | H13: Diaria hotel | I13: un | J13: 1 | L13: 80 | O13: =SUM(L13:N13) -> 80
A14: =CPU!C257 -> CPU.21 | B14: Régua linimétrica | O14: =AVERAGE(O15:O17) -> 183
A15: 1 | B15: 2024-01-22 | C15: POLIMEDIÇÃO COMERCIAL | D15: Preço na loja online | E15: R. Arlete, 151 - Jardim Penha - São Paulo - SP | F15: Tel: (11) 4328-3003 WhatsApp: (11) 98575-6343 polimedicao@gmail.com | G15: Murilo - RHA | H15: Régua linimétrica em alumínio 2 X 70 X 1000MM | I15: un | J15: 1 | K15: https://www.polimedicao.com.br/product-page/r%C3%A9gua-linim%C3%A9trica-em-chapa-de-aluminio-2-x-70-x-1000mm | L15: 169 | O15: =SUM(L15:N15) -> 169
A16: 2 | B16: 2024-01-22 | C16: Gravametal | D16: Preço na loja online | E16: Rua Uniflor, 1012 - Emiliano Perneta Pinhais - Paraná - CEP: 83324-227 | F16: ☎ (41) 3403-0144 ✆ (41) 99672-9692 ✉ gravametal@gmail.com | G16: Murilo - RHA | H16: Régua linimétrica em alumínio 2 X 70 X 1000MM | I16: un | J16: 1 | K16: https://www.gravametal.com.br/product-page/r%C3%A9gua-linim%C3%A9trica-fluviom%C3%A9trica-1000x70x2mm | L16: 240 | O16: =SUM(L16:N16) -> 240
A17: 3 | B17: 2024-01-22 | C17: Hidromec | D17: Consulta via Whatsapp | E17: Rua Sacadura Cabral, 351 Saúde - Rio de Janeiro - RJ CEP: 20221-160 | F17: (21) 3622-8000 contato@hidromechc.com.br | G17: Murilo - RHA | H17: Régua linimétrica em alumínio 2 X 70 X 1000MM | I17: un | J17: 1 | K17: https://www.hidromechc.com.br/regua | L17: 140 | O17: =SUM(L17:N17) -> 140
A18: 4 | B18: 2024-01-22 | C18: Agrosensores | G18: Murilo - RHA | H18: Régua linimétrica em alumínio 2 X 70 X 1000MM | I18: un | J18: 1 | K18: https://www.agrosensores.com.br/sensores/limnimetro/regua-limnimetrica-dualbase | N18: 89.53 | O18: =SUM(L18:N18) -> 89.53
A19: =CPU!#REF! ->  | B19: Ensaio CPT | O19: =AVERAGE(O20,O22) -> 115005
A20: 1 | B20: 2024-01-24 | C20: Suporte Sondagens e Investigações | D20: e-mail | E20: SEDE São Pedro/SP Av. Camélia Borges Narciso, 582 Bela São Pedro - São Pedro/SP - CEP 13.524-486 | F20: Tel. (19) 9.9918-5086 carlos.silva@suportesolos.com.br | G20: Michael -RHA | H20: Ensaio CPU | I20: um | J20: 1 | K20: www.suportesolos.com.br | L20: 130400 | O20: =SUM(L20:N20) -> 130400
A21: 2 | B21: 2024-01-24 | C21: Civil Solo | D21: Consulta via: e-mail e WhatsApp | E21: Rua Fortunato Mori 280, Vianelo, Jundiaí – SP | F21: (11) 4521-3500 | G21: Michael -RHA | H21: Ensaio CPU | I21: um | J21: 1 | K21: https://www.civilsolo.com.br/ensaios-de-cpt-e-cptu/ | O21: =SUM(L21:N21) -> 0
A22: 3 | B22: 2024-01-24 | C22: Torres Geotecnia | D22: Consulta via: e-mail e WhatsApp | E22: Rua Praia Formosa, 217 – Alto Caiçaras – Belo Horizonte/MG – CEP: 30775080 | F22: 55 (31) 3024-0362 | G22: Michael -RHA | H22: Ensaio CPU | I22: um | J22: 1 | K22: http://www.torresgeotecnia.com.br/contatos/ | L22: 99610 | O22: =SUM(L22:N22) -> 99610
A23: 4 | B23: 2024-01-25 | C23: Soluções CAD BIM | D23: WhatsApp | E23: São Paulo-Av nova Cantareira 2014, Conj. 121 / Rio de Janeiro-Rua 7 de setembro 92 sala 1706 | F23: Tel: 11 3294-4800 Tel: 21 3512-0099 | G23: Michael -RHA | H23: Ensaio CPU | I23: um | J23: 1 | K23: https://solucoescad.com.br/estaca-via-cpt-spt/ | O23: =SUM(L23:N23) -> 0
A24: =CPU!#REF! ->  | B24: Grade de proteção | O24: =AVERAGE(O25,O27) -> 

Sheet Memorial de cálculo (hidden)
A1: Ministério da Integração e do Desenvolvimento Regional
A2: Companhia de desenvolvimento dos Vales do São Francisco e do Parnaíba
A4: MEMORIAL DE CÁLCULO
A5: OBRA: | B5: ='Planilha Orçamentária'!B5 -> SERVIÇOS DE MANUTENÇÃO E OBRAS CIVIS NA BARRAGEM DESERTO | E5: DESLOCAMENTO - Petrolina para Lagoa Grande (km): | H5: 48
A6: LOCAL: | B6: ='Planilha Orçamentária'!B6 -> BARRAGEM DESERTO, PETROLINA/PE | E6: DESLOCAMENTO - Lagoa Grande para Barragem Cachimbo (km) - (tempo IDA E VOLTA): | H6: 40
A7: DATA BASE: | B7: ='Planilha Orçamentária'!B7 -> 2024-05-01 | E7: VIA URBANA PAVIMENTADA - Lagoa Grande para Barragem Cachimbo (km) | H7: 16
A8: PRAZO: | B8: ='Planilha Orçamentária'!B8 -> 120 | E8: REVESTIMENTO PRIMÁRIO - Lagoa Grande para Barragem Cachimbo (km) | H8: =H6-H7 -> 24
A9: ITEM | B9: DESCRIÇÃO | C9: UNID. | D9: PARÂMETRO 1 | E9: PARÂMETRO 2 | F9: PARÂMETRO 3 | G9: PARÂMETRO 4 | H9: TOTAL
A10: 1.1 | B10: =VLOOKUP(A10,'Planilha Orçamentária'!$A$8:$E$5173,4,0) -> Administração Local | C10: =VLOOKUP(A10,'Planilha Orçamentária'!$A$8:$E$5173,5,0) -> mês | D10: QUANT.PESSOAS | E10: HORAS DIÁRIA | F10: DIAS TRABALHADOS NO MÊS | G10: MESES
B11: =CPU!D16 -> Engenheiro Civil De Obra Pleno Com Encargos Complementares | C11: =CPU!E16 -> h | D11: 1 | E11: 1.5 | F11: =4*5 -> 20 | H11: =D11*E11*F11 -> 30
B12: =CPU!D17 -> Encarregado Geral De Obras Com Encargos Complementares | C12: =CPU!E17 -> mes | D12: 1 | G12: 0.8 | H12: =D12*G12 -> 0.8
B13: =CPU!D18 -> Vigia Noturno Com Encargos Complementares | C13: =CPU!E18 -> h | D13: 4 | E13: 12 | F13: 15 | H13: =D13*E13*F13 -> 720
A15: 2 | B15: =VLOOKUP(A15,'Planilha Orçamentária'!$A$10:$D$22,4,0) -> SERVIÇOS PRELIMINARES
A16: 2.1 | B16: =VLOOKUP(A16,'Planilha Orçamentária'!$A$8:$E$5126,4,0) -> Mobilização e desmobilização de instalação do canteiro
A17: 2.1 | B17: =VLOOKUP(A17,CPU!B11:H323,3,0) -> Mobilização e desmobilização de instalação do canteiro | C17: =VLOOKUP(A17,'Planilha Orçamentária'!$A$8:$E$5173,5,0) -> un | D17: TEMPO DE VIAGEM | E17: TONELADAS | F17: KM | G17: IDA E VOLTA | H17: 1
B18: Miniônibus com capacidade para 30 passageiros - 111 Kw (Petrolina-Barragem) | C18: chp | D18: 1 | G18: 2 | H18: =D18*G18 -> 2
B19: Miniônibus com capacidade para 30 passageiros - 111 Kw | C19: chi | D19: =8-D18 -> 7 | G19: 2 | H19: =D19*G19 -> 14
B20: Via Pavimentada Petrolina - Parnamirim - Barragem Lagoa Grande (Considerou-se 5 ton) | C20: TxKM | E20: 5 | F20: =H5+H7 -> 64 | G20: 2 | H20: =E20*G20*F20 -> 640
B21: =E8 -> REVESTIMENTO PRIMÁRIO - Lagoa Grande para Barragem Cachimbo (km) | C21: TxKM | E21: 5 | F21: =H8 -> 24 | G21: 2 | H21: =E21*G21*F21 -> 240
B22: Motorista | C22: H | H22: =SUM(H18:H19) -> 16
A23: 2.2 | B23: =VLOOKUP(A23,'Planilha Orçamentária'!$A$8:$E$5126,4,0) -> 
A24: =CPU!A36 -> 2.2.1 | B24: =VLOOKUP(A24,CPU!A11:H323,4,0) -> Limpeza Manual De Vegetação Em Terreno Com Enxada. Af_03/2024 | C24: m² | D24: Área do canteiro | E24: Área do refeitório | F24: Área do sanitário | H24: =H25 -> 28.5
B25: Considerando as áreas do refeitrório, Sanitário e central de formas | D25: 12 | E25: 7.5 | F25: 9 | G25: =SUM(D25:F25) -> 28.5 | H25: =SUM(D25:F25) -> 28.5
B26: Mão de Obra | D26: QUANT PESSOAS | E26: ÍNDICE | F26: RENDIMENTO | G26: H | H26: DIAS
B27: 88316 SERVENTE COM ENCARGOS COMPLEMENTARES | C27: h | D27: 1 | E27: =0.0718 -> 0.0718 | F27: =E27/D27 -> 0.0718 | G27: =F27*H24 -> 2.0463 | H27: =G27/8 -> 0.2557875
B28: 88441 JARDINEIRO COM ENCARGOS COMPLEMENTARES | C28: h | D28: 1 | E28: =0.0718 -> 0.0718 | F28: =E28/D28 -> 0.0718 | G28: =F28*H24 -> 2.0463 | H28: =G28/8 -> 0.2557875
A29: =CPU!A41 -> 2.2.6 | B29: =VLOOKUP(A29,CPU!A16:H328,4,0) -> Hospedagem | C29: um | H29: =H30 -> 0.511575
H30: =D27*H27+D28*H28 -> 0.511575
A31: =CPU!A37 -> 2.2.2 | B31: =VLOOKUP(A31,CPU!A18:H330,4,0) -> Concreto Fck = 15Mpa, Traço 1:3,4:3,5 (Em Massa Seca De Cimento/ Areia Média/ Brita 1) - Preparo Manual. Af_05/2021 | C31: m³ | G31: Espessura (m) | H31: =H32 -> 1.425
B32: Soma da área das instalações do canteiro | C32: =SUM(D25:F25) -> 28.5 | G32: 0.05 | H32: =G32*C32 -> 1.425
B33: Mão de Obra | D33: QUANT PESSOAS | E33: ÍNDICE | F33: RENDIMENTO | G33: H | H33: DIAS
B34: 88316 SERVENTE COM ENCARGOS COMPLEMENTARES | D34: 1 | E34: 6.2067 | F34: =E34/D34 -> 6.2067 | G34: =F34*H31 -> 8.8445475 | H34: =G34/8 -> 1.105568437
A35: =CPU!A41 -> 2.2.6 | B35: =VLOOKUP(A35,[1]CPU!$A$7:$E$5615,4,0) -> Hospedagem | C35: =VLOOKUP(A35,[1]CPU!$A$8:$E$5437,5,0) -> un | H35: =H36 -> 1.105568437
H36: =D34*H34 -> 1.105568437
A37: =CPU!A38 -> 2.2.3 | B37: =VLOOKUP(A37,CPU!A22:H334,4,0) -> Execução De Refeitório Em Canteiro De Obra Em Chapa De Madeira Compensada, Não Incluso Mobiliário E Equipamentos. Af_02/2016 | C37: =VLOOKUP(A37,[1]CPU!$A$8:$E$5437,5,0) -> m2 | H37: =H38 -> 7.5
B38: Área do refeitório | H38: =E25 -> 7.5
B39: Mão de Obra | D39: QUANT PESSOAS | E39: ÍNDICE | F39: RENDIMENTO | G39: H | H39: DIAS
B40: 88262 CARPINTEIRO DE FORMAS COM ENCARGOS COMPLEMENTARES | D40: 1 | E40: 1.1155 | F40: =E40/D40 -> 1.1155 | G40: =F40*H37 -> 8.36625 | H40: =G40/8 -> 1.04578125
A41: =CPU!A41 -> 2.2.6 | B41: =VLOOKUP(A41,[1]CPU!$A$7:$E$5615,4,0) -> Hospedagem | C41: =VLOOKUP(A41,[1]CPU!$A$8:$E$5437,5,0) -> un | H41: =H42 -> 1.04578125
H42: =D40*H40 -> 1.04578125
A43: =CPU!A39 -> 2.2.4 | B43: =VLOOKUP(A43,[1]CPU!$A$8:$E$5440,4,0) -> Execução De Sanitário E Vestiário Em Canteiro De Obra Em Chapa De Madeira Compensada, Não Incluso Mobiliário. Af_02/2016 | C43: =VLOOKUP(A43,[1]CPU!$A$8:$E$5437,5,0) -> m2 | H43: =H44 -> 9
B44: Área do Sanitário Em Canteiro De Obra | H44: =F25 -> 9
A46: =CPU!A40 -> 2.2.5 | B46: =VLOOKUP(A46,[1]CPU!$A$8:$E$5440,4,0) -> Execução De Central De Fôrmas, Produção De Argamassa Ou Concreto Em Canteiro De Obra, Não Incluso Mobiliário E Equipamentos. Af_04/2016 | C46: =VLOOKUP(A46,[1]CPU!$A$8:$E$5437,5,0) -> m2 | H46: =H47 -> 12
B47: Área da Central de Fôrmas Em Canteiro De Obra | H47: =D25 -> 12
A48: =CPU!A41 -> 2.2.6 | B48: =VLOOKUP(A48,[1]CPU!$A$7:$E$5615,4,0) -> Hospedagem | C48: =VLOOKUP(A48,[1]CPU!$A$8:$E$5437,5,0) -> un | G48: Dias | H48: =H49 -> 2.662924687
H49: =H35+H29+H41 -> 2.662924687
A50: =CPU!A42 -> 2.2.7 | B50: =VLOOKUP(A50,[1]CPU!$A$7:$E$5615,4,0) -> Miniônibus com capacidade para 30 passageiros - 111 Kw | C50: =VLOOKUP(A50,[1]CPU!$A$8:$E$5437,5,0) -> chp | E50: Horas/dia | F50: Quant.Dias | H50: =H51 -> 1.835243606
E51: =0.83*2 -> 1.66 | F51: =H35 -> 1.105568437 | H51: =E51*F51 -> 1.835243606
A52: =CPU!A43 -> 2.2.8 | B52: =VLOOKUP(A52,[1]CPU!$A$7:$E$5615,4,0) -> Miniônibus com capacidade para 30 passageiros - 111 Kw | C52: =VLOOKUP(A52,[1]CPU!$A$8:$E$5437,5,0) -> chi | E52: Horas/dia | F52: Quant.Dias | H52: =H53 -> 7.009303894
E53: =8-E51 -> 6.34 | F53: =H35 -> 1.105568437 | H53: =E53*F53 -> 7.009303894
A54: 2.3 | B54: =VLOOKUP(A54,'Planilha Orçamentária'!$A$8:$E$5126,4,0) -> 
A55: =CPU!B46 -> 2.3 | B55: =VLOOKUP(A55,CPU!B11:H323,3,0) -> PLACA DE OBRA EM CHAPA DE ACO GALVANIZADO | C55: m² | D55: QUANT. | E55: COMP. (M) | F55: LARG. (M) | H55: =H56 -> 2
B56: Área da Placa | D56: 1 | E56: 2 | F56: 1 | H56: =D56*E56*F56 -> 2
B57: Mão de Obra | D57: QUANT. PESSOAS | E57: ÍNDICE | F57: RENDIMENTO | G57: H | H57: DIAS
B58: CPU.03 - Carpinteiro De Formas Com Encargos Complementares | D58: 1 | E58: 1 | F58: =E58/D58 -> 1 | G58: =F58*H56 -> 2 | H58: =G58/8 -> 0.25
B59: CPU.03 - Servente Com Encargos Complementares | D59: 1 | E59: 2 | F59: =E59/D59 -> 2 | G59: =F59*$H$55 -> 4 | H59: =G59/8 -> 0.5
A60: =CPU!A55 -> 2.3.6 | B60: =VLOOKUP(A60,CPU!A11:H323,4,0) -> Hospedagem | C60: =VLOOKUP(A60,CPU!A11:H323,5,0) -> um | G60: Dias | H60: =H61 -> 0.75
H61: =D59*H59+D58*H58 -> 0.75
A62: =CPU!A56 -> 2.3.7 | B62: =VLOOKUP(A62,CPU!A13:H325,4,0) -> Miniônibus com capacidade para 30 passageiros - 111 Kw | C62: =VLOOKUP(A62,CPU!A13:H325,5,0) -> chp | E62: Horas/dia | F62: Quant.Dias | H62: =H63 -> 0.83
E63: =0.83*2 -> 1.66 | F63: =H59 -> 0.5 | H63: =E63*F63 -> 0.83
A64: =CPU!A57 -> 2.3.8 | B64: =VLOOKUP(A64,CPU!A15:H327,4,0) -> Miniônibus com capacidade para 30 passageiros - 111 Kw | C64: =VLOOKUP(A64,CPU!A15:H327,5,0) -> chi | E64: Horas/dia | F64: Quant.Dias | H64: =H65 -> 3.17
E65: =8-E63 -> 6.34 | F65: =H59 -> 0.5 | H65: =E65*F65 -> 3.17
A66: 3 | B66: =VLOOKUP(A66,'Planilha Orçamentária'!$A$10:$D$22,4,0) -> CORTE DA VEGETAÇÃO E REMOÇÃO DAS RAIZES
A67: 3.1 | B67: =VLOOKUP(A67,'Planilha Orçamentária'!$A$8:$E$5126,4,0) -> 
A68: =CPU!A66 -> 3.1.1 | B68: =VLOOKUP(A68,CPU!A18:H330,4,0) -> Limpeza Manual De Vegetação Em Terreno Com Enxada. Af_03/2024 | C68: =VLOOKUP(A68,CPU!A18:H330,5,0) -> m2 | H68: =H69 -> 9300
B69: Área calculada no Google Earth | H69: 9300
B70: Mão de Obra | D70: QUANT. PESSOAS | E70: ÍNDICE | F70: RENDIMENTO | G70: H | H70: DIAS
B71: 88316 SERVENTE COM ENCARGOS COMPLEMENTARES | C71: h | D71: 4 | E71: =0.0718 -> 0.0718 | F71: =E71/D71 -> 0.01795 | G71: =F71*H68 -> 166.935 | H71: =G71/8 -> 20.866875
B72: 88441 JARDINEIRO COM ENCARGOS COMPLEMENTARES | C72: h | D72: 4 | E72: =0.0718 -> 0.0718 | F72: =E72/D72 -> 0.01795 | G72: =F72*H68 -> 166.935 | H72: =G72/8 -> 20.866875
A74: =CPU!A67 -> 3.1.4 | B74: =VLOOKUP(A74,CPU!A24:H336,4,0) -> Transporte Com Caminhão Basculante De 6 M³, Em Via Urbana Em Revestimento Primário (Unidade: M3Xkm). Af_07/2020 | C74: =VLOOKUP(A74,CPU!A24:H336,5,0) -> m3xkm | D74: m² | E74: Km | F74: m | H74: =SUM(H75:H75) -> 2697
B75: Área medida do google earth, considerou-se 5km até o ponto de descarte | D75: =H68 -> 9300 | E75: =H8+5 -> 29 | F75: 0.01 | H75: =F75*E75*D75 -> 2697
A77: =CPU!A68 -> 3.1.4 | B77: =VLOOKUP(A77,CPU!A27:H339,4,0) -> Transporte Com Caminhão Basculante De 6 M³, Em Via Urbana Em Revestimento Primário (Unidade: M3Xkm). Af_07/2020 | C77: =VLOOKUP(A77,CPU!A27:H339,5,0) -> m3xkm | D77: m² | E77: Km | F77: m | H77: =SUM(H78:H78) -> 0.16
B78: Área medida do google earth, considerou-se o deslocamento da cidade mais próxima até a barragem sem carregamento de material | D78: 1 | E78: =H7 -> 16 | F78: 0.01 | H78: =F78*E78*D78 -> 0.16
A80: =CPU!A69 -> 3.1.5 | B80: =VLOOKUP(A80,CPU!A30:H342,4,0) -> Hospedagem | C80: =VLOOKUP(A80,CPU!A30:H342,5,0) -> um | G80: Dias | H80: =H81 -> 166.935
H81: =D72*H72+D71*H71 -> 166.935
A82: =CPU!A70 -> 3.1.6 | B82: =VLOOKUP(A82,CPU!A32:H344,4,0) -> Miniônibus com capacidade para 30 passageiros - 111 Kw | C82: =VLOOKUP(A82,CPU!A32:H344,5,0) -> chp | E82: Horas/dia | F82: Quant.Dias | H82: =H83 -> 34.6390125
E83: =0.83*2 -> 1.66 | F83: =H71 -> 20.866875 | H83: =E83*F83 -> 34.6390125
A84: =CPU!A71 -> 3.1.7 | B84: =VLOOKUP(A84,CPU!A34:H346,4,0) -> Miniônibus com capacidade para 30 passageiros - 111 Kw | C84: =VLOOKUP(A84,CPU!A34:H346,5,0) -> chi | E84: Horas/dia | F84: Quant.Dias | H84: =H85 -> 132.2959875
E85: =8-E83 -> 6.34 | F85: =H71 -> 20.866875 | H85: =E85*F85 -> 132.2959875
A86: 3.2 | B86: =VLOOKUP(A86,'Planilha Orçamentária'!$A$8:$E$5126,4,0) -> 
A87: =CPU!A78 -> 3.2.1 | B87: =VLOOKUP(A87,CPU!A37:H349,4,0) -> Corte Raso E Recorte De Árvore Com Diâmetro De Tronco Maior Ou Igual A 0,20 M E Menor Que 0,40 M. Af_03/2024 | C87: =VLOOKUP(A87,CPU!A37:H349,5,0) -> un | H87: =H88 -> 20
B88: Quantidade estimada através das imagens obtidas na visita técnica (Contém na especificação técnica) | H88: 20
B89: Mão de Obra | D89: QUANT. PESSOAS | E89: ÍNDICE | F89: RENDIMENTO | G89: H | H89: DIAS
B90: 88316 SERVENTE COM ENCARGOS COMPLEMENTARES | D90: 1 | E90: 1.5444 | F90: =E90/D90 -> 1.5444 | G90: =F90*H87 -> 30.888 | H90: =G90/8 -> 3.861
B91: 88441 JARDINEIRO COM ENCARGOS COMPLEMENTARES | D91: 1 | E91: 1.5444 | F91: =E91/D91 -> 1.5444 | G91: =F91*H87 -> 30.888 | H91: =G91/8 -> 3.861
A92: =CPU!A79 -> 3.2.2 | B92: =VLOOKUP(A92,CPU!A42:H354,4,0) -> Hospedagem | C92: =VLOOKUP(A92,CPU!A42:H354,5,0) -> um | G92: Dias | H92: =H93 -> 7.722
H93: =D91*H91+D90*H90 -> 7.722
A94: =CPU!A80 -> 3.2.3 | B94: =VLOOKUP(A94,CPU!A44:H356,4,0) -> Miniônibus com capacidade para 30 passageiros - 111 Kw | C94: =VLOOKUP(A94,CPU!A44:H356,5,0) -> chp | E94: Horas/dia | F94: Quant.Dias | H94: =H95 -> 6.40926
E95: =0.83*2 -> 1.66 | F95: =H90 -> 3.861 | H95: =E95*F95 -> 6.40926
A96: =CPU!A81 -> 3.2.4 | B96: =VLOOKUP(A96,CPU!A46:H358,4,0) -> Miniônibus com capacidade para 30 passageiros - 111 Kw | C96: =VLOOKUP(A96,CPU!A46:H358,5,0) -> chi | E96: Horas/dia | F96: Quant.Dias | H96: =H97 -> 24.47874
E97: =8-E95 -> 6.34 | F97: =H90 -> 3.861 | H97: =E97*F97 -> 24.47874
A98: 3.3 | B98: =VLOOKUP(A98,'Planilha Orçamentária'!$A$8:$E$5126,4,0) -> 
A99: =CPU!A88 -> 3.3.1 | B99: =VLOOKUP(A99,CPU!A49:H361,4,0) -> Remoção De Raízes Remanescentes De Tronco De Árvore Com Diâmetro Maior Ou Igual A 0,20 M E Menor Que 0,40 M. Af_03/2024 | C99: =VLOOKUP(A99,CPU!A49:H361,5,0) -> un | H99: =H100 -> 20
B100: Quantidade estimada através das imagens obtidas na visita técnica (Contém na especificação técnica) | H100: 20
B101: Mão de Obra | D101: QUANT. PESSOAS | E101: ÍNDICE | F101: RENDIMENTO | G101: H | H101: DIAS
B102: 88316 SERVENTE COM ENCARGOS COMPLEMENTARES | D102: 1 | E102: =0.678 -> 0.678 | F102: =E102/D102 -> 0.678 | G102: =F102*$H$99 -> 13.56 | H102: =G102/8 -> 1.695
B103: 88441 JARDINEIRO COM ENCARGOS COMPLEMENTARES | D103: 1 | E103: =0.678 -> 0.678 | F103: =E103/D103 -> 0.678 | G103: =F103*H99 -> 13.56 | H103: =G103/8 -> 1.695
A104: =CPU!A89 -> 3.3.2 | B104: =VLOOKUP(A104,CPU!A54:H366,4,0) -> Hospedagem | C104: =VLOOKUP(A104,CPU!A54:H366,5,0) -> um | G104: Dias | H104: =H105 -> 3.39
H105: =D103*H103+D102*H102 -> 3.39
A106: =CPU!A90 -> 3.3.3 | B106: =VLOOKUP(A106,CPU!A56:H368,4,0) -> Miniônibus com capacidade para 30 passageiros - 111 Kw | C106: =VLOOKUP(A106,CPU!A56:H368,5,0) -> chp | E106: Horas/dia | F106: Quant.Dias | H106: =H107 -> 2.8137
E107: =0.83*2 -> 1.66 | F107: =H102 -> 1.695 | H107: =E107*F107 -> 2.8137
A108: =CPU!A91 -> 3.3.4 | B108: =VLOOKUP(A108,CPU!A58:H370,4,0) -> Miniônibus com capacidade para 30 passageiros - 111 Kw | C108: =VLOOKUP(A108,CPU!A58:H370,5,0) -> chi | E108: Horas/dia | F108: Quant.Dias | H108: =H109 -> 10.7463
E109: =8-E107 -> 6.34 | F109: =H102 -> 1.695 | H109: =E109*F109 -> 10.7463
A110: 4 | B110: =VLOOKUP(A110,'Planilha Orçamentária'!A11:I61,4,0) -> APLICAÇÃO DE CONCRETO
A111: =CPU!A98 -> 4.1.1 | B111: =VLOOKUP(A111,CPU!A61:H373,4,0) -> Concretagem De Reservatórios, Fck=25 Mpa, Com Uso De Bomba - Lançamento, Adensamento E Acabamento. Af_02/2022_Ps | C111: =VLOOKUP(A111,CPU!A61:H373,5,0) -> m3 | D111: Profundidade (m) | E111: Área do buraco (m²) | F111: Quantidade (un) | H111: =H112 -> 0.16
B112: Considerou-se uma profundidade de 0,4m e uma área do buraco de 0,1m² e uma quantidade de 4 buracos | D112: 0.4 | E112: 0.1 | F112: 4 | H112: =E112*D112*F112 -> 0.16
B113: Mão de Obra | D113: QUANT. PESSOAS | E113: ÍNDICE | F113: RENDIMENTO | G113: H | H113: DIAS
B114: 88262 CARPINTEIRO DE FORMAS COM ENCARGOS COMPLEMENTARES | D114: 1 | E114: 0.171 | F114: =E114/D114 -> 0.171 | G114: =F114*$H$111 -> 0.02736 | H114: =G114/8 -> 0.00342
B115: 88309 PEDREIRO COM ENCARGOS COMPLEMENTARES | D115: 1 | E115: 1.026 | F115: =E115/D115 -> 1.026 | G115: =F115*$H$111 -> 0.16416 | H115: =G115/8 -> 0.02052
B116: 88316 SERVENTE COM ENCARGOS COMPLEMENTARES | D116: 1 | E116: 1.213 | F116: =E116/D116 -> 1.213 | G116: =F116*$H$111 -> 0.19408 | H116: =G116/8 -> 0.02426
A117: =CPU!A99 -> 4.1.2 | B117: =VLOOKUP(A117,CPU!A67:H379,4,0) -> Transporte Com Caminhão Basculante De 10 M³, Em Via Urbana Em Revestimento Primário (Unidade: Txkm). Af_07/2020 | C117: =VLOOKUP(A117,CPU!A67:H379,5,0) -> txkm | D117: m³ | E117: Densidade (Ton/m³) | F117: km | H117: =H118 -> 8.832
D118: =H111 -> 0.16 | E118: 2.3 | F118: =H8 -> 24 | H118: =F118*E118*D118 -> 8.832
A119: =CPU!A100 -> 4.1.3 | B119: =VLOOKUP(A119,CPU!A69:H381,4,0) -> Transporte Com Caminhão Basculante De 10 M³, Em Via Urbana Pavimentada, Adicional Para Dmt Excedente A 30 Km (Unidade: Txkm). Af_07/2020 | C119: =VLOOKUP(A119,CPU!A69:H381,5,0) -> txkm | D119: m³ | E119: Densidade (Ton/m³) | F119: km | H119: =H120 -> 5.888
D120: =H111 -> 0.16 | E120: 2.3 | F120: =H7 -> 16 | H120: =F120*E120*D120 -> 5.888
A121: =CPU!A101 -> 4.1.4 | B121: =VLOOKUP(A121,CPU!A71:H383,4,0) -> Hospedagem | C121: =VLOOKUP(A121,CPU!A71:H383,5,0) -> um | G121: Dias | H121: =H122 -> 0.0482
H122: =D115*H115+D114*H114+D116*H116 -> 0.0482
A123: =CPU!A102 -> 4.1.5 | B123: =VLOOKUP(A123,CPU!A73:H385,4,0) -> Miniônibus com capacidade para 30 passageiros - 111 Kw | C123: =VLOOKUP(A123,CPU!A73:H385,5,0) -> chp | E123: Horas/dia | F123: Quant.Dias | H123: =H124 -> 0.0402716
E124: =0.83*2 -> 1.66 | F124: =H116 -> 0.02426 | H124: =E124*F124 -> 0.0402716
A125: =CPU!A103 -> 4.1.6 | B125: =VLOOKUP(A125,CPU!A75:H387,4,0) -> Miniônibus com capacidade para 30 passageiros - 111 Kw | C125: =VLOOKUP(A125,CPU!A75:H387,5,0) -> chi | E125: Horas/dia | F125: Quant.Dias | H125: =H126 -> 0.1538084
E126: =8-E124 -> 6.34 | F126: =H116 -> 0.02426 | H126: =E126*F126 -> 0.1538084
A128: 5 | B128: =VLOOKUP(A128,'Planilha Orçamentária'!A11:I61,4,0) -> REGULARIZAÇÃO E MANUTENÇÃO DA CRISTA
A129: =CPU!A110 -> 5.1.1 | B129: =VLOOKUP(A129,CPU!A79:H391,4,0) -> Remoçao De Guias Pré-Fabricadas De Concreto, De Forma Mecanizada, Com Reaproveitamento. Af_09/2023 | C129: =VLOOKUP(A129,CPU!A79:H391,5,0) -> m | D129: Reaproveitamento (m) | H129: =H130 -> 405
B130: Considerou-se o comprimento de reaproveitamento de 405 m | D130: 405 | H130: =D130 -> 405
B131: Mão de Obra | D131: QUANT. PESSOAS | E131: ÍNDICE | F131: RENDIMENTO | G131: H | H131: DIAS
B132: 88309 PEDREIRO COM ENCARGOS COMPLEMENTARES | D132: 2 | E132: 0.2199 | F132: =E132/D132 -> 0.10995 | G132: =F132*H129 -> 44.52975 | H132: =G132/8 -> 5.56621875
B133: 88316 SERVENTE COM ENCARGOS COMPLEMENTARES | D133: 1 | E133: 0.0965 | F133: =E133/D133 -> 0.0965 | G133: =F133*H129 -> 39.0825 | H133: =G133/8 -> 4.8853125
A134: =CPU!A111 -> 5.1.2 | B134: =VLOOKUP(A134,CPU!A88:H400,4,0) -> Hospedagem | C134: =VLOOKUP(A134,CPU!A88:H400,5,0) -> um | G134: Dias | H134: =H135 -> 16.01775 | I134: =H134/H129 -> 0.03955
H135: =D132*H132+D133*H133 -> 16.01775
A136: =CPU!A112 -> 5.1.3 | B136: =VLOOKUP(A136,CPU!A90:H402,4,0) -> Miniônibus com capacidade para 30 passageiros - 111 Kw | C136: =VLOOKUP(A136,CPU!A90:H402,5,0) -> chp | E136: Horas/dia | F136: Quant.Dias | H136: =H137 -> 9.239923125 | I136: =H136/H129 -> 0.022814625
E137: =0.83*2 -> 1.66 | F137: =H132 -> 5.56621875 | H137: =E137*F137 -> 9.239923125
A138: =CPU!A113 -> 5.1.4 | B138: =VLOOKUP(A138,CPU!A92:H404,4,0) -> Miniônibus com capacidade para 30 passageiros - 111 Kw | C138: =VLOOKUP(A138,CPU!A92:H404,5,0) -> chi | E138: Horas/dia | F138: Quant.Dias | H138: =H139 -> 35.28982687 | I138: =H138/H129 -> 0.087135375
E139: =8-E137 -> 6.34 | F139: =H132 -> 5.56621875 | H139: =E139*F139 -> 35.28982687
A140: =CPU!A120 -> 5.2.1 | B140: =VLOOKUP(A140,CPU!A84:H396,4,0) -> Regularização E Compactação De Subleito De Solo Predominantemente Arenoso. Af_11/2019 | C140: =VLOOKUP(A140,CPU!A84:H396,5,0) -> m2 | D140: Largura (m) | E140: Comprimento (m) | H140: =H141 -> 1377
B141: Medidas de comprimento e largura obtida do google earth | D141: 3.4 | E141: =D130 -> 405 | H141: =E141*D141 -> 1377
B142: Mão de Obra | D142: QUANT. PESSOAS | E142: ÍNDICE | F142: RENDIMENTO | G142: H | H142: DIAS
B143: 88316 SERVENTE COM ENCARGOS COMPLEMENTARES | D143: 1 | E143: 0.003 | F143: =E143/D143 -> 0.003 | G143: =F143*H140 -> 4.131 | H143: =G143/8 -> 0.516375
A144: =CPU!A121 -> 5.2.2 | B144: =VLOOKUP(A144,CPU!A98:H410,4,0) -> Hospedagem | C144: =VLOOKUP(A144,CPU!A98:H410,5,0) -> um | G144: Dias | H144: =H145 -> 0.516375 | I144: =H143/H140 -> 0.000375
H145: =D143*H143 -> 0.516375
A146: =CPU!A122 -> 5.2.3 | B146: =VLOOKUP(A146,CPU!A100:H412,4,0) -> Miniônibus com capacidade para 30 passageiros - 111 Kw | C146: =VLOOKUP(A146,CPU!A100:H412,5,0) -> chp | E146: Horas/dia | F146: Quant.Dias | H146: =H147 -> 0.8571825 | I146: =H147/H140 -> 0.0006225
E147: =0.83*2 -> 1.66 | F147: =H143 -> 0.516375 | H147: =E147*F147 -> 0.8571825
A148: =CPU!A123 -> 5.2.4 | B148: =VLOOKUP(A148,CPU!A102:H414,4,0) -> Miniônibus com capacidade para 30 passageiros - 111 Kw | C148: =VLOOKUP(A148,CPU!A102:H414,5,0) -> chi | E148: Horas/dia | F148: Quant.Dias | H148: =H149 -> 3.2738175 | I148: =H149/H140 -> 0.0023775
E149: =8-E147 -> 6.34 | F149: =H143 -> 0.516375 | H149: =E149*F149 -> 3.2738175
A150: =CPU!A130 -> 5.3.1 | B150: =VLOOKUP(A150,CPU!A94:H406,4,0) -> Execução E Compactação De Base E Ou Sub Base Para Pavimentação De Brita Graduada Simples - Exclusive Carga E Transporte. Af_11/2019 | C150: =VLOOKUP(A150,CPU!A94:H406,5,0) -> m3 | D150: Largura (m) | E150: Comprimento (m) | F150: Camada | H150: =H151 -> 137.7
B151: Medidas de comprimento e largura obtida do google earth | D151: 3.4 | E151: 405 | F151: 0.1 | H151: =F151*E151*D151 -> 137.7
B152: Mão de Obra | D152: QUANT. PESSOAS | E152: ÍNDICE | F152: RENDIMENTO | G152: H | H152: DIAS
B153: 88316 SERVENTE COM ENCARGOS COMPLEMENTARES | D153: 1 | E153: 0.003 | F153: =E153/D153 -> 0.003 | G153: =F153*H150 -> 0.4131 | H153: =G153/8 -> 0.0516375
A154: =CPU!A131 -> 5.3.2 | B154: =VLOOKUP(A154,CPU!A108:H420,4,0) -> Carga, Manobra E Descarga De Solos E Materiais Granulares Em Caminhão Basculante 18 M³ - Carga Com Pá Carregadeira (Caçamba De 1,7 A 2,8 M³ / 128 Hp) E Descarga Livre (Unidade: M3). Af_07/2020 | C154: =VLOOKUP(A154,CPU!A108:H420,5,0) -> m3 | D154: Largura (m) | E154: Comprimento (m) | F154: Camada | H154: =H155 -> 137.7
D155: 3.4 | E155: 405 | F155: 0.1 | H155: =F155*E155*D155 -> 137.7
A156: =CPU!A132 -> 5.3.3 | B156: =VLOOKUP(A156,CPU!A110:H422,4,0) -> Transporte Com Caminhão Basculante De 18 M³, Em Via Urbana Em Revestimento Primário (Unidade: M3Xkm). Af_07/2020 | C156: =VLOOKUP(A156,CPU!A110:H422,5,0) -> m3xkm | D156: m³ | E156: km | H156: =H157 -> 3304.8 | I156: =H157/H154 -> 24
D157: =H155 -> 137.7 | E157: =H8 -> 24 | H157: =D157*E157 -> 3304.8
A158: =CPU!A133 -> 5.3.4 | B158: =VLOOKUP(A158,CPU!A112:H424,4,0) -> Transporte Com Caminhão Basculante De 18 M³, Em Via Urbana Em Leito Natural (Unidade: M3Xkm). Af_07/2020 | C158: =VLOOKUP(A158,CPU!A112:H424,5,0) -> m3xkm | D158: m³ | E158: km | H158: =H159 -> 2203.2 | I158: =H159/H154 -> 16
D159: =H155 -> 137.7 | E159: =H7 -> 16 | H159: =E159*D159 -> 2203.2
A160: =CPU!A134 -> 5.3.5 | B160: =VLOOKUP(A160,CPU!A114:H426,4,0) -> Hospedagem | C160: =VLOOKUP(A160,CPU!A114:H426,5,0) -> um | G160: Dias | H160: =H161 -> 0.0516375 | I160: =H161/H154 -> 0.000375
H161: =D153*H153 -> 0.0516375
A162: =CPU!A135 -> 5.3.6 | B162: =VLOOKUP(A162,CPU!A116:H428,4,0) -> Miniônibus com capacidade para 30 passageiros - 111 Kw | C162: =VLOOKUP(A162,CPU!A116:H428,5,0) -> chp | E162: Horas/dia | F162: Quant.Dias | H162: =H163 -> 0.08571825 | I162: =H163/H154 -> 0.0006225
E163: =0.83*2 -> 1.66 | F163: =H160 -> 0.0516375 | H163: =E163*F163 -> 0.08571825
A164: =CPU!A136 -> 5.3.7 | B164: =VLOOKUP(A164,CPU!A118:H430,4,0) -> Miniônibus com capacidade para 30 passageiros - 111 Kw | C164: =VLOOKUP(A164,CPU!A118:H430,5,0) -> chi | E164: Horas/dia | F164: Quant.Dias | H164: =H165 -> 0.32738175 | I164: =H165/H154 -> 0.0023775
E165: =8-E163 -> 6.34 | F165: =H160 -> 0.0516375 | H165: =E165*F165 -> 0.32738175
A167: 6 | B167: =VLOOKUP(A167,'Planilha Orçamentária'!A28:I78,4,0) -> RECOMPOSIÇÃO DE EROSÃO DO TALUDE DE JUSANTE
A168: =CPU!B139 -> 6.1 | B168: =VLOOKUP(A168,CPU!B24:H336,3,0) -> Solo Melhorado com cimento | C168: m³ | E168: m² | F168: Espessura (m) | H168: =H169 -> 86.75
B169: Área talude de jusante a ser melhorada calculada pelo Google Earth, considerou-se a metade do talude (região mais próxima do encontro com o coroamento) | E169: 1735 | F169: 0.1 | H169: =(E169/2)*F169 -> 86.75
B170: Mão de Obra | D170: QUANT. PESSOAS | E170: ÍNDICE | F170: RENDIMENTO | G170: H | H170: DIAS
B171: 88377 OPERADOR DE BETONEIRA ESTACIONÁRIA/MISTURADOR COM ENCARGOS COMPLEMENTARES | D171: 3 | E171: 5.16 | F171: =E171/D171 -> 1.72 | G171: =F171*H168 -> 149.21 | H171: =G171/8 -> 18.65125
A172: =CPU!A149 -> 6.1.7 | B172: =VLOOKUP(A172,CPU!A112:H425,4,0) -> Hospedagem | C172: =VLOOKUP(A172,CPU!A112:H425,5,0) -> um | G172: Dias | H172: =H173 -> 55.95375
H173: =D171*H171 -> 55.95375
A174: =CPU!A150 -> 6.1.8 | B174: =VLOOKUP(A174,CPU!A114:H427,4,0) -> Miniônibus com capacidade para 30 passageiros - 111 Kw | C174: =VLOOKUP(A174,CPU!A114:H427,5,0) -> chp | E174: Horas/dia | F174: Quant.Dias | H174: =H175 -> 30.961075
E175: =0.83*2 -> 1.66 | F175: =H171 -> 18.65125 | H175: =E175*F175 -> 30.961075
A176: =CPU!A151 -> 6.1.9 | B176: =VLOOKUP(A176,CPU!A125:H429,4,0) -> Miniônibus com capacidade para 30 passageiros - 111 Kw | C176: =VLOOKUP(A176,CPU!A125:H429,5,0) -> chi | E176: Horas/dia | F176: Quant.Dias | H176: =H177 -> 118.248925
E177: =8-E175 -> 6.34 | F177: =H171 -> 18.65125 | H177: =E177*F177 -> 118.248925
A179: 7 | B179: =VLOOKUP(A179,'Planilha Orçamentária'!A28:I78,4,0) -> DRENAGEM SUPERFICIAL DO TALUDE JUSANTE
A180: 7.1 | B180: =VLOOKUP(A180,'Planilha Orçamentária'!$A$8:$E$5126,4,0) -> Manutenção da Canaleta para descida d'água
A181: =CPU!A159 -> 7.1.1 | B181: =VLOOKUP(A181,CPU!A143:H434,4,0) -> Limpeza de descida d'água | C181: =VLOOKUP(A181,CPU!A143:H434,5,0) -> m | D181: Comprimento (m) | H181: =H182 -> 100
B182: Considerou-se 100m de comprimento | D182: 100 | H182: =D182 -> 100
B183: Mão de Obra | D183: QUANT. PESSOAS | E183: ÍNDICE | F183: RENDIMENTO | G183: H | H183: DIAS
B184: 88316 SERVENTE COM ENCARGOS COMPLEMENTARES | C184: h | D184: 1 | E184: =0.0718 -> 0.0718 | F184: =E184/D184 -> 0.0718 | G184: =F184*H181 -> 7.18 | H184: =G184/8 -> 0.8975
B185: 88441 JARDINEIRO COM ENCARGOS COMPLEMENTARES | C185: h | D185: 1 | E185: =0.0718 -> 0.0718 | F185: =E185/D185 -> 0.0718 | G185: =F185*H181 -> 7.18 | H185: =G185/8 -> 0.8975
A186: =CPU!A160 -> 7.1.2 | B186: =VLOOKUP(A186,CPU!A148:H439,4,0) -> Hospedagem | C186: =VLOOKUP(A186,CPU!A148:H439,5,0) -> um | G186: Dias | H186: =H187 -> 0.8975
H187: =D185*H185 -> 0.8975
A188: =CPU!A161 -> 7.1.3 | B188: =VLOOKUP(A188,CPU!A150:H441,4,0) -> Miniônibus com capacidade para 30 passageiros - 111 Kw | C188: =VLOOKUP(A188,CPU!A150:H441,5,0) -> chp | E188: Horas/dia | F188: Quant.Dias | H188: =H189 -> 1.48985
E189: =0.83*2 -> 1.66 | F189: =H185 -> 0.8975 | H189: =E189*F189 -> 1.48985
A190: =CPU!A162 -> 7.1.4 | B190: =VLOOKUP(A190,CPU!A152:H443,4,0) -> Miniônibus com capacidade para 30 passageiros - 111 Kw | C190: =VLOOKUP(A190,CPU!A152:H443,5,0) -> chi | E190: Horas/dia | F190: Quant.Dias | H190: =H191 -> 5.69015
E191: =8-E189 -> 6.34 | F191: =H184 -> 0.8975 | H191: =F191*E191 -> 5.69015
A192: 7.2 | B192: =VLOOKUP(A192,'Planilha Orçamentária'!$A$8:$E$5126,4,0) -> Entrada para descida d'água
A193: =CPU!A170 -> 7.2.1 | B193: =VLOOKUP(A193,CPU!A140:H444,4,0) -> Concreto Fck = 20Mpa, Traço 1:2,7:3 (Em Massa Seca De Cimento/ Areia Média/ Brita 1) - Preparo Mecânico Com Betoneira 400 L. Af_05/2021 | D193: Unidades | H193: =H194 -> 4
B194: Considerou-se 4 unidades | D194: 4 | H194: =D194 -> 4
B195: Mão de Obra | D195: QUANT. PESSOAS | E195: ÍNDICE | F195: RENDIMENTO | G195: H | H195: DIAS
B196: 88316 SERVENTE COM ENCARGOS COMPLEMENTARES | D196: 2 | E196: 2.5333 | F196: =E196/D196 -> 1.26665 | G196: =F196*H193 -> 5.0666 | H196: =G196/8 -> 0.633325
B197: 88377 OPERADOR DE BETONEIRA ESTACIONÁRIA/MISTURADOR COM ENCARGOS COMPLEMENTARES | D197: 1 | E197: 1.6046 | F197: =E197/D197 -> 1.6046 | G197: =F197*H193 -> 6.4184 | H197: =G197/8 -> 0.8023
A198: =CPU!A171 -> 7.2.2 | B198: =VLOOKUP(A198,CPU!A142:H446,4,0) -> Fabricação De Fôrma Para Lajes, Em Chapa De Madeira Compensada Plastificada, E = 18 Mm. Af_09/2020 | D198: Unidades | H198: =H199 -> 4
B199: Considerou-se 4 unidades | D199: 4 | H199: =D199 -> 4
B200: Mão de Obra | D200: QUANT. PESSOAS | E200: ÍNDICE | F200: RENDIMENTO | G200: H | H200: DIAS
B201: 88239 AJUDANTE DE CARPINTEIRO COM ENCARGOS COMPLEMENTARES | D201: 1 | E201: 0.005 | F201: =E201/D201 -> 0.005 | G201: =F201*H198 -> 0.02 | H201: =G201/8 -> 0.0025
B202: 88262 CARPINTEIRO DE FORMAS COM ENCARGOS COMPLEMENTARES | D202: 1 | E202: 0.005 | F202: =E202/D202 -> 0.005 | G202: =F202*H198 -> 0.02 | H202: =G202/8 -> 0.0025
A203: =CPU!A172 -> 7.2.3 | B203: =VLOOKUP(A203,CPU!A151:H455,4,0) -> Hospedagem | C203: =VLOOKUP(A203,CPU!A151:H455,5,0) -> um | G203: Dias | H203: =H204 -> 0.0025
H204: =D202*H202 -> 0.0025
A205: =CPU!A173 -> 7.2.4 | B205: =VLOOKUP(A205,CPU!A153:H457,4,0) -> Miniônibus com capacidade para 30 passageiros - 111 Kw | C205: =VLOOKUP(A205,CPU!A153:H457,5,0) -> chp | E205: Horas/dia | F205: Quant.Dias | H205: =H206 -> 1.331818
E206: =0.83*2 -> 1.66 | F206: =H197 -> 0.8023 | H206: =E206*F206 -> 1.331818
A207: =CPU!A174 -> 7.2.5 | B207: =VLOOKUP(A207,CPU!A155:H459,4,0) -> Miniônibus com capacidade para 30 passageiros - 111 Kw | C207: =VLOOKUP(A207,CPU!A155:H459,5,0) -> chi | E207: Horas/dia | F207: Quant.Dias | H207: =H208 -> 5.086582
E208: =8-E206 -> 6.34 | F208: =H197 -> 0.8023 | H208: =F208*E208 -> 5.086582
A209: 8 | B209: =VLOOKUP(A209,'Planilha Orçamentária'!A28:I78,4,0) -> PROTEÇÃO SUPERFICIAL DO TALUDE DE JUSANTE
... 172 more rows

Sheet BDI serv
A1: Ministério da Integração e do Desenvolvimento Regional
A2: Companhia de Desenvolvimento dos Vales do São Francisco e do Parnaíba
A3: ='Planilha Orçamentária'!A3:I3 -> 0
A4: COMPOSIÇÃO DE BDI - SERVIÇOS - ONERADO
A5: OBRA: | B5: =UPPER("SERVIÇOS DE MANUTENÇÃO E OBRAS CIVIS NA ESTRUTURA DA BARRAGEM E EQUIPAMENTO HIDROMECÂNICO") -> SERVIÇOS DE MANUTENÇÃO E OBRAS CIVIS NA ESTRUTURA DA BARRAGEM E EQUIPAMENTO HIDROMECÂNICO | F5: BDI (serv.): | G5: =D22 -> 0.2378
A6: LOCAL: | B6: ='Planilha Orçamentária'!B6 -> BARRAGEM DESERTO, PETROLINA/PE | F6: BDI (forn.): | G6: ='BDI forn'!D22 -> 0.136
A7: DATA BASE: | B7: ='Planilha Orçamentária'!B7:C7 -> 2024-05-01
A8: PRAZO: | B8: ='Planilha Orçamentária'!B8:C8 -> 120
A9: ITEM | B9: DESCRIÇÃO | C9: SIGLA | D9: % APLICADO | E9: REFERÊNCIA TCU (ACÓRDÃO Nº 2622/2013)
E10: 1º QUARTIL | F10: 2º QUARTIL | G10: 3º QUARTIL
A11: 1 | B11: ADMINISTRAÇÃO CENTRAL | C11: AC | D11: =E11 -> 0.04 | E11: 0.04 | F11: 0.0552 | G11: 0.0785
A12: 2 | B12: IMPOSTOS | C12: T | D12: =SUM(D13:D16) -> 0.0715
A13: 2.1 | B13: ISS (*) | D13: 0.035 | E13: - | F13: - | G13: -
A14: 2.2 | B14: PIS | D14: 0.0065 | E14: - | F14: - | G14: -
A15: 2.3 | B15: Cofins | D15: 0.03 | E15: - | F15: - | G15: -
A16: 2.4 | B16: Contribuição previdênciária sobre a receita bruta (CPRB) | E16: - | F16: - | G16: -
A17: 3 | B17: SEGURO, GARANTIA E RISCO | D17: =SUM(D18:D19) -> 0.0227
A18: 3.1 | B18: Seguro + Garantia | C18: S + G | D18: =E18 -> 0.0081 | E18: 0.0081 | F18: 0.0122 | G18: 0.0199
A19: 3.2 | B19: Risco | C19: R | D19: =E19 -> 0.0146 | E19: 0.0146 | F19: 0.0232 | G19: 0.0316
A20: 4 | B20: DESPESAS FINANCEIRAS | C20: DF | D20: =E20 -> 0.0094 | E20: 0.0094 | F20: 0.0102 | G20: 0.01363
A21: 5 | B21: LUCRO | C21: L | D21: =E21 -> 0.0714 | E21: 0.0714 | F21: 0.084 | G21: 0.1043
B22: BDI ADOTADO: | D22: =ROUND(((((1+D11+D17)*(1+D20)*(1+D21))/(1-D12))-1),4) -> 0.2378
A23: Considerações: O BDI foi calculado através da seguinte fórmula, regulamentada pelo Acórdão Nº 2622/2013 – TCU.

Sheet BDI serv Desonerado (hidden)
A1: Ministério do Desenvolvimento Regional
A2: Companhia de Desenvolvimento dos Vales do São Francisco e do Parnaíba
A3: ='Planilha Orçamentária'!A3:I3 -> 0
A4: COMPOSIÇÃO DE BDI - SERVIÇOS - DESONERADO
A5: OBRA: | B5: =UPPER("SERVIÇOS DE MANUTENÇÃO E OBRAS CIVIS NA ESTRUTURA DA BARRAGEM E EQUIPAMENTO HIDROMECÂNICO") -> SERVIÇOS DE MANUTENÇÃO E OBRAS CIVIS NA ESTRUTURA DA BARRAGEM E EQUIPAMENTO HIDROMECÂNICO | D5: BDI (serv.): | E5: =D22 -> 0.3351
A6: LOCAL: | B6: BARRAGEM POÇO DO MAGRO, GUANAMBI/BA | D6: BDI (forn.): | E6: ='BDI forn Desonerado'!E6 -> 0.212
A7: DATA BASE: | B7: 2023-05-01
A8: PRAZO: | B8: 120 DIAS
A9: ITEM | B9: DESCRIÇÃO | C9: SIGLA | D9: % APLICADO | E9: REFERÊNCIA TCU (ACÓRDÃO Nº 2622/2013)
E10: 1º QUARTIL | F10: 2º QUARTIL | G10: 3º QUARTIL
A11: 1 | B11: ADMINISTRAÇÃO CENTRAL | C11: AC | D11: =E11 -> 0.04 | E11: 0.04 | F11: 0.0552 | G11: 0.0785
A12: 2 | B12: IMPOSTOS | C12: T | D12: =SUM(D13:D16) -> 0.1315
A13: 2.1 | B13: ISS (*) | D13: 0.05 | E13: - | F13: - | G13: -
A14: 2.2 | B14: PIS | D14: 0.0065 | E14: - | F14: - | G14: -
A15: 2.3 | B15: Cofins | D15: 0.03 | E15: - | F15: - | G15: -
A16: 2.4 | B16: Contribuição previdênciária sobre a receita bruta (CPRB) | D16: 0.045 | E16: - | F16: - | G16: -
A17: 3 | B17: SEGURO, GARANTIA E RISCO | D17: =SUM(D18:D19) -> 0.0313
A18: 3.1 | B18: Seguro + Garantia | C18: S + G | D18: =E18 -> 0.0081 | E18: 0.0081 | F18: 0.0122 | G18: 0.0199
A19: 3.2 | B19: Risco | C19: R | D19: =F19 -> 0.0232 | E19: 0.0146 | F19: 0.0232 | G19: 0.0316
A20: 4 | B20: DESPESAS FINANCEIRAS | C20: DF | D20: =F20 -> 0.0102 | E20: 0.0094 | F20: 0.0102 | G20: 0.01363
A21: 5 | B21: LUCRO | C21: L | D21: =E21 -> 0.0714 | E21: 0.0714 | F21: 0.084 | G21: 0.1043
B22: BDI ADOTADO: | D22: =ROUND(((((1+D11+D17)*(1+D20)*(1+D21))/(1-D12))-1),4) -> 0.3351
A23: Considerações: O BDI foi calculado através da seguinte fórmula, regulamentada pelo Acórdão Nº 2622/2013 – TCU. * O percentual de ISSQN aqui utilizado refere-se ao município de Porteirinha/MG, conforme Lei Complementar 1899/2007 - Art. 1º (Item 7.02C). Conforme Art. 112, § 14, na base de cálculo do ISSQN considerou-se dedução do percentual abaixo discriminado.

Sheet BDI forn
A1: Ministério do Desenvolvimento Regional
A2: Companhia de Desenvolvimento dos Vales do São Francisco e do Parnaíba
A3: ='Planilha Orçamentária'!A3:I3 -> 0
A4: COMPOSIÇÃO DE BDI - FORNECIMENTO - ONERADO
A5: OBRA: | B5: =UPPER("SERVIÇOS DE MANUTENÇÃO E OBRAS CIVIS NA ESTRUTURA DA BARRAGEM E EQUIPAMENTO HIDROMECÂNICO") -> SERVIÇOS DE MANUTENÇÃO E OBRAS CIVIS NA ESTRUTURA DA BARRAGEM E EQUIPAMENTO HIDROMECÂNICO | D5: BDI (serv.): | E5: ='BDI serv'!D22 -> 0.2378
A6: LOCAL: | B6: ='Planilha Orçamentária'!B6 -> BARRAGEM DESERTO, PETROLINA/PE | D6: BDI (forn.): | E6: =D22 -> 0.136
A7: DATA BASE: | B7: ='Planilha Orçamentária'!B7:C7 -> 2024-05-01
A8: PRAZO: | B8: ='Planilha Orçamentária'!B8 -> 120
A9: ITEM | B9: DESCRIÇÃO | C9: SIGLA | D9: % APLICADO | E9: REFERÊNCIA TCU (ACÓRDÃO Nº 2622/2013)
E10: 1º QUARTIL | F10: 2º QUARTIL | G10: 3º QUARTIL
A11: 1 | B11: ADMINISTRAÇÃO CENTRAL | C11: AC | D11: 0.04 | E11: 0.015 | F11: 0.0345 | G11: 0.0449
A12: 2 | B12: IMPOSTOS | C12: T | D12: =SUM(D13:D16) -> 0.0365
A13: 2.1 | B13: ISS (*) | E13: - | F13: - | G13: -
A14: 2.2 | B14: PIS | D14: 0.0065 | E14: - | F14: - | G14: -
A15: 2.3 | B15: Cofins | D15: 0.03 | E15: - | F15: - | G15: -
A16: 2.4 | B16: Contribuição previdênciária sobre a receita bruta (CPRB) | E16: - | F16: - | G16: -
A17: 3 | B17: SEGURO, GARANTIA E RISCO | D17: =SUM(D18:D19) -> 0.0086
A18: 3.1 | B18: Seguro + Garantia | C18: S + G | D18: =E18 -> 0.003 | E18: 0.003 | F18: 0.0048 | G18: 0.0082
A19: 3.3 | B19: Risco | C19: R | D19: =E19 -> 0.0056 | E19: 0.0056 | F19: 0.0085 | G19: 0.0089
A20: 4 | B20: DESPESAS FINANCEIRAS | C20: DF | D20: =E20 -> 0.0085 | E20: 0.0085 | F20: 0.0085 | G20: 0.0111
A21: 5 | B21: LUCRO | C21: L | D21: 0.035 | E21: 0.035 | F21: 0.0511 | G21: 0.0622
B22: BDI ADOTADO: | D22: =ROUND(((((1+D11+D17)*(1+D20)*(1+D21))/(1-D12))-1),4) -> 0.136
A23: Considerações: O BDI foi calculado através da seguinte fórmula, regulamentada pelo Acórdão Nº 2622/2013 – TCU.

Sheet BDI forn Desonerado (hidden)
A1: Ministério do Desenvolvimento Regional
A2: Companhia de Desenvolvimento dos Vales do São Francisco e do Parnaíba
A3: ='Planilha Orçamentária'!A3:I3 -> 0
A4: COMPOSIÇÃO DE BDI - FORNECIMENTO - DESONERADO
A5: OBRA: | B5: =UPPER("SERVIÇOS DE MANUTENÇÃO E OBRAS CIVIS NA ESTRUTURA DA BARRAGEM E EQUIPAMENTO HIDROMECÂNICO") -> SERVIÇOS DE MANUTENÇÃO E OBRAS CIVIS NA ESTRUTURA DA BARRAGEM E EQUIPAMENTO HIDROMECÂNICO | D5: BDI (serv.): | E5: ='BDI serv Desonerado'!E5 -> 0.3351
A6: LOCAL: | B6: BARRAGEM POÇO DO MAGRO, GUANAMBI/BA | D6: BDI (forn.): | E6: =D22 -> 0.212
A7: DATA BASE: | B7: 2023-05-01
A8: PRAZO: | B8: 120 DIAS
A9: ITEM | B9: DESCRIÇÃO | C9: SIGLA | D9: % APLICADO | E9: REFERÊNCIA TCU (ACÓRDÃO Nº 2622/2013)
E10: 1º QUARTIL | F10: 2º QUARTIL | G10: 3º QUARTIL
A11: 1 | B11: ADMINISTRAÇÃO CENTRAL | C11: AC | D11: 0.04 | E11: 0.015 | F11: 0.0345 | G11: 0.0449
A12: 2 | B12: IMPOSTOS | C12: T | D12: =SUM(D13:D16) -> 0.0815
A13: 2.1 | B13: ISS (*) | E13: - | F13: - | G13: -
A14: 2.2 | B14: PIS | D14: 0.0065 | E14: - | F14: - | G14: -
A15: 2.3 | B15: Cofins | D15: 0.03 | E15: - | F15: - | G15: -
A16: 2.4 | B16: Contribuição previdênciária sobre a receita bruta (CPRB) | D16: 0.045 | E16: - | F16: - | G16: -
A17: 3 | B17: SEGURO, GARANTIA E RISCO | D17: =SUM(D18:D19) -> 0.0086
A18: 3.1 | B18: Seguro +Garantia | C18: S+G | D18: =E18 -> 0.003 | E18: 0.003 | F18: 0.0048 | G18: 0.0082
A19: 3.2 | B19: Risco | C19: R | D19: =E19 -> 0.0056 | E19: 0.0056 | F19: 0.0085 | G19: 0.0089
A20: 4 | B20: DESPESAS FINANCEIRAS | C20: DF | D20: 0.01 | E20: 0.0085 | F20: 0.0085 | G20: 0.0111
A21: 5 | B21: LUCRO | C21: L | D21: =F21 -> 0.0511 | E21: 0.035 | F21: 0.0511 | G21: 0.0622
B22: BDI ADOTADO: | D22: =ROUND(((((1+D11+D17)*(1+D20)*(1+D21))/(1-D12))-1),4) -> 0.212
A23: Considerações: O BDI foi calculado através da seguinte fórmula, regulamentada pelo Acórdão Nº 2622/2013 – TCU.

Sheet Encargos Sociais
A1: Ministério da Integração e do Desenvolvimento Regional
A2: Companhia de Desenvolvimento dos Vales do São Francisco e do Parnaíba
A3: ='Planilha Orçamentária'!A3:I3 -> 0
A4: COMPOSIÇÃO DE ENCARGOS SOCIAIS SOBRE A MÃO DE OBRA
A5: OBRA: | B5: =UPPER("SERVIÇOS DE MANUTENÇÃO E OBRAS CIVIS NA ESTRUTURA DA BARRAGEM E EQUIPAMENTO HIDROMECÂNICO") -> SERVIÇOS DE MANUTENÇÃO E OBRAS CIVIS NA ESTRUTURA DA BARRAGEM E EQUIPAMENTO HIDROMECÂNICO
A6: LOCAL: | B6: ='Planilha Orçamentária'!B6 -> BARRAGEM DESERTO, PETROLINA/PE
A7: DATA BASE: | B7: ='Planilha Orçamentária'!B7 -> 2024-05-01
A8: PRAZO: | B8: ='Planilha Orçamentária'!B8 -> 120
A9: Encargos Sociais – Pernambuco VIGÊNCIA A PARTIR DE 12/2023
A10: ENCARGOS SOCIAIS SOBRE A MÃO DE OBRA
A11: CÓDIGO | B11: DESCRIÇÃO | C11: COM DESONERAÇÃO | E11: SEM DESONERAÇÃO
C12: HORISTA % | D12: MENSALISTA % | E12: HORISTA % | F12: MENSALISTA %
A13: GRUPO A
A14: A1 | B14: INSS | C14: 0 | D14: 0 | E14: 0.2 | F14: 0.2
A15: A2 | B15: SESI | C15: 0.015 | D15: 0.015 | E15: 0.015 | F15: 0.015
A16: A3 | B16: SENAI | C16: 0.01 | D16: 0.01 | E16: 0.01 | F16: 0.01
A17: A4 | B17: INCRA | C17: 0.002 | D17: 0.002 | E17: 0.002 | F17: 0.002
A18: A5 | B18: SEBRAE | C18: 0.006 | D18: 0.006 | E18: 0.006 | F18: 0.006
A19: A6 | B19: Salário Educação | C19: 0.025 | D19: 0.025 | E19: 0.025 | F19: 0.025
A20: A7 | B20: Seguro Contra Acidentes de Trabalho | C20: 0.03 | D20: 0.03 | E20: 0.03 | F20: 0.03
A21: A8 | B21: FGTS | C21: 0.08 | D21: 0.08 | E21: 0.08 | F21: 0.08
A22: A9 | B22: SECONCI | C22: 0 | D22: 0 | E22: 0 | F22: 0
A23: A | B23: Total | C23: =SUM(C14:C22) -> 0.168 | D23: =SUM(D14:D22) -> 0.168 | E23: =SUM(E14:E22) -> 0.368 | F23: =SUM(F14:F22) -> 0.368
A24: GRUPO B
A25: B1 | B25: Repouso Semanal Remunerado | C25: 0.1801 | D25: Não incide | E25: 0.1801 | F25: Não incide
A26: B2 | B26: Feriados | C26: 0.0432 | D26: Não incide | E26: 0.0432 | F26: Não incide
A27: B3 | B27: Auxílio - Enfermidade | C27: 0.0085 | D27: 0.0064 | E27: 0.0085 | F27: 0.0064
A28: B4 | B28: 13º Salário | C28: 0.1103 | D28: 0.0833 | E28: 0.1103 | F28: 0.0833
A29: B5 | B29: Licença Paternidade | C29: 0.0006 | D29: 0.0004 | E29: 0.0006 | F29: 0.0004
A30: B6 | B30: Faltas Justificadas | C30: 0.0074 | D30: 0.0056 | E30: 0.0074 | F30: 0.0056
A31: B7 | B31: Dias de Chuvas | C31: 0.0198 | D31: Não incide | E31: 0.0198 | F31: Não incide
A32: B8 | B32: Auxílio Acidente de Trabalho | C32: 0.001 | D32: 0.0008 | E32: 0.001 | F32: 0.0008
A33: B9 | B33: Férias Gozadas | C33: 0.109 | D33: 0.0824 | E33: 0.109 | F33: 0.0824
A34: B10 | B34: Salário Maternidade | C34: 0.0004 | D34: 0.0003 | E34: 0.0004 | F34: 0.0003
A35: B | B35: Total | C35: =SUM(C25:C34) -> 0.4803 | D35: =SUM(D25:D34) -> 0.1792 | E35: =SUM(E25:E34) -> 0.4803 | F35: =SUM(F25:F34) -> 0.1792
A36: GRUPO C
A37: C1 | B37: Aviso Prévio Indenizado | C37: 0.048 | D37: 0.0363 | E37: 0.048 | F37: 0.0363
A38: C2 | B38: Aviso Prévio Trabalhado | C38: 0.0011 | D38: 0.0009 | E38: 0.0011 | F38: 0.0009
A39: C3 | B39: Férias Indenizadas | C39: 0.0291 | D39: 0.022 | E39: 0.0291 | F39: 0.022
A40: C4 | B40: Depósito Rescisão Sem Justa Causa | C40: 0.0283 | D40: 0.0214 | E40: 0.0283 | F40: 0.0214
A41: C5 | B41: Indenização Adicional | C41: 0.004 | D41: 0.0031 | E41: 0.004 | F41: 0.0031
A42: C | B42: Total | C42: =SUM(C37:C41) -> 0.1105 | D42: =SUM(D37:D41) -> 0.0837 | E42: =SUM(E37:E41) -> 0.1105 | F42: =SUM(F37:F41) -> 0.0837
A43: GRUPO D
A44: D1 | B44: Reincidência de Grupo A sobre Grupo B | C44: 0.0807 | D44: 0.0301 | E44: 0.1768 | F44: 0.0659
A45: D2 | B45: Reincidência de Grupo A sobre Aviso Prévio Trabalhado e Reincidência do FGTS sobre Aviso Prévio Indenizado | C45: 0.004 | D45: 0.0031 | E45: 0.0042 | F45: 0.0032
A46: D | B46: Total | C46: =SUM(C44:C45) -> 0.0847 | D46: =SUM(D44:D45) -> 0.0332 | E46: =SUM(E44:E45) -> 0.181 | F46: =SUM(F44:F45) -> 0.0691
A47: TOTAL(A+B+C+D) | C47: =C23+C35+C42+C46 -> 0.8435 | D47: =D23+D35+D42+D46 -> 0.4641 | E47: =E23+E35+E42+E46 -> 1.1398 | F47: =F23+F35+F42+F46 -> 0.7
A48: Fonte: Informação Dias de Chuva – INMET

Sheet Comp SINAPI PE 12-2023 Onerado (hidden)
A1: PCI.817.01 - CUSTO DE COMPOSIÇÕES - SINTÉTICO DATA DE EMISSÃO: 17/04/2024 23:50:35 DATA DE RT: 17/04/2024
A2: ENCARGOS SOCIAIS SOBRE PREÇOS DA MÃO-DE-OBRA: 113,98%(HORA) 70,00%(MÊS)
A3: ABRANGÊNCIA : NACIONAL LOCALIDADE : RECIFE DATA DE PREÇO : 03/2024 REFERÊNCIA COLETA : MEDIANO
A5: DESCRICAO DA CLASSE | B5: SIGLA DA CLASSE | C5: DESCRICAO DO TIPO 1 | D5: SIGLA DO TIPO 1 | E5: CODIGO DO AGRUPADOR | F5: DESCRICAO DO AGRUPADOR | G5: CODIGO DA COMPOSICAO | H5: DESCRICAO DA COMPOSICAO | I5: UNIDADE | J5: ORIGEM DE PREÇO | K5: CUSTO TOTAL | L5: VINCULO
A7: ASSENTAMENTO DE TUBOS E PECAS | B7: ASTU | C7: FORNEC E/OU ASSENT DE TUBO DE FERRO FUNDIDO JUNTA ELASTICA | D7: 0045 | G7: 97141 | H7: ASSENTAMENTO DE TUBO DE FERRO FUNDIDO PARA REDE DE ÁGUA, DN 80 MM, JUNTA ELÁSTICA, INSTALADO EM LOCAL COM NÍVEL ALTO DE INTERFERÊNCIAS (NÃO INCLUI FORNECIMENTO). AF_11/2017 | I7: M | J7: COEFICIENTE DE REPRESENTATIVIDADE | K7: 8.97 | L7: CAIXA REFERENCIAL
A8: ASSENTAMENTO DE TUBOS E PECAS | B8: ASTU | C8: FORNEC E/OU ASSENT DE TUBO DE FERRO FUNDIDO JUNTA ELASTICA | D8: 0045 | G8: 97142 | H8: ASSENTAMENTO DE TUBO DE FERRO FUNDIDO PARA REDE DE ÁGUA, DN 100 MM, JUNTA ELÁSTICA, INSTALADO EM LOCAL COM NÍVEL ALTO DE INTERFERÊNCIAS (NÃO INCLUI FORNECIMENTO). AF_11/2017 | I8: M | J8: COEFICIENTE DE REPRESENTATIVIDADE | K8: 9.93 | L8: CAIXA REFERENCIAL
A9: ASSENTAMENTO DE TUBOS E PECAS | B9: ASTU | C9: FORNEC E/OU ASSENT DE TUBO DE FERRO FUNDIDO JUNTA ELASTICA | D9: 0045 | G9: 97143 | H9: ASSENTAMENTO DE TUBO DE FERRO FUNDIDO PARA REDE DE ÁGUA, DN 150 MM, JUNTA ELÁSTICA, INSTALADO EM LOCAL COM NÍVEL ALTO DE INTERFERÊNCIAS (NÃO INCLUI FORNECIMENTO). AF_11/2017 | I9: M | J9: COEFICIENTE DE REPRESENTATIVIDADE | K9: 12.37 | L9: CAIXA REFERENCIAL
A10: ASSENTAMENTO DE TUBOS E PECAS | B10: ASTU | C10: FORNEC E/OU ASSENT DE TUBO DE FERRO FUNDIDO JUNTA ELASTICA | D10: 0045 | G10: 97144 | H10: ASSENTAMENTO DE TUBO DE FERRO FUNDIDO PARA REDE DE ÁGUA, DN 200 MM, JUNTA ELÁSTICA, INSTALADO EM LOCAL COM NÍVEL ALTO DE INTERFERÊNCIAS (NÃO INCLUI FORNECIMENTO). AF_11/2017 | I10: M | J10: COEFICIENTE DE REPRESENTATIVIDADE | K10: 14.79 | L10: CAIXA REFERENCIAL
A11: ASSENTAMENTO DE TUBOS E PECAS | B11: ASTU | C11: FORNEC E/OU ASSENT DE TUBO DE FERRO FUNDIDO JUNTA ELASTICA | D11: 0045 | G11: 97145 | H11: ASSENTAMENTO DE TUBO DE FERRO FUNDIDO PARA REDE DE ÁGUA, DN 250 MM, JUNTA ELÁSTICA, INSTALADO EM LOCAL COM NÍVEL ALTO DE INTERFERÊNCIAS (NÃO INCLUI FORNECIMENTO). AF_11/2017 | I11: M | J11: COEFICIENTE DE REPRESENTATIVIDADE | K11: 17.24 | L11: CAIXA REFERENCIAL
A12: ASSENTAMENTO DE TUBOS E PECAS | B12: ASTU | C12: FORNEC E/OU ASSENT DE TUBO DE FERRO FUNDIDO JUNTA ELASTICA | D12: 0045 | G12: 97146 | H12: ASSENTAMENTO DE TUBO DE FERRO FUNDIDO PARA REDE DE ÁGUA, DN 300 MM, JUNTA ELÁSTICA, INSTALADO EM LOCAL COM NÍVEL ALTO DE INTERFERÊNCIAS (NÃO INCLUI FORNECIMENTO). AF_11/2017 | I12: M | J12: COEFICIENTE DE REPRESENTATIVIDADE | K12: 19.68 | L12: CAIXA REFERENCIAL
A13: ASSENTAMENTO DE TUBOS E PECAS | B13: ASTU | C13: FORNEC E/OU ASSENT DE TUBO DE FERRO FUNDIDO JUNTA ELASTICA | D13: 0045 | G13: 97147 | H13: ASSENTAMENTO DE TUBO DE FERRO FUNDIDO PARA REDE DE ÁGUA, DN 350 MM, JUNTA ELÁSTICA, INSTALADO EM LOCAL COM NÍVEL ALTO DE INTERFERÊNCIAS (NÃO INCLUI FORNECIMENTO). AF_11/2017 | I13: M | J13: COEFICIENTE DE REPRESENTATIVIDADE | K13: 22.12 | L13: CAIXA REFERENCIAL
A14: ASSENTAMENTO DE TUBOS E PECAS | B14: ASTU | C14: FORNEC E/OU ASSENT DE TUBO DE FERRO FUNDIDO JUNTA ELASTICA | D14: 0045 | G14: 97148 | H14: ASSENTAMENTO DE TUBO DE FERRO FUNDIDO PARA REDE DE ÁGUA, DN 400 MM, JUNTA ELÁSTICA, INSTALADO EM LOCAL COM NÍVEL ALTO DE INTERFERÊNCIAS (NÃO INCLUI FORNECIMENTO). AF_11/2017 | I14: M | J14: COEFICIENTE DE REPRESENTATIVIDADE | K14: 24.56 | L14: CAIXA REFERENCIAL
A15: ASSENTAMENTO DE TUBOS E PECAS | B15: ASTU | C15: FORNEC E/OU ASSENT DE TUBO DE FERRO FUNDIDO JUNTA ELASTICA | D15: 0045 | G15: 97149 | H15: ASSENTAMENTO DE TUBO DE FERRO FUNDIDO PARA REDE DE ÁGUA, DN 450 MM, JUNTA ELÁSTICA, INSTALADO EM LOCAL COM NÍVEL ALTO DE INTERFERÊNCIAS (NÃO INCLUI FORNECIMENTO). AF_11/2017 | I15: M | J15: COEFICIENTE DE REPRESENTATIVIDADE | K15: 27.04 | L15: CAIXA REFERENCIAL
A16: ASSENTAMENTO DE TUBOS E PECAS | B16: ASTU | C16: FORNEC E/OU ASSENT DE TUBO DE FERRO FUNDIDO JUNTA ELASTICA | D16: 0045 | G16: 97150 | H16: ASSENTAMENTO DE TUBO DE FERRO FUNDIDO PARA REDE DE ÁGUA, DN 500 MM, JUNTA ELÁSTICA, INSTALADO EM LOCAL COM NÍVEL ALTO DE INTERFERÊNCIAS (NÃO INCLUI FORNECIMENTO). AF_11/2017 | I16: M | J16: COEFICIENTE DE REPRESENTATIVIDADE | K16: 33.71 | L16: CAIXA REFERENCIAL
A17: ASSENTAMENTO DE TUBOS E PECAS | B17: ASTU | C17: FORNEC E/OU ASSENT DE TUBO DE FERRO FUNDIDO JUNTA ELASTICA | D17: 0045 | G17: 97151 | H17: ASSENTAMENTO DE TUBO DE FERRO FUNDIDO PARA REDE DE ÁGUA, DN 600 MM, JUNTA ELÁSTICA, INSTALADO EM LOCAL COM NÍVEL ALTO DE INTERFERÊNCIAS (NÃO INCLUI FORNECIMENTO). AF_11/2017 | I17: M | J17: COEFICIENTE DE REPRESENTATIVIDADE | K17: 39.24 | L17: CAIXA REFERENCIAL
A18: ASSENTAMENTO DE TUBOS E PECAS | B18: ASTU | C18: FORNEC E/OU ASSENT DE TUBO DE FERRO FUNDIDO JUNTA ELASTICA | D18: 0045 | G18: 97152 | H18: ASSENTAMENTO DE TUBO DE FERRO FUNDIDO PARA REDE DE ÁGUA, DN 700 MM, JUNTA ELÁSTICA, INSTALADO EM LOCAL COM NÍVEL ALTO DE INTERFERÊNCIAS (NÃO INCLUI FORNECIMENTO). AF_11/2017 | I18: M | J18: COEFICIENTE DE REPRESENTATIVIDADE | K18: 44.53 | L18: CAIXA REFERENCIAL
A19: ASSENTAMENTO DE TUBOS E PECAS | B19: ASTU | C19: FORNEC E/OU ASSENT DE TUBO DE FERRO FUNDIDO JUNTA ELASTICA | D19: 0045 | G19: 97153 | H19: ASSENTAMENTO DE TUBO DE FERRO FUNDIDO PARA REDE DE ÁGUA, DN 800 MM, JUNTA ELÁSTICA, INSTALADO EM LOCAL COM NÍVEL ALTO DE INTERFERÊNCIAS (NÃO INCLUI FORNECIMENTO). AF_11/2017 | I19: M | J19: COEFICIENTE DE REPRESENTATIVIDADE | K19: 49.97 | L19: CAIXA REFERENCIAL
A20: ASSENTAMENTO DE TUBOS E PECAS | B20: ASTU | C20: FORNEC E/OU ASSENT DE TUBO DE FERRO FUNDIDO JUNTA ELASTICA | D20: 0045 | G20: 97154 | H20: ASSENTAMENTO DE TUBO DE FERRO FUNDIDO PARA REDE DE ÁGUA, DN 900 MM, JUNTA ELÁSTICA, INSTALADO EM LOCAL COM NÍVEL ALTO DE INTERFERÊNCIAS (NÃO INCLUI FORNECIMENTO). AF_11/2017 | I20: M | J20: COEFICIENTE DE REPRESENTATIVIDADE | K20: 55.46 | L20: CAIXA REFERENCIAL
A21: ASSENTAMENTO DE TUBOS E PECAS | B21: ASTU | C21: FORNEC E/OU ASSENT DE TUBO DE FERRO FUNDIDO JUNTA ELASTICA | D21: 0045 | G21: 97155 | H21: ASSENTAMENTO DE TUBO DE FERRO FUNDIDO PARA REDE DE ÁGUA, DN 1000 MM, JUNTA ELÁSTICA, INSTALADO EM LOCAL COM NÍVEL ALTO DE INTERFERÊNCIAS (NÃO INCLUI FORNECIMENTO). AF_11/2017 | I21: M | J21: COEFICIENTE DE REPRESENTATIVIDADE | K21: 60.92 | L21: CAIXA REFERENCIAL
A22: ASSENTAMENTO DE TUBOS E PECAS | B22: ASTU | C22: FORNEC E/OU ASSENT DE TUBO DE FERRO FUNDIDO JUNTA ELASTICA | D22: 0045 | G22: 97156 | H22: ASSENTAMENTO DE TUBO DE FERRO FUNDIDO PARA REDE DE ÁGUA, DN 1200 MM, JUNTA ELÁSTICA, INSTALADO EM LOCAL COM NÍVEL ALTO DE INTERFERÊNCIAS (NÃO INCLUI FORNECIMENTO). AF_11/2017 | I22: M | J22: COEFICIENTE DE REPRESENTATIVIDADE | K22: 72.23 | L22: CAIXA REFERENCIAL
A23: ASSENTAMENTO DE TUBOS E PECAS | B23: ASTU | C23: FORNEC E/OU ASSENT DE TUBO DE FERRO FUNDIDO JUNTA ELASTICA | D23: 0045 | G23: 97157 | H23: ASSENTAMENTO DE TUBO DE FERRO FUNDIDO PARA REDE DE ÁGUA, DN 80 MM, JUNTA ELÁSTICA, INSTALADO EM LOCAL COM NÍVEL BAIXO DE INTERFERÊNCIAS (NÃO INCLUI FORNECIMENTO). AF_11/2017 | I23: M | J23: COEFICIENTE DE REPRESENTATIVIDADE | K23: 5.37 | L23: CAIXA REFERENCIAL
A24: ASSENTAMENTO DE TUBOS E PECAS | B24: ASTU | C24: FORNEC E/OU ASSENT DE TUBO DE FERRO FUNDIDO JUNTA ELASTICA | D24: 0045 | G24: 97158 | H24: ASSENTAMENTO DE TUBO DE FERRO FUNDIDO PARA REDE DE ÁGUA, DN 100 MM, JUNTA ELÁSTICA, INSTALADO EM LOCAL COM NÍVEL BAIXO DE INTERFERÊNCIAS (NÃO INCLUI FORNECIMENTO). AF_11/2017 | I24: M | J24: COEFICIENTE DE REPRESENTATIVIDADE | K24: 5.96 | L24: CAIXA REFERENCIAL
A25: ASSENTAMENTO DE TUBOS E PECAS | B25: ASTU | C25: FORNEC E/OU ASSENT DE TUBO DE FERRO FUNDIDO JUNTA ELASTICA | D25: 0045 | G25: 97159 | H25: ASSENTAMENTO DE TUBO DE FERRO FUNDIDO PARA REDE DE ÁGUA, DN 150 MM, JUNTA ELÁSTICA, INSTALADO EM LOCAL COM NÍVEL BAIXO DE INTERFERÊNCIAS (NÃO INCLUI FORNECIMENTO). AF_11/2017 | I25: M | J25: COEFICIENTE DE REPRESENTATIVIDADE | K25: 7.43 | L25: CAIXA REFERENCIAL
A26: ASSENTAMENTO DE TUBOS E PECAS | B26: ASTU | C26: FORNEC E/OU ASSENT DE TUBO DE FERRO FUNDIDO JUNTA ELASTICA | D26: 0045 | G26: 97160 | H26: ASSENTAMENTO DE TUBO DE FERRO FUNDIDO PARA REDE DE ÁGUA, DN 200 MM, JUNTA ELÁSTICA, INSTALADO EM LOCAL COM NÍVEL BAIXO DE INTERFERÊNCIAS (NÃO INCLUI FORNECIMENTO). AF_11/2017 | I26: M | J26: COEFICIENTE DE REPRESENTATIVIDADE | K26: 8.89 | L26: CAIXA REFERENCIAL
A27: ASSENTAMENTO DE TUBOS E PECAS | B27: ASTU | C27: FORNEC E/OU ASSENT DE TUBO DE FERRO FUNDIDO JUNTA ELASTICA | D27: 0045 | G27: 97161 | H27: ASSENTAMENTO DE TUBO DE FERRO FUNDIDO PARA REDE DE ÁGUA, DN 250 MM, JUNTA ELÁSTICA, INSTALADO EM LOCAL COM NÍVEL BAIXO DE INTERFERÊNCIAS (NÃO INCLUI FORNECIMENTO). AF_11/2017 | I27: M | J27: COEFICIENTE DE REPRESENTATIVIDADE | K27: 10.38 | L27: CAIXA REFERENCIAL
A28: ASSENTAMENTO DE TUBOS E PECAS | B28: ASTU | C28: FORNEC E/OU ASSENT DE TUBO DE FERRO FUNDIDO JUNTA ELASTICA | D28: 0045 | G28: 97162 | H28: ASSENTAMENTO DE TUBO DE FERRO FUNDIDO PARA REDE DE ÁGUA, DN 300 MM, JUNTA ELÁSTICA, INSTALADO EM LOCAL COM NÍVEL BAIXO DE INTERFERÊNCIAS (NÃO INCLUI FORNECIMENTO). AF_11/2017 | I28: M | J28: COEFICIENTE DE REPRESENTATIVIDADE | K28: 11.86 | L28: CAIXA REFERENCIAL
A29: ASSENTAMENTO DE TUBOS E PECAS | B29: ASTU | C29: FORNEC E/OU ASSENT DE TUBO DE FERRO FUNDIDO JUNTA ELASTICA | D29: 0045 | G29: 97163 | H29: ASSENTAMENTO DE TUBO DE FERRO FUNDIDO PARA REDE DE ÁGUA, DN 350 MM, JUNTA ELÁSTICA, INSTALADO EM LOCAL COM NÍVEL BAIXO DE INTERFERÊNCIAS (NÃO INCLUI FORNECIMENTO). AF_11/2017 | I29: M | J29: COEFICIENTE DE REPRESENTATIVIDADE | K29: 13.36 | L29: CAIXA REFERENCIAL
A30: ASSENTAMENTO DE TUBOS E PECAS | B30: ASTU | C30: FORNEC E/OU ASSENT DE TUBO DE FERRO FUNDIDO JUNTA ELASTICA | D30: 0045 | G30: 97164 | H30: ASSENTAMENTO DE TUBO DE FERRO FUNDIDO PARA REDE DE ÁGUA, DN 400 MM, JUNTA ELÁSTICA, INSTALADO EM LOCAL COM NÍVEL BAIXO DE INTERFERÊNCIAS (NÃO INCLUI FORNECIMENTO). AF_11/2017 | I30: M | J30: COEFICIENTE DE REPRESENTATIVIDADE | K30: 14.84 | L30: CAIXA REFERENCIAL
A31: ASSENTAMENTO DE TUBOS E PECAS | B31: ASTU | C31: FORNEC E/OU ASSENT DE TUBO DE FERRO FUNDIDO JUNTA ELASTICA | D31: 0045 | G31: 97165 | H31: ASSENTAMENTO DE TUBO DE FERRO FUNDIDO PARA REDE DE ÁGUA, DN 450 MM, JUNTA ELÁSTICA, INSTALADO EM LOCAL COM NÍVEL BAIXO DE INTERFERÊNCIAS (NÃO INCLUI FORNECIMENTO). AF_11/2017 | I31: M | J31: COEFICIENTE DE REPRESENTATIVIDADE | K31: 16.35 | L31: CAIXA REFERENCIAL
A32: ASSENTAMENTO DE TUBOS E PECAS | B32: ASTU | C32: FORNEC E/OU ASSENT DE TUBO DE FERRO FUNDIDO JUNTA ELASTICA | D32: 0045 | G32: 97166 | H32: ASSENTAMENTO DE TUBO DE FERRO FUNDIDO PARA REDE DE ÁGUA, DN 500 MM, JUNTA ELÁSTICA, INSTALADO EM LOCAL COM NÍVEL BAIXO DE INTERFERÊNCIAS (NÃO INCLUI FORNECIMENTO). AF_11/2017 | I32: M | J32: COEFICIENTE DE REPRESENTATIVIDADE | K32: 20.4 | L32: CAIXA REFERENCIAL
A33: ASSENTAMENTO DE TUBOS E PECAS | B33: ASTU | C33: FORNEC E/OU ASSENT DE TUBO DE FERRO FUNDIDO JUNTA ELASTICA | D33: 0045 | G33: 97167 | H33: ASSENTAMENTO DE TUBO DE FERRO FUNDIDO PARA REDE DE ÁGUA, DN 600 MM, JUNTA ELÁSTICA, INSTALADO EM LOCAL COM NÍVEL BAIXO DE INTERFERÊNCIAS (NÃO INCLUI FORNECIMENTO). AF_11/2017 | I33: M | J33: COEFICIENTE DE REPRESENTATIVIDADE | K33: 23.78 | L33: CAIXA REFERENCIAL
A34: ASSENTAMENTO DE TUBOS E PECAS | B34: ASTU | C34: FORNEC E/OU ASSENT DE TUBO DE FERRO FUNDIDO JUNTA ELASTICA | D34: 0045 | G34: 97168 | H34: ASSENTAMENTO DE TUBO DE FERRO FUNDIDO PARA REDE DE ÁGUA, DN 700 MM, JUNTA ELÁSTICA, INSTALADO EM LOCAL COM NÍVEL BAIXO DE INTERFERÊNCIAS (NÃO INCLUI FORNECIMENTO). AF_11/2017 | I34: M | J34: COEFICIENTE DE REPRESENTATIVIDADE | K34: 26.93 | L34: CAIXA REFERENCIAL
A35: ASSENTAMENTO DE TUBOS E PECAS | B35: ASTU | C35: FORNEC E/OU ASSENT DE TUBO DE FERRO FUNDIDO JUNTA ELASTICA | D35: 0045 | G35: 97169 | H35: ASSENTAMENTO DE TUBO DE FERRO FUNDIDO PARA REDE DE ÁGUA, DN 800 MM, JUNTA ELÁSTICA, INSTALADO EM LOCAL COM NÍVEL BAIXO DE INTERFERÊNCIAS (NÃO INCLUI FORNECIMENTO). AF_11/2017 | I35: M | J35: COEFICIENTE DE REPRESENTATIVIDADE | K35: 30.23 | L35: CAIXA REFERENCIAL
A36: ASSENTAMENTO DE TUBOS E PECAS | B36: ASTU | C36: FORNEC E/OU ASSENT DE TUBO DE FERRO FUNDIDO JUNTA ELASTICA | D36: 0045 | G36: 97170 | H36: ASSENTAMENTO DE TUBO DE FERRO FUNDIDO PARA REDE DE ÁGUA, DN 900 MM, JUNTA ELÁSTICA, INSTALADO EM LOCAL COM NÍVEL BAIXO DE INTERFERÊNCIAS (NÃO INCLUI FORNECIMENTO). AF_11/2017 | I36: M | J36: COEFICIENTE DE REPRESENTATIVIDADE | K36: 33.55 | L36: CAIXA REFERENCIAL
A37: ASSENTAMENTO DE TUBOS E PECAS | B37: ASTU | C37: FORNEC E/OU ASSENT DE TUBO DE FERRO FUNDIDO JUNTA ELASTICA | D37: 0045 | G37: 97171 | H37: ASSENTAMENTO DE TUBO DE FERRO FUNDIDO PARA REDE DE ÁGUA, DN 1000 MM, JUNTA ELÁSTICA, INSTALADO EM LOCAL COM NÍVEL BAIXO DE INTERFERÊNCIAS (NÃO INCLUI FORNECIMENTO). AF_11/2017 | I37: M | J37: COEFICIENTE DE REPRESENTATIVIDADE | K37: 36.88 | L37: CAIXA REFERENCIAL
A38: ASSENTAMENTO DE TUBOS E PECAS | B38: ASTU | C38: FORNEC E/OU ASSENT DE TUBO DE FERRO FUNDIDO JUNTA ELASTICA | D38: 0045 | G38: 97172 | H38: ASSENTAMENTO DE TUBO DE FERRO FUNDIDO PARA REDE DE ÁGUA, DN 1200 MM, JUNTA ELÁSTICA, INSTALADO EM LOCAL COM NÍVEL BAIXO DE INTERFERÊNCIAS (NÃO INCLUI FORNECIMENTO). AF_11/2017 | I38: M | J38: COEFICIENTE DE REPRESENTATIVIDADE | K38: 43.89 | L38: CAIXA REFERENCIAL
A39: ASSENTAMENTO DE TUBOS E PECAS | B39: ASTU | C39: FORNEC E/OU ASSENT DE TUBO DE ACO COM JUNTA SOLDADA | D39: 0046 | G39: 97173 | H39: ASSENTAMENTO DE TUBO DE AÇO CARBONO PARA REDE DE ÁGUA, DN 600 MM (24"), JUNTA SOLDADA, INSTALADO EM LOCAL COM NÍVEL ALTO DE INTERFERÊNCIAS (NÃO INCLUI FORNECIMENTO). AF_11/2017 | I39: M | J39: COEFICIENTE DE REPRESENTATIVIDADE | K39: 36.23 | L39: CAIXA REFERENCIAL
A40: ASSENTAMENTO DE TUBOS E PECAS | B40: ASTU | C40: FORNEC E/OU ASSENT DE TUBO DE ACO COM JUNTA SOLDADA | D40: 0046 | G40: 97174 | H40: ASSENTAMENTO DE TUBO DE AÇO CARBONO PARA REDE DE ÁGUA, DN 700 MM (28"), JUNTA SOLDADA, INSTALADO EM LOCAL COM NÍVEL ALTO DE INTERFERÊNCIAS (NÃO INCLUI FORNECIMENTO). AF_11/2017 | I40: M | J40: COEFICIENTE DE REPRESENTATIVIDADE | K40: 41.95 | L40: CAIXA REFERENCIAL
A41: ASSENTAMENTO DE TUBOS E PECAS | B41: ASTU | C41: FORNEC E/OU ASSENT DE TUBO DE ACO COM JUNTA SOLDADA | D41: 0046 | G41: 97175 | H41: ASSENTAMENTO DE TUBO DE AÇO CARBONO PARA REDE DE ÁGUA, DN 800 MM (32"), JUNTA SOLDADA, INSTALADO EM LOCAL COM NÍVEL ALTO DE INTERFERÊNCIAS (NÃO INCLUI FORNECIMENTO). AF_11/2017 | I41: M | J41: COEFICIENTE DE REPRESENTATIVIDADE | K41: 47.66 | L41: CAIXA REFERENCIAL
A42: ASSENTAMENTO DE TUBOS E PECAS | B42: ASTU | C42: FORNEC E/OU ASSENT DE TUBO DE ACO COM JUNTA SOLDADA | D42: 0046 | G42: 97176 | H42: ASSENTAMENTO DE TUBO DE AÇO CARBONO PARA REDE DE ÁGUA, DN 900 MM (36"), JUNTA SOLDADA, INSTALADO EM LOCAL COM NÍVEL ALTO DE INTERFERÊNCIAS (NÃO INCLUI FORNECIMENTO). AF_11/2017 | I42: M | J42: COEFICIENTE DE REPRESENTATIVIDADE | K42: 53.37 | L42: CAIXA REFERENCIAL
A43: ASSENTAMENTO DE TUBOS E PECAS | B43: ASTU | C43: FORNEC E/OU ASSENT DE TUBO DE ACO COM JUNTA SOLDADA | D43: 0046 | G43: 97177 | H43: ASSENTAMENTO DE TUBO DE AÇO CARBONO PARA REDE DE ÁGUA, DN 1000 MM (40") OU DN 1100 MM (44"), JUNTA SOLDADA, INSTALADO EM LOCAL COM NÍVEL ALTO DE INTERFERÊNCIAS (NÃO INCLUI FORNECIMENTO). AF_11/2017 | I43: M | J43: COEFICIENTE DE REPRESENTATIVIDADE | K43: 64.81 | L43: CAIXA REFERENCIAL
A44: ASSENTAMENTO DE TUBOS E PECAS | B44: ASTU | C44: FORNEC E/OU ASSENT DE TUBO DE ACO COM JUNTA SOLDADA | D44: 0046 | G44: 97178 | H44: ASSENTAMENTO DE TUBO DE AÇO CARBONO PARA REDE DE ÁGUA, DN 1200 MM (48") OU DN 1300 MM (52"), JUNTA SOLDADA, INSTALADO EM LOCAL COM NÍVEL ALTO DE INTERFERÊNCIAS (NÃO INCLUI FORNECIMENTO). AF_11/2017 | I44: M | J44: COEFICIENTE DE REPRESENTATIVIDADE | K44: 76.25 | L44: CAIXA REFERENCIAL
A45: ASSENTAMENTO DE TUBOS E PECAS | B45: ASTU | C45: FORNEC E/OU ASSENT DE TUBO DE ACO COM JUNTA SOLDADA | D45: 0046 | G45: 97179 | H45: ASSENTAMENTO DE TUBO DE AÇO CARBONO PARA REDE DE ÁGUA, DN 1400 MM (56'') OU DN 1500 MM (60"), JUNTA SOLDADA, INSTALADO EM LOCAL COM NÍVEL ALTO DE INTERFERÊNCIAS (NÃO INCLUI FORNECIMENTO). AF_11/2017 | I45: M | J45: COEFICIENTE DE REPRESENTATIVIDADE | K45: 87.65 | L45: CAIXA REFERENCIAL
A46: ASSENTAMENTO DE TUBOS E PECAS | B46: ASTU | C46: FORNEC E/OU ASSENT DE TUBO DE ACO COM JUNTA SOLDADA | D46: 0046 | G46: 97180 | H46: ASSENTAMENTO DE TUBO DE AÇO CARBONO PARA REDE DE ÁGUA, DN 1600 MM (64") OU DN 1700 MM (68"), JUNTA SOLDADA, INSTALADO EM LOCAL COM NÍVEL ALTO DE INTERFERÊNCIAS (NÃO INCLUI FORNECIMENTO). AF_11/2017 | I46: M | J46: COEFICIENTE DE REPRESENTATIVIDADE | K46: 99.1 | L46: CAIXA REFERENCIAL
A47: ASSENTAMENTO DE TUBOS E PECAS | B47: ASTU | C47: FORNEC E/OU ASSENT DE TUBO DE ACO COM JUNTA SOLDADA | D47: 0046 | G47: 97181 | H47: ASSENTAMENTO DE TUBO DE AÇO CARBONO PARA REDE DE ÁGUA, DN 1800 MM (72") OU DN 1900 MM (76"), JUNTA SOLDADA, INSTALADO EM LOCAL COM NÍVEL ALTO DE INTERFERÊNCIAS (NÃO INCLUI FORNECIMENTO). AF_11/2017 | I47: M | J47: COEFICIENTE DE REPRESENTATIVIDADE | K47: 115.2 | L47: CAIXA REFERENCIAL
A48: ASSENTAMENTO DE TUBOS E PECAS | B48: ASTU | C48: FORNEC E/OU ASSENT DE TUBO DE ACO COM JUNTA SOLDADA | D48: 0046 | G48: 97182 | H48: ASSENTAMENTO DE TUBO DE AÇO CARBONO PARA REDE DE ÁGUA, DN 2000 MM (80") OU DN 2100 MM (84"), JUNTA SOLDADA, INSTALADO EM LOCAL COM NÍVEL ALTO DE INTERFERÊNCIAS (NÃO INCLUI FORNECIMENTO). AF_11/2017 | I48: M | J48: COEFICIENTE DE REPRESENTATIVIDADE | K48: 127.14 | L48: CAIXA REFERENCIAL
A49: ASSENTAMENTO DE TUBOS E PECAS | B49: ASTU | C49: FORNEC E/OU ASSENT DE TUBO DE ACO COM JUNTA SOLDADA | D49: 0046 | G49: 97183 | H49: ASSENTAMENTO DE TUBO DE AÇO CARBONO PARA REDE DE ÁGUA, DN 600 MM (24"), JUNTA SOLDADA, INSTALADO EM LOCAL COM NÍVEL BAIXO DE INTERFERÊNCIAS (NÃO INCLUI FORNECIMENTO). AF_11/2017 | I49: M | J49: COEFICIENTE DE REPRESENTATIVIDADE | K49: 28.59 | L49: CAIXA REFERENCIAL
A50: ASSENTAMENTO DE TUBOS E PECAS | B50: ASTU | C50: FORNEC E/OU ASSENT DE TUBO DE ACO COM JUNTA SOLDADA | D50: 0046 | G50: 97184 | H50: ASSENTAMENTO DE TUBO DE AÇO CARBONO PARA REDE DE ÁGUA, DN 700 MM (28"), JUNTA SOLDADA, INSTALADO EM LOCAL COM NÍVEL BAIXO DE INTERFERÊNCIAS (NÃO INCLUI FORNECIMENTO). AF_11/2017 | I50: M | J50: COEFICIENTE DE REPRESENTATIVIDADE | K50: 33.15 | L50: CAIXA REFERENCIAL
A51: ASSENTAMENTO DE TUBOS E PECAS | B51: ASTU | C51: FORNEC E/OU ASSENT DE TUBO DE ACO COM JUNTA SOLDADA | D51: 0046 | G51: 97185 | H51: ASSENTAMENTO DE TUBO DE AÇO CARBONO PARA REDE DE ÁGUA, DN 800 MM (32"), JUNTA SOLDADA, INSTALADO EM LOCAL COM NÍVEL BAIXO DE INTERFERÊNCIAS (NÃO INCLUI FORNECIMENTO). AF_11/2017 | I51: M | J51: COEFICIENTE DE REPRESENTATIVIDADE | K51: 37.72 | L51: CAIXA REFERENCIAL
A52: ASSENTAMENTO DE TUBOS E PECAS | B52: ASTU | C52: FORNEC E/OU ASSENT DE TUBO DE ACO COM JUNTA SOLDADA | D52: 0046 | G52: 97186 | H52: ASSENTAMENTO DE TUBO DE AÇO CARBONO PARA REDE DE ÁGUA, DN 900 MM (36"), JUNTA SOLDADA, INSTALADO EM LOCAL COM NÍVEL BAIXO DE INTERFERÊNCIAS (NÃO INCLUI FORNECIMENTO). AF_11/2017 | I52: M | J52: COEFICIENTE DE REPRESENTATIVIDADE | K52: 42.3 | L52: CAIXA REFERENCIAL
A53: ASSENTAMENTO DE TUBOS E PECAS | B53: ASTU | C53: FORNEC E/OU ASSENT DE TUBO DE ACO COM JUNTA SOLDADA | D53: 0046 | G53: 97187 | H53: ASSENTAMENTO DE TUBO DE AÇO CARBONO PARA REDE DE ÁGUA, DN 1000 MM (40 ) OU DN 1100 MM (44 ), JUNTA SOLDADA, INSTALADO EM LOCAL COM NÍVEL BAIXO DE INTERFERÊNCIAS (NÃO INCLUI FORNECIMENTO). AF_11/2017 | I53: M | J53: COEFICIENTE DE REPRESENTATIVIDADE | K53: 51.44 | L53: CAIXA REFERENCIAL
A54: ASSENTAMENTO DE TUBOS E PECAS | B54: ASTU | C54: FORNEC E/OU ASSENT DE TUBO DE ACO COM JUNTA SOLDADA | D54: 0046 | G54: 97188 | H54: ASSENTAMENTO DE TUBO DE AÇO CARBONO PARA REDE DE ÁGUA, DN 1200 MM (48") OU DN 1300 MM (52"), JUNTA SOLDADA, INSTALADO EM LOCAL COM NÍVEL BAIXO DE INTERFERÊNCIAS (NÃO INCLUI FORNECIMENTO). AF_11/2017 | I54: M | J54: COEFICIENTE DE REPRESENTATIVIDADE | K54: 60.58 | L54: CAIXA REFERENCIAL
A55: ASSENTAMENTO DE TUBOS E PECAS | B55: ASTU | C55: FORNEC E/OU ASSENT DE TUBO DE ACO COM JUNTA SOLDADA | D55: 0046 | G55: 97189 | H55: ASSENTAMENTO DE TUBO DE AÇO CARBONO PARA REDE DE ÁGUA, DN 1400 MM (56'') OU DN 1500 MM (60"), JUNTA SOLDADA, INSTALADO EM LOCAL COM NÍVEL BAIXO DE INTERFERÊNCIAS (NÃO INCLUI FORNECIMENTO). AF_11/2017 | I55: M | J55: COEFICIENTE DE REPRESENTATIVIDADE | K55: 69.71 | L55: CAIXA REFERENCIAL
A56: ASSENTAMENTO DE TUBOS E PECAS | B56: ASTU | C56: FORNEC E/OU ASSENT DE TUBO DE ACO COM JUNTA SOLDADA | D56: 0046 | G56: 97190 | H56: ASSENTAMENTO DE TUBO DE AÇO CARBONO PARA REDE DE ÁGUA, DN 1600 MM (64") OU DN 1700 MM (68"), JUNTA SOLDADA, INSTALADO EM LOCAL COM NÍVEL BAIXO DE INTERFERÊNCIAS (NÃO INCLUI FORNECIMENTO). AF_11/2017 | I56: M | J56: COEFICIENTE DE REPRESENTATIVIDADE | K56: 78.86 | L56: CAIXA REFERENCIAL
A57: ASSENTAMENTO DE TUBOS E PECAS | B57: ASTU | C57: FORNEC E/OU ASSENT DE TUBO DE ACO COM JUNTA SOLDADA | D57: 0046 | G57: 97191 | H57: ASSENTAMENTO DE TUBO DE AÇO CARBONO PARA REDE DE ÁGUA, DN 1800 MM (72") OU DN 1900 MM (76"), JUNTA SOLDADA, INSTALADO EM LOCAL COM NÍVEL BAIXO DE INTERFERÊNCIAS (NÃO INCLUI FORNECIMENTO). AF_11/2017 | I57: M | J57: COEFICIENTE DE REPRESENTATIVIDADE | K57: 91.4 | L57: CAIXA REFERENCIAL
A58: ASSENTAMENTO DE TUBOS E PECAS | B58: ASTU | C58: FORNEC E/OU ASSENT DE TUBO DE ACO COM JUNTA SOLDADA | D58: 0046 | G58: 97192 | H58: ASSENTAMENTO DE TUBO DE AÇO CARBONO PARA REDE DE ÁGUA, DN 2000 MM (80") OU DN 2100 MM (84"), JUNTA SOLDADA, INSTALADO EM LOCAL COM NÍVEL BAIXO DE INTERFERÊNCIAS (NÃO INCLUI FORNECIMENTO). AF_11/2017 | I58: M | J58: COEFICIENTE DE REPRESENTATIVIDADE | K58: 100.91 | L58: CAIXA REFERENCIAL
A59: ASSENTAMENTO DE TUBOS E PECAS | B59: ASTU | C59: FORNEC E/OU ASSENT DE TUBO DE PVC COM JUNTA ELASTICA | D59: 0048 | G59: 90694 | H59: TUBO DE PVC PARA REDE COLETORA DE ESGOTO DE PAREDE MACIÇA, DN 100 MM, JUNTA ELÁSTICA - FORNECIMENTO E ASSENTAMENTO. AF_01/2021 | I59: M | J59: COEFICIENTE DE REPRESENTATIVIDADE | K59: 37.72 | L59: CAIXA REFERENCIAL
A60: ASSENTAMENTO DE TUBOS E PECAS | B60: ASTU | C60: FORNEC E/OU ASSENT DE TUBO DE PVC COM JUNTA ELASTICA | D60: 0048 | G60: 90695 | H60: TUBO DE PVC PARA REDE COLETORA DE ESGOTO DE PAREDE MACIÇA, DN 150 MM, JUNTA ELÁSTICA - FORNECIMENTO E ASSENTAMENTO. AF_01/2021 | I60: M | J60: COEFICIENTE DE REPRESENTATIVIDADE | K60: 71.36 | L60: CAIXA REFERENCIAL
A61: ASSENTAMENTO DE TUBOS E PECAS | B61: ASTU | C61: FORNEC E/OU ASSENT DE TUBO DE PVC COM JUNTA ELASTICA | D61: 0048 | G61: 90696 | H61: TUBO DE PVC PARA REDE COLETORA DE ESGOTO DE PAREDE MACIÇA, DN 200 MM, JUNTA ELÁSTICA - FORNECIMENTO E ASSENTAMENTO. AF_01/2021 | I61: M | J61: COEFICIENTE DE REPRESENTATIVIDADE | K61: 118.93 | L61: CAIXA REFERENCIAL
A62: ASSENTAMENTO DE TUBOS E PECAS | B62: ASTU | C62: FORNEC E/OU ASSENT DE TUBO DE PVC COM JUNTA ELASTICA | D62: 0048 | G62: 90697 | H62: TUBO DE PVC PARA REDE COLETORA DE ESGOTO DE PAREDE MACIÇA, DN 250 MM, JUNTA ELÁSTICA - FORNECIMENTO E ASSENTAMENTO. AF_01/2021 | I62: M | J62: COEFICIENTE DE REPRESENTATIVIDADE | K62: 184.27 | L62: CAIXA REFERENCIAL
A63: ASSENTAMENTO DE TUBOS E PECAS | B63: ASTU | C63: FORNEC E/OU ASSENT DE TUBO DE PVC COM JUNTA ELASTICA | D63: 0048 | G63: 90698 | H63: TUBO DE PVC PARA REDE COLETORA DE ESGOTO DE PAREDE MACIÇA, DN 300 MM, JUNTA ELÁSTICA, FORNECIMENTO E ASSENTAMENTO. AF_01/2021 | I63: M | J63: COEFICIENTE DE REPRESENTATIVIDADE | K63: 281.36 | L63: CAIXA REFERENCIAL
A64: ASSENTAMENTO DE TUBOS E PECAS | B64: ASTU | C64: FORNEC E/OU ASSENT DE TUBO DE PVC COM JUNTA ELASTICA | D64: 0048 | G64: 90699 | H64: TUBO DE PVC PARA REDE COLETORA DE ESGOTO DE PAREDE MACIÇA, DN 350 MM, JUNTA ELÁSTICA - FORNECIMENTO E ASSENTAMENTO. AF_01/2021 | I64: M | J64: COEFICIENTE DE REPRESENTATIVIDADE | K64: 395.77 | L64: CAIXA REFERENCIAL
A65: ASSENTAMENTO DE TUBOS E PECAS | B65: ASTU | C65: FORNEC E/OU ASSENT DE TUBO DE PVC COM JUNTA ELASTICA | D65: 0048 | G65: 90700 | H65: TUBO DE PVC PARA REDE COLETORA DE ESGOTO DE PAREDE MACIÇA, DN 400 MM, JUNTA ELÁSTICA FORNECIMENTO E ASSENTAMENTO. AF_01/2021 | I65: M | J65: COEFICIENTE DE REPRESENTATIVIDADE | K65: 463.2 | L65: CAIXA REFERENCIAL
A66: ASSENTAMENTO DE TUBOS E PECAS | B66: ASTU | C66: FORNEC E/OU ASSENT DE TUBO DE PVC COM JUNTA ELASTICA | D66: 0048 | G66: 90701 | H66: TUBO DE PVC CORRUGADO DE DUPLA PAREDE PARA REDE COLETORA DE ESGOTO, DN 150 MM, JUNTA ELÁSTICA - FORNECIMENTO E ASSENTAMENTO. AF_01/2021 | I66: M | J66: COEFICIENTE DE REPRESENTATIVIDADE | K66: 57.18 | L66: CAIXA REFERENCIAL
A67: ASSENTAMENTO DE TUBOS E PECAS | B67: ASTU | C67: FORNEC E/OU ASSENT DE TUBO DE PVC COM JUNTA ELASTICA | D67: 0048 | G67: 90702 | H67: TUBO DE PVC CORRUGADO DE DUPLA PAREDE PARA REDE COLETORA DE ESGOTO, DN 200 MM, JUNTA ELÁSTICA - FORNECIMENTO E ASSENTAMENTO. AF_01/2021 | I67: M | J67: COEFICIENTE DE REPRESENTATIVIDADE | K67: 94.22 | L67: CAIXA REFERENCIAL
A68: ASSENTAMENTO DE TUBOS E PECAS | B68: ASTU | C68: FORNEC E/OU ASSENT DE TUBO DE PVC COM JUNTA ELASTICA | D68: 0048 | G68: 90703 | H68: TUBO DE PVC CORRUGADO DE DUPLA PAREDE PARA REDE COLETORA DE ESGOTO, DN 250 MM, JUNTA ELÁSTICA - FORNECIMENTO E ASSENTAMENTO. AF_01/2021 | I68: M | J68: COEFICIENTE DE REPRESENTATIVIDADE | K68: 148.65 | L68: CAIXA REFERENCIAL
A69: ASSENTAMENTO DE TUBOS E PECAS | B69: ASTU | C69: FORNEC E/OU ASSENT DE TUBO DE PVC COM JUNTA ELASTICA | D69: 0048 | G69: 90704 | H69: TUBO DE PVC CORRUGADO DE DUPLA PAREDE PARA REDE COLETORA DE ESGOTO, DN 300 MM, JUNTA ELÁSTICA - FORNECIMENTO E ASSENTAMENTO. AF_01/2021 | I69: M | J69: COEFICIENTE DE REPRESENTATIVIDADE | K69: 223.36 | L69: CAIXA REFERENCIAL
A70: ASSENTAMENTO DE TUBOS E PECAS | B70: ASTU | C70: FORNEC E/OU ASSENT DE TUBO DE PVC COM JUNTA ELASTICA | D70: 0048 | G70: 90705 | H70: TUBO DE PVC CORRUGADO DE DUPLA PAREDE PARA REDE COLETORA DE ESGOTO, DN 350 MM, JUNTA ELÁSTICA - FORNECIMENTO E ASSENTAMENTO. AF_01/2021 | I70: M | J70: COEFICIENTE DE REPRESENTATIVIDADE | K70: 287.1 | L70: CAIXA REFERENCIAL
A71: ASSENTAMENTO DE TUBOS E PECAS | B71: ASTU | C71: FORNEC E/OU ASSENT DE TUBO DE PVC COM JUNTA ELASTICA | D71: 0048 | G71: 90706 | H71: TUBO DE PVC CORRUGADO DE DUPLA PAREDE PARA REDE COLETORA DE ESGOTO, DN 400 MM, JUNTA ELÁSTICA - FORNECIMENTO E ASSENTAMENTO. AF_01/2021 | I71: M | J71: COEFICIENTE DE REPRESENTATIVIDADE | K71: 381.88 | L71: CAIXA REFERENCIAL
A72: ASSENTAMENTO DE TUBOS E PECAS | B72: ASTU | C72: FORNEC E/OU ASSENT DE TUBO DE PVC COM JUNTA ELASTICA | D72: 0048 | G72: 90708 | H72: TUBO DE PEAD CORRUGADO DE DUPLA PAREDE PARA REDE COLETORA DE ESGOTO, DN 600 MM, JUNTA ELÁSTICA INTEGRADA - FORNECIMENTO E ASSENTAMENTO. AF_01/2021 | I72: M | J72: COEFICIENTE DE REPRESENTATIVIDADE | K72: 1783.84 | L72: CAIXA REFERENCIAL
A73: ASSENTAMENTO DE TUBOS E PECAS | B73: ASTU | C73: FORNEC E/OU ASSENT DE TUBO DE PVC COM JUNTA ELASTICA | D73: 0048 | G73: 90724 | H73: JUNTA ARGAMASSADA ENTRE TUBO DN 100 MM E O POÇO DE VISITA/ CAIXA DE CONCRETO OU ALVENARIA EM REDES DE ESGOTO. AF_01/2021 | I73: UN | J73: COEFICIENTE DE REPRESENTATIVIDADE | K73: 22.88 | L73: CAIXA REFERENCIAL
A74: ASSENTAMENTO DE TUBOS E PECAS | B74: ASTU | C74: FORNEC E/OU ASSENT DE TUBO DE PVC COM JUNTA ELASTICA | D74: 0048 | G74: 90725 | H74: JUNTA ARGAMASSADA ENTRE TUBO DN 150 MM E O POÇO DE VISITA/ CAIXA DE CONCRETO OU ALVENARIA EM REDES DE ESGOTO. AF_01/2021 | I74: UN | J74: COEFICIENTE DE REPRESENTATIVIDADE | K74: 28.15 | L74: CAIXA REFERENCIAL
A75: ASSENTAMENTO DE TUBOS E PECAS | B75: ASTU | C75: FORNEC E/OU ASSENT DE TUBO DE PVC COM JUNTA ELASTICA | D75: 0048 | G75: 90726 | H75: JUNTA ARGAMASSADA ENTRE TUBO DN 200 MM E O POÇO/ CAIXA DE CONCRETO OU ALVENARIA EM REDES DE ESGOTO. AF_01/2021 | I75: UN | J75: COEFICIENTE DE REPRESENTATIVIDADE | K75: 33.52 | L75: CAIXA REFERENCIAL
A76: ASSENTAMENTO DE TUBOS E PECAS | B76: ASTU | C76: FORNEC E/OU ASSENT DE TUBO DE PVC COM JUNTA ELASTICA | D76: 0048 | G76: 90727 | H76: JUNTA ARGAMASSADA ENTRE TUBO DN 250 MM E O POÇO DE VISITA/ CAIXA DE CONCRETO OU ALVENARIA EM REDES DE ESGOTO. AF_01/2021 | I76: UN | J76: COEFICIENTE DE REPRESENTATIVIDADE | K76: 38.79 | L76: CAIXA REFERENCIAL
A77: ASSENTAMENTO DE TUBOS E PECAS | B77: ASTU | C77: FORNEC E/OU ASSENT DE TUBO DE PVC COM JUNTA ELASTICA | D77: 0048 | G77: 90728 | H77: JUNTA ARGAMASSADA ENTRE TUBO DN 300 MM E O POÇO DE VISITA/ CAIXA DE CONCRETO OU ALVENARIA EM REDES DE ESGOTO. AF_01/2021 | I77: UN | J77: COEFICIENTE DE REPRESENTATIVIDADE | K77: 44.07 | L77: CAIXA REFERENCIAL
A78: ASSENTAMENTO DE TUBOS E PECAS | B78: ASTU | C78: FORNEC E/OU ASSENT DE TUBO DE PVC COM JUNTA ELASTICA | D78: 0048 | G78: 90729 | H78: JUNTA ARGAMASSADA ENTRE TUBO DN 350 MM E O POÇO DE VISITA/ CAIXA DE CONCRETO OU ALVENARIA EM REDES DE ESGOTO. AF_01/2021 | I78: UN | J78: COEFICIENTE DE REPRESENTATIVIDADE | K78: 49.36 | L78: CAIXA REFERENCIAL
A79: ASSENTAMENTO DE TUBOS E PECAS | B79: ASTU | C79: FORNEC E/OU ASSENT DE TUBO DE PVC COM JUNTA ELASTICA | D79: 0048 | G79: 90730 | H79: JUNTA ARGAMASSADA ENTRE TUBO DN 400 MM E O POÇO DE VISITA/ CAIXA DE CONCRETO OU ALVENARIA EM REDES DE ESGOTO. AF_01/2021 | I79: UN | J79: COEFICIENTE DE REPRESENTATIVIDADE | K79: 54.64 | L79: CAIXA REFERENCIAL
A80: ASSENTAMENTO DE TUBOS E PECAS | B80: ASTU | C80: FORNEC E/OU ASSENT DE TUBO DE PVC COM JUNTA ELASTICA | D80: 0048 | G80: 90731 | H80: JUNTA ARGAMASSADA ENTRE TUBO DN 450 MM E O POÇO DE VISITA/ CAIXA DE CONCRETO OU ALVENARIA EM REDES DE ESGOTO. AF_01/2021 | I80: UN | J80: COEFICIENTE DE REPRESENTATIVIDADE | K80: 59.93 | L80: CAIXA REFERENCIAL
A81: ASSENTAMENTO DE TUBOS E PECAS | B81: ASTU | C81: FORNEC E/OU ASSENT DE TUBO DE PVC COM JUNTA ELASTICA | D81: 0048 | G81: 90732 | H81: JUNTA ARGAMASSADA ENTRE TUBO DN 600 MM E O POÇO DE VISITA/ CAIXA DE CONCRETO OU ALVENARIA EM REDES DE ESGOTO. AF_01/2021 | I81: UN | J81: COEFICIENTE DE REPRESENTATIVIDADE | K81: 75.78 | L81: CAIXA REFERENCIAL
A82: ASSENTAMENTO DE TUBOS E PECAS | B82: ASTU | C82: FORNEC E/OU ASSENT DE TUBO DE PVC COM JUNTA ELASTICA | D82: 0048 | G82: 90733 | H82: ASSENTAMENTO DE TUBO DE PVC PARA REDE COLETORA DE ESGOTO DE PAREDE MACIÇA, DN 100 MM, JUNTA ELÁSTICA (NÃO INCLUI FORNECIMENTO). AF_01/2021 | I82: M | J82: COEFICIENTE DE REPRESENTATIVIDADE | K82: 3.21 | L82: CAIXA REFERENCIAL
A83: ASSENTAMENTO DE TUBOS E PECAS | B83: ASTU | C83: FORNEC E/OU ASSENT DE TUBO DE PVC COM JUNTA ELASTICA | D83: 0048 | G83: 90734 | H83: ASSENTAMENTO DE TUBO DE PVC PARA REDE COLETORA DE ESGOTO DE PAREDE MACIÇA, DN 150 MM, JUNTA ELÁSTICA, (NÃO INCLUI FORNECIMENTO). AF_01/2021 | I83: M | J83: COEFICIENTE DE REPRESENTATIVIDADE | K83: 3.8 | L83: CAIXA REFERENCIAL
A84: ASSENTAMENTO DE TUBOS E PECAS | B84: ASTU | C84: FORNEC E/OU ASSENT DE TUBO DE PVC COM JUNTA ELASTICA | D84: 0048 | G84: 90735 | H84: ASSENTAMENTO DE TUBO DE PVC PARA REDE COLETORA DE ESGOTO DE PAREDE MACIÇA, DN 200 MM, JUNTA ELÁSTICA (NÃO INCLUI FORNECIMENTO). AF_01/2021 | I84: M | J84: COEFICIENTE DE REPRESENTATIVIDADE | K84: 4.39 | L84: CAIXA REFERENCIAL
A85: ASSENTAMENTO DE TUBOS E PECAS | B85: ASTU | C85: FORNEC E/OU ASSENT DE TUBO DE PVC COM JUNTA ELASTICA | D85: 0048 | G85: 90736 | H85: ASSENTAMENTO DE TUBO DE PVC PARA REDE COLETORA DE ESGOTO DE PAREDE MACIÇA, DN 250 MM, JUNTA ELÁSTICA (NÃO INCLUI FORNECIMENTO). AF_01/2021 | I85: M | J85: COEFICIENTE DE REPRESENTATIVIDADE | K85: 4.99 | L85: CAIXA REFERENCIAL
A86: ASSENTAMENTO DE TUBOS E PECAS | B86: ASTU | C86: FORNEC E/OU ASSENT DE TUBO DE PVC COM JUNTA ELASTICA | D86: 0048 | G86: 90737 | H86: ASSENTAMENTO DE TUBO DE PVC PARA REDE COLETORA DE ESGOTO DE PAREDE MACIÇA, DN 300 MM, JUNTA ELÁSTICA (NÃO INCLUI FORNECIMENTO). AF_01/2021 | I86: M | J86: COEFICIENTE DE REPRESENTATIVIDADE | K86: 5.58 | L86: CAIXA REFERENCIAL
A87: ASSENTAMENTO DE TUBOS E PECAS | B87: ASTU | C87: FORNEC E/OU ASSENT DE TUBO DE PVC COM JUNTA ELASTICA | D87: 0048 | G87: 90738 | H87: ASSENTAMENTO DE TUBO DE PVC PARA REDE COLETORA DE ESGOTO DE PAREDE MACIÇA, DN 350 MM, JUNTA ELÁSTICA (NÃO INCLUI FORNECIMENTO). AF_01/2021 | I87: M | J87: COEFICIENTE DE REPRESENTATIVIDADE | K87: 6.18 | L87: CAIXA REFERENCIAL
A88: ASSENTAMENTO DE TUBOS E PECAS | B88: ASTU | C88: FORNEC E/OU ASSENT DE TUBO DE PVC COM JUNTA ELASTICA | D88: 0048 | G88: 90739 | H88: ASSENTAMENTO DE TUBO DE PVC PARA REDE COLETORA DE ESGOTO DE PAREDE MACIÇA, DN 400 MM, JUNTA ELÁSTICA (NÃO INCLUI FORNECIMENTO). AF_01/2021 | I88: M | J88: COEFICIENTE DE REPRESENTATIVIDADE | K88: 9.48 | L88: CAIXA REFERENCIAL
A89: ASSENTAMENTO DE TUBOS E PECAS | B89: ASTU | C89: FORNEC E/OU ASSENT DE TUBO DE PVC COM JUNTA ELASTICA | D89: 0048 | G89: 90740 | H89: ASSENTAMENTO DE TUBO DE PVC CORRUGADO DE DUPLA PAREDE PARA REDE COLETORA DE ESGOTO, DN 150 MM, JUNTA ELÁSTICA (NÃO INCLUI FORNECIMENTO). AF_01/2021 | I89: M | J89: COEFICIENTE DE REPRESENTATIVIDADE | K89: 4.24 | L89: CAIXA REFERENCIAL
A90: ASSENTAMENTO DE TUBOS E PECAS | B90: ASTU | C90: FORNEC E/OU ASSENT DE TUBO DE PVC COM JUNTA ELASTICA | D90: 0048 | G90: 90741 | H90: ASSENTAMENTO DE TUBO DE PVC CORRUGADO DE DUPLA PAREDE PARA REDE COLETORA DE ESGOTO, DN 200 MM, JUNTA ELÁSTICA (NÃO INCLUI FORNECIMENTO). AF_01/2021 | I90: M | J90: COEFICIENTE DE REPRESENTATIVIDADE | K90: 4.83 | L90: CAIXA REFERENCIAL
A91: ASSENTAMENTO DE TUBOS E PECAS | B91: ASTU | C91: FORNEC E/OU ASSENT DE TUBO DE PVC COM JUNTA ELASTICA | D91: 0048 | G91: 90742 | H91: ASSENTAMENTO DE TUBO DE PVC CORRUGADO DE DUPLA PAREDE PARA REDE COLETORA DE ESGOTO, DN 250 MM, JUNTA ELÁSTICA (NÃO INCLUI FORNECIMENTO). AF_01/2021 | I91: M | J91: COEFICIENTE DE REPRESENTATIVIDADE | K91: 5.42 | L91: CAIXA REFERENCIAL
A92: ASSENTAMENTO DE TUBOS E PECAS | B92: ASTU | C92: FORNEC E/OU ASSENT DE TUBO DE PVC COM JUNTA ELASTICA | D92: 0048 | G92: 90743 | H92: ASSENTAMENTO DE TUBO DE PVC CORRUGADO DE DUPLA PAREDE PARA REDE COLETORA DE ESGOTO, DN 300 MM, JUNTA ELÁSTICA (NÃO INCLUI FORNECIMENTO). AF_01/2021 | I92: M | J92: COEFICIENTE DE REPRESENTATIVIDADE | K92: 6.01 | L92: CAIXA REFERENCIAL
A93: ASSENTAMENTO DE TUBOS E PECAS | B93: ASTU | C93: FORNEC E/OU ASSENT DE TUBO DE PVC COM JUNTA ELASTICA | D93: 0048 | G93: 90744 | H93: ASSENTAMENTO DE TUBO DE PVC CORRUGADO DE DUPLA PAREDE PARA REDE COLETORA DE ESGOTO, DN 350 MM, JUNTA ELÁSTICA (NÃO INCLUI FORNECIMENTO). AF_01/2021 | I93: M | J93: COEFICIENTE DE REPRESENTATIVIDADE | K93: 6.62 | L93: CAIXA REFERENCIAL
A94: ASSENTAMENTO DE TUBOS E PECAS | B94: ASTU | C94: FORNEC E/OU ASSENT DE TUBO DE PVC COM JUNTA ELASTICA | D94: 0048 | G94: 90745 | H94: ASSENTAMENTO DE TUBO DE PVC CORRUGADO DE DUPLA PAREDE PARA REDE COLETORA DE ESGOTO, DN 400 MM, JUNTA ELÁSTICA (NÃO INCLUI FORNECIMENTO). AF_01/2021 | I94: M | J94: COEFICIENTE DE REPRESENTATIVIDADE | K94: 10.57 | L94: CAIXA REFERENCIAL
A95: ASSENTAMENTO DE TUBOS E PECAS | B95: ASTU | C95: FORNEC E/OU ASSENT DE TUBO DE PVC COM JUNTA ELASTICA | D95: 0048 | G95: 90746 | H95: ASSENTAMENTO DE TUBO DE PEAD CORRUGADO DE DUPLA PAREDE PARA REDE COLETORA DE ESGOTO, DN 450 MM, JUNTA ELÁSTICA INTEGRADA (NÃO INCLUI FORNECIMENTO). AF_01/2021 | I95: M | J95: COEFICIENTE DE REPRESENTATIVIDADE | K95: 3.47 | L95: CAIXA REFERENCIAL
A96: ASSENTAMENTO DE TUBOS E PECAS | B96: ASTU | C96: FORNEC E/OU ASSENT DE TUBO DE PVC COM JUNTA ELASTICA | D96: 0048 | G96: 90747 | H96: ASSENTAMENTO DE TUBO DE PEAD CORRUGADO DE DUPLA PAREDE PARA REDE COLETORA DE ESGOTO, DN 600 MM, JUNTA ELÁSTICA INTEGRADA (NÃO INCLUI FORNECIMENTO). AF_01/2021 | I96: M | J96: COEFICIENTE DE REPRESENTATIVIDADE | K96: 17.25 | L96: CAIXA REFERENCIAL
A97: ASSENTAMENTO DE TUBOS E PECAS | B97: ASTU | C97: FORNEC E/OU ASSENT DE TUBO DE PVC COM JUNTA ELASTICA | D97: 0048 | G97: 94869 | H97: TUBO DE PEAD CORRUGADO DE DUPLA PAREDE PARA REDE COLETORA DE ESGOTO, DN 250 MM, JUNTA ELÁSTICA INTEGRADA - FORNECIMENTO E ASSENTAMENTO. AF_01/2021 | I97: M | J97: COEFICIENTE DE REPRESENTATIVIDADE | K97: 316.22 | L97: CAIXA REFERENCIAL
A98: ASSENTAMENTO DE TUBOS E PECAS | B98: ASTU | C98: FORNEC E/OU ASSENT DE TUBO DE PVC COM JUNTA ELASTICA | D98: 0048 | G98: 94870 | H98: ASSENTAMENTO DE TUBO DE PEAD CORRUGADO DE DUPLA PAREDE PARA REDE COLETORA DE ESGOTO, DN 250 MM, JUNTA ELÁSTICA INTEGRADA (NÃO INCLUI FORNECIMENTO). AF_01/2021 | I98: M | J98: COEFICIENTE DE REPRESENTATIVIDADE | K98: 1.74 | L98: CAIXA REFERENCIAL
A99: ASSENTAMENTO DE TUBOS E PECAS | B99: ASTU | C99: FORNEC E/OU ASSENT DE TUBO DE PVC COM JUNTA ELASTICA | D99: 0048 | G99: 94871 | H99: TUBO DE PEAD CORRUGADO DE DUPLA PAREDE PARA REDE COLETORA DE ESGOTO, DN 300 MM, JUNTA ELÁSTICA INTEGRADA - FORNECIMENTO E ASSENTAMENTO. AF_01/2021 | I99: M | J99: COEFICIENTE DE REPRESENTATIVIDADE | K99: 495.17 | L99: CAIXA REFERENCIAL
A100: ASSENTAMENTO DE TUBOS E PECAS | B100: ASTU | C100: FORNEC E/OU ASSENT DE TUBO DE PVC COM JUNTA ELASTICA | D100: 0048 | G100: 94872 | H100: ASSENTAMENTO DE TUBO DE PEAD CORRUGADO DE DUPLA PAREDE PARA REDE COLETORA DE ESGOTO, DN 300 MM, JUNTA ELÁSTICA INTEGRADA (NÃO INCLUI FORNECIMENTO). AF_01/2021 | I100: M | J100: COEFICIENTE DE REPRESENTATIVIDADE | K100: 2.47 | L100: CAIXA REFERENCIAL
A101: ASSENTAMENTO DE TUBOS E PECAS | B101: ASTU | C101: FORNEC E/OU ASSENT DE TUBO DE PVC COM JUNTA ELASTICA | D101: 0048 | G101: 94875 | H101: TUBO DE PEAD CORRUGADO DE DUPLA PAREDE PARA REDE COLETORA DE ESGOTO, DN 800 MM, JUNTA ELÁSTICA INTEGRADA - FORNECIMENTO E ASSENTAMENTO. AF_01/2021 | I101: M | J101: COEFICIENTE DE REPRESENTATIVIDADE | K101: 2899.33 | L101: CAIXA REFERENCIAL
A102: ASSENTAMENTO DE TUBOS E PECAS | B102: ASTU | C102: FORNEC E/OU ASSENT DE TUBO DE PVC COM JUNTA ELASTICA | D102: 0048 | G102: 94876 | H102: ASSENTAMENTO DE TUBO DE PEAD CORRUGADO DE DUPLA PAREDE PARA REDE COLETORA DE ESGOTO, DN 800 MM, JUNTA ELÁSTICA INTEGRADA (NÃO INCLUI FORNECIMENTO). AF_01/2021 | I102: M | J102: COEFICIENTE DE REPRESENTATIVIDADE | K102: 28.59 | L102: CAIXA REFERENCIAL
A103: ASSENTAMENTO DE TUBOS E PECAS | B103: ASTU | C103: FORNEC E/OU ASSENT DE TUBO DE PVC COM JUNTA ELASTICA | D103: 0048 | G103: 94878 | H103: ASSENTAMENTO DE TUBO DE PEAD CORRUGADO DE DUPLA PAREDE PARA REDE COLETORA DE ESGOTO, DN 900 MM, JUNTA ELÁSTICA INTEGRADA (NÃO INCLUI FORNECIMENTO). AF_01/2021 | I103: M | J103: COEFICIENTE DE REPRESENTATIVIDADE | K103: 33.14 | L103: CAIXA REFERENCIAL
A104: ASSENTAMENTO DE TUBOS E PECAS | B104: ASTU | C104: FORNEC E/OU ASSENT DE TUBO DE PVC COM JUNTA ELASTICA | D104: 0048 | G104: 94879 | H104: TUBO DE PEAD CORRUGADO DE DUPLA PAREDE PARA REDE COLETORA DE ESGOTO, DN 1000 MM, JUNTA ELÁSTICA INTEGRADA - FORNECIMENTO E ASSENTAMENTO. AF_01/2021 | I104: M | J104: COEFICIENTE DE REPRESENTATIVIDADE | K104: 4464.79 | L104: CAIXA REFERENCIAL
A105: ASSENTAMENTO DE TUBOS E PECAS | B105: ASTU | C105: FORNEC E/OU ASSENT DE TUBO DE PVC COM JUNTA ELASTICA | D105: 0048 | G105: 94880 | H105: ASSENTAMENTO DE TUBO DE PEAD CORRUGADO DE DUPLA PAREDE PARA REDE COLETORA DE ESGOTO, DN 1000 MM, JUNTA ELÁSTICA INTEGRADA (NÃO INCLUI FORNECIMENTO). AF_01/2021 | I105: M | J105: COEFICIENTE DE REPRESENTATIVIDADE | K105: 42.48 | L105: CAIXA REFERENCIAL
A106: ASSENTAMENTO DE TUBOS E PECAS | B106: ASTU | C106: FORNEC E/OU ASSENT DE TUBO DE PVC COM JUNTA ELASTICA | D106: 0048 | G106: 94881 | H106: TUBO DE PEAD CORRUGADO DE DUPLA PAREDE PARA REDE COLETORA DE ESGOTO, DN 1200 MM, JUNTA ELÁSTICA INTEGRADA - FORNECIMENTO E ASSENTAMENTO. AF_01/2021 | I106: M | J106: COEFICIENTE DE REPRESENTATIVIDADE | K106: 6161.38 | L106: CAIXA REFERENCIAL
A107: ASSENTAMENTO DE TUBOS E PECAS | B107: ASTU | C107: FORNEC E/OU ASSENT DE TUBO DE PVC COM JUNTA ELASTICA | D107: 0048 | G107: 94882 | H107: ASSENTAMENTO DE TUBO DE PEAD CORRUGADO DE DUPLA PAREDE PARA REDE COLETORA DE ESGOTO, DN 1200 MM, JUNTA ELÁSTICA INTEGRADA (NÃO INCLUI FORNECIMENTO). AF_01/2021 | I107: M | J107: COEFICIENTE DE REPRESENTATIVIDADE | K107: 49.47 | L107: CAIXA REFERENCIAL
A108: ASSENTAMENTO DE TUBOS E PECAS | B108: ASTU | C108: FORNEC E/OU ASSENT DE TUBO DE PVC COM JUNTA ELASTICA | D108: 0048 | G108: 94884 | H108: ASSENTAMENTO DE TUBO DE PEAD CORRUGADO DE DUPLA PAREDE PARA REDE COLETORA DE ESGOTO, DN 1500 MM, JUNTA ELÁSTICA INTEGRADA (NÃO INCLUI FORNECIMENTO). AF_01/2021 | I108: M | J108: COEFICIENTE DE REPRESENTATIVIDADE | K108: 63.66 | L108: CAIXA REFERENCIAL
A109: ASSENTAMENTO DE TUBOS E PECAS | B109: ASTU | C109: FORNEC E/OU ASSENT DE TUBO DE PVC COM JUNTA ELASTICA | D109: 0048 | G109: 97121 | H109: ASSENTAMENTO DE TUBO DE PVC PBA PARA REDE DE ÁGUA, DN 50 MM, JUNTA ELÁSTICA INTEGRADA, INSTALADO EM LOCAL COM NÍVEL ALTO DE INTERFERÊNCIAS (NÃO INCLUI FORNECIMENTO). AF_11/2017 | I109: M | J109: COEFICIENTE DE REPRESENTATIVIDADE | K109: 1.91 | L109: CAIXA REFERENCIAL
A110: ASSENTAMENTO DE TUBOS E PECAS | B110: ASTU | C110: FORNEC E/OU ASSENT DE TUBO DE PVC COM JUNTA ELASTICA | D110: 0048 | G110: 97122 | H110: ASSENTAMENTO DE TUBO DE PVC PBA PARA REDE DE ÁGUA, DN 75 MM, JUNTA ELÁSTICA INTEGRADA, INSTALADO EM LOCAL COM NÍVEL ALTO DE INTERFERÊNCIAS (NÃO INCLUI FORNECIMENTO). AF_11/2017 | I110: M | J110: COEFICIENTE DE REPRESENTATIVIDADE | K110: 2.65 | L110: CAIXA REFERENCIAL
A111: ASSENTAMENTO DE TUBOS E PECAS | B111: ASTU | C111: FORNEC E/OU ASSENT DE TUBO DE PVC COM JUNTA ELASTICA | D111: 0048 | G111: 97123 | H111: ASSENTAMENTO DE TUBO DE PVC PBA PARA REDE DE ÁGUA, DN 100 MM, JUNTA ELÁSTICA INTEGRADA, INSTALADO EM LOCAL COM NÍVEL ALTO DE INTERFERÊNCIAS (NÃO INCLUI FORNECIMENTO). AF_11/2017 | I111: M | J111: COEFICIENTE DE REPRESENTATIVIDADE | K111: 3.36 | L111: CAIXA REFERENCIAL
A112: ASSENTAMENTO DE TUBOS E PECAS | B112: ASTU | C112: FORNEC E/OU ASSENT DE TUBO DE PVC COM JUNTA ELASTICA | D112: 0048 | G112: 97124 | H112: ASSENTAMENTO DE TUBO DE PVC PBA PARA REDE DE ÁGUA, DN 50 MM, JUNTA ELÁSTICA INTEGRADA, INSTALADO EM LOCAL COM NÍVEL BAIXO DE INTERFERÊNCIAS (NÃO INCLUI FORNECIMENTO). AF_11/2017 | I112: M | J112: COEFICIENTE DE REPRESENTATIVIDADE | K112: 0.84 | L112: CAIXA REFERENCIAL
A113: ASSENTAMENTO DE TUBOS E PECAS | B113: ASTU | C113: FORNEC E/OU ASSENT DE TUBO DE PVC COM JUNTA ELASTICA | D113: 0048 | G113: 97125 | H113: ASSENTAMENTO DE TUBO DE PVC PBA PARA REDE DE ÁGUA, DN 75 MM, JUNTA ELÁSTICA INTEGRADA, INSTALADO EM LOCAL COM NÍVEL BAIXO DE INTERFERÊNCIAS (NÃO INCLUI FORNECIMENTO). AF_11/2017 | I113: M | J113: COEFICIENTE DE REPRESENTATIVIDADE | K113: 1.19 | L113: CAIXA REFERENCIAL
A114: ASSENTAMENTO DE TUBOS E PECAS | B114: ASTU | C114: FORNEC E/OU ASSENT DE TUBO DE PVC COM JUNTA ELASTICA | D114: 0048 | G114: 97126 | H114: ASSENTAMENTO DE TUBO DE PVC PBA PARA REDE DE ÁGUA, DN 100 MM, JUNTA ELÁSTICA INTEGRADA, INSTALADO EM LOCAL COM NÍVEL BAIXO DE INTERFERÊNCIAS (NÃO INCLUI FORNECIMENTO). AF_11/2017 | I114: M | J114: COEFICIENTE DE REPRESENTATIVIDADE | K114: 1.51 | L114: CAIXA REFERENCIAL
A115: ASSENTAMENTO DE TUBOS E PECAS | B115: ASTU | C115: FORNEC E/OU ASSENT DE TUBO DE PVC COM JUNTA ELASTICA | D115: 0048 | G115: 102264 | H115: TUBO DE PVC BRANCO PARA REDE COLETORA DE ESGOTO CONDOMINIAL DE PAREDE MACIÇA, DN 100 MM, JUNTA ELÁSTICA - FORNECIMENTO E ASSENTAMENTO. AF_01/2021 | I115: M | J115: COEFICIENTE DE REPRESENTATIVIDADE | K115: 16.9 | L115: CAIXA REFERENCIAL
A116: ASSENTAMENTO DE TUBOS E PECAS | B116: ASTU | C116: FORNEC E/OU ASSENT DE TUBO DE PVC COM JUNTA ELASTICA | D116: 0048 | G116: 102265 | H116: JUNTA ARGAMASSADA ENTRE TUBO DN 800 MM E O POÇO DE VISITA/ CAIXA DE CONCRETO OU ALVENARIA EM REDES DE ESGOTO. AF_01/2021 | I116: UN | J116: COEFICIENTE DE REPRESENTATIVIDADE | K116: 96.9 | L116: CAIXA REFERENCIAL
A117: ASSENTAMENTO DE TUBOS E PECAS | B117: ASTU | C117: FORNEC E/OU ASSENT DE TUBO DE PVC COM JUNTA ELASTICA | D117: 0048 | G117: 102266 | H117: JUNTA ARGAMASSADA ENTRE TUBO DN 900 MM E O POÇO DE VISITA/ CAIXA DE CONCRETO OU ALVENARIA EM REDES DE ESGOTO. AF_01/2021 | I117: UN | J117: COEFICIENTE DE REPRESENTATIVIDADE | K117: 107.47 | L117: CAIXA REFERENCIAL
A118: ASSENTAMENTO DE TUBOS E PECAS | B118: ASTU | C118: FORNEC E/OU ASSENT DE TUBO DE PVC COM JUNTA ELASTICA | D118: 0048 | G118: 102267 | H118: JUNTA ARGAMASSADA ENTRE TUBO DN 1000 MM E O POÇO DE VISITA/ CAIXA DE CONCRETO OU ALVENARIA EM REDES DE ESGOTO. AF_01/2021 | I118: UN | J118: COEFICIENTE DE REPRESENTATIVIDADE | K118: 123.38 | L118: CAIXA REFERENCIAL
A119: ASSENTAMENTO DE TUBOS E PECAS | B119: ASTU | C119: FORNEC E/OU ASSENT DE TUBO DE PVC COM JUNTA ELASTICA | D119: 0048 | G119: 102268 | H119: JUNTA ARGAMASSADA ENTRE TUBO DN 1200 MM E O POÇO DE VISITA/ CAIXA DE CONCRETO OU ALVENARIA EM REDES DE ESGOTO. AF_01/2021 | I119: UN | J119: COEFICIENTE DE REPRESENTATIVIDADE | K119: 139.23 | L119: CAIXA REFERENCIAL
A120: ASSENTAMENTO DE TUBOS E PECAS | B120: ASTU | C120: FORNEC E/OU ASSENT DE TUBO DE PVC COM JUNTA ELASTICA | D120: 0048 | G120: 102269 | H120: JUNTA ARGAMASSADA ENTRE TUBO DN 1500 MM E O POÇO DE VISITA/ CAIXA DE CONCRETO OU ALVENARIA EM REDES DE ESGOTO. AF_01/2021 | I120: UN | J120: COEFICIENTE DE REPRESENTATIVIDADE | K120: 170.92 | L120: CAIXA REFERENCIAL
A121: ASSENTAMENTO DE TUBOS E PECAS | B121: ASTU | C121: FORNEC E/OU ASSENT DE TUBO DE CONCRETO COM JUNTA ELASTICA | D121: 0051 | G121: 92833 | H121: TUBO DE CONCRETO PARA REDES COLETORAS DE ESGOTO SANITÁRIO, DIÂMETRO DE 300 MM, JUNTA ELÁSTICA, INSTALADO EM LOCAL COM BAIXO NÍVEL DE INTERFERÊNCIAS - FORNECIMENTO E ASSENTAMENTO. AF_03/2024 | I121: M | J121: COEFICIENTE DE REPRESENTATIVIDADE | K121: 174.61 | L121: CAIXA REFERENCIAL
A122: ASSENTAMENTO DE TUBOS E PECAS | B122: ASTU | C122: FORNEC E/OU ASSENT DE TUBO DE CONCRETO COM JUNTA ELASTICA | D122: 0051 | G122: 92834 | H122: ASSENTAMENTO DE TUBO DE CONCRETO PARA REDES COLETORAS DE ESGOTO SANITÁRIO, DIÂMETRO DE 300 MM, JUNTA ELÁSTICA, INSTALADO EM LOCAL COM BAIXO NÍVEL DE INTERFERÊNCIAS (NÃO INCLUI FORNECIMENTO). AF_03/2024 | I122: M | J122: COEFICIENTE DE REPRESENTATIVIDADE | K122: 22.72 | L122: CAIXA REFERENCIAL
A123: ASSENTAMENTO DE TUBOS E PECAS | B123: ASTU | C123: FORNEC E/OU ASSENT DE TUBO DE CONCRETO COM JUNTA ELASTICA | D123: 0051 | G123: 92835 | H123: TUBO DE CONCRETO PARA REDES COLETORAS DE ESGOTO SANITÁRIO, DIÂMETRO DE 400 MM, JUNTA ELÁSTICA, INSTALADO EM LOCAL COM BAIXO NÍVEL DE INTERFERÊNCIAS - FORNECIMENTO E ASSENTAMENTO. AF_03/2024 | I123: M | J123: COEFICIENTE DE REPRESENTATIVIDADE | K123: 185.45 | L123: CAIXA REFERENCIAL
A124: ASSENTAMENTO DE TUBOS E PECAS | B124: ASTU | C124: FORNEC E/OU ASSENT DE TUBO DE CONCRETO COM JUNTA ELASTICA | D124: 0051 | G124: 92836 | H124: ASSENTAMENTO DE TUBO DE CONCRETO PARA REDES COLETORAS DE ESGOTO SANITÁRIO, DIÂMETRO DE 400 MM, JUNTA ELÁSTICA, INSTALADO EM LOCAL COM BAIXO NÍVEL DE INTERFERÊNCIAS (NÃO INCLUI FORNECIMENTO). AF_03/2024 | I124: M | J124: COEFICIENTE DE REPRESENTATIVIDADE | K124: 29.66 | L124: CAIXA REFERENCIAL
A125: ASSENTAMENTO DE TUBOS E PECAS | B125: ASTU | C125: FORNEC E/OU ASSENT DE TUBO DE CONCRETO COM JUNTA ELASTICA | D125: 0051 | G125: 92837 | H125: TUBO DE CONCRETO PARA REDES COLETORAS DE ESGOTO SANITÁRIO, DIÂMETRO DE 500 MM, JUNTA ELÁSTICA, INSTALADO EM LOCAL COM BAIXO NÍVEL DE INTERFERÊNCIAS - FORNECIMENTO E ASSENTAMENTO. AF_03/2024 | I125: M | J125: COEFICIENTE DE REPRESENTATIVIDADE | K125: 325.29 | L125: CAIXA REFERENCIAL
A126: ASSENTAMENTO DE TUBOS E PECAS | B126: ASTU | C126: FORNEC E/OU ASSENT DE TUBO DE CONCRETO COM JUNTA ELASTICA | D126: 0051 | G126: 92838 | H126: ASSENTAMENTO DE TUBO DE CONCRETO PARA REDES COLETORAS DE ESGOTO SANITÁRIO, DIÂMETRO DE 500 MM, JUNTA ELÁSTICA, INSTALADO EM LOCAL COM BAIXO NÍVEL DE INTERFERÊNCIAS (NÃO INCLUI FORNECIMENTO). AF_03/2024 | I126: M | J126: COEFICIENTE DE REPRESENTATIVIDADE | K126: 37.07 | L126: CAIXA REFERENCIAL
A127: ASSENTAMENTO DE TUBOS E PECAS | B127: ASTU | C127: FORNEC E/OU ASSENT DE TUBO DE CONCRETO COM JUNTA ELASTICA | D127: 0051 | G127: 92839 | H127: TUBO DE CONCRETO PARA REDES COLETORAS DE ESGOTO SANITÁRIO, DIÂMETRO DE 600 MM, JUNTA ELÁSTICA, INSTALADO EM LOCAL COM BAIXO NÍVEL DE INTERFERÊNCIAS - FORNECIMENTO E ASSENTAMENTO. AF_03/2024 | I127: M | J127: COEFICIENTE DE REPRESENTATIVIDADE | K127: 398.53 | L127: CAIXA REFERENCIAL
A128: ASSENTAMENTO DE TUBOS E PECAS | B128: ASTU | C128: FORNEC E/OU ASSENT DE TUBO DE CONCRETO COM JUNTA ELASTICA | D128: 0051 | G128: 92840 | H128: ASSENTAMENTO DE TUBO DE CONCRETO PARA REDES COLETORAS DE ESGOTO SANITÁRIO, DIÂMETRO DE 600 MM, JUNTA ELÁSTICA, INSTALADO EM LOCAL COM BAIXO NÍVEL DE INTERFERÊNCIAS (NÃO INCLUI FORNECIMENTO). AF_03/2024 | I128: M | J128: COEFICIENTE DE REPRESENTATIVIDADE | K128: 44.87 | L128: CAIXA REFERENCIAL
A129: ASSENTAMENTO DE TUBOS E PECAS | B129: ASTU | C129: FORNEC E/OU ASSENT DE TUBO DE CONCRETO COM JUNTA ELASTICA | D129: 0051 | G129: 92841 | H129: TUBO DE CONCRETO PARA REDES COLETORAS DE ESGOTO SANITÁRIO, DIÂMETRO DE 700 MM, JUNTA ELÁSTICA, INSTALADO EM LOCAL COM BAIXO NÍVEL DE INTERFERÊNCIAS - FORNECIMENTO E ASSENTAMENTO. AF_03/2024 | I129: M | J129: COEFICIENTE DE REPRESENTATIVIDADE | K129: 518.69 | L129: CAIXA REFERENCIAL
A130: ASSENTAMENTO DE TUBOS E PECAS | B130: ASTU | C130: FORNEC E/OU ASSENT DE TUBO DE CONCRETO COM JUNTA ELASTICA | D130: 0051 | G130: 92842 | H130: ASSENTAMENTO DE TUBO DE CONCRETO PARA REDES COLETORAS DE ESGOTO SANITÁRIO, DIÂMETRO DE 700 MM, JUNTA ELÁSTICA, INSTALADO EM LOCAL COM BAIXO NÍVEL DE INTERFERÊNCIAS (NÃO INCLUI FORNECIMENTO). AF_03/2024 | I130: M | J130: COEFICIENTE DE REPRESENTATIVIDADE | K130: 56.76 | L130: CAIXA REFERENCIAL
A131: ASSENTAMENTO DE TUBOS E PECAS | B131: ASTU | C131: FORNEC E/OU ASSENT DE TUBO DE CONCRETO COM JUNTA ELASTICA | D131: 0051 | G131: 92843 | H131: TUBO DE CONCRETO PARA REDES COLETORAS DE ESGOTO SANITÁRIO, DIÂMETRO DE 800 MM, JUNTA ELÁSTICA, INSTALADO EM LOCAL COM BAIXO NÍVEL DE INTERFERÊNCIAS - FORNECIMENTO E ASSENTAMENTO. AF_03/2024 | I131: M | J131: COEFICIENTE DE REPRESENTATIVIDADE | K131: 539.87 | L131: CAIXA REFERENCIAL
A132: ASSENTAMENTO DE TUBOS E PECAS | B132: ASTU | C132: FORNEC E/OU ASSENT DE TUBO DE CONCRETO COM JUNTA ELASTICA | D132: 0051 | G132: 92844 | H132: ASSENTAMENTO DE TUBO DE CONCRETO PARA REDES COLETORAS DE ESGOTO SANITÁRIO, DIÂMETRO DE 800 MM, JUNTA ELÁSTICA, INSTALADO EM LOCAL COM BAIXO NÍVEL DE INTERFERÊNCIAS (NÃO INCLUI FORNECIMENTO). AF_03/2024 | I132: M | J132: COEFICIENTE DE REPRESENTATIVIDADE | K132: 67.73 | L132: CAIXA REFERENCIAL
A133: ASSENTAMENTO DE TUBOS E PECAS | B133: ASTU | C133: FORNEC E/OU ASSENT DE TUBO DE CONCRETO COM JUNTA ELASTICA | D133: 0051 | G133: 92845 | H133: TUBO DE CONCRETO PARA REDES COLETORAS DE ESGOTO SANITÁRIO, DIÂMETRO DE 900 MM, JUNTA ELÁSTICA, INSTALADO EM LOCAL COM BAIXO NÍVEL DE INTERFERÊNCIAS - FORNECIMENTO E ASSENTAMENTO. AF_03/2024 | I133: M | J133: COEFICIENTE DE REPRESENTATIVIDADE | K133: 793.66 | L133: CAIXA REFERENCIAL
A134: ASSENTAMENTO DE TUBOS E PECAS | B134: ASTU | C134: FORNEC E/OU ASSENT DE TUBO DE CONCRETO COM JUNTA ELASTICA | D134: 0051 | G134: 92846 | H134: ASSENTAMENTO DE TUBO DE CONCRETO PARA REDES COLETORAS DE ESGOTO SANITÁRIO, DIÂMETRO DE 900 MM, JUNTA ELÁSTICA, INSTALADO EM LOCAL COM BAIXO NÍVEL DE INTERFERÊNCIAS (NÃO INCLUI FORNECIMENTO). AF_03/2024 | I134: M | J134: COEFICIENTE DE REPRESENTATIVIDADE | K134: 77.77 | L134: CAIXA REFERENCIAL
A135: ASSENTAMENTO DE TUBOS E PECAS | B135: ASTU | C135: FORNEC E/OU ASSENT DE TUBO DE CONCRETO COM JUNTA ELASTICA | D135: 0051 | G135: 92847 | H135: TUBO DE CONCRETO PARA REDES COLETORAS DE ESGOTO SANITÁRIO, DIÂMETRO DE 1000 MM, JUNTA ELÁSTICA, INSTALADO EM LOCAL COM BAIXO NÍVEL DE INTERFERÊNCIAS - FORNECIMENTO E ASSENTAMENTO. AF_03/2024 | I135: M | J135: COEFICIENTE DE REPRESENTATIVIDADE | K135: 818.36 | L135: CAIXA REFERENCIAL
A136: ASSENTAMENTO DE TUBOS E PECAS | B136: ASTU | C136: FORNEC E/OU ASSENT DE TUBO DE CONCRETO COM JUNTA ELASTICA | D136: 0051 | G136: 92848 | H136: ASSENTAMENTO DE TUBO DE CONCRETO PARA REDES COLETORAS DE ESGOTO SANITÁRIO, DIÂMETRO DE 1000 MM, JUNTA ELÁSTICA, INSTALADO EM LOCAL COM BAIXO NÍVEL DE INTERFERÊNCIAS (NÃO INCLUI FORNECIMENTO). AF_03/2024 | I136: M | J136: COEFICIENTE DE REPRESENTATIVIDADE | K136: 92.35 | L136: CAIXA REFERENCIAL
A137: ASSENTAMENTO DE TUBOS E PECAS | B137: ASTU | C137: FORNEC E/OU ASSENT DE TUBO DE CONCRETO COM JUNTA ELASTICA | D137: 0051 | G137: 92849 | H137: TUBO DE CONCRETO PARA REDES COLETORAS DE ESGOTO SANITÁRIO, DIÂMETRO DE 300 MM, JUNTA ELÁSTICA, INSTALADO EM LOCAL COM ALTO NÍVEL DE INTERFERÊNCIAS - FORNECIMENTO E ASSENTAMENTO. AF_03/2024 | I137: M | J137: COEFICIENTE DE REPRESENTATIVIDADE | K137: 177.05 | L137: CAIXA REFERENCIAL
A138: ASSENTAMENTO DE TUBOS E PECAS | B138: ASTU | C138: FORNEC E/OU ASSENT DE TUBO DE CONCRETO COM JUNTA ELASTICA | D138: 0051 | G138: 92850 | H138: ASSENTAMENTO DE TUBO DE CONCRETO PARA REDES COLETORAS DE ESGOTO SANITÁRIO, DIÂMETRO DE 300 MM, JUNTA ELÁSTICA, INSTALADO EM LOCAL COM ALTO NÍVEL DE INTERFERÊNCIAS (NÃO INCLUI FORNECIMENTO). AF_03/2024 | I138: M | J138: COEFICIENTE DE REPRESENTATIVIDADE | K138: 25.16 | L138: CAIXA REFERENCIAL
A139: ASSENTAMENTO DE TUBOS E PECAS | B139: ASTU | C139: FORNEC E/OU ASSENT DE TUBO DE CONCRETO COM JUNTA ELASTICA | D139: 0051 | G139: 92851 | H139: TUBO DE CONCRETO PARA REDES COLETORAS DE ESGOTO SANITÁRIO, DIÂMETRO DE 400 MM, JUNTA ELÁSTICA, INSTALADO EM LOCAL COM ALTO NÍVEL DE INTERFERÊNCIAS - FORNECIMENTO E ASSENTAMENTO. AF_03/2024 | I139: M | J139: COEFICIENTE DE REPRESENTATIVIDADE | K139: 188.95 | L139: CAIXA REFERENCIAL
A140: ASSENTAMENTO DE TUBOS E PECAS | B140: ASTU | C140: FORNEC E/OU ASSENT DE TUBO DE CONCRETO COM JUNTA ELASTICA | D140: 0051 | G140: 92852 | H140: ASSENTAMENTO DE TUBO DE CONCRETO PARA REDES COLETORAS DE ESGOTO SANITÁRIO, DIÂMETRO DE 400 MM, JUNTA ELÁSTICA, INSTALADO EM LOCAL COM ALTO NÍVEL DE INTERFERÊNCIAS (NÃO INCLUI FORNECIMENTO). AF_03/2024 | I140: M | J140: COEFICIENTE DE REPRESENTATIVIDADE | K140: 33.16 | L140: CAIXA REFERENCIAL
A141: ASSENTAMENTO DE TUBOS E PECAS | B141: ASTU | C141: FORNEC E/OU ASSENT DE TUBO DE CONCRETO COM JUNTA ELASTICA | D141: 0051 | G141: 92853 | H141: TUBO DE CONCRETO PARA REDES COLETORAS DE ESGOTO SANITÁRIO, DIÂMETRO DE 500 MM, JUNTA ELÁSTICA, INSTALADO EM LOCAL COM ALTO NÍVEL DE INTERFERÊNCIAS - FORNECIMENTO E ASSENTAMENTO. AF_03/2024 | I141: M | J141: COEFICIENTE DE REPRESENTATIVIDADE | K141: 329.82 | L141: CAIXA REFERENCIAL
A142: ASSENTAMENTO DE TUBOS E PECAS | B142: ASTU | C142: FORNEC E/OU ASSENT DE TUBO DE CONCRETO COM JUNTA ELASTICA | D142: 0051 | G142: 92854 | H142: ASSENTAMENTO DE TUBO DE CONCRETO PARA REDES COLETORAS DE ESGOTO SANITÁRIO, DIÂMETRO DE 500 MM, JUNTA ELÁSTICA, INSTALADO EM LOCAL COM ALTO NÍVEL DE INTERFERÊNCIAS (NÃO INCLUI FORNECIMENTO). AF_03/2024 | I142: M | J142: COEFICIENTE DE REPRESENTATIVIDADE | K142: 41.6 | L142: CAIXA REFERENCIAL
A143: ASSENTAMENTO DE TUBOS E PECAS | B143: ASTU | C143: FORNEC E/OU ASSENT DE TUBO DE CONCRETO COM JUNTA ELASTICA | D143: 0051 | G143: 92855 | H143: TUBO DE CONCRETO PARA REDES COLETORAS DE ESGOTO SANITÁRIO, DIÂMETRO DE 600 MM, JUNTA ELÁSTICA, INSTALADO EM LOCAL COM ALTO NÍVEL DE INTERFERÊNCIAS - FORNECIMENTO E ASSENTAMENTO. AF_03/2024 | I143: M | J143: COEFICIENTE DE REPRESENTATIVIDADE | K143: 404.11 | L143: CAIXA REFERENCIAL
A144: ASSENTAMENTO DE TUBOS E PECAS | B144: ASTU | C144: FORNEC E/OU ASSENT DE TUBO DE CONCRETO COM JUNTA ELASTICA | D144: 0051 | G144: 92856 | H144: ASSENTAMENTO DE TUBO DE CONCRETO PARA REDES COLETORAS DE ESGOTO SANITÁRIO, DIÂMETRO DE 600 MM, JUNTA ELÁSTICA, INSTALADO EM LOCAL COM ALTO NÍVEL DE INTERFERÊNCIAS (NÃO INCLUI FORNECIMENTO). AF_03/2024 | I144: M | J144: COEFICIENTE DE REPRESENTATIVIDADE | K144: 50.45 | L144: CAIXA REFERENCIAL
A145: ASSENTAMENTO DE TUBOS E PECAS | B145: ASTU | C145: FORNEC E/OU ASSENT DE TUBO DE CONCRETO COM JUNTA ELASTICA | D145: 0051 | G145: 92857 | H145: TUBO DE CONCRETO PARA REDES COLETORAS DE ESGOTO SANITÁRIO, DIÂMETRO DE 700 MM, JUNTA ELÁSTICA, INSTALADO EM LOCAL COM ALTO NÍVEL DE INTERFERÊNCIAS - FORNECIMENTO E ASSENTAMENTO. AF_03/2024 | I145: M | J145: COEFICIENTE DE REPRESENTATIVIDADE | K145: 525.33 | L145: CAIXA REFERENCIAL
A146: ASSENTAMENTO DE TUBOS E PECAS | B146: ASTU | C146: FORNEC E/OU ASSENT DE TUBO DE CONCRETO COM JUNTA ELASTICA | D146: 0051 | G146: 92858 | H146: ASSENTAMENTO DE TUBO DE CONCRETO PARA REDES COLETORAS DE ESGOTO SANITÁRIO, DIÂMETRO DE 700 MM, JUNTA ELÁSTICA, INSTALADO EM LOCAL COM ALTO NÍVEL DE INTERFERÊNCIAS (NÃO INCLUI FORNECIMENTO). AF_03/2024 | I146: M | J146: COEFICIENTE DE REPRESENTATIVIDADE | K146: 63.4 | L146: CAIXA REFERENCIAL
A147: ASSENTAMENTO DE TUBOS E PECAS | B147: ASTU | C147: FORNEC E/OU ASSENT DE TUBO DE CONCRETO COM JUNTA ELASTICA | D147: 0051 | G147: 92859 | H147: TUBO DE CONCRETO PARA REDES COLETORAS DE ESGOTO SANITÁRIO, DIÂMETRO DE 800 MM, JUNTA ELÁSTICA, INSTALADO EM LOCAL COM ALTO NÍVEL DE INTERFERÊNCIAS - FORNECIMENTO E ASSENTAMENTO. AF_03/2024 | I147: M | J147: COEFICIENTE DE REPRESENTATIVIDADE | K147: 547.54 | L147: CAIXA REFERENCIAL
A148: ASSENTAMENTO DE TUBOS E PECAS | B148: ASTU | C148: FORNEC E/OU ASSENT DE TUBO DE CONCRETO COM JUNTA ELASTICA | D148: 0051 | G148: 92860 | H148: ASSENTAMENTO DE TUBO DE CONCRETO PARA REDES COLETORAS DE ESGOTO SANITÁRIO, DIÂMETRO DE 800 MM, JUNTA ELÁSTICA, INSTALADO EM LOCAL COM ALTO NÍVEL DE INTERFERÊNCIAS (NÃO INCLUI FORNECIMENTO). AF_03/2024 | I148: M | J148: COEFICIENTE DE REPRESENTATIVIDADE | K148: 75.4 | L148: CAIXA REFERENCIAL
A149: ASSENTAMENTO DE TUBOS E PECAS | B149: ASTU | C149: FORNEC E/OU ASSENT DE TUBO DE CONCRETO COM JUNTA ELASTICA | D149: 0051 | G149: 92861 | H149: TUBO DE CONCRETO PARA REDES COLETORAS DE ESGOTO SANITÁRIO, DIÂMETRO DE 900 MM, JUNTA ELÁSTICA, INSTALADO EM LOCAL COM ALTO NÍVEL DE INTERFERÊNCIAS - FORNECIMENTO E ASSENTAMENTO. AF_03/2024 | I149: M | J149: COEFICIENTE DE REPRESENTATIVIDADE | K149: 802.37 | L149: CAIXA REFERENCIAL
A150: ASSENTAMENTO DE TUBOS E PECAS | B150: ASTU | C150: FORNEC E/OU ASSENT DE TUBO DE CONCRETO COM JUNTA ELASTICA | D150: 0051 | G150: 92862 | H150: ASSENTAMENTO DE TUBO DE CONCRETO PARA REDES COLETORAS DE ESGOTO SANITÁRIO, DIÂMETRO DE 900 MM, JUNTA ELÁSTICA, INSTALADO EM LOCAL COM ALTO NÍVEL DE INTERFERÊNCIAS (NÃO INCLUI FORNECIMENTO). AF_03/2024 | I150: M | J150: COEFICIENTE DE REPRESENTATIVIDADE | K150: 86.48 | L150: CAIXA REFERENCIAL
A151: ASSENTAMENTO DE TUBOS E PECAS | B151: ASTU | C151: FORNEC E/OU ASSENT DE TUBO DE CONCRETO COM JUNTA ELASTICA | D151: 0051 | G151: 92863 | H151: TUBO DE CONCRETO PARA REDES COLETORAS DE ESGOTO SANITÁRIO, DIÂMETRO DE 1000 MM, JUNTA ELÁSTICA, INSTALADO EM LOCAL COM ALTO NÍVEL DE INTERFERÊNCIAS - FORNECIMENTO E ASSENTAMENTO. AF_03/2024 | I151: M | J151: COEFICIENTE DE REPRESENTATIVIDADE | K151: 828.12 | L151: CAIXA REFERENCIAL
A152: ASSENTAMENTO DE TUBOS E PECAS | B152: ASTU | C152: FORNEC E/OU ASSENT DE TUBO DE CONCRETO COM JUNTA ELASTICA | D152: 0051 | G152: 92864 | H152: ASSENTAMENTO DE TUBO DE CONCRETO PARA REDES COLETORAS DE ESGOTO SANITÁRIO, DIÂMETRO DE 1000 MM, JUNTA ELÁSTICA, INSTALADO EM LOCAL COM ALTO NÍVEL DE INTERFERÊNCIAS (NÃO INCLUI FORNECIMENTO). AF_03/2024 | I152: M | J152: COEFICIENTE DE REPRESENTATIVIDADE | K152: 102.11 | L152: CAIXA REFERENCIAL
A153: ASSENTAMENTO DE TUBOS E PECAS | B153: ASTU | C153: FORNEC E/OU ASSENT DE TUBO DE CONCRETO COM JUNTA ARGAMASSADA | D153: 0052 | G153: 92210 | H153: TUBO DE CONCRETO PARA REDES COLETORAS DE ÁGUAS PLUVIAIS, DIÂMETRO DE 400 MM, JUNTA RÍGIDA, INSTALADO EM LOCAL COM BAIXO NÍVEL DE INTERFERÊNCIAS - FORNECIMENTO E ASSENTAMENTO. AF_03/2024 | I153: M | J153: COEFICIENTE DE REPRESENTATIVIDADE | K153: 129.8 | L153: CAIXA REFERENCIAL
A154: ASSENTAMENTO DE TUBOS E PECAS | B154: ASTU | C154: FORNEC E/OU ASSENT DE TUBO DE CONCRETO COM JUNTA ARGAMASSADA | D154: 0052 | G154: 92211 | H154: TUBO DE CONCRETO PARA REDES COLETORAS DE ÁGUAS PLUVIAIS, DIÂMETRO DE 500 MM, JUNTA RÍGIDA, INSTALADO EM LOCAL COM BAIXO NÍVEL DE INTERFERÊNCIAS - FORNECIMENTO E ASSENTAMENTO. AF_03/2024 | I154: M | J154: COEFICIENTE DE REPRESENTATIVIDADE | K154: 158.35 | L154: CAIXA REFERENCIAL
A155: ASSENTAMENTO DE TUBOS E PECAS | B155: ASTU | C155: FORNEC E/OU ASSENT DE TUBO DE CONCRETO COM JUNTA ARGAMASSADA | D155: 0052 | G155: 92212 | H155: TUBO DE CONCRETO PARA REDES COLETORAS DE ÁGUAS PLUVIAIS, DIÂMETRO DE 600 MM, JUNTA RÍGIDA, INSTALADO EM LOCAL COM BAIXO NÍVEL DE INTERFERÊNCIAS - FORNECIMENTO E ASSENTAMENTO. AF_03/2024 | I155: M | J155: COEFICIENTE DE REPRESENTATIVIDADE | K155: 239.32 | L155: CAIXA REFERENCIAL
A156: ASSENTAMENTO DE TUBOS E PECAS | B156: ASTU | C156: FORNEC E/OU ASSENT DE TUBO DE CONCRETO COM JUNTA ARGAMASSADA | D156: 0052 | G156: 92213 | H156: TUBO DE CONCRETO PARA REDES COLETORAS DE ÁGUAS PLUVIAIS, DIÂMETRO DE 700 MM, JUNTA RÍGIDA, INSTALADO EM LOCAL COM BAIXO NÍVEL DE INTERFERÊNCIAS - FORNECIMENTO E ASSENTAMENTO. AF_03/2024 | I156: M | J156: COEFICIENTE DE REPRESENTATIVIDADE | K156: 316.94 | L156: CAIXA REFERENCIAL
A157: ASSENTAMENTO DE TUBOS E PECAS | B157: ASTU | C157: FORNEC E/OU ASSENT DE TUBO DE CONCRETO COM JUNTA ARGAMASSADA | D157: 0052 | G157: 92214 | H157: TUBO DE CONCRETO PARA REDES COLETORAS DE ÁGUAS PLUVIAIS, DIÂMETRO DE 800 MM, JUNTA RÍGIDA, INSTALADO EM LOCAL COM BAIXO NÍVEL DE INTERFERÊNCIAS - FORNECIMENTO E ASSENTAMENTO. AF_03/2024 | I157: M | J157: COEFICIENTE DE REPRESENTATIVIDADE | K157: 383.27 | L157: CAIXA REFERENCIAL
A158: ASSENTAMENTO DE TUBOS E PECAS | B158: ASTU | C158: FORNEC E/OU ASSENT DE TUBO DE CONCRETO COM JUNTA ARGAMASSADA | D158: 0052 | G158: 92215 | H158: TUBO DE CONCRETO PARA REDES COLETORAS DE ÁGUAS PLUVIAIS, DIÂMETRO DE 900 MM, JUNTA RÍGIDA, INSTALADO EM LOCAL COM BAIXO NÍVEL DE INTERFERÊNCIAS - FORNECIMENTO E ASSENTAMENTO. AF_03/2024 | I158: M | J158: COEFICIENTE DE REPRESENTATIVIDADE | K158: 440.06 | L158: CAIXA REFERENCIAL
A159: ASSENTAMENTO DE TUBOS E PECAS | B159: ASTU | C159: FORNEC E/OU ASSENT DE TUBO DE CONCRETO COM JUNTA ARGAMASSADA | D159: 0052 | G159: 92216 | H159: TUBO DE CONCRETO PARA REDES COLETORAS DE ÁGUAS PLUVIAIS, DIÂMETRO DE 1000 MM, JUNTA RÍGIDA, INSTALADO EM LOCAL COM BAIXO NÍVEL DE INTERFERÊNCIAS - FORNECIMENTO E ASSENTAMENTO. AF_03/2024 | I159: M | J159: COEFICIENTE DE REPRESENTATIVIDADE | K159: 458.09 | L159: CAIXA REFERENCIAL
A160: ASSENTAMENTO DE TUBOS E PECAS | B160: ASTU | C160: FORNEC E/OU ASSENT DE TUBO DE CONCRETO COM JUNTA ARGAMASSADA | D160: 0052 | G160: 92219 | H160: TUBO DE CONCRETO PARA REDES COLETORAS DE ÁGUAS PLUVIAIS, DIÂMETRO DE 400 MM, JUNTA RÍGIDA, INSTALADO EM LOCAL COM ALTO NÍVEL DE INTERFERÊNCIAS - FORNECIMENTO E ASSENTAMENTO. AF_03/2024 | I160: M | J160: COEFICIENTE DE REPRESENTATIVIDADE | K160: 133.29 | L160: CAIXA REFERENCIAL
A161: ASSENTAMENTO DE TUBOS E PECAS | B161: ASTU | C161: FORNEC E/OU ASSENT DE TUBO DE CONCRETO COM JUNTA ARGAMASSADA | D161: 0052 | G161: 92220 | H161: TUBO DE CONCRETO PARA REDES COLETORAS DE ÁGUAS PLUVIAIS, DIÂMETRO DE 500 MM, JUNTA RÍGIDA, INSTALADO EM LOCAL COM ALTO NÍVEL DE INTERFERÊNCIAS - FORNECIMENTO E ASSENTAMENTO. AF_03/2024 | I161: M | J161: COEFICIENTE DE REPRESENTATIVIDADE | K161: 162.9 | L161: CAIXA REFERENCIAL
A162: ASSENTAMENTO DE TUBOS E PECAS | B162: ASTU | C162: FORNEC E/OU ASSENT DE TUBO DE CONCRETO COM JUNTA ARGAMASSADA | D162: 0052 | G162: 92221 | H162: TUBO DE CONCRETO PARA REDES COLETORAS DE ÁGUAS PLUVIAIS, DIÂMETRO DE 600 MM, JUNTA RÍGIDA, INSTALADO EM LOCAL COM ALTO NÍVEL DE INTERFERÊNCIAS - FORNECIMENTO E ASSENTAMENTO. AF_03/2024 | I162: M | J162: COEFICIENTE DE REPRESENTATIVIDADE | K162: 244.89 | L162: CAIXA REFERENCIAL
A163: ASSENTAMENTO DE TUBOS E PECAS | B163: ASTU | C163: FORNEC E/OU ASSENT DE TUBO DE CONCRETO COM JUNTA ARGAMASSADA | D163: 0052 | G163: 92222 | H163: TUBO DE CONCRETO PARA REDES COLETORAS DE ÁGUAS PLUVIAIS, DIÂMETRO DE 700 MM, JUNTA RÍGIDA, INSTALADO EM LOCAL COM ALTO NÍVEL DE INTERFERÊNCIAS - FORNECIMENTO E ASSENTAMENTO. AF_03/2024 | I163: M | J163: COEFICIENTE DE REPRESENTATIVIDADE | K163: 323.56 | L163: CAIXA REFERENCIAL
A164: ASSENTAMENTO DE TUBOS E PECAS | B164: ASTU | C164: FORNEC E/OU ASSENT DE TUBO DE CONCRETO COM JUNTA ARGAMASSADA | D164: 0052 | G164: 92223 | H164: TUBO DE CONCRETO PARA REDES COLETORAS DE ÁGUAS PLUVIAIS, DIÂMETRO DE 800 MM, JUNTA RÍGIDA, INSTALADO EM LOCAL COM ALTO NÍVEL DE INTERFERÊNCIAS - FORNECIMENTO E ASSENTAMENTO. AF_03/2024 | I164: M | J164: COEFICIENTE DE REPRESENTATIVIDADE | K164: 390.92 | L164: CAIXA REFERENCIAL
A165: ASSENTAMENTO DE TUBOS E PECAS | B165: ASTU | C165: FORNEC E/OU ASSENT DE TUBO DE CONCRETO COM JUNTA ARGAMASSADA | D165: 0052 | G165: 92224 | H165: TUBO DE CONCRETO PARA REDES COLETORAS DE ÁGUAS PLUVIAIS, DIÂMETRO DE 900 MM, JUNTA RÍGIDA, INSTALADO EM LOCAL COM ALTO NÍVEL DE INTERFERÊNCIAS - FORNECIMENTO E ASSENTAMENTO. AF_03/2024 | I165: M | J165: COEFICIENTE DE REPRESENTATIVIDADE | K165: 448.78 | L165: CAIXA REFERENCIAL
A166: ASSENTAMENTO DE TUBOS E PECAS | B166: ASTU | C166: FORNEC E/OU ASSENT DE TUBO DE CONCRETO COM JUNTA ARGAMASSADA | D166: 0052 | G166: 92226 | H166: TUBO DE CONCRETO PARA REDES COLETORAS DE ÁGUAS PLUVIAIS, DIÂMETRO DE 1000 MM, JUNTA RÍGIDA, INSTALADO EM LOCAL COM ALTO NÍVEL DE INTERFERÊNCIAS - FORNECIMENTO E ASSENTAMENTO. AF_03/2024 | I166: M | J166: COEFICIENTE DE REPRESENTATIVIDADE | K166: 467.86 | L166: CAIXA REFERENCIAL
A167: ASSENTAMENTO DE TUBOS E PECAS | B167: ASTU | C167: FORNEC E/OU ASSENT DE TUBO DE CONCRETO COM JUNTA ARGAMASSADA | D167: 0052 | G167: 92808 | H167: ASSENTAMENTO DE TUBO DE CONCRETO PARA REDES COLETORAS DE ÁGUAS PLUVIAIS, DIÂMETRO DE 300 MM, JUNTA RÍGIDA, INSTALADO EM LOCAL COM BAIXO NÍVEL DE INTERFERÊNCIAS (NÃO INCLUI FORNECIMENTO). AF_03/2024 | I167: M | J167: COEFICIENTE DE REPRESENTATIVIDADE | K167: 24.43 | L167: CAIXA REFERENCIAL
A168: ASSENTAMENTO DE TUBOS E PECAS | B168: ASTU | C168: FORNEC E/OU ASSENT DE TUBO DE CONCRETO COM JUNTA ARGAMASSADA | D168: 0052 | G168: 92809 | H168: ASSENTAMENTO DE TUBO DE CONCRETO PARA REDES COLETORAS DE ÁGUAS PLUVIAIS, DIÂMETRO DE 400 MM, JUNTA RÍGIDA, INSTALADO EM LOCAL COM BAIXO NÍVEL DE INTERFERÊNCIAS (NÃO INCLUI FORNECIMENTO). AF_03/2024 | I168: M | J168: COEFICIENTE DE REPRESENTATIVIDADE | K168: 33.99 | L168: CAIXA REFERENCIAL
A169: ASSENTAMENTO DE TUBOS E PECAS | B169: ASTU | C169: FORNEC E/OU ASSENT DE TUBO DE CONCRETO COM JUNTA ARGAMASSADA | D169: 0052 | G169: 92810 | H169: ASSENTAMENTO DE TUBO DE CONCRETO PARA REDES COLETORAS DE ÁGUAS PLUVIAIS, DIÂMETRO DE 500 MM, JUNTA RÍGIDA, INSTALADO EM LOCAL COM BAIXO NÍVEL DE INTERFERÊNCIAS (NÃO INCLUI FORNECIMENTO). AF_03/2024 | I169: M | J169: COEFICIENTE DE REPRESENTATIVIDADE | K169: 43.85 | L169: CAIXA REFERENCIAL
A170: ASSENTAMENTO DE TUBOS E PECAS | B170: ASTU | C170: FORNEC E/OU ASSENT DE TUBO DE CONCRETO COM JUNTA ARGAMASSADA | D170: 0052 | G170: 92811 | H170: ASSENTAMENTO DE TUBO DE CONCRETO PARA REDES COLETORAS DE ÁGUAS PLUVIAIS, DIÂMETRO DE 600 MM, JUNTA RÍGIDA, INSTALADO EM LOCAL COM BAIXO NÍVEL DE INTERFERÊNCIAS (NÃO INCLUI FORNECIMENTO). AF_03/2024 | I170: M | J170: COEFICIENTE DE REPRESENTATIVIDADE | K170: 53.92 | L170: CAIXA REFERENCIAL
A171: ASSENTAMENTO DE TUBOS E PECAS | B171: ASTU | C171: FORNEC E/OU ASSENT DE TUBO DE CONCRETO COM JUNTA ARGAMASSADA | D171: 0052 | G171: 92812 | H171: ASSENTAMENTO DE TUBO DE CONCRETO PARA REDES COLETORAS DE ÁGUAS PLUVIAIS, DIÂMETRO DE 700 MM, JUNTA RÍGIDA, INSTALADO EM LOCAL COM BAIXO NÍVEL DE INTERFERÊNCIAS (NÃO INCLUI FORNECIMENTO). AF_03/2024 | I171: M | J171: COEFICIENTE DE REPRESENTATIVIDADE | K171: 64.24 | L171: CAIXA REFERENCIAL
A172: ASSENTAMENTO DE TUBOS E PECAS | B172: ASTU | C172: FORNEC E/OU ASSENT DE TUBO DE CONCRETO COM JUNTA ARGAMASSADA | D172: 0052 | G172: 92813 | H172: ASSENTAMENTO DE TUBO DE CONCRETO PARA REDES COLETORAS DE ÁGUAS PLUVIAIS, DIÂMETRO DE 800 MM, JUNTA RÍGIDA, INSTALADO EM LOCAL COM BAIXO NÍVEL DE INTERFERÊNCIAS (NÃO INCLUI FORNECIMENTO). AF_03/2024 | I172: M | J172: COEFICIENTE DE REPRESENTATIVIDADE | K172: 74.8 | L172: CAIXA REFERENCIAL
A173: ASSENTAMENTO DE TUBOS E PECAS | B173: ASTU | C173: FORNEC E/OU ASSENT DE TUBO DE CONCRETO COM JUNTA ARGAMASSADA | D173: 0052 | G173: 92814 | H173: ASSENTAMENTO DE TUBO DE CONCRETO PARA REDES COLETORAS DE ÁGUAS PLUVIAIS, DIÂMETRO DE 900 MM, JUNTA RÍGIDA, INSTALADO EM LOCAL COM BAIXO NÍVEL DE INTERFERÊNCIAS (NÃO INCLUI FORNECIMENTO). AF_03/2024 | I173: M | J173: COEFICIENTE DE REPRESENTATIVIDADE | K173: 85.63 | L173: CAIXA REFERENCIAL
A174: ASSENTAMENTO DE TUBOS E PECAS | B174: ASTU | C174: FORNEC E/OU ASSENT DE TUBO DE CONCRETO COM JUNTA ARGAMASSADA | D174: 0052 | G174: 92815 | H174: ASSENTAMENTO DE TUBO DE CONCRETO PARA REDES COLETORAS DE ÁGUAS PLUVIAIS, DIÂMETRO DE 1000 MM, JUNTA RÍGIDA, INSTALADO EM LOCAL COM BAIXO NÍVEL DE INTERFERÊNCIAS (NÃO INCLUI FORNECIMENTO). AF_03/2024 | I174: M | J174: COEFICIENTE DE REPRESENTATIVIDADE | K174: 96.65 | L174: CAIXA REFERENCIAL
A175: ASSENTAMENTO DE TUBOS E PECAS | B175: ASTU | C175: FORNEC E/OU ASSENT DE TUBO DE CONCRETO COM JUNTA ARGAMASSADA | D175: 0052 | G175: 92816 | H175: TUBO DE CONCRETO PARA REDES COLETORAS DE ÁGUAS PLUVIAIS, DIÂMETRO DE 1200 MM, JUNTA RÍGIDA, INSTALADO EM LOCAL COM BAIXO NÍVEL DE INTERFERÊNCIAS - FORNECIMENTO E ASSENTAMENTO. AF_03/2024 | I175: M | J175: COEFICIENTE DE REPRESENTATIVIDADE | K175: 659.28 | L175: CAIXA REFERENCIAL
A176: ASSENTAMENTO DE TUBOS E PECAS | B176: ASTU | C176: FORNEC E/OU ASSENT DE TUBO DE CONCRETO COM JUNTA ARGAMASSADA | D176: 0052 | G176: 92817 | H176: ASSENTAMENTO DE TUBO DE CONCRETO PARA REDES COLETORAS DE ÁGUAS PLUVIAIS, DIÂMETRO DE 1200 MM, JUNTA RÍGIDA, INSTALADO EM LOCAL COM BAIXO NÍVEL DE INTERFERÊNCIAS (NÃO INCLUI FORNECIMENTO). AF_03/2024 | I176: M | J176: COEFICIENTE DE REPRESENTATIVIDADE | K176: 119.45 | L176: CAIXA REFERENCIAL
A177: ASSENTAMENTO DE TUBOS E PECAS | B177: ASTU | C177: FORNEC E/OU ASSENT DE TUBO DE CONCRETO COM JUNTA ARGAMASSADA | D177: 0052 | G177: 92818 | H177: TUBO DE CONCRETO PARA REDES COLETORAS DE ÁGUAS PLUVIAIS, DIÂMETRO DE 1500 MM, JUNTA RÍGIDA, INSTALADO EM LOCAL COM BAIXO NÍVEL DE INTERFERÊNCIAS - FORNECIMENTO E ASSENTAMENTO. AF_03/2024 | I177: M | J177: COEFICIENTE DE REPRESENTATIVIDADE | K177: 937.52 | L177: CAIXA REFERENCIAL
A178: ASSENTAMENTO DE TUBOS E PECAS | B178: ASTU | C178: FORNEC E/OU ASSENT DE TUBO DE CONCRETO COM JUNTA ARGAMASSADA | D178: 0052 | G178: 92819 | H178: ASSENTAMENTO DE TUBO DE CONCRETO PARA REDES COLETORAS DE ÁGUAS PLUVIAIS, DIÂMETRO DE 1500 MM, JUNTA RÍGIDA, INSTALADO EM LOCAL COM BAIXO NÍVEL DE INTERFERÊNCIAS (NÃO INCLUI FORNECIMENTO). AF_03/2024 | I178: M | J178: COEFICIENTE DE REPRESENTATIVIDADE | K178: 155.43 | L178: CAIXA REFERENCIAL
A179: ASSENTAMENTO DE TUBOS E PECAS | B179: ASTU | C179: FORNEC E/OU ASSENT DE TUBO DE CONCRETO COM JUNTA ARGAMASSADA | D179: 0052 | G179: 92820 | H179: ASSENTAMENTO DE TUBO DE CONCRETO PARA REDES COLETORAS DE ÁGUAS PLUVIAIS, DIÂMETRO DE 300 MM, JUNTA RÍGIDA, INSTALADO EM LOCAL COM ALTO NÍVEL DE INTERFERÊNCIAS (NÃO INCLUI FORNECIMENTO). AF_03/2024 | I179: M | J179: COEFICIENTE DE REPRESENTATIVIDADE | K179: 26.9 | L179: CAIXA REFERENCIAL
A180: ASSENTAMENTO DE TUBOS E PECAS | B180: ASTU | C180: FORNEC E/OU ASSENT DE TUBO DE CONCRETO COM JUNTA ARGAMASSADA | D180: 0052 | G180: 92821 | H180: ASSENTAMENTO DE TUBO DE CONCRETO PARA REDES COLETORAS DE ÁGUAS PLUVIAIS, DIÂMETRO DE 400 MM, JUNTA RÍGIDA, INSTALADO EM LOCAL COM ALTO NÍVEL DE INTERFERÊNCIAS (NÃO INCLUI FORNECIMENTO). AF_03/2024 | I180: M | J180: COEFICIENTE DE REPRESENTATIVIDADE | K180: 37.48 | L180: CAIXA REFERENCIAL
A181: ASSENTAMENTO DE TUBOS E PECAS | B181: ASTU | C181: FORNEC E/OU ASSENT DE TUBO DE CONCRETO COM JUNTA ARGAMASSADA | D181: 0052 | G181: 92822 | H181: ASSENTAMENTO DE TUBO DE CONCRETO PARA REDES COLETORAS DE ÁGUAS PLUVIAIS, DIÂMETRO DE 500 MM, JUNTA RÍGIDA, INSTALADO EM LOCAL COM ALTO NÍVEL DE INTERFERÊNCIAS (NÃO INCLUI FORNECIMENTO). AF_03/2024 | I181: M | J181: COEFICIENTE DE REPRESENTATIVIDADE | K181: 48.4 | L181: CAIXA REFERENCIAL
A182: ASSENTAMENTO DE TUBOS E PECAS | B182: ASTU | C182: FORNEC E/OU ASSENT DE TUBO DE CONCRETO COM JUNTA ARGAMASSADA | D182: 0052 | G182: 92824 | H182: ASSENTAMENTO DE TUBO DE CONCRETO PARA REDES COLETORAS DE ÁGUAS PLUVIAIS, DIÂMETRO DE 600 MM, JUNTA RÍGIDA, INSTALADO EM LOCAL COM ALTO NÍVEL DE INTERFERÊNCIAS (NÃO INCLUI FORNECIMENTO). AF_03/2024 | I182: M | J182: COEFICIENTE DE REPRESENTATIVIDADE | K182: 59.49 | L182: CAIXA REFERENCIAL
A183: ASSENTAMENTO DE TUBOS E PECAS | B183: ASTU | C183: FORNEC E/OU ASSENT DE TUBO DE CONCRETO COM JUNTA ARGAMASSADA | D183: 0052 | G183: 92825 | H183: ASSENTAMENTO DE TUBO DE CONCRETO PARA REDES COLETORAS DE ÁGUAS PLUVIAIS, DIÂMETRO DE 700 MM, JUNTA RÍGIDA, INSTALADO EM LOCAL COM ALTO NÍVEL DE INTERFERÊNCIAS (NÃO INCLUI FORNECIMENTO). AF_03/2024 | I183: M | J183: COEFICIENTE DE REPRESENTATIVIDADE | K183: 70.86 | L183: CAIXA REFERENCIAL
A184: ASSENTAMENTO DE TUBOS E PECAS | B184: ASTU | C184: FORNEC E/OU ASSENT DE TUBO DE CONCRETO COM JUNTA ARGAMASSADA | D184: 0052 | G184: 92826 | H184: ASSENTAMENTO DE TUBO DE CONCRETO PARA REDES COLETORAS DE ÁGUAS PLUVIAIS, DIÂMETRO DE 800 MM, JUNTA RÍGIDA, INSTALADO EM LOCAL COM ALTO NÍVEL DE INTERFERÊNCIAS (NÃO INCLUI FORNECIMENTO). AF_03/2024 | I184: M | J184: COEFICIENTE DE REPRESENTATIVIDADE | K184: 82.45 | L184: CAIXA REFERENCIAL
A185: ASSENTAMENTO DE TUBOS E PECAS | B185: ASTU | C185: FORNEC E/OU ASSENT DE TUBO DE CONCRETO COM JUNTA ARGAMASSADA | D185: 0052 | G185: 92827 | H185: ASSENTAMENTO DE TUBO DE CONCRETO PARA REDES COLETORAS DE ÁGUAS PLUVIAIS, DIÂMETRO DE 900 MM, JUNTA RÍGIDA, INSTALADO EM LOCAL COM ALTO NÍVEL DE INTERFERÊNCIAS (NÃO INCLUI FORNECIMENTO). AF_03/2024 | I185: M | J185: COEFICIENTE DE REPRESENTATIVIDADE | K185: 94.35 | L185: CAIXA REFERENCIAL
A186: ASSENTAMENTO DE TUBOS E PECAS | B186: ASTU | C186: FORNEC E/OU ASSENT DE TUBO DE CONCRETO COM JUNTA ARGAMASSADA | D186: 0052 | G186: 92828 | H186: ASSENTAMENTO DE TUBO DE CONCRETO PARA REDES COLETORAS DE ÁGUAS PLUVIAIS, DIÂMETRO DE 1000 MM, JUNTA RÍGIDA, INSTALADO EM LOCAL COM ALTO NÍVEL DE INTERFERÊNCIAS (NÃO INCLUI FORNECIMENTO). AF_03/2024 | I186: M | J186: COEFICIENTE DE REPRESENTATIVIDADE | K186: 106.42 | L186: CAIXA REFERENCIAL
A187: ASSENTAMENTO DE TUBOS E PECAS | B187: ASTU | C187: FORNEC E/OU ASSENT DE TUBO DE CONCRETO COM JUNTA ARGAMASSADA | D187: 0052 | G187: 92829 | H187: TUBO DE CONCRETO PARA REDES COLETORAS DE ÁGUAS PLUVIAIS, DIÂMETRO DE 1200 MM, JUNTA RÍGIDA, INSTALADO EM LOCAL COM ALTO NÍVEL DE INTERFERÊNCIAS - FORNECIMENTO E ASSENTAMENTO. AF_03/2024 | I187: M | J187: COEFICIENTE DE REPRESENTATIVIDADE | K187: 671.13 | L187: CAIXA REFERENCIAL
A188: ASSENTAMENTO DE TUBOS E PECAS | B188: ASTU | C188: FORNEC E/OU ASSENT DE TUBO DE CONCRETO COM JUNTA ARGAMASSADA | D188: 0052 | G188: 92830 | H188: ASSENTAMENTO DE TUBO DE CONCRETO PARA REDES COLETORAS DE ÁGUAS PLUVIAIS, DIÂMETRO DE 1200 MM, JUNTA RÍGIDA, INSTALADO EM LOCAL COM ALTO NÍVEL DE INTERFERÊNCIAS (NÃO INCLUI FORNECIMENTO). AF_03/2024 | I188: M | J188: COEFICIENTE DE REPRESENTATIVIDADE | K188: 131.3 | L188: CAIXA REFERENCIAL
A189: ASSENTAMENTO DE TUBOS E PECAS | B189: ASTU | C189: FORNEC E/OU ASSENT DE TUBO DE CONCRETO COM JUNTA ARGAMASSADA | D189: 0052 | G189: 92831 | H189: TUBO DE CONCRETO PARA REDES COLETORAS DE ÁGUAS PLUVIAIS, DIÂMETRO DE 1500 MM, JUNTA RÍGIDA, INSTALADO EM LOCAL COM ALTO NÍVEL DE INTERFERÊNCIAS - FORNECIMENTO E ASSENTAMENTO. AF_03/2024 | I189: M | J189: COEFICIENTE DE REPRESENTATIVIDADE | K189: 952.51 | L189: CAIXA REFERENCIAL
A190: ASSENTAMENTO DE TUBOS E PECAS | B190: ASTU | C190: FORNEC E/OU ASSENT DE TUBO DE CONCRETO COM JUNTA ARGAMASSADA | D190: 0052 | G190: 92832 | H190: ASSENTAMENTO DE TUBO DE CONCRETO PARA REDES COLETORAS DE ÁGUAS PLUVIAIS, DIÂMETRO DE 1500 MM, JUNTA RÍGIDA, INSTALADO EM LOCAL COM ALTO NÍVEL DE INTERFERÊNCIAS (NÃO INCLUI FORNECIMENTO). AF_03/2024 | I190: M | J190: COEFICIENTE DE REPRESENTATIVIDADE | K190: 170.42 | L190: CAIXA REFERENCIAL
A191: ASSENTAMENTO DE TUBOS E PECAS | B191: ASTU | C191: FORNEC E/OU ASSENT DE TUBO DE CONCRETO COM JUNTA ARGAMASSADA | D191: 0052 | G191: 95565 | H191: TUBO DE CONCRETO PARA REDES COLETORAS DE ÁGUAS PLUVIAIS, DIÂMETRO DE 300MM, JUNTA RÍGIDA, INSTALADO EM LOCAL COM BAIXO NÍVEL DE INTERFERÊNCIAS - FORNECIMENTO E ASSENTAMENTO. AF_03/2024 | I191: M | J191: COEFICIENTE DE REPRESENTATIVIDADE | K191: 109.33 | L191: CAIXA REFERENCIAL
A192: ASSENTAMENTO DE TUBOS E PECAS | B192: ASTU | C192: FORNEC E/OU ASSENT DE TUBO DE CONCRETO COM JUNTA ARGAMASSADA | D192: 0052 | G192: 95566 | H192: TUBO DE CONCRETO PARA REDES COLETORAS DE ÁGUAS PLUVIAIS, DIÂMETRO DE 300MM, JUNTA RÍGIDA, INSTALADO EM LOCAL COM ALTO NÍVEL DE INTERFERÊNCIAS - FORNECIMENTO E ASSENTAMENTO. AF_03/2024 | I192: M | J192: COEFICIENTE DE REPRESENTATIVIDADE | K192: 111.8 | L192: CAIXA REFERENCIAL
A193: ASSENTAMENTO DE TUBOS E PECAS | B193: ASTU | C193: FORNEC E/OU ASSENT DE TUBO DE CONCRETO COM JUNTA ARGAMASSADA | D193: 0052 | G193: 95567 | H193: TUBO DE CONCRETO (SIMPLES) PARA REDES COLETORAS DE ÁGUAS PLUVIAIS, DIÂMETRO DE 300 MM, JUNTA RÍGIDA, INSTALADO EM LOCAL COM BAIXO NÍVEL DE INTERFERÊNCIAS - FORNECIMENTO E ASSENTAMENTO. AF_03/2024 | I193: M | J193: ATRIBUÍDO SÃO PAULO | K193: 88.29 | L193: CAIXA REFERENCIAL
A194: ASSENTAMENTO DE TUBOS E PECAS | B194: ASTU | C194: FORNEC E/OU ASSENT DE TUBO DE CONCRETO COM JUNTA ARGAMASSADA | D194: 0052 | G194: 95568 | H194: TUBO DE CONCRETO (SIMPLES) PARA REDES COLETORAS DE ÁGUAS PLUVIAIS, DIÂMETRO DE 400 MM, JUNTA RÍGIDA, INSTALADO EM LOCAL COM BAIXO NÍVEL DE INTERFERÊNCIAS - FORNECIMENTO E ASSENTAMENTO. AF_03/2024 | I194: M | J194: ATRIBUÍDO SÃO PAULO | K194: 109.44 | L194: CAIXA REFERENCIAL
A195: ASSENTAMENTO DE TUBOS E PECAS | B195: ASTU | C195: FORNEC E/OU ASSENT DE TUBO DE CONCRETO COM JUNTA ARGAMASSADA | D195: 0052 | G195: 95569 | H195: TUBO DE CONCRETO (SIMPLES) PARA REDES COLETORAS DE ÁGUAS PLUVIAIS, DIÂMETRO DE 500 MM, JUNTA RÍGIDA, INSTALADO EM LOCAL COM BAIXO NÍVEL DE INTERFERÊNCIAS - FORNECIMENTO E ASSENTAMENTO. AF_03/2024 | I195: M | J195: ATRIBUÍDO SÃO PAULO | K195: 156.16 | L195: CAIXA REFERENCIAL
A196: ASSENTAMENTO DE TUBOS E PECAS | B196: ASTU | C196: FORNEC E/OU ASSENT DE TUBO DE CONCRETO COM JUNTA ARGAMASSADA | D196: 0052 | G196: 95570 | H196: TUBO DE CONCRETO (SIMPLES) PARA REDES COLETORAS DE ÁGUAS PLUVIAIS, DIÂMETRO DE 300 MM, JUNTA RÍGIDA, INSTALADO EM LOCAL COM ALTO NÍVEL DE INTERFERÊNCIAS - FORNECIMENTO E ASSENTAMENTO. AF_03/2024 | I196: M | J196: ATRIBUÍDO SÃO PAULO | K196: 90.76 | L196: CAIXA REFERENCIAL
A197: ASSENTAMENTO DE TUBOS E PECAS | B197: ASTU | C197: FORNEC E/OU ASSENT DE TUBO DE CONCRETO COM JUNTA ARGAMASSADA | D197: 0052 | G197: 95571 | H197: TUBO DE CONCRETO (SIMPLES) PARA REDES COLETORAS DE ÁGUAS PLUVIAIS, DIÂMETRO DE 400 MM, JUNTA RÍGIDA, INSTALADO EM LOCAL COM ALTO NÍVEL DE INTERFERÊNCIAS - FORNECIMENTO E ASSENTAMENTO. AF_03/2024 | I197: M | J197: ATRIBUÍDO SÃO PAULO | K197: 112.93 | L197: CAIXA REFERENCIAL
A198: ASSENTAMENTO DE TUBOS E PECAS | B198: ASTU | C198: FORNEC E/OU ASSENT DE TUBO DE CONCRETO COM JUNTA ARGAMASSADA | D198: 0052 | G198: 95572 | H198: TUBO DE CONCRETO (SIMPLES) PARA REDES COLETORAS DE ÁGUAS PLUVIAIS, DIÂMETRO DE 500 MM, JUNTA RÍGIDA, INSTALADO EM LOCAL COM ALTO NÍVEL DE INTERFERÊNCIAS - FORNECIMENTO E ASSENTAMENTO. AF_03/2024 | I198: M | J198: ATRIBUÍDO SÃO PAULO | K198: 160.71 | L198: CAIXA REFERENCIAL
A199: ASSENTAMENTO DE TUBOS E PECAS | B199: ASTU | C199: FORNEC E/OU ASSENT DE TUBO PVC DEFOFO COM JUNTA ELASTICA | D199: 0230 | G199: 97127 | H199: ASSENTAMENTO DE TUBO DE PVC DEFOFO OU PRFV OU RPVC PARA REDE DE ÁGUA, DN 150 MM, JUNTA ELÁSTICA INTEGRADA, INSTALADO EM LOCAL COM NÍVEL ALTO DE INTERFERÊNCIAS (NÃO INCLUI FORNECIMENTO). AF_11/2017 | I199: M | J199: COEFICIENTE DE REPRESENTATIVIDADE | K199: 4.82 | L199: CAIXA REFERENCIAL
A200: ASSENTAMENTO DE TUBOS E PECAS | B200: ASTU | C200: FORNEC E/OU ASSENT DE TUBO PVC DEFOFO COM JUNTA ELASTICA | D200: 0230 | G200: 97128 | H200: ASSENTAMENTO DE TUBO DE PVC DEFOFO OU PRFV OU RPVC PARA REDE DE ÁGUA, DN 200 MM, JUNTA ELÁSTICA INTEGRADA, INSTALADO EM LOCAL COM NÍVEL ALTO DE INTERFERÊNCIAS (NÃO INCLUI FORNECIMENTO). AF_11/2017 | I200: M | J200: COEFICIENTE DE REPRESENTATIVIDADE | K200: 10.61 | L200: CAIXA REFERENCIAL
A201: ASSENTAMENTO DE TUBOS E PECAS | B201: ASTU | C201: FORNEC E/OU ASSENT DE TUBO PVC DEFOFO COM JUNTA ELASTICA | D201: 0230 | G201: 97129 | H201: ASSENTAMENTO DE TUBO DE PVC DEFOFO OU PRFV OU RPVC PARA REDE DE ÁGUA, DN 250 MM, JUNTA ELÁSTICA INTEGRADA, INSTALADO EM LOCAL COM NÍVEL ALTO DE INTERFERÊNCIAS (NÃO INCLUI FORNECIMENTO). AF_11/2017 | I201: M | J201: COEFICIENTE DE REPRESENTATIVIDADE | K201: 13.05 | L201: CAIXA REFERENCIAL
A202: ASSENTAMENTO DE TUBOS E PECAS | B202: ASTU | C202: FORNEC E/OU ASSENT DE TUBO PVC DEFOFO COM JUNTA ELASTICA | D202: 0230 | G202: 97130 | H202: ASSENTAMENTO DE TUBO DE PVC DEFOFO OU PRFV OU RPVC PARA REDE DE ÁGUA, DN 300 MM, JUNTA ELÁSTICA INTEGRADA, INSTALADO EM LOCAL COM NÍVEL ALTO DE INTERFERÊNCIAS (NÃO INCLUI FORNECIMENTO). AF_11/2017 | I202: M | J202: COEFICIENTE DE REPRESENTATIVIDADE | K202: 15.49 | L202: CAIXA REFERENCIAL
... 7352 more rows

Sheet Comp SINAPI BA 05-2023 Desoner (hidden)
A1: PCI.817.01 - CUSTO DE COMPOSIÇÕES - SINTÉTICO DATA DE EMISSÃO: 20/06/2023 16:33:11 DATA DE RT: 20/06/2023
A2: ENCARGOS SOCIAIS DESONERADOS: 85,51%(HORA) 47,56%(MÊS)
A3: ABRANGÊNCIA : NACIONAL LOCALIDADE : SALVADOR DATA DE PREÇO : 05/2023 REFERÊNCIA COLETA : MEDIANO
A5: DESCRICAO DA CLASSE | B5: SIGLA DA CLASSE | C5: DESCRICAO DO TIPO 1 | D5: SIGLA DO TIPO 1 | E5: CODIGO DO AGRUPADOR | F5: DESCRICAO DO AGRUPADOR | G5: CODIGO DA COMPOSICAO | H5: DESCRICAO DA COMPOSICAO | I5: UNIDADE | J5: ORIGEM DE PREÇO | K5: CUSTO TOTAL | L5: VINCULO
A7: ASSENTAMENTO DE TUBOS E PECAS | B7: ASTU | C7: FORNEC E/OU ASSENT DE TUBO DE FERRO FUNDIDO JUNTA ELASTICA | D7: 45 | G7: 97141 | H7: ASSENTAMENTO DE TUBO DE FERRO FUNDIDO PARA REDE DE ÁGUA, DN 80 MM, JUNTA ELÁSTICA, INSTALADO EM LOCAL COM NÍVEL ALTO DE INTERFERÊNCIAS (NÃO INCLUI FORNECIMENTO). AF_11/2017 | I7: M | J7: COEFICIENTE DE REPRESENTATIVIDADE | K7: 10.52 | L7: CAIXA REFERENCIAL
A8: ASSENTAMENTO DE TUBOS E PECAS | B8: ASTU | C8: FORNEC E/OU ASSENT DE TUBO DE FERRO FUNDIDO JUNTA ELASTICA | D8: 45 | G8: 97142 | H8: ASSENTAMENTO DE TUBO DE FERRO FUNDIDO PARA REDE DE ÁGUA, DN 100 MM, JUNTA ELÁSTICA, INSTALADO EM LOCAL COM NÍVEL ALTO DE INTERFERÊNCIAS (NÃO INCLUI FORNECIMENTO). AF_11/2017 | I8: M | J8: COEFICIENTE DE REPRESENTATIVIDADE | K8: 11.78 | L8: CAIXA REFERENCIAL
A9: ASSENTAMENTO DE TUBOS E PECAS | B9: ASTU | C9: FORNEC E/OU ASSENT DE TUBO DE FERRO FUNDIDO JUNTA ELASTICA | D9: 45 | G9: 97143 | H9: ASSENTAMENTO DE TUBO DE FERRO FUNDIDO PARA REDE DE ÁGUA, DN 150 MM, JUNTA ELÁSTICA, INSTALADO EM LOCAL COM NÍVEL ALTO DE INTERFERÊNCIAS (NÃO INCLUI FORNECIMENTO). AF_11/2017 | I9: M | J9: COEFICIENTE DE REPRESENTATIVIDADE | K9: 14.89 | L9: CAIXA REFERENCIAL
A10: ASSENTAMENTO DE TUBOS E PECAS | B10: ASTU | C10: FORNEC E/OU ASSENT DE TUBO DE FERRO FUNDIDO JUNTA ELASTICA | D10: 45 | G10: 97144 | H10: ASSENTAMENTO DE TUBO DE FERRO FUNDIDO PARA REDE DE ÁGUA, DN 200 MM, JUNTA ELÁSTICA, INSTALADO EM LOCAL COM NÍVEL ALTO DE INTERFERÊNCIAS (NÃO INCLUI FORNECIMENTO). AF_11/2017 | I10: M | J10: COEFICIENTE DE REPRESENTATIVIDADE | K10: 17.99 | L10: CAIXA REFERENCIAL
A11: ASSENTAMENTO DE TUBOS E PECAS | B11: ASTU | C11: FORNEC E/OU ASSENT DE TUBO DE FERRO FUNDIDO JUNTA ELASTICA | D11: 45 | G11: 97145 | H11: ASSENTAMENTO DE TUBO DE FERRO FUNDIDO PARA REDE DE ÁGUA, DN 250 MM, JUNTA ELÁSTICA, INSTALADO EM LOCAL COM NÍVEL ALTO DE INTERFERÊNCIAS (NÃO INCLUI FORNECIMENTO). AF_11/2017 | I11: M | J11: COEFICIENTE DE REPRESENTATIVIDADE | K11: 21.12 | L11: CAIXA REFERENCIAL
A12: ASSENTAMENTO DE TUBOS E PECAS | B12: ASTU | C12: FORNEC E/OU ASSENT DE TUBO DE FERRO FUNDIDO JUNTA ELASTICA | D12: 45 | G12: 97146 | H12: ASSENTAMENTO DE TUBO DE FERRO FUNDIDO PARA REDE DE ÁGUA, DN 300 MM, JUNTA ELÁSTICA, INSTALADO EM LOCAL COM NÍVEL ALTO DE INTERFERÊNCIAS (NÃO INCLUI FORNECIMENTO). AF_11/2017 | I12: M | J12: COEFICIENTE DE REPRESENTATIVIDADE | K12: 24.26 | L12: CAIXA REFERENCIAL
A13: ASSENTAMENTO DE TUBOS E PECAS | B13: ASTU | C13: FORNEC E/OU ASSENT DE TUBO DE FERRO FUNDIDO JUNTA ELASTICA | D13: 45 | G13: 97147 | H13: ASSENTAMENTO DE TUBO DE FERRO FUNDIDO PARA REDE DE ÁGUA, DN 350 MM, JUNTA ELÁSTICA, INSTALADO EM LOCAL COM NÍVEL ALTO DE INTERFERÊNCIAS (NÃO INCLUI FORNECIMENTO). AF_11/2017 | I13: M | J13: COEFICIENTE DE REPRESENTATIVIDADE | K13: 27.4 | L13: CAIXA REFERENCIAL
A14: ASSENTAMENTO DE TUBOS E PECAS | B14: ASTU | C14: FORNEC E/OU ASSENT DE TUBO DE FERRO FUNDIDO JUNTA ELASTICA | D14: 45 | G14: 97148 | H14: ASSENTAMENTO DE TUBO DE FERRO FUNDIDO PARA REDE DE ÁGUA, DN 400 MM, JUNTA ELÁSTICA, INSTALADO EM LOCAL COM NÍVEL ALTO DE INTERFERÊNCIAS (NÃO INCLUI FORNECIMENTO). AF_11/2017 | I14: M | J14: COEFICIENTE DE REPRESENTATIVIDADE | K14: 30.51 | L14: CAIXA REFERENCIAL
A15: ASSENTAMENTO DE TUBOS E PECAS | B15: ASTU | C15: FORNEC E/OU ASSENT DE TUBO DE FERRO FUNDIDO JUNTA ELASTICA | D15: 45 | G15: 97149 | H15: ASSENTAMENTO DE TUBO DE FERRO FUNDIDO PARA REDE DE ÁGUA, DN 450 MM, JUNTA ELÁSTICA, INSTALADO EM LOCAL COM NÍVEL ALTO DE INTERFERÊNCIAS (NÃO INCLUI FORNECIMENTO). AF_11/2017 | I15: M | J15: COEFICIENTE DE REPRESENTATIVIDADE | K15: 33.67 | L15: CAIXA REFERENCIAL
A16: ASSENTAMENTO DE TUBOS E PECAS | B16: ASTU | C16: FORNEC E/OU ASSENT DE TUBO DE FERRO FUNDIDO JUNTA ELASTICA | D16: 45 | G16: 97150 | H16: ASSENTAMENTO DE TUBO DE FERRO FUNDIDO PARA REDE DE ÁGUA, DN 500 MM, JUNTA ELÁSTICA, INSTALADO EM LOCAL COM NÍVEL ALTO DE INTERFERÊNCIAS (NÃO INCLUI FORNECIMENTO). AF_11/2017 | I16: M | J16: COEFICIENTE DE REPRESENTATIVIDADE | K16: 41.04 | L16: CAIXA REFERENCIAL
A17: ASSENTAMENTO DE TUBOS E PECAS | B17: ASTU | C17: FORNEC E/OU ASSENT DE TUBO DE FERRO FUNDIDO JUNTA ELASTICA | D17: 45 | G17: 97151 | H17: ASSENTAMENTO DE TUBO DE FERRO FUNDIDO PARA REDE DE ÁGUA, DN 600 MM, JUNTA ELÁSTICA, INSTALADO EM LOCAL COM NÍVEL ALTO DE INTERFERÊNCIAS (NÃO INCLUI FORNECIMENTO). AF_11/2017 | I17: M | J17: COEFICIENTE DE REPRESENTATIVIDADE | K17: 47.93 | L17: CAIXA REFERENCIAL
A18: ASSENTAMENTO DE TUBOS E PECAS | B18: ASTU | C18: FORNEC E/OU ASSENT DE TUBO DE FERRO FUNDIDO JUNTA ELASTICA | D18: 45 | G18: 97152 | H18: ASSENTAMENTO DE TUBO DE FERRO FUNDIDO PARA REDE DE ÁGUA, DN 700 MM, JUNTA ELÁSTICA, INSTALADO EM LOCAL COM NÍVEL ALTO DE INTERFERÊNCIAS (NÃO INCLUI FORNECIMENTO). AF_11/2017 | I18: M | J18: COEFICIENTE DE REPRESENTATIVIDADE | K18: 54.61 | L18: CAIXA REFERENCIAL
A19: ASSENTAMENTO DE TUBOS E PECAS | B19: ASTU | C19: FORNEC E/OU ASSENT DE TUBO DE FERRO FUNDIDO JUNTA ELASTICA | D19: 45 | G19: 97153 | H19: ASSENTAMENTO DE TUBO DE FERRO FUNDIDO PARA REDE DE ÁGUA, DN 800 MM, JUNTA ELÁSTICA, INSTALADO EM LOCAL COM NÍVEL ALTO DE INTERFERÊNCIAS (NÃO INCLUI FORNECIMENTO). AF_11/2017 | I19: M | J19: COEFICIENTE DE REPRESENTATIVIDADE | K19: 61.4 | L19: CAIXA REFERENCIAL
A20: ASSENTAMENTO DE TUBOS E PECAS | B20: ASTU | C20: FORNEC E/OU ASSENT DE TUBO DE FERRO FUNDIDO JUNTA ELASTICA | D20: 45 | G20: 97154 | H20: ASSENTAMENTO DE TUBO DE FERRO FUNDIDO PARA REDE DE ÁGUA, DN 900 MM, JUNTA ELÁSTICA, INSTALADO EM LOCAL COM NÍVEL ALTO DE INTERFERÊNCIAS (NÃO INCLUI FORNECIMENTO). AF_11/2017 | I20: M | J20: COEFICIENTE DE REPRESENTATIVIDADE | K20: 68.25 | L20: CAIXA REFERENCIAL
A21: ASSENTAMENTO DE TUBOS E PECAS | B21: ASTU | C21: FORNEC E/OU ASSENT DE TUBO DE FERRO FUNDIDO JUNTA ELASTICA | D21: 45 | G21: 97155 | H21: ASSENTAMENTO DE TUBO DE FERRO FUNDIDO PARA REDE DE ÁGUA, DN 1000 MM, JUNTA ELÁSTICA, INSTALADO EM LOCAL COM NÍVEL ALTO DE INTERFERÊNCIAS (NÃO INCLUI FORNECIMENTO). AF_11/2017 | I21: M | J21: COEFICIENTE DE REPRESENTATIVIDADE | K21: 75.09 | L21: CAIXA REFERENCIAL
A22: ASSENTAMENTO DE TUBOS E PECAS | B22: ASTU | C22: FORNEC E/OU ASSENT DE TUBO DE FERRO FUNDIDO JUNTA ELASTICA | D22: 45 | G22: 97156 | H22: ASSENTAMENTO DE TUBO DE FERRO FUNDIDO PARA REDE DE ÁGUA, DN 1200 MM, JUNTA ELÁSTICA, INSTALADO EM LOCAL COM NÍVEL ALTO DE INTERFERÊNCIAS (NÃO INCLUI FORNECIMENTO). AF_11/2017 | I22: M | J22: COEFICIENTE DE REPRESENTATIVIDADE | K22: 89.2 | L22: CAIXA REFERENCIAL
A23: ASSENTAMENTO DE TUBOS E PECAS | B23: ASTU | C23: FORNEC E/OU ASSENT DE TUBO DE FERRO FUNDIDO JUNTA ELASTICA | D23: 45 | G23: 97157 | H23: ASSENTAMENTO DE TUBO DE FERRO FUNDIDO PARA REDE DE ÁGUA, DN 80 MM, JUNTA ELÁSTICA, INSTALADO EM LOCAL COM NÍVEL BAIXO DE INTERFERÊNCIAS (NÃO INCLUI FORNECIMENTO). AF_11/2017 | I23: M | J23: COEFICIENTE DE REPRESENTATIVIDADE | K23: 6.3 | L23: CAIXA REFERENCIAL
A24: ASSENTAMENTO DE TUBOS E PECAS | B24: ASTU | C24: FORNEC E/OU ASSENT DE TUBO DE FERRO FUNDIDO JUNTA ELASTICA | D24: 45 | G24: 97158 | H24: ASSENTAMENTO DE TUBO DE FERRO FUNDIDO PARA REDE DE ÁGUA, DN 100 MM, JUNTA ELÁSTICA, INSTALADO EM LOCAL COM NÍVEL BAIXO DE INTERFERÊNCIAS (NÃO INCLUI FORNECIMENTO). AF_11/2017 | I24: M | J24: COEFICIENTE DE REPRESENTATIVIDADE | K24: 7.08 | L24: CAIXA REFERENCIAL
A25: ASSENTAMENTO DE TUBOS E PECAS | B25: ASTU | C25: FORNEC E/OU ASSENT DE TUBO DE FERRO FUNDIDO JUNTA ELASTICA | D25: 45 | G25: 97159 | H25: ASSENTAMENTO DE TUBO DE FERRO FUNDIDO PARA REDE DE ÁGUA, DN 150 MM, JUNTA ELÁSTICA, INSTALADO EM LOCAL COM NÍVEL BAIXO DE INTERFERÊNCIAS (NÃO INCLUI FORNECIMENTO). AF_11/2017 | I25: M | J25: COEFICIENTE DE REPRESENTATIVIDADE | K25: 8.97 | L25: CAIXA REFERENCIAL
A26: ASSENTAMENTO DE TUBOS E PECAS | B26: ASTU | C26: FORNEC E/OU ASSENT DE TUBO DE FERRO FUNDIDO JUNTA ELASTICA | D26: 45 | G26: 97160 | H26: ASSENTAMENTO DE TUBO DE FERRO FUNDIDO PARA REDE DE ÁGUA, DN 200 MM, JUNTA ELÁSTICA, INSTALADO EM LOCAL COM NÍVEL BAIXO DE INTERFERÊNCIAS (NÃO INCLUI FORNECIMENTO). AF_11/2017 | I26: M | J26: COEFICIENTE DE REPRESENTATIVIDADE | K26: 10.82 | L26: CAIXA REFERENCIAL
A27: ASSENTAMENTO DE TUBOS E PECAS | B27: ASTU | C27: FORNEC E/OU ASSENT DE TUBO DE FERRO FUNDIDO JUNTA ELASTICA | D27: 45 | G27: 97161 | H27: ASSENTAMENTO DE TUBO DE FERRO FUNDIDO PARA REDE DE ÁGUA, DN 250 MM, JUNTA ELÁSTICA, INSTALADO EM LOCAL COM NÍVEL BAIXO DE INTERFERÊNCIAS (NÃO INCLUI FORNECIMENTO). AF_11/2017 | I27: M | J27: COEFICIENTE DE REPRESENTATIVIDADE | K27: 12.75 | L27: CAIXA REFERENCIAL
A28: ASSENTAMENTO DE TUBOS E PECAS | B28: ASTU | C28: FORNEC E/OU ASSENT DE TUBO DE FERRO FUNDIDO JUNTA ELASTICA | D28: 45 | G28: 97162 | H28: ASSENTAMENTO DE TUBO DE FERRO FUNDIDO PARA REDE DE ÁGUA, DN 300 MM, JUNTA ELÁSTICA, INSTALADO EM LOCAL COM NÍVEL BAIXO DE INTERFERÊNCIAS (NÃO INCLUI FORNECIMENTO). AF_11/2017 | I28: M | J28: COEFICIENTE DE REPRESENTATIVIDADE | K28: 14.65 | L28: CAIXA REFERENCIAL
A29: ASSENTAMENTO DE TUBOS E PECAS | B29: ASTU | C29: FORNEC E/OU ASSENT DE TUBO DE FERRO FUNDIDO JUNTA ELASTICA | D29: 45 | G29: 97163 | H29: ASSENTAMENTO DE TUBO DE FERRO FUNDIDO PARA REDE DE ÁGUA, DN 350 MM, JUNTA ELÁSTICA, INSTALADO EM LOCAL COM NÍVEL BAIXO DE INTERFERÊNCIAS (NÃO INCLUI FORNECIMENTO). AF_11/2017 | I29: M | J29: COEFICIENTE DE REPRESENTATIVIDADE | K29: 16.56 | L29: CAIXA REFERENCIAL
A30: ASSENTAMENTO DE TUBOS E PECAS | B30: ASTU | C30: FORNEC E/OU ASSENT DE TUBO DE FERRO FUNDIDO JUNTA ELASTICA | D30: 45 | G30: 97164 | H30: ASSENTAMENTO DE TUBO DE FERRO FUNDIDO PARA REDE DE ÁGUA, DN 400 MM, JUNTA ELÁSTICA, INSTALADO EM LOCAL COM NÍVEL BAIXO DE INTERFERÊNCIAS (NÃO INCLUI FORNECIMENTO). AF_11/2017 | I30: M | J30: COEFICIENTE DE REPRESENTATIVIDADE | K30: 18.45 | L30: CAIXA REFERENCIAL
A31: ASSENTAMENTO DE TUBOS E PECAS | B31: ASTU | C31: FORNEC E/OU ASSENT DE TUBO DE FERRO FUNDIDO JUNTA ELASTICA | D31: 45 | G31: 97165 | H31: ASSENTAMENTO DE TUBO DE FERRO FUNDIDO PARA REDE DE ÁGUA, DN 450 MM, JUNTA ELÁSTICA, INSTALADO EM LOCAL COM NÍVEL BAIXO DE INTERFERÊNCIAS (NÃO INCLUI FORNECIMENTO). AF_11/2017 | I31: M | J31: COEFICIENTE DE REPRESENTATIVIDADE | K31: 20.39 | L31: CAIXA REFERENCIAL
A32: ASSENTAMENTO DE TUBOS E PECAS | B32: ASTU | C32: FORNEC E/OU ASSENT DE TUBO DE FERRO FUNDIDO JUNTA ELASTICA | D32: 45 | G32: 97166 | H32: ASSENTAMENTO DE TUBO DE FERRO FUNDIDO PARA REDE DE ÁGUA, DN 500 MM, JUNTA ELÁSTICA, INSTALADO EM LOCAL COM NÍVEL BAIXO DE INTERFERÊNCIAS (NÃO INCLUI FORNECIMENTO). AF_11/2017 | I32: M | J32: COEFICIENTE DE REPRESENTATIVIDADE | K32: 24.88 | L32: CAIXA REFERENCIAL
A33: ASSENTAMENTO DE TUBOS E PECAS | B33: ASTU | C33: FORNEC E/OU ASSENT DE TUBO DE FERRO FUNDIDO JUNTA ELASTICA | D33: 45 | G33: 97167 | H33: ASSENTAMENTO DE TUBO DE FERRO FUNDIDO PARA REDE DE ÁGUA, DN 600 MM, JUNTA ELÁSTICA, INSTALADO EM LOCAL COM NÍVEL BAIXO DE INTERFERÊNCIAS (NÃO INCLUI FORNECIMENTO). AF_11/2017 | I33: M | J33: COEFICIENTE DE REPRESENTATIVIDADE | K33: 29.08 | L33: CAIXA REFERENCIAL
A34: ASSENTAMENTO DE TUBOS E PECAS | B34: ASTU | C34: FORNEC E/OU ASSENT DE TUBO DE FERRO FUNDIDO JUNTA ELASTICA | D34: 45 | G34: 97168 | H34: ASSENTAMENTO DE TUBO DE FERRO FUNDIDO PARA REDE DE ÁGUA, DN 700 MM, JUNTA ELÁSTICA, INSTALADO EM LOCAL COM NÍVEL BAIXO DE INTERFERÊNCIAS (NÃO INCLUI FORNECIMENTO). AF_11/2017 | I34: M | J34: COEFICIENTE DE REPRESENTATIVIDADE | K34: 33.06 | L34: CAIXA REFERENCIAL
A35: ASSENTAMENTO DE TUBOS E PECAS | B35: ASTU | C35: FORNEC E/OU ASSENT DE TUBO DE FERRO FUNDIDO JUNTA ELASTICA | D35: 45 | G35: 97169 | H35: ASSENTAMENTO DE TUBO DE FERRO FUNDIDO PARA REDE DE ÁGUA, DN 800 MM, JUNTA ELÁSTICA, INSTALADO EM LOCAL COM NÍVEL BAIXO DE INTERFERÊNCIAS (NÃO INCLUI FORNECIMENTO). AF_11/2017 | I35: M | J35: COEFICIENTE DE REPRESENTATIVIDADE | K35: 37.17 | L35: CAIXA REFERENCIAL
A36: ASSENTAMENTO DE TUBOS E PECAS | B36: ASTU | C36: FORNEC E/OU ASSENT DE TUBO DE FERRO FUNDIDO JUNTA ELASTICA | D36: 45 | G36: 97170 | H36: ASSENTAMENTO DE TUBO DE FERRO FUNDIDO PARA REDE DE ÁGUA, DN 900 MM, JUNTA ELÁSTICA, INSTALADO EM LOCAL COM NÍVEL BAIXO DE INTERFERÊNCIAS (NÃO INCLUI FORNECIMENTO). AF_11/2017 | I36: M | J36: COEFICIENTE DE REPRESENTATIVIDADE | K36: 41.31 | L36: CAIXA REFERENCIAL
A37: ASSENTAMENTO DE TUBOS E PECAS | B37: ASTU | C37: FORNEC E/OU ASSENT DE TUBO DE FERRO FUNDIDO JUNTA ELASTICA | D37: 45 | G37: 97171 | H37: ASSENTAMENTO DE TUBO DE FERRO FUNDIDO PARA REDE DE ÁGUA, DN 1000 MM, JUNTA ELÁSTICA, INSTALADO EM LOCAL COM NÍVEL BAIXO DE INTERFERÊNCIAS (NÃO INCLUI FORNECIMENTO). AF_11/2017 | I37: M | J37: COEFICIENTE DE REPRESENTATIVIDADE | K37: 45.49 | L37: CAIXA REFERENCIAL
A38: ASSENTAMENTO DE TUBOS E PECAS | B38: ASTU | C38: FORNEC E/OU ASSENT DE TUBO DE FERRO FUNDIDO JUNTA ELASTICA | D38: 45 | G38: 97172 | H38: ASSENTAMENTO DE TUBO DE FERRO FUNDIDO PARA REDE DE ÁGUA, DN 1200 MM, JUNTA ELÁSTICA, INSTALADO EM LOCAL COM NÍVEL BAIXO DE INTERFERÊNCIAS (NÃO INCLUI FORNECIMENTO). AF_11/2017 | I38: M | J38: COEFICIENTE DE REPRESENTATIVIDADE | K38: 54.23 | L38: CAIXA REFERENCIAL
A39: ASSENTAMENTO DE TUBOS E PECAS | B39: ASTU | C39: FORNEC E/OU ASSENT DE TUBO DE ACO COM JUNTA SOLDADA | D39: 46 | G39: 97173 | H39: ASSENTAMENTO DE TUBO DE AÇO CARBONO PARA REDE DE ÁGUA, DN 600 MM (24), JUNTA SOLDADA, INSTALADO EM LOCAL COM NÍVEL ALTO DE INTERFERÊNCIAS (NÃO INCLUI FORNECIMENTO). AF_11/2017 | I39: M | J39: COEFICIENTE DE REPRESENTATIVIDADE | K39: 43.01 | L39: CAIXA REFERENCIAL
A40: ASSENTAMENTO DE TUBOS E PECAS | B40: ASTU | C40: FORNEC E/OU ASSENT DE TUBO DE ACO COM JUNTA SOLDADA | D40: 46 | G40: 97174 | H40: ASSENTAMENTO DE TUBO DE AÇO CARBONO PARA REDE DE ÁGUA, DN 700 MM (28), JUNTA SOLDADA, INSTALADO EM LOCAL COM NÍVEL ALTO DE INTERFERÊNCIAS (NÃO INCLUI FORNECIMENTO). AF_11/2017 | I40: M | J40: COEFICIENTE DE REPRESENTATIVIDADE | K40: 49.69 | L40: CAIXA REFERENCIAL
A41: ASSENTAMENTO DE TUBOS E PECAS | B41: ASTU | C41: FORNEC E/OU ASSENT DE TUBO DE ACO COM JUNTA SOLDADA | D41: 46 | G41: 97175 | H41: ASSENTAMENTO DE TUBO DE AÇO CARBONO PARA REDE DE ÁGUA, DN 800 MM (32), JUNTA SOLDADA, INSTALADO EM LOCAL COM NÍVEL ALTO DE INTERFERÊNCIAS (NÃO INCLUI FORNECIMENTO). AF_11/2017 | I41: M | J41: COEFICIENTE DE REPRESENTATIVIDADE | K41: 56.38 | L41: CAIXA REFERENCIAL
A42: ASSENTAMENTO DE TUBOS E PECAS | B42: ASTU | C42: FORNEC E/OU ASSENT DE TUBO DE ACO COM JUNTA SOLDADA | D42: 46 | G42: 97176 | H42: ASSENTAMENTO DE TUBO DE AÇO CARBONO PARA REDE DE ÁGUA, DN 900 MM (36), JUNTA SOLDADA, INSTALADO EM LOCAL COM NÍVEL ALTO DE INTERFERÊNCIAS (NÃO INCLUI FORNECIMENTO). AF_11/2017 | I42: M | J42: COEFICIENTE DE REPRESENTATIVIDADE | K42: 63.06 | L42: CAIXA REFERENCIAL
A43: ASSENTAMENTO DE TUBOS E PECAS | B43: ASTU | C43: FORNEC E/OU ASSENT DE TUBO DE ACO COM JUNTA SOLDADA | D43: 46 | G43: 97177 | H43: ASSENTAMENTO DE TUBO DE AÇO CARBONO PARA REDE DE ÁGUA, DN 1000 MM (40) OU DN 1100 MM (44), JUNTA SOLDADA, INSTALADO EM LOCAL COM NÍVEL ALTO DE INTERFERÊNCIAS (NÃO INCLUI FORNECIMENTO). AF_11/2017 | I43: M | J43: COEFICIENTE DE REPRESENTATIVIDADE | K43: 76.43 | L43: CAIXA REFERENCIAL
A44: ASSENTAMENTO DE TUBOS E PECAS | B44: ASTU | C44: FORNEC E/OU ASSENT DE TUBO DE ACO COM JUNTA SOLDADA | D44: 46 | G44: 97178 | H44: ASSENTAMENTO DE TUBO DE AÇO CARBONO PARA REDE DE ÁGUA, DN 1200 MM (48) OU DN 1300 MM (52), JUNTA SOLDADA, INSTALADO EM LOCAL COM NÍVEL ALTO DE INTERFERÊNCIAS (NÃO INCLUI FORNECIMENTO). AF_11/2017 | I44: M | J44: COEFICIENTE DE REPRESENTATIVIDADE | K44: 89.81 | L44: CAIXA REFERENCIAL
A45: ASSENTAMENTO DE TUBOS E PECAS | B45: ASTU | C45: FORNEC E/OU ASSENT DE TUBO DE ACO COM JUNTA SOLDADA | D45: 46 | G45: 97179 | H45: ASSENTAMENTO DE TUBO DE AÇO CARBONO PARA REDE DE ÁGUA, DN 1400 MM (56'') OU DN 1500 MM (60), JUNTA SOLDADA, INSTALADO EM LOCAL COM NÍVEL ALTO DE INTERFERÊNCIAS (NÃO INCLUI FORNECIMENTO). AF_11/2017 | I45: M | J45: COEFICIENTE DE REPRESENTATIVIDADE | K45: 103.18 | L45: CAIXA REFERENCIAL
A46: ASSENTAMENTO DE TUBOS E PECAS | B46: ASTU | C46: FORNEC E/OU ASSENT DE TUBO DE ACO COM JUNTA SOLDADA | D46: 46 | G46: 97180 | H46: ASSENTAMENTO DE TUBO DE AÇO CARBONO PARA REDE DE ÁGUA, DN 1600 MM (64) OU DN 1700 MM (68), JUNTA SOLDADA, INSTALADO EM LOCAL COM NÍVEL ALTO DE INTERFERÊNCIAS (NÃO INCLUI FORNECIMENTO). AF_11/2017 | I46: M | J46: COEFICIENTE DE REPRESENTATIVIDADE | K46: 116.55 | L46: CAIXA REFERENCIAL
A47: ASSENTAMENTO DE TUBOS E PECAS | B47: ASTU | C47: FORNEC E/OU ASSENT DE TUBO DE ACO COM JUNTA SOLDADA | D47: 46 | G47: 97181 | H47: ASSENTAMENTO DE TUBO DE AÇO CARBONO PARA REDE DE ÁGUA, DN 1800 MM (72) OU DN 1900 MM (76), JUNTA SOLDADA, INSTALADO EM LOCAL COM NÍVEL ALTO DE INTERFERÊNCIAS (NÃO INCLUI FORNECIMENTO). AF_11/2017 | I47: M | J47: COEFICIENTE DE REPRESENTATIVIDADE | K47: 134.18 | L47: CAIXA REFERENCIAL
A48: ASSENTAMENTO DE TUBOS E PECAS | B48: ASTU | C48: FORNEC E/OU ASSENT DE TUBO DE ACO COM JUNTA SOLDADA | D48: 46 | G48: 97182 | H48: ASSENTAMENTO DE TUBO DE AÇO CARBONO PARA REDE DE ÁGUA, DN 2000 MM (80) OU DN 2100 MM (84), JUNTA SOLDADA, INSTALADO EM LOCAL COM NÍVEL ALTO DE INTERFERÊNCIAS (NÃO INCLUI FORNECIMENTO). AF_11/2017 | I48: M | J48: COEFICIENTE DE REPRESENTATIVIDADE | K48: 147.99 | L48: CAIXA REFERENCIAL
A49: ASSENTAMENTO DE TUBOS E PECAS | B49: ASTU | C49: FORNEC E/OU ASSENT DE TUBO DE ACO COM JUNTA SOLDADA | D49: 46 | G49: 97183 | H49: ASSENTAMENTO DE TUBO DE AÇO CARBONO PARA REDE DE ÁGUA, DN 600 MM (24), JUNTA SOLDADA, INSTALADO EM LOCAL COM NÍVEL BAIXO DE INTERFERÊNCIAS (NÃO INCLUI FORNECIMENTO). AF_11/2017 | I49: M | J49: COEFICIENTE DE REPRESENTATIVIDADE | K49: 34.76 | L49: CAIXA REFERENCIAL
A50: ASSENTAMENTO DE TUBOS E PECAS | B50: ASTU | C50: FORNEC E/OU ASSENT DE TUBO DE ACO COM JUNTA SOLDADA | D50: 46 | G50: 97184 | H50: ASSENTAMENTO DE TUBO DE AÇO CARBONO PARA REDE DE ÁGUA, DN 700 MM (28), JUNTA SOLDADA, INSTALADO EM LOCAL COM NÍVEL BAIXO DE INTERFERÊNCIAS (NÃO INCLUI FORNECIMENTO). AF_11/2017 | I50: M | J50: COEFICIENTE DE REPRESENTATIVIDADE | K50: 40.27 | L50: CAIXA REFERENCIAL
A51: ASSENTAMENTO DE TUBOS E PECAS | B51: ASTU | C51: FORNEC E/OU ASSENT DE TUBO DE ACO COM JUNTA SOLDADA | D51: 46 | G51: 97185 | H51: ASSENTAMENTO DE TUBO DE AÇO CARBONO PARA REDE DE ÁGUA, DN 800 MM (32), JUNTA SOLDADA, INSTALADO EM LOCAL COM NÍVEL BAIXO DE INTERFERÊNCIAS (NÃO INCLUI FORNECIMENTO). AF_11/2017 | I51: M | J51: COEFICIENTE DE REPRESENTATIVIDADE | K51: 45.76 | L51: CAIXA REFERENCIAL
A52: ASSENTAMENTO DE TUBOS E PECAS | B52: ASTU | C52: FORNEC E/OU ASSENT DE TUBO DE ACO COM JUNTA SOLDADA | D52: 46 | G52: 97186 | H52: ASSENTAMENTO DE TUBO DE AÇO CARBONO PARA REDE DE ÁGUA, DN 900 MM (36), JUNTA SOLDADA, INSTALADO EM LOCAL COM NÍVEL BAIXO DE INTERFERÊNCIAS (NÃO INCLUI FORNECIMENTO). AF_11/2017 | I52: M | J52: COEFICIENTE DE REPRESENTATIVIDADE | K52: 51.27 | L52: CAIXA REFERENCIAL
A53: ASSENTAMENTO DE TUBOS E PECAS | B53: ASTU | C53: FORNEC E/OU ASSENT DE TUBO DE ACO COM JUNTA SOLDADA | D53: 46 | G53: 97187 | H53: ASSENTAMENTO DE TUBO DE AÇO CARBONO PARA REDE DE ÁGUA, DN 1000 MM (40 ) OU DN 1100 MM (44 ), JUNTA SOLDADA, INSTALADO EM LOCAL COM NÍVEL BAIXO DE INTERFERÊNCIAS (NÃO INCLUI FORNECIMENTO). AF_11/2017 | I53: M | J53: COEFICIENTE DE REPRESENTATIVIDADE | K53: 62.27 | L53: CAIXA REFERENCIAL
A54: ASSENTAMENTO DE TUBOS E PECAS | B54: ASTU | C54: FORNEC E/OU ASSENT DE TUBO DE ACO COM JUNTA SOLDADA | D54: 46 | G54: 97188 | H54: ASSENTAMENTO DE TUBO DE AÇO CARBONO PARA REDE DE ÁGUA, DN 1200 MM (48) OU DN 1300 MM (52), JUNTA SOLDADA, INSTALADO EM LOCAL COM NÍVEL BAIXO DE INTERFERÊNCIAS (NÃO INCLUI FORNECIMENTO). AF_11/2017 | I54: M | J54: COEFICIENTE DE REPRESENTATIVIDADE | K54: 73.28 | L54: CAIXA REFERENCIAL
A55: ASSENTAMENTO DE TUBOS E PECAS | B55: ASTU | C55: FORNEC E/OU ASSENT DE TUBO DE ACO COM JUNTA SOLDADA | D55: 46 | G55: 97189 | H55: ASSENTAMENTO DE TUBO DE AÇO CARBONO PARA REDE DE ÁGUA, DN 1400 MM (56'') OU DN 1500 MM (60), JUNTA SOLDADA, INSTALADO EM LOCAL COM NÍVEL BAIXO DE INTERFERÊNCIAS (NÃO INCLUI FORNECIMENTO). AF_11/2017 | I55: M | J55: COEFICIENTE DE REPRESENTATIVIDADE | K55: 84.29 | L55: CAIXA REFERENCIAL
A56: ASSENTAMENTO DE TUBOS E PECAS | B56: ASTU | C56: FORNEC E/OU ASSENT DE TUBO DE ACO COM JUNTA SOLDADA | D56: 46 | G56: 97190 | H56: ASSENTAMENTO DE TUBO DE AÇO CARBONO PARA REDE DE ÁGUA, DN 1600 MM (64) OU DN 1700 MM (68), JUNTA SOLDADA, INSTALADO EM LOCAL COM NÍVEL BAIXO DE INTERFERÊNCIAS (NÃO INCLUI FORNECIMENTO). AF_11/2017 | I56: M | J56: COEFICIENTE DE REPRESENTATIVIDADE | K56: 95.29 | L56: CAIXA REFERENCIAL
A57: ASSENTAMENTO DE TUBOS E PECAS | B57: ASTU | C57: FORNEC E/OU ASSENT DE TUBO DE ACO COM JUNTA SOLDADA | D57: 46 | G57: 97191 | H57: ASSENTAMENTO DE TUBO DE AÇO CARBONO PARA REDE DE ÁGUA, DN 1800 MM (72) OU DN 1900 MM (76), JUNTA SOLDADA, INSTALADO EM LOCAL COM NÍVEL BAIXO DE INTERFERÊNCIAS (NÃO INCLUI FORNECIMENTO). AF_11/2017 | I57: M | J57: COEFICIENTE DE REPRESENTATIVIDADE | K57: 109.36 | L57: CAIXA REFERENCIAL
A58: ASSENTAMENTO DE TUBOS E PECAS | B58: ASTU | C58: FORNEC E/OU ASSENT DE TUBO DE ACO COM JUNTA SOLDADA | D58: 46 | G58: 97192 | H58: ASSENTAMENTO DE TUBO DE AÇO CARBONO PARA REDE DE ÁGUA, DN 2000 MM (80) OU DN 2100 MM (84), JUNTA SOLDADA, INSTALADO EM LOCAL COM NÍVEL BAIXO DE INTERFERÊNCIAS (NÃO INCLUI FORNECIMENTO). AF_11/2017 | I58: M | J58: COEFICIENTE DE REPRESENTATIVIDADE | K58: 120.67 | L58: CAIXA REFERENCIAL
A59: ASSENTAMENTO DE TUBOS E PECAS | B59: ASTU | C59: FORNEC E/OU ASSENT DE TUBO DE PVC COM JUNTA ELASTICA | D59: 48 | G59: 90694 | H59: TUBO DE PVC PARA REDE COLETORA DE ESGOTO DE PAREDE MACIÇA, DN 100 MM, JUNTA ELÁSTICA - FORNECIMENTO E ASSENTAMENTO. AF_01/2021 | I59: M | J59: COEFICIENTE DE REPRESENTATIVIDADE | K59: 46.98 | L59: CAIXA REFERENCIAL
A60: ASSENTAMENTO DE TUBOS E PECAS | B60: ASTU | C60: FORNEC E/OU ASSENT DE TUBO DE PVC COM JUNTA ELASTICA | D60: 48 | G60: 90695 | H60: TUBO DE PVC PARA REDE COLETORA DE ESGOTO DE PAREDE MACIÇA, DN 150 MM, JUNTA ELÁSTICA - FORNECIMENTO E ASSENTAMENTO. AF_01/2021 | I60: M | J60: COEFICIENTE DE REPRESENTATIVIDADE | K60: 88.28 | L60: CAIXA REFERENCIAL
A61: ASSENTAMENTO DE TUBOS E PECAS | B61: ASTU | C61: FORNEC E/OU ASSENT DE TUBO DE PVC COM JUNTA ELASTICA | D61: 48 | G61: 90696 | H61: TUBO DE PVC PARA REDE COLETORA DE ESGOTO DE PAREDE MACIÇA, DN 200 MM, JUNTA ELÁSTICA - FORNECIMENTO E ASSENTAMENTO. AF_01/2021 | I61: M | J61: COEFICIENTE DE REPRESENTATIVIDADE | K61: 146.61 | L61: CAIXA REFERENCIAL
A62: ASSENTAMENTO DE TUBOS E PECAS | B62: ASTU | C62: FORNEC E/OU ASSENT DE TUBO DE PVC COM JUNTA ELASTICA | D62: 48 | G62: 90697 | H62: TUBO DE PVC PARA REDE COLETORA DE ESGOTO DE PAREDE MACIÇA, DN 250 MM, JUNTA ELÁSTICA - FORNECIMENTO E ASSENTAMENTO. AF_01/2021 | I62: M | J62: COEFICIENTE DE REPRESENTATIVIDADE | K62: 226.65 | L62: CAIXA REFERENCIAL
A63: ASSENTAMENTO DE TUBOS E PECAS | B63: ASTU | C63: FORNEC E/OU ASSENT DE TUBO DE PVC COM JUNTA ELASTICA | D63: 48 | G63: 90698 | H63: TUBO DE PVC PARA REDE COLETORA DE ESGOTO DE PAREDE MACIÇA, DN 300 MM, JUNTA ELÁSTICA, FORNECIMENTO E ASSENTAMENTO. AF_01/2021 | I63: M | J63: COEFICIENTE DE REPRESENTATIVIDADE | K63: 345.53 | L63: CAIXA REFERENCIAL
A64: ASSENTAMENTO DE TUBOS E PECAS | B64: ASTU | C64: FORNEC E/OU ASSENT DE TUBO DE PVC COM JUNTA ELASTICA | D64: 48 | G64: 90699 | H64: TUBO DE PVC PARA REDE COLETORA DE ESGOTO DE PAREDE MACIÇA, DN 350 MM, JUNTA ELÁSTICA - FORNECIMENTO E ASSENTAMENTO. AF_01/2021 | I64: M | J64: COEFICIENTE DE REPRESENTATIVIDADE | K64: 485.59 | L64: CAIXA REFERENCIAL
A65: ASSENTAMENTO DE TUBOS E PECAS | B65: ASTU | C65: FORNEC E/OU ASSENT DE TUBO DE PVC COM JUNTA ELASTICA | D65: 48 | G65: 90700 | H65: TUBO DE PVC PARA REDE COLETORA DE ESGOTO DE PAREDE MACIÇA, DN 400 MM, JUNTA ELÁSTICA FORNECIMENTO E ASSENTAMENTO. AF_01/2021 | I65: M | J65: COEFICIENTE DE REPRESENTATIVIDADE | K65: 565.57 | L65: CAIXA REFERENCIAL
A66: ASSENTAMENTO DE TUBOS E PECAS | B66: ASTU | C66: FORNEC E/OU ASSENT DE TUBO DE PVC COM JUNTA ELASTICA | D66: 48 | G66: 90701 | H66: TUBO DE PVC CORRUGADO DE DUPLA PAREDE PARA REDE COLETORA DE ESGOTO, DN 150 MM, JUNTA ELÁSTICA - FORNECIMENTO E ASSENTAMENTO. AF_01/2021 | I66: M | J66: COEFICIENTE DE REPRESENTATIVIDADE | K66: 70.3 | L66: CAIXA REFERENCIAL
A67: ASSENTAMENTO DE TUBOS E PECAS | B67: ASTU | C67: FORNEC E/OU ASSENT DE TUBO DE PVC COM JUNTA ELASTICA | D67: 48 | G67: 90702 | H67: TUBO DE PVC CORRUGADO DE DUPLA PAREDE PARA REDE COLETORA DE ESGOTO, DN 200 MM, JUNTA ELÁSTICA - FORNECIMENTO E ASSENTAMENTO. AF_01/2021 | I67: M | J67: COEFICIENTE DE REPRESENTATIVIDADE | K67: 115.35 | L67: CAIXA REFERENCIAL
A68: ASSENTAMENTO DE TUBOS E PECAS | B68: ASTU | C68: FORNEC E/OU ASSENT DE TUBO DE PVC COM JUNTA ELASTICA | D68: 48 | G68: 90703 | H68: TUBO DE PVC CORRUGADO DE DUPLA PAREDE PARA REDE COLETORA DE ESGOTO, DN 250 MM, JUNTA ELÁSTICA - FORNECIMENTO E ASSENTAMENTO. AF_01/2021 | I68: M | J68: COEFICIENTE DE REPRESENTATIVIDADE | K68: 180.34 | L68: CAIXA REFERENCIAL
A69: ASSENTAMENTO DE TUBOS E PECAS | B69: ASTU | C69: FORNEC E/OU ASSENT DE TUBO DE PVC COM JUNTA ELASTICA | D69: 48 | G69: 90704 | H69: TUBO DE PVC CORRUGADO DE DUPLA PAREDE PARA REDE COLETORA DE ESGOTO, DN 300 MM, JUNTA ELÁSTICA - FORNECIMENTO E ASSENTAMENTO. AF_01/2021 | I69: M | J69: COEFICIENTE DE REPRESENTATIVIDADE | K69: 268.28 | L69: CAIXA REFERENCIAL
A70: ASSENTAMENTO DE TUBOS E PECAS | B70: ASTU | C70: FORNEC E/OU ASSENT DE TUBO DE PVC COM JUNTA ELASTICA | D70: 48 | G70: 90705 | H70: TUBO DE PVC CORRUGADO DE DUPLA PAREDE PARA REDE COLETORA DE ESGOTO, DN 350 MM, JUNTA ELÁSTICA - FORNECIMENTO E ASSENTAMENTO. AF_01/2021 | I70: M | J70: COEFICIENTE DE REPRESENTATIVIDADE | K70: 348.08 | L70: CAIXA REFERENCIAL
A71: ASSENTAMENTO DE TUBOS E PECAS | B71: ASTU | C71: FORNEC E/OU ASSENT DE TUBO DE PVC COM JUNTA ELASTICA | D71: 48 | G71: 90706 | H71: TUBO DE PVC CORRUGADO DE DUPLA PAREDE PARA REDE COLETORA DE ESGOTO, DN 400 MM, JUNTA ELÁSTICA - FORNECIMENTO E ASSENTAMENTO. AF_01/2021 | I71: M | J71: COEFICIENTE DE REPRESENTATIVIDADE | K71: 459.5 | L71: CAIXA REFERENCIAL
A72: ASSENTAMENTO DE TUBOS E PECAS | B72: ASTU | C72: FORNEC E/OU ASSENT DE TUBO DE PVC COM JUNTA ELASTICA | D72: 48 | G72: 90708 | H72: TUBO DE PEAD CORRUGADO DE DUPLA PAREDE PARA REDE COLETORA DE ESGOTO, DN 600 MM, JUNTA ELÁSTICA INTEGRADA - FORNECIMENTO E ASSENTAMENTO. AF_01/2021 | I72: M | J72: COEFICIENTE DE REPRESENTATIVIDADE | K72: 824.6 | L72: CAIXA REFERENCIAL
A73: ASSENTAMENTO DE TUBOS E PECAS | B73: ASTU | C73: FORNEC E/OU ASSENT DE TUBO DE PVC COM JUNTA ELASTICA | D73: 48 | G73: 90724 | H73: JUNTA ARGAMASSADA ENTRE TUBO DN 100 MM E O POÇO DE VISITA/ CAIXA DE CONCRETO OU ALVENARIA EM REDES DE ESGOTO. AF_01/2021 | I73: UN | J73: COEFICIENTE DE REPRESENTATIVIDADE | K73: 33.78 | L73: CAIXA REFERENCIAL
A74: ASSENTAMENTO DE TUBOS E PECAS | B74: ASTU | C74: FORNEC E/OU ASSENT DE TUBO DE PVC COM JUNTA ELASTICA | D74: 48 | G74: 90725 | H74: JUNTA ARGAMASSADA ENTRE TUBO DN 150 MM E O POÇO DE VISITA/ CAIXA DE CONCRETO OU ALVENARIA EM REDES DE ESGOTO. AF_01/2021 | I74: UN | J74: COEFICIENTE DE REPRESENTATIVIDADE | K74: 41.5 | L74: CAIXA REFERENCIAL
A75: ASSENTAMENTO DE TUBOS E PECAS | B75: ASTU | C75: FORNEC E/OU ASSENT DE TUBO DE PVC COM JUNTA ELASTICA | D75: 48 | G75: 90726 | H75: JUNTA ARGAMASSADA ENTRE TUBO DN 200 MM E O POÇO/ CAIXA DE CONCRETO OU ALVENARIA EM REDES DE ESGOTO. AF_01/2021 | I75: UN | J75: COEFICIENTE DE REPRESENTATIVIDADE | K75: 49.29 | L75: CAIXA REFERENCIAL
A76: ASSENTAMENTO DE TUBOS E PECAS | B76: ASTU | C76: FORNEC E/OU ASSENT DE TUBO DE PVC COM JUNTA ELASTICA | D76: 48 | G76: 90727 | H76: JUNTA ARGAMASSADA ENTRE TUBO DN 250 MM E O POÇO DE VISITA/ CAIXA DE CONCRETO OU ALVENARIA EM REDES DE ESGOTO. AF_01/2021 | I76: UN | J76: COEFICIENTE DE REPRESENTATIVIDADE | K76: 57.02 | L76: CAIXA REFERENCIAL
A77: ASSENTAMENTO DE TUBOS E PECAS | B77: ASTU | C77: FORNEC E/OU ASSENT DE TUBO DE PVC COM JUNTA ELASTICA | D77: 48 | G77: 90728 | H77: JUNTA ARGAMASSADA ENTRE TUBO DN 300 MM E O POÇO DE VISITA/ CAIXA DE CONCRETO OU ALVENARIA EM REDES DE ESGOTO. AF_01/2021 | I77: UN | J77: COEFICIENTE DE REPRESENTATIVIDADE | K77: 64.74 | L77: CAIXA REFERENCIAL
A78: ASSENTAMENTO DE TUBOS E PECAS | B78: ASTU | C78: FORNEC E/OU ASSENT DE TUBO DE PVC COM JUNTA ELASTICA | D78: 48 | G78: 90729 | H78: JUNTA ARGAMASSADA ENTRE TUBO DN 350 MM E O POÇO DE VISITA/ CAIXA DE CONCRETO OU ALVENARIA EM REDES DE ESGOTO. AF_01/2021 | I78: UN | J78: COEFICIENTE DE REPRESENTATIVIDADE | K78: 72.46 | L78: CAIXA REFERENCIAL
A79: ASSENTAMENTO DE TUBOS E PECAS | B79: ASTU | C79: FORNEC E/OU ASSENT DE TUBO DE PVC COM JUNTA ELASTICA | D79: 48 | G79: 90730 | H79: JUNTA ARGAMASSADA ENTRE TUBO DN 400 MM E O POÇO DE VISITA/ CAIXA DE CONCRETO OU ALVENARIA EM REDES DE ESGOTO. AF_01/2021 | I79: UN | J79: COEFICIENTE DE REPRESENTATIVIDADE | K79: 80.19 | L79: CAIXA REFERENCIAL
A80: ASSENTAMENTO DE TUBOS E PECAS | B80: ASTU | C80: FORNEC E/OU ASSENT DE TUBO DE PVC COM JUNTA ELASTICA | D80: 48 | G80: 90731 | H80: JUNTA ARGAMASSADA ENTRE TUBO DN 450 MM E O POÇO DE VISITA/ CAIXA DE CONCRETO OU ALVENARIA EM REDES DE ESGOTO. AF_01/2021 | I80: UN | J80: COEFICIENTE DE REPRESENTATIVIDADE | K80: 87.91 | L80: CAIXA REFERENCIAL
A81: ASSENTAMENTO DE TUBOS E PECAS | B81: ASTU | C81: FORNEC E/OU ASSENT DE TUBO DE PVC COM JUNTA ELASTICA | D81: 48 | G81: 90732 | H81: JUNTA ARGAMASSADA ENTRE TUBO DN 600 MM E O POÇO DE VISITA/ CAIXA DE CONCRETO OU ALVENARIA EM REDES DE ESGOTO. AF_01/2021 | I81: UN | J81: COEFICIENTE DE REPRESENTATIVIDADE | K81: 111.07 | L81: CAIXA REFERENCIAL
A82: ASSENTAMENTO DE TUBOS E PECAS | B82: ASTU | C82: FORNEC E/OU ASSENT DE TUBO DE PVC COM JUNTA ELASTICA | D82: 48 | G82: 90733 | H82: ASSENTAMENTO DE TUBO DE PVC PARA REDE COLETORA DE ESGOTO DE PAREDE MACIÇA, DN 100 MM, JUNTA ELÁSTICA (NÃO INCLUI FORNECIMENTO). AF_01/2021 | I82: M | J82: COEFICIENTE DE REPRESENTATIVIDADE | K82: 4.8 | L82: CAIXA REFERENCIAL
A83: ASSENTAMENTO DE TUBOS E PECAS | B83: ASTU | C83: FORNEC E/OU ASSENT DE TUBO DE PVC COM JUNTA ELASTICA | D83: 48 | G83: 90734 | H83: ASSENTAMENTO DE TUBO DE PVC PARA REDE COLETORA DE ESGOTO DE PAREDE MACIÇA, DN 150 MM, JUNTA ELÁSTICA, (NÃO INCLUI FORNECIMENTO). AF_01/2021 | I83: M | J83: COEFICIENTE DE REPRESENTATIVIDADE | K83: 5.7 | L83: CAIXA REFERENCIAL
A84: ASSENTAMENTO DE TUBOS E PECAS | B84: ASTU | C84: FORNEC E/OU ASSENT DE TUBO DE PVC COM JUNTA ELASTICA | D84: 48 | G84: 90735 | H84: ASSENTAMENTO DE TUBO DE PVC PARA REDE COLETORA DE ESGOTO DE PAREDE MACIÇA, DN 200 MM, JUNTA ELÁSTICA (NÃO INCLUI FORNECIMENTO). AF_01/2021 | I84: M | J84: COEFICIENTE DE REPRESENTATIVIDADE | K84: 6.58 | L84: CAIXA REFERENCIAL
A85: ASSENTAMENTO DE TUBOS E PECAS | B85: ASTU | C85: FORNEC E/OU ASSENT DE TUBO DE PVC COM JUNTA ELASTICA | D85: 48 | G85: 90736 | H85: ASSENTAMENTO DE TUBO DE PVC PARA REDE COLETORA DE ESGOTO DE PAREDE MACIÇA, DN 250 MM, JUNTA ELÁSTICA (NÃO INCLUI FORNECIMENTO). AF_01/2021 | I85: M | J85: COEFICIENTE DE REPRESENTATIVIDADE | K85: 7.47 | L85: CAIXA REFERENCIAL
A86: ASSENTAMENTO DE TUBOS E PECAS | B86: ASTU | C86: FORNEC E/OU ASSENT DE TUBO DE PVC COM JUNTA ELASTICA | D86: 48 | G86: 90737 | H86: ASSENTAMENTO DE TUBO DE PVC PARA REDE COLETORA DE ESGOTO DE PAREDE MACIÇA, DN 300 MM, JUNTA ELÁSTICA (NÃO INCLUI FORNECIMENTO). AF_01/2021 | I86: M | J86: COEFICIENTE DE REPRESENTATIVIDADE | K86: 8.36 | L86: CAIXA REFERENCIAL
A87: ASSENTAMENTO DE TUBOS E PECAS | B87: ASTU | C87: FORNEC E/OU ASSENT DE TUBO DE PVC COM JUNTA ELASTICA | D87: 48 | G87: 90738 | H87: ASSENTAMENTO DE TUBO DE PVC PARA REDE COLETORA DE ESGOTO DE PAREDE MACIÇA, DN 350 MM, JUNTA ELÁSTICA (NÃO INCLUI FORNECIMENTO). AF_01/2021 | I87: M | J87: COEFICIENTE DE REPRESENTATIVIDADE | K87: 9.25 | L87: CAIXA REFERENCIAL
A88: ASSENTAMENTO DE TUBOS E PECAS | B88: ASTU | C88: FORNEC E/OU ASSENT DE TUBO DE PVC COM JUNTA ELASTICA | D88: 48 | G88: 90739 | H88: ASSENTAMENTO DE TUBO DE PVC PARA REDE COLETORA DE ESGOTO DE PAREDE MACIÇA, DN 400 MM, JUNTA ELÁSTICA (NÃO INCLUI FORNECIMENTO). AF_01/2021 | I88: M | J88: COEFICIENTE DE REPRESENTATIVIDADE | K88: 10.84 | L88: CAIXA REFERENCIAL
A89: ASSENTAMENTO DE TUBOS E PECAS | B89: ASTU | C89: FORNEC E/OU ASSENT DE TUBO DE PVC COM JUNTA ELASTICA | D89: 48 | G89: 90740 | H89: ASSENTAMENTO DE TUBO DE PVC CORRUGADO DE DUPLA PAREDE PARA REDE COLETORA DE ESGOTO, DN 150 MM, JUNTA ELÁSTICA (NÃO INCLUI FORNECIMENTO). AF_01/2021 | I89: M | J89: COEFICIENTE DE REPRESENTATIVIDADE | K89: 6.35 | L89: CAIXA REFERENCIAL
A90: ASSENTAMENTO DE TUBOS E PECAS | B90: ASTU | C90: FORNEC E/OU ASSENT DE TUBO DE PVC COM JUNTA ELASTICA | D90: 48 | G90: 90741 | H90: ASSENTAMENTO DE TUBO DE PVC CORRUGADO DE DUPLA PAREDE PARA REDE COLETORA DE ESGOTO, DN 200 MM, JUNTA ELÁSTICA (NÃO INCLUI FORNECIMENTO). AF_01/2021 | I90: M | J90: COEFICIENTE DE REPRESENTATIVIDADE | K90: 7.23 | L90: CAIXA REFERENCIAL
A91: ASSENTAMENTO DE TUBOS E PECAS | B91: ASTU | C91: FORNEC E/OU ASSENT DE TUBO DE PVC COM JUNTA ELASTICA | D91: 48 | G91: 90742 | H91: ASSENTAMENTO DE TUBO DE PVC CORRUGADO DE DUPLA PAREDE PARA REDE COLETORA DE ESGOTO, DN 250 MM, JUNTA ELÁSTICA (NÃO INCLUI FORNECIMENTO). AF_01/2021 | I91: M | J91: COEFICIENTE DE REPRESENTATIVIDADE | K91: 8.12 | L91: CAIXA REFERENCIAL
A92: ASSENTAMENTO DE TUBOS E PECAS | B92: ASTU | C92: FORNEC E/OU ASSENT DE TUBO DE PVC COM JUNTA ELASTICA | D92: 48 | G92: 90743 | H92: ASSENTAMENTO DE TUBO DE PVC CORRUGADO DE DUPLA PAREDE PARA REDE COLETORA DE ESGOTO, DN 300 MM, JUNTA ELÁSTICA (NÃO INCLUI FORNECIMENTO). AF_01/2021 | I92: M | J92: COEFICIENTE DE REPRESENTATIVIDADE | K92: 9.02 | L92: CAIXA REFERENCIAL
A93: ASSENTAMENTO DE TUBOS E PECAS | B93: ASTU | C93: FORNEC E/OU ASSENT DE TUBO DE PVC COM JUNTA ELASTICA | D93: 48 | G93: 90744 | H93: ASSENTAMENTO DE TUBO DE PVC CORRUGADO DE DUPLA PAREDE PARA REDE COLETORA DE ESGOTO, DN 350 MM, JUNTA ELÁSTICA (NÃO INCLUI FORNECIMENTO). AF_01/2021 | I93: M | J93: COEFICIENTE DE REPRESENTATIVIDADE | K93: 9.9 | L93: CAIXA REFERENCIAL
A94: ASSENTAMENTO DE TUBOS E PECAS | B94: ASTU | C94: FORNEC E/OU ASSENT DE TUBO DE PVC COM JUNTA ELASTICA | D94: 48 | G94: 90745 | H94: ASSENTAMENTO DE TUBO DE PVC CORRUGADO DE DUPLA PAREDE PARA REDE COLETORA DE ESGOTO, DN 400 MM, JUNTA ELÁSTICA (NÃO INCLUI FORNECIMENTO). AF_01/2021 | I94: M | J94: COEFICIENTE DE REPRESENTATIVIDADE | K94: 12.1 | L94: CAIXA REFERENCIAL
A95: ASSENTAMENTO DE TUBOS E PECAS | B95: ASTU | C95: FORNEC E/OU ASSENT DE TUBO DE PVC COM JUNTA ELASTICA | D95: 48 | G95: 90746 | H95: ASSENTAMENTO DE TUBO DE PEAD CORRUGADO DE DUPLA PAREDE PARA REDE COLETORA DE ESGOTO, DN 450 MM, JUNTA ELÁSTICA INTEGRADA (NÃO INCLUI FORNECIMENTO). AF_01/2021 | I95: M | J95: COEFICIENTE DE REPRESENTATIVIDADE | K95: 5.19 | L95: CAIXA REFERENCIAL
A96: ASSENTAMENTO DE TUBOS E PECAS | B96: ASTU | C96: FORNEC E/OU ASSENT DE TUBO DE PVC COM JUNTA ELASTICA | D96: 48 | G96: 90747 | H96: ASSENTAMENTO DE TUBO DE PEAD CORRUGADO DE DUPLA PAREDE PARA REDE COLETORA DE ESGOTO, DN 600 MM, JUNTA ELÁSTICA INTEGRADA (NÃO INCLUI FORNECIMENTO). AF_01/2021 | I96: M | J96: COEFICIENTE DE REPRESENTATIVIDADE | K96: 19.3 | L96: CAIXA REFERENCIAL
A97: ASSENTAMENTO DE TUBOS E PECAS | B97: ASTU | C97: FORNEC E/OU ASSENT DE TUBO DE PVC COM JUNTA ELASTICA | D97: 48 | G97: 94869 | H97: TUBO DE PEAD CORRUGADO DE DUPLA PAREDE PARA REDE COLETORA DE ESGOTO, DN 250 MM, JUNTA ELÁSTICA INTEGRADA - FORNECIMENTO E ASSENTAMENTO. AF_01/2021 | I97: M | J97: COEFICIENTE DE REPRESENTATIVIDADE | K97: 145.44 | L97: CAIXA REFERENCIAL
A98: ASSENTAMENTO DE TUBOS E PECAS | B98: ASTU | C98: FORNEC E/OU ASSENT DE TUBO DE PVC COM JUNTA ELASTICA | D98: 48 | G98: 94870 | H98: ASSENTAMENTO DE TUBO DE PEAD CORRUGADO DE DUPLA PAREDE PARA REDE COLETORA DE ESGOTO, DN 250 MM, JUNTA ELÁSTICA INTEGRADA (NÃO INCLUI FORNECIMENTO). AF_01/2021 | I98: M | J98: COEFICIENTE DE REPRESENTATIVIDADE | K98: 2.29 | L98: CAIXA REFERENCIAL
A99: ASSENTAMENTO DE TUBOS E PECAS | B99: ASTU | C99: FORNEC E/OU ASSENT DE TUBO DE PVC COM JUNTA ELASTICA | D99: 48 | G99: 94871 | H99: TUBO DE PEAD CORRUGADO DE DUPLA PAREDE PARA REDE COLETORA DE ESGOTO, DN 300 MM, JUNTA ELÁSTICA INTEGRADA - FORNECIMENTO E ASSENTAMENTO. AF_01/2021 | I99: M | J99: COEFICIENTE DE REPRESENTATIVIDADE | K99: 227.63 | L99: CAIXA REFERENCIAL
A100: ASSENTAMENTO DE TUBOS E PECAS | B100: ASTU | C100: FORNEC E/OU ASSENT DE TUBO DE PVC COM JUNTA ELASTICA | D100: 48 | G100: 94872 | H100: ASSENTAMENTO DE TUBO DE PEAD CORRUGADO DE DUPLA PAREDE PARA REDE COLETORA DE ESGOTO, DN 300 MM, JUNTA ELÁSTICA INTEGRADA (NÃO INCLUI FORNECIMENTO). AF_01/2021 | I100: M | J100: COEFICIENTE DE REPRESENTATIVIDADE | K100: 3.35 | L100: CAIXA REFERENCIAL
A101: ASSENTAMENTO DE TUBOS E PECAS | B101: ASTU | C101: FORNEC E/OU ASSENT DE TUBO DE PVC COM JUNTA ELASTICA | D101: 48 | G101: 94875 | H101: TUBO DE PEAD CORRUGADO DE DUPLA PAREDE PARA REDE COLETORA DE ESGOTO, DN 800 MM, JUNTA ELÁSTICA INTEGRADA - FORNECIMENTO E ASSENTAMENTO. AF_01/2021 | I101: M | J101: COEFICIENTE DE REPRESENTATIVIDADE | K101: 1338.84 | L101: CAIXA REFERENCIAL
A102: ASSENTAMENTO DE TUBOS E PECAS | B102: ASTU | C102: FORNEC E/OU ASSENT DE TUBO DE PVC COM JUNTA ELASTICA | D102: 48 | G102: 94876 | H102: ASSENTAMENTO DE TUBO DE PEAD CORRUGADO DE DUPLA PAREDE PARA REDE COLETORA DE ESGOTO, DN 800 MM, JUNTA ELÁSTICA INTEGRADA (NÃO INCLUI FORNECIMENTO). AF_01/2021 | I102: M | J102: COEFICIENTE DE REPRESENTATIVIDADE | K102: 32.05 | L102: CAIXA REFERENCIAL
A103: ASSENTAMENTO DE TUBOS E PECAS | B103: ASTU | C103: FORNEC E/OU ASSENT DE TUBO DE PVC COM JUNTA ELASTICA | D103: 48 | G103: 94878 | H103: ASSENTAMENTO DE TUBO DE PEAD CORRUGADO DE DUPLA PAREDE PARA REDE COLETORA DE ESGOTO, DN 900 MM, JUNTA ELÁSTICA INTEGRADA (NÃO INCLUI FORNECIMENTO). AF_01/2021 | I103: M | J103: COEFICIENTE DE REPRESENTATIVIDADE | K103: 37.13 | L103: CAIXA REFERENCIAL
A104: ASSENTAMENTO DE TUBOS E PECAS | B104: ASTU | C104: FORNEC E/OU ASSENT DE TUBO DE PVC COM JUNTA ELASTICA | D104: 48 | G104: 94879 | H104: TUBO DE PEAD CORRUGADO DE DUPLA PAREDE PARA REDE COLETORA DE ESGOTO, DN 1000 MM, JUNTA ELÁSTICA INTEGRADA - FORNECIMENTO E ASSENTAMENTO. AF_01/2021 | I104: M | J104: COEFICIENTE DE REPRESENTATIVIDADE | K104: 2060.76 | L104: CAIXA REFERENCIAL
